Workbook

Sheet kadft
B4: 県 名 | F4: 市町村名 | I4: =""&IF(グラフ用!$G$6<>"NO",グラフ用!G8,グラフ用!$G$10)&" " -> 旧市町村名 | T4: 地域類型区分
B5: 静岡県 | T5: =INDEX(地域類型区分!C2:C555,グラフ用!F3) -> 設定 | W5: =INDEX(地域類型区分!D2:D555,グラフ用!F3) -> されていません
U7: 前回 | W7: との比較
B9: 土地の状況 | W9: 単位：㏊
E11: 総土地面積 | H11: 林野面積 | K11: 耕地面積計（農山村地域調査結果） | W11: 耕作放棄地 面積
N12: 田面積 | Q12: 畑面積 | T12: 樹園地面積
B13: 2010年 | E13: =INDEX('2010'!$D$6:$AV$550,グラフ用!$F$3,1) -> 771,540 | H13: =INDEX('2010'!$D$6:$AV$550,グラフ用!$F$3,2) -> 495,556 | K13: =INDEX('2010'!$D$6:$AV$550,グラフ用!$F$3,3) -> 68,934 | N13: =INDEX('2010'!$D$6:$AV$550,グラフ用!$F$3,4) -> 22,919 | Q13: =INDEX('2010'!$D$6:$AV$550,グラフ用!$F$3,5) -> 15,856 | T13: =INDEX('2010'!$D$6:$AV$550,グラフ用!$F$3,6) -> 30,159 | W13: =INDEX('2010'!$D$6:$AV$550,グラフ用!$F$3,7) -> 12,494
B14: 2015年 | E14: =INDEX('2015'!$D$6:$AV$538,グラフ用!$F$3,1) -> 777,870 | H14: =INDEX('2015'!$D$6:$AV$538,グラフ用!$F$3,2) -> 495,653 | K14: =INDEX('2015'!$D$6:$AV$538,グラフ用!$F$3,3) -> 66,589 | N14: =INDEX('2015'!$D$6:$AV$538,グラフ用!$F$3,4) -> 22,370 | Q14: =INDEX('2015'!$D$6:$AV$538,グラフ用!$F$3,5) -> 15,385 | T14: =INDEX('2015'!$D$6:$AV$538,グラフ用!$F$3,6) -> 28,834 | W14: =INDEX('2015'!$D$6:$AV$538,グラフ用!$F$3,7) -> 12,843
B15: 比率(%) | F15: － | H15: ※1 | I15: =IFERROR(ROUND(H14/$E$14*100,1),"nc") -> 63.7 | K15: ※1 | L15: =IFERROR(ROUND(K14/$E$14*100,1),"nc") -> 8.6 | N15: ※2 | O15: =IFERROR(ROUND(N14/$K$14*100,1),"nc") -> 33.6 | Q15: ※2 | R15: =IFERROR(ROUND(Q14/$K$14*100,1),"nc") -> 23.1 | T15: ※2 | U15: =IFERROR(ROUND(T14/$K$14*100,1),"nc") -> 43.3 | W15: ※3 | X15: =IFERROR(ROUND(W14/グラフ用!B12*100,1),"nc") -> 16.2
B16: 県計 比率(%) | F16: － | H16: ※1 | I16: 63.7 | K16: ※1 | L16: 8.6 | N16: ※2 | O16: 33.6 | Q16: ※2 | R16: 23.1 | T16: ※2 | U16: 43.3 | W16: ※3 | X16: 16.2
B17: ※1 総土地面積に対する比率 ※2 耕地面積計に対する比率 ※3 耕作放棄地率は耕作放棄地面積と耕地面積の和に対する割合
D18: =IF($U$7="県計",[1]グラフ用シート!C13,IF($U$7="前回",[1]グラフ用シート!E13)) -> 林野面積及び耕地面積 | K18: =IF($U$7="県計",[1]グラフ用シート!C18,IF($U$7="前回",[1]グラフ用シート!E18)) -> 地目別の耕地面積割合 | Q18: （％） | R18: 64 | U18: =IF($U$7="県計",[1]グラフ用シート!F23,IF($U$7="前回",[1]グラフ用シート!D23)) -> 耕作放棄地面積 | Y18: =IF(kadft!$U$7="県計",グラフ用!$I$18,IF(kadft!$U$7="前回",グラフ用!$I$16)) -> (㏊) | Z18: =IF([1]練習!$U$7="県計",$I$18,IF([1]練習!$U$7="前回",$I$16)) -> 64
P19: 内円 | Q19: =IF($U$7="県計",グラフ用!J15,IF($U$7="前回",グラフ用!G14)) -> 2010年
A20: =IF(kadft!$U$7="県計",グラフ用!$I$18,IF(kadft!$U$7="前回",グラフ用!$I$16)) -> (㏊) | B20: =IF([1]練習!$U$7="県計",$I$18,IF([1]練習!$U$7="前回",$I$16)) -> 64 | P20: 外円 | Q20: =IF($U$7="県計",グラフ用!G13,IF($U$7="前回",グラフ用!G15)) -> 2015年
B28: 法制上の指定地域面積 | N28: 単位：㏊ | U28: 森林地域 | W28: =E35 -> (1.0)
E30: 森林地域 | G30: 農業地域 | I30: 市街化 区域 | K30: 市街化 調整区域 | M30: 商業関連地域 | O30: 工業関連地域
Q31: 工業関連地域 | X31: 農業地域
B32: 項目別面積 | E32: =INDEX(指定地域!$C$2:$I$550,グラフ用!$F$3,1) -> 501,285 | G32: =INDEX(指定地域!$C$2:$I$550,グラフ用!$F$3,2) -> 446,248 | I32: =INDEX(指定地域!$C$2:$I$550,グラフ用!$F$3,3) -> 46,409 | K32: =INDEX(指定地域!$C$2:$I$550,グラフ用!$F$3,4) -> 185,889 | M32: =INDEX(指定地域!$C$2:$I$550,グラフ用!$F$3,5) -> 4,319 | O32: =INDEX(指定地域!$C$2:$I$550,グラフ用!$F$3,6) -> 14,490 | R32: =O35 -> (1.0) | X32: =G35 -> (1.0)
B33: 比率(%) | E33: =ROUND(E32/$E$14*100,1) -> 64.4 | G33: =ROUND(G32/$E$14*100,1) -> 57.4 | I33: =ROUND(I32/$E$14*100,1) -> 6.0 | K33: =ROUND(K32/$E$14*100,1) -> 23.9 | M33: =ROUND(M32/$E$14*100,1) -> 0.6 | O33: =ROUND(O32/$E$14*100,1) -> 1.9
B34: 県計 比率(%) | E34: 64.4 | G34: 57.4 | I34: 6.0 | K34: 23.9 | M34: 0.6 | O34: 1.9
B35: 特化係数 | E35: =E33/E34 -> 1.0 | G35: =G33/G34 -> 1.0 | I35: =I33/I34 -> 1.0 | K35: =K33/K34 -> 1.0 | M35: =M33/M34 -> 1.0 | O35: =O33/O34 -> 1.0 | Q35: 商業関連地域 | X35: 市街化区域
B36: ※ 商業関連地域は、近隣商業地域と商業地域の合計。 工業関連地域は、準工業地域と工業地域及び工業専用地域の合計。 | R36: =M35 -> (1.0) | X36: =I35 -> (1.0)
B37: ※ 比率は、総土地面積（2015年）に対する比率である。
B38: ※ 特化係数は、比率／県計比率で算出。1.0を超えるほど特化している。 | T38: 市街化調整区域 | W38: =K35 -> (1.0)
B40: 農業生産関連事業経営体数 | T40: 単位：経営体
E42: 農業経営体 数計 | H42: 生産関連事業を実施している実経営体数 | K42: 事業種類別経営体数
K43: 農産物の加工 | N43: 消費者に直接販売 | Q43: 観光農園 | T43: その他
B45: 2010年 | E45: =INDEX('2010'!$D$6:$AV$550,グラフ用!$F$3,8) -> 40,102 | H45: =INDEX('2010'!$D$6:$AV$550,グラフ用!$F$3,9) -> 12,228 | K45: =INDEX('2010'!$D$6:$AV$550,グラフ用!$F$3,10) -> 1,995 | N45: =INDEX('2010'!$D$6:$AV$550,グラフ用!$F$3,11) -> 11,071 | Q45: =INDEX('2010'!$D$6:$AV$550,グラフ用!$F$3,12) -> 268 | T45: =INDEX('2010'!$D$6:$AV$550,グラフ用!$F$3,13) -> 340
B46: 2015年 | E46: =INDEX('2015'!$D$6:$AV$538,グラフ用!$F$3,8) -> 33,143 | H46: =INDEX('2015'!$D$6:$AV$538,グラフ用!$F$3,9) -> 9,423 | K46: =INDEX('2015'!$D$6:$AV$538,グラフ用!$F$3,10) -> 1,087 | N46: =INDEX('2015'!$D$6:$AV$538,グラフ用!$F$3,11) -> 8,926 | Q46: =INDEX('2015'!$D$6:$AV$538,グラフ用!$F$3,12) -> 218 | T46: =INDEX('2015'!$D$6:$AV$538,グラフ用!$F$3,13) -> 270
B47: 比率(%) | E47: － | H47: =IFERROR(ROUND(H46/$E$46*100,1),"nc") -> 28.4 | K47: =IFERROR(ROUND(K46/$E$46*100,1),"nc") -> 3.3 | N47: =IFERROR(ROUND(N46/$E$46*100,1),"nc") -> 26.9 | Q47: =IFERROR(ROUND(Q46/$E$46*100,1),"nc") -> 0.7 | T47: =IFERROR(ROUND(T46/$E$46*100,1),"nc") -> 0.8
B48: 県計 比率(%) | E48: － | H48: 28.4 | K48: 3.3 | N48: 26.9 | Q48: 0.7 | T48: 0.8
B49: ※ 比率は、農業経営体数計に対する比率である。 ※ その他は、貸農園・体験農園、農家民宿、農家レストラン等である。
B50: =IF(kadft!$U$7="県計",グラフ用!$I$18,IF(kadft!$U$7="前回",グラフ用!$I$17)) -> (経営体) | D50: =IF($U$7="県計",グラフ用!$C$45,IF($U$7="前回",グラフ用!$D$45)) -> 事業実施経営体数 | O50: =IF($U$7="県計",グラフ用!$C$51,IF($U$7="前回",グラフ用!$D$51)) -> 事業種類別経営体数
Y57: =IF(kadft!$U$7="県計",グラフ用!$I$18,IF(kadft!$U$7="前回",グラフ用!$I$17)) -> (経営体)
B58: 農業集落の状況 | V58: 単位：集落
E60: 農業集落数計 | G60: 水田率別農業集落数 | M60: 農家率別農業集落数
G61: 水田集落（70％以上） | I61: 田畑集落 （30～70） | K61: 畑地集落 （30％未満） | M61: 10％未満 | O61: 10～30 | Q61: 30～50 | S61: 50～70 | U61: 70～90 | W61: 90％以上
B63: 2010年 | E63: =INDEX('2010'!$D$6:$AV$550,グラフ用!$F$3,14) -> 3,366 | G63: =INDEX('2010'!$D$6:$AV$550,グラフ用!$F$3,15) -> 662 | I63: =INDEX('2010'!$D$6:$AV$550,グラフ用!$F$3,16) -> 882 | K63: =INDEX('2010'!$D$6:$AV$550,グラフ用!$F$3,17) -> 1,822 | M63: =INDEX('2010'!$D$6:$AV$550,グラフ用!$F$3,18) -> 1,360 | O63: =INDEX('2010'!$D$6:$AV$550,グラフ用!$F$3,19) -> 997 | Q63: =INDEX('2010'!$D$6:$AV$550,グラフ用!$F$3,20) -> 495 | S63: =INDEX('2010'!$D$6:$AV$550,グラフ用!$F$3,21) -> 325 | U63: =INDEX('2010'!$D$6:$AV$550,グラフ用!$F$3,22) -> 156 | W63: =INDEX('2010'!$D$6:$AV$550,グラフ用!$F$3,23) -> 33
B64: 2015年 | E64: =INDEX('2015'!$D$6:$AV$538,グラフ用!$F$3,14) -> 3,361 | G64: =INDEX('2015'!$D$6:$AV$538,グラフ用!$F$3,15) -> 662 | I64: =INDEX('2015'!$D$6:$AV$538,グラフ用!$F$3,16) -> 873 | K64: =INDEX('2015'!$D$6:$AV$538,グラフ用!$F$3,17) -> 1,826 | M64: =INDEX('2015'!$D$6:$AV$538,グラフ用!$F$3,18) -> 1,526 | O64: =INDEX('2015'!$D$6:$AV$538,グラフ用!$F$3,19) -> 999 | Q64: =INDEX('2015'!$D$6:$AV$538,グラフ用!$F$3,20) -> 484 | S64: =INDEX('2015'!$D$6:$AV$538,グラフ用!$F$3,21) -> 253 | U64: =INDEX('2015'!$D$6:$AV$538,グラフ用!$F$3,22) -> 83 | W64: =INDEX('2015'!$D$6:$AV$538,グラフ用!$F$3,23) -> 16
B65: 構成比(%) | E65: － | G65: =IFERROR(ROUND(G64/$E$64*100,1),"nc") -> 19.7 | I65: =IFERROR(ROUND(I64/$E$64*100,1),"nc") -> 26.0 | K65: =IFERROR(ROUND(K64/$E$64*100,1),"nc") -> 54.3 | M65: =IFERROR(ROUND(M64/$E$64*100,1),"nc") -> 45.4 | O65: =IFERROR(ROUND(O64/$E$64*100,1),"nc") -> 29.7 | Q65: =IFERROR(ROUND(Q64/$E$64*100,1),"nc") -> 14.4 | S65: =IFERROR(ROUND(S64/$E$64*100,1),"nc") -> 7.5 | U65: =IFERROR(ROUND(U64/$E$64*100,1),"nc") -> 2.5 | W65: =IFERROR(ROUND(W64/$E$64*100,1),"nc") -> 0.5
B66: 県計 構成比(%) | E66: － | G66: 19.7 | I66: 26.0 | K66: 54.3 | M66: 45.4 | O66: 29.7 | Q66: 14.4 | S66: 7.5 | U66: 2.5 | W66: 0.5
C67: =IF($U$7="県計",グラフ用!$D$61,IF($U$7="前回",グラフ用!$F$61)) -> 水田率別農業集落数 | D67: =IF($T$58="県計",$G$65,IF($T$58="前回",$G$64)) -> FALSE | E67: FALSE | F67: FALSE | G67: FALSE | H67: FALSE | I67: FALSE | J67: FALSE | K67: FALSE | L67: =IF(kadft!$U$7="県計",グラフ用!$I$18,IF(kadft!$U$7="前回",グラフ用!$J$16)) -> （集落） | O67: =IF($U$7="県計",グラフ用!$D$66,IF($U$7="前回",グラフ用!$F$66)) -> 農家率別農業集落数 | P67: =IF($T$58="県計",$G$65,IF($T$58="前回",$G$64)) -> FALSE | Q67: FALSE | R67: FALSE | S67: FALSE | T67: FALSE | U67: FALSE | V67: FALSE | W67: FALSE
L74: =IF(kadft!$U$7="県計",グラフ用!$I$18,IF(kadft!$U$7="前回",グラフ用!$J$16)) -> （集落）
B75: 寄り合いの実施状況 | W75: 単位：集落
E77: 農業生産にかかる事項 | H77: 農道・水路・ため池等の管理 | K77: 集落共有財産・施設の管理 | N77: 環境美化・自然環境の保全 | Q77: 農業集落行事の計画・推進 | T77: 農業集落内の福祉・厚生 | W77: 寄り合いを開催しなかった
B79: 2010年 | E79: =INDEX('2010'!$D$6:$AV$550,グラフ用!$F$3,24) -> 1,354 | H79: =INDEX('2010'!$D$6:$AV$550,グラフ用!$F$3,25) -> 1,726 | K79: =INDEX('2010'!$D$6:$AV$550,グラフ用!$F$3,26) -> 1,737 | N79: =INDEX('2010'!$D$6:$AV$550,グラフ用!$F$3,27) -> 2,243 | Q79: =INDEX('2010'!$D$6:$AV$550,グラフ用!$F$3,28) -> 2,568 | T79: =INDEX('2010'!$D$6:$AV$550,グラフ用!$F$3,29) -> 1,641 | W79: =INDEX('2010'!$D$6:$AV$550,グラフ用!$F$3,30) -> 382
B80: 2015年 | E80: =INDEX('2015'!$D$6:$AV$538,グラフ用!$F$3,24) -> 1,395 | H80: =INDEX('2015'!$D$6:$AV$538,グラフ用!$F$3,25) -> 2,273 | K80: =INDEX('2015'!$D$6:$AV$538,グラフ用!$F$3,26) -> 1,972 | N80: =INDEX('2015'!$D$6:$AV$538,グラフ用!$F$3,27) -> 2,844 | Q80: =INDEX('2015'!$D$6:$AV$538,グラフ用!$F$3,28) -> 2,897 | T80: =INDEX('2015'!$D$6:$AV$538,グラフ用!$F$3,29) -> 2,258 | W80: =INDEX('2015'!$D$6:$AV$538,グラフ用!$F$3,30) -> 285
B81: 比率(%) | E81: =IFERROR(ROUND(E80/$E$64*100,1),"nc") -> 41.5 | H81: =IFERROR(ROUND(H80/$E$64*100,1),"nc") -> 67.6 | K81: =IFERROR(ROUND(K80/$E$64*100,1),"nc") -> 58.7 | N81: =IFERROR(ROUND(N80/$E$64*100,1),"nc") -> 84.6 | Q81: =IFERROR(ROUND(Q80/$E$64*100,1),"nc") -> 86.2 | T81: =IFERROR(ROUND(T80/$E$64*100,1),"nc") -> 67.2 | W81: =IFERROR(ROUND(W80/$E$64*100,1),"nc") -> 8.5
B82: 県計 比率(%) | E82: 41.5 | H82: 67.6 | K82: 58.7 | N82: 84.6 | Q82: 86.2 | T82: 67.2 | W82: 8.5
B83: ※ 比率は、「農業集落の状況」の農業集落数計に対する比率。 | L83: =IF($U$7="県計",グラフ用!$D$83,IF($U$7="前回",グラフ用!$F$83)) -> 寄り合いの実施状況 | M83: =IF($T$58="県計",$G$65,IF($T$58="前回",$G$64)) -> FALSE | N83: FALSE | O83: FALSE | P83: FALSE | Q83: FALSE
Y92: =IF(kadft!$U$7="県計",グラフ用!$I$18,IF(kadft!$U$7="前回",グラフ用!$J$16)) -> （集落）
B93: 保全管理の実施状況 | V93: 単位：集落
E95: 農地のある集落 | I95: 森林のある集落 | M95: ため池・湖沼のある集落 | Q95: 河川・水路のある集落 | U95: 農業用用排水路のある集落
G96: 農地の保全をしている | K96: 森林の保全をしている | O96: ため池・湖沼の保全をしている | S96: 河川・水路の保全をしている | W96: 農業用用排水路の保全をしている
B98: 2010年 | E98: =INDEX('2010'!$D$6:$AV$550,グラフ用!$F$3,31) -> 3,225 | G98: =INDEX('2010'!$D$6:$AV$550,グラフ用!$F$3,32) -> 505 | I98: =INDEX('2010'!$D$6:$AV$550,グラフ用!$F$3,33) -> 2,495 | K98: =INDEX('2010'!$D$6:$AV$550,グラフ用!$F$3,34) -> 295 | M98: =INDEX('2010'!$D$6:$AV$550,グラフ用!$F$3,35) -> 529 | O98: =INDEX('2010'!$D$6:$AV$550,グラフ用!$F$3,36) -> 168 | Q98: =INDEX('2010'!$D$6:$AV$550,グラフ用!$F$3,37) -> 3,048 | S98: =INDEX('2010'!$D$6:$AV$550,グラフ用!$F$3,38) -> 1,329 | U98: =INDEX('2010'!$D$6:$AV$550,グラフ用!$F$3,39) -> 2,718 | W98: =INDEX('2010'!$D$6:$AV$550,グラフ用!$F$3,40) -> 1,417
B99: 2015年 | E99: =INDEX('2015'!$D$6:$AV$538,グラフ用!$F$3,31) -> 3,242 | G99: =INDEX('2015'!$D$6:$AV$538,グラフ用!$F$3,32) -> 788 | I99: =INDEX('2015'!$D$6:$AV$538,グラフ用!$F$3,33) -> 2,466 | K99: =INDEX('2015'!$D$6:$AV$538,グラフ用!$F$3,34) -> 404 | M99: =INDEX('2015'!$D$6:$AV$538,グラフ用!$F$3,35) -> 552 | O99: =INDEX('2015'!$D$6:$AV$538,グラフ用!$F$3,36) -> 222 | Q99: =INDEX('2015'!$D$6:$AV$538,グラフ用!$F$3,37) -> 3,070 | S99: =INDEX('2015'!$D$6:$AV$538,グラフ用!$F$3,38) -> 1,585 | U99: =INDEX('2015'!$D$6:$AV$538,グラフ用!$F$3,39) -> 2,734 | W99: =INDEX('2015'!$D$6:$AV$538,グラフ用!$F$3,40) -> 1,688
B100: 比率(%) | G100: =IFERROR(ROUND(G99/$E$99*100,1),"nc") -> 24.3 | K100: =IFERROR(ROUND(K99/$I$99*100,1),"nc") -> 16.4 | O100: =IFERROR(ROUND(O99/$M$99*100,1),"nc") -> 40.2 | S100: =IFERROR(ROUND(S99/$Q$99*100,1),"nc") -> 51.6 | W100: =IFERROR(ROUND(W99/$U$99*100,1),"nc") -> 61.7
B101: 県計 比率(%) | G101: 24.3 | K101: 16.4 | O101: 40.2 | S101: 51.6 | W101: 61.7
A102: =IF(kadft!$U$7="県計",グラフ用!$I$18,IF(kadft!$U$7="前回",グラフ用!$J$16)) -> （集落） | G102: =IF($U$7="県計",グラフ用!$C$102,IF($U$7="前回",グラフ用!$F$102)) -> 保全管理の実施状況

Sheet グラフ用 (hidden)
B3: 県計 | D3: =IFERROR(MATCH(kadft!F5,地域類型区分!B2:B553,0),"1") -> 1 | E3: =IFERROR(MATCH(kadft!J5,地域類型区分!B2:B553,0)," ") ->  | F3: =""&IF(E3<>" ",E3,D3)&"" -> 1
B4: 前回 | D4: 市町村列 | E4: 旧市町村列 | F4: 優先列
G6: =IF(COUNTIF(元データ!AC6:AC35,kadft!J5),"OK","NO") -> OK | H6: 市町村に対し旧市町村の該当有無
G8: 旧市町村名
C10: 林野面積 | D10: 耕地面積 | G10: 旧市町村を再選択して下さい
B12: =kadft!W14+kadft!K14 -> 79,432 | C12: 林野率 | D12: 耕地率 | G12: =INDEX(地域類型区分!B2:B372,F3,1) -> 静岡県
C13: 林野率及び耕地率 | E13: 林野面積及び耕地面積 | G13: =G12 -> 静岡県 | H13: 優先表示地域名
D14: =IF(kadft!$U$7="県計",$C$12,IF(kadft!$U$7="前回",$C$10)) -> 林野面積 | E14: =IF(kadft!$U$7="県計",$D$12,IF(kadft!$U$7="前回",$D$10)) -> 耕地面積 | G14: 2010年
C15: =IF(kadft!$U$7="県計",$J$15,IF(kadft!$U$7="前回",$G$14)) -> 2010年 | D15: =IF(kadft!$U$7="県計",kadft!$I$16,IF(kadft!$U$7="前回",kadft!$H$13)) -> 495556 | E15: =IF(kadft!$U$7="県計",kadft!$L$16,IF(kadft!$U$7="前回",kadft!$K$13)) -> 68934 | G15: 2015年 | J15: 県 計
C16: =IF(kadft!$U$7="県計",$G$13,IF(kadft!$U$7="前回",$G$15)) -> 2015年 | D16: =IF(kadft!$U$7="県計",kadft!$I$15,IF(kadft!$U$7="前回",kadft!$H$14)) -> 495653 | E16: =IF(kadft!$U$7="県計",kadft!$L$15,IF(kadft!$U$7="前回",kadft!$K$14)) -> 66589 | I16: (㏊) | J16: （集落）
I17: (経営体)
C18: 地目別の耕地面積割合 | E18: 地目別の耕地面積割合 | I18: （％）
D19: =kadft!N12 -> 田面積 | E19: =kadft!Q12 -> 畑面積 | F19: =kadft!T12 -> 樹園地面積
C20: =IF(kadft!$U$7="県計",$G$13,IF(kadft!$U$7="前回",$G$15)) -> 2015年 | D20: =IF(kadft!$U$7="県計",kadft!$O$15,IF(kadft!$U$7="前回",ROUND(kadft!$N$14/kadft!K14*100,1))) -> 33.6 | E20: =IF(kadft!$U$7="県計",kadft!$R$15,IF(kadft!$U$7="前回",ROUND(kadft!$Q$14/kadft!K14*100,1))) -> 23.1 | F20: =IF(kadft!$U$7="県計",kadft!$U$15,IF(kadft!$U$7="前回",ROUND(kadft!$T$14/kadft!K14*100,1))) -> 43.3
C21: =IF(kadft!$U$7="県計",$J$15,IF(kadft!$U$7="前回",$G$14)) -> 2010年 | D21: =IF(kadft!$U$7="県計",kadft!$O$16,IF(kadft!$U$7="前回",ROUND(kadft!$N$13/kadft!K13*100,1))) -> 33.2 | E21: =IF(kadft!$U$7="県計",kadft!$R$16,IF(kadft!$U$7="前回",ROUND(kadft!$Q$13/kadft!K13*100,1))) -> 23 | F21: =IF(kadft!$U$7="県計",kadft!$U$16,IF(kadft!$U$7="前回",ROUND(kadft!$T$13/kadft!K13*100,1))) -> 43.8 | I21: 単位１
D23: 耕作放棄地面積 | F23: 耕作放棄地率
C24: =IF(kadft!$U$7="県計",$J$15,IF(kadft!$U$7="前回",$G$14)) -> 2010年 | D24: =IF(kadft!$U$7="県計",kadft!$X$16,IF(kadft!$U$7="前回",ROUND(kadft!$W$13,0))) -> 12494
C25: =IF(kadft!$U$7="県計",$G$13,IF(kadft!$U$7="前回",$G$15)) -> 2015年 | D25: =IF(kadft!$U$7="県計",kadft!$X$15,IF(kadft!$U$7="前回",ROUND(kadft!$W$14,0))) -> 12843
G26: IF($U$6="県計",BH17,IF($U$6="前回",BJ17))
D31: =kadft!E30 -> 森林地域 | E31: =kadft!G30 -> 農業地域 | F31: 市街化区域 | G31: 市街化調整区域 | H31: 商業関連地域 | I31: 工業関連地域
C32: =G13 -> 静岡県 | D32: =IF(kadft!E$35=0,0.001,kadft!E$35) -> 1.0 | E32: =IF(kadft!G$35=0,0.001,kadft!G$35) -> 1.0 | F32: =IF(kadft!I$35=0,0.001,kadft!I$35) -> 1.0 | G32: =IF(kadft!K$35=0,0.001,kadft!K$35) -> 1.0 | H32: =IF(kadft!M$35=0,0.001,kadft!M$35) -> 1.0 | I32: =IF(kadft!O$35=0,0.001,kadft!O$35) -> 1.0 | J32: =IF(kadft!K$35=0,0.01,kadft!K$35) -> 1.0
C33: 県 計 | D33: 1.0 | E33: 1.0 | F33: 1.0 | G33: 1.0 | H33: 1.0 | I33: 1.0
I41: 単位１
I44: =IF(kadft!$U$7="県計",$I$18,IF(kadft!$U$7="前回",$I$17)) -> (経営体)
C45: 事業実施率 | D45: 事業実施経営体数
C46: 事業有り | D46: 事業無し
B47: =IF(kadft!$U$7="県計",$J$15,IF(kadft!$U$7="前回",$G$14)) -> 2010年 | C47: =IF(kadft!$U$7="県計",kadft!$H$48,IF(kadft!$U$7="前回",kadft!$H$45)) -> 12228 | D47: =IF(kadft!$U$7="県計",kadft!$H$48,IF(kadft!$U$7="前回",kadft!$H$45)) -> 12228
B48: =IF(kadft!$U$7="県計",$G$13,IF(kadft!$U$7="前回",$G$15)) -> 2015年 | C48: =IF(kadft!$U$7="県計",kadft!$H$47,IF(kadft!$U$7="前回",kadft!$H$46)) -> 9423 | D48: =E45/kadft!E46 -> 0
C51: 事業種類別実施率 | D51: 事業種類別経営体数
C52: =kadft!T43 -> その他 | D52: =kadft!Q43 -> 観光農園 | E52: =kadft!N43 -> 消費者に直接販売 | F52: =kadft!K43 -> 農産物の加工
B53: =IF(kadft!$U$7="県計",$J$15,IF(kadft!$U$7="前回",$G$14)) -> 2010年 | C53: =IF(kadft!$U$7="県計",kadft!$T$48,IF(kadft!$U$7="前回",kadft!$T$45)) -> 340 | D53: =IF(kadft!$U$7="県計",kadft!$Q$48,IF(kadft!$U$7="前回",kadft!$Q$45)) -> 268 | E53: =IF(kadft!$U$7="県計",kadft!$N$48,IF(kadft!$U$7="前回",kadft!$N$45)) -> 11071 | F53: =IF(kadft!$U$7="県計",kadft!$K$48,IF(kadft!$U$7="前回",kadft!$K$45)) -> 1995
B54: =IF(kadft!$U$7="県計",$G$13,IF(kadft!$U$7="前回",$G$15)) -> 2015年 | C54: =IF(kadft!$U$7="県計",kadft!$T$47,IF(kadft!$U$7="前回",kadft!$T$46)) -> 270 | D54: =IF(kadft!$U$7="県計",kadft!$Q$47,IF(kadft!$U$7="前回",kadft!$Q$46)) -> 218 | E54: =IF(kadft!$U$7="県計",kadft!$N$47,IF(kadft!$U$7="前回",kadft!$N$46)) -> 8926 | F54: =IF(kadft!$U$7="県計",kadft!$K$47,IF(kadft!$U$7="前回",kadft!$K$46)) -> 1087
D61: 水田率別農業集落数割合 | F61: 水田率別農業集落数
D62: 水田集落 | E62: 田畑集落 | F62: 畑地集落
C63: =IF(kadft!$U$7="県計",$G$13,IF(kadft!$U$7="前回",$G$15)) -> 2015年 | D63: =IF(kadft!$U$7="県計",kadft!$G$65,IF(kadft!$U$7="前回",kadft!$G$64)) -> 662 | E63: =IF(kadft!$U$7="県計",kadft!$I$65,IF(kadft!$U$7="前回",kadft!$I$64)) -> 873 | F63: =IF(kadft!$U$7="県計",kadft!$K$65,IF(kadft!$U$7="前回",kadft!$K$64)) -> 1826
C64: =IF(kadft!$U$7="県計",$J$15,IF(kadft!$U$7="前回",$G$14)) -> 2010年 | D64: =IF(kadft!$U$7="県計",kadft!$G$66,IF(kadft!$U$7="前回",kadft!$G$63)) -> 662 | E64: =IF(kadft!$U$7="県計",kadft!$I$66,IF(kadft!$U$7="前回",kadft!$I$63)) -> 882 | F64: =IF(kadft!$U$7="県計",kadft!$K$66,IF(kadft!$U$7="前回",kadft!$K$63)) -> 1822
D66: 農家率別農業集落数割合 | F66: 農家率別農業集落数
D67: １０%未満 | E67: 10～30 | F67: 30～50 | G67: 50～70 | H67: 70～90 | I67: 90%以上
C68: =IF(kadft!$U$7="県計",$J$15,IF(kadft!$U$7="前回",$G$14)) -> 2010年 | D68: =IF(kadft!$U$7="県計",kadft!$M$66,IF(kadft!$U$7="前回",kadft!$M$63)) -> 1360 | E68: =IF(kadft!$U$7="県計",kadft!$O$66,IF(kadft!$U$7="前回",kadft!$O$63)) -> 997 | F68: =IF(kadft!$U$7="県計",kadft!$Q$66,IF(kadft!$U$7="前回",kadft!$Q$63)) -> 495 | G68: =IF(kadft!$U$7="県計",kadft!$S$66,IF(kadft!$U$7="前回",kadft!$S$63)) -> 325 | H68: =IF(kadft!$U$7="県計",kadft!$U$66,IF(kadft!$U$7="前回",kadft!$U$63)) -> 156 | I68: =IF(kadft!$U$7="県計",kadft!$W$66,IF(kadft!$U$7="前回",kadft!$W$63)) -> 33
C69: =IF(kadft!$U$7="県計",$G$13,IF(kadft!$U$7="前回",$G$15)) -> 2015年 | D69: =IF(kadft!$U$7="県計",kadft!$M$65,IF(kadft!$U$7="前回",kadft!$M$64)) -> 1526 | E69: =IF(kadft!$U$7="県計",kadft!$O$65,IF(kadft!$U$7="前回",kadft!$O$64)) -> 999 | F69: =IF(kadft!$U$7="県計",kadft!$Q$65,IF(kadft!$U$7="前回",kadft!$Q$64)) -> 484 | G69: =IF(kadft!$U$7="県計",kadft!$S$65,IF(kadft!$U$7="前回",kadft!$S$64)) -> 253 | H69: =IF(kadft!$U$7="県計",kadft!$U$65,IF(kadft!$U$7="前回",kadft!$U$64)) -> 83 | I69: =IF(kadft!$U$7="県計",kadft!$W$65,IF(kadft!$U$7="前回",kadft!$W$64)) -> 16
J71: 単位１
J72: =IF(kadft!$U$7="県計",$I$18,IF(kadft!$U$7="前回",$J$16)) -> （集落）
D83: 寄り合いの実施率 | F83: 寄り合いの実施状況
B85: =kadft!W77 -> 寄り合いを開催しなかった | C85: =kadft!T77 -> 農業集落内の福祉・厚生 | D85: =kadft!Q77 -> 農業集落行事の計画・推進 | E85: =kadft!N77 -> 環境美化・自然環境の保全 | F85: =kadft!K77 -> 集落共有財産・施設の管理 | G85: =kadft!H77 -> 農道・水路・ため池等の管理 | H85: =kadft!E77 -> 農業生産にかかる事項
A86: =IF(kadft!$U$7="県計",$J$15,IF(kadft!$U$7="前回",$G$14)) -> 2010年 | B86: =IF(kadft!$U$7="県計",kadft!$W$82,IF(kadft!$U$7="前回",kadft!$W$79)) -> 382 | C86: =IF(kadft!$U$7="県計",kadft!$T$82,IF(kadft!$U$7="前回",kadft!$T$79)) -> 1641 | D86: =IF(kadft!$U$7="県計",kadft!$Q$82,IF(kadft!$U$7="前回",kadft!$Q$79)) -> 2568 | E86: =IF(kadft!$U$7="県計",kadft!$N$82,IF(kadft!$U$7="前回",kadft!$N$79)) -> 2243 | F86: =IF(kadft!$U$7="県計",kadft!$K$82,IF(kadft!$U$7="前回",kadft!$K$79)) -> 1737 | G86: =IF(kadft!$U$7="県計",kadft!$H$82,IF(kadft!$U$7="前回",kadft!$H$79)) -> 1726 | H86: =IF(kadft!$U$7="県計",kadft!$E$82,IF(kadft!$U$7="前回",kadft!$E$79)) -> 1354
A87: =IF(kadft!$U$7="県計",$G$13,IF(kadft!$U$7="前回",$G$15)) -> 2015年 | B87: =IF(kadft!$U$7="県計",kadft!$W$81,IF(kadft!$U$7="前回",kadft!$W$80)) -> 285 | C87: =IF(kadft!$U$7="県計",kadft!$T$81,IF(kadft!$U$7="前回",kadft!$T$80)) -> 2258 | D87: =IF(kadft!$U$7="県計",kadft!$Q$81,IF(kadft!$U$7="前回",kadft!$Q$80)) -> 2897 | E87: =IF(kadft!$U$7="県計",kadft!$N$81,IF(kadft!$U$7="前回",kadft!$N$80)) -> 2844 | F87: =IF(kadft!$U$7="県計",kadft!$K$81,IF(kadft!$U$7="前回",kadft!$K$80)) -> 1972 | G87: =IF(kadft!$U$7="県計",kadft!$H$81,IF(kadft!$U$7="前回",kadft!$H$80)) -> 2273 | H87: =IF(kadft!$U$7="県計",kadft!$E$81,IF(kadft!$U$7="前回",kadft!$E$80)) -> 1395
C102: 保全管理の実施率 | F102: 保全管理の実施状況
C103: 農地の保全 | D103: 森林の保全 | E103: ため池・湖沼の保全 | F103: 河川・水路の保全 | G103: 農業用用排水路の保全
B104: =IF(kadft!$U$7="県計",$J$15,IF(kadft!$U$7="前回",$G$14)) -> 2010年 | C104: =IF(kadft!$U$7="県計",kadft!$G$101,IF(kadft!$U$7="前回",kadft!$G$98)) -> 505 | D104: =IF(kadft!$U$7="県計",kadft!$K$101,IF(kadft!$U$7="前回",kadft!$K$98)) -> 295 | E104: =IF(kadft!$U$7="県計",kadft!$O$101,IF(kadft!$U$7="前回",kadft!$O$98)) -> 168 | F104: =IF(kadft!$U$7="県計",kadft!$S$101,IF(kadft!$U$7="前回",kadft!$S$98)) -> 1329 | G104: =IF(kadft!$U$7="県計",kadft!$W$101,IF(kadft!$U$7="前回",kadft!$W$98)) -> 1417
B105: =IF(kadft!$U$7="県計",$G$13,IF(kadft!$U$7="前回",$G$15)) -> 2015年 | C105: =IF(kadft!$U$7="県計",kadft!$G$100,IF(kadft!$U$7="前回",kadft!$G$99)) -> 788 | D105: =IF(kadft!$U$7="県計",kadft!$K$100,IF(kadft!$U$7="前回",kadft!$K$99)) -> 404 | E105: =IF(kadft!$U$7="県計",kadft!$O$100,IF(kadft!$U$7="前回",kadft!$O$99)) -> 222 | F105: =IF(kadft!$U$7="県計",kadft!$S$100,IF(kadft!$U$7="前回",kadft!$S$99)) -> 1585 | G105: =IF(kadft!$U$7="県計",kadft!$W$100,IF(kadft!$U$7="前回",kadft!$W$99)) -> 1688

Sheet 2010 (hidden)
A1: 農山村地域調査
A2: １ 総土地面積及び林野面積
D3: 1 | E3: 2 | F3: 3 | G3: 4 | H3: 5 | I3: 6 | J3: 7 | K3: 8 | L3: 9 | M3: 10 | N3: 11 | O3: 12 | P3: 13 | Q3: 14 | R3: 15 | S3: 16 | T3: 17 | U3: 18 | V3: 19 | W3: 20 | X3: 21 | Y3: 22 | Z3: 23 | AA3: 24 | AB3: 25 | AC3: 26 | AD3: 27 | AE3: 28 | AF3: 29 | AG3: 30 | AH3: 31 | AI3: 32 | AJ3: 33 | AK3: 34 | AL3: 35 | AM3: 36 | AN3: 37 | AO3: 38 | AP3: 39 | AQ3: 40 | AR3: 41 | AS3: 42 | AT3: 43 | AU3: 44 | AV3: 45
D4: 総土地面積 | F4: 耕地面積 | K4: 生産関連 | Q4: 水田率 | U4: 農家率 | AA4: 寄り合いの議題_農業生産にかかる事項 | AH4: 保全管理
A5: 新旧市区町村 | D5: 総土地 面 積 | E5: 林野面積 | F5: 耕地面積 | G5: 田面積 | H5: 畑面積 | I5: 樹園地面積 | J5: 耕作 放棄地 面積 | K5: 計 | L5: 農業生産関連事業を行っている実経営体数 | M5: 事業種類別_農産物の加工 | N5: 事業種類別_消費者に直接販売 | O5: 事業種類別_観光農園 | P5: その他 | Q5: 計 | R5: 水田集落 （70％以上） | S5: 田畑集落 （30～70） | T5: 畑地集落 （30％未満） | U5: 10％未満 | V5: 10～30 | W5: 30～50 | X5: 50～70 | Y5: 70～90 | Z5: 90％以上 | AA5: 寄り合いの議題_農業生産にかかる事項 | AB5: 寄り合いの議題_農道・農業用用排水路・ため池の管理 | AC5: 寄り合いの議題_集落共有財産・共用施設の管理 | AD5: 寄り合いの議題_環境美化・自然環境の保全 | AE5: 寄り合いの議題_農業集落行事（祭り・イベント等）の計画・推進 | AF5: 寄り合いの議題_農業集落内の福祉・厚生 | AG5: 寄り合いを開催しなかった | AH5: 農地_ある | AI5: 農地_保全している | AJ5: 森林_ある | AK5: 森林_保全している | AL5: ため池・湖沼_ある | AM5: ため池・湖沼_保全している | AN5: 河川・水路_ある | AO5: 河川・水路_保全している | AP5: 農業用用排水路_ある | AQ5: 農業用用排水路_保全している
A6: 1 | B6: 静岡県 | D6: 771,540 | E6: 495,556 | F6: 68934 | G6: 22919 | H6: 15856 | I6: 30159 | J6: 12494 | K6: 40,102 | L6: 12,228 | M6: 1,995 | N6: 11,071 | O6: 268 | P6: 340 | Q6: 3,366 | R6: 662 | S6: 882 | T6: 1,822 | U6: 1,360 | V6: 997 | W6: 495 | X6: 325 | Y6: 156 | Z6: 33 | AA6: 1,354 | AB6: 1,726 | AC6: 1,737 | AD6: 2,243 | AE6: 2,568 | AF6: 1,641 | AG6: 382 | AH6: 3,225 | AI6: 505 | AJ6: 2,495 | AK6: 295 | AL6: 529 | AM6: 168 | AN6: 3,048 | AO6: 1,329 | AP6: 2,718 | AQ6: 1,417
A7: 2 | B7: 静岡市 | D7: 141,182 | E7: 107,055 | F7: 5460 | G7: 544 | H7: 545 | I7: 4371 | J7: 2112 | K7: 4,694 | L7: 1,635 | M7: 346 | N7: 1,459 | O7: 71 | P7: 44 | Q7: 323 | R7: 17 | S7: 29 | T7: 277 | U7: 123 | V7: 74 | W7: 48 | X7: 47 | Y7: 26 | Z7: 5 | AA7: 185 | AB7: 147 | AC7: 108 | AD7: 129 | AE7: 195 | AF7: 93 | AG7: 48 | AH7: 317 | AI7: 118 | AJ7: 293 | AK7: 30 | AL7: 29 | AM7: 12 | AN7: 296 | AO7: 153 | AP7: 140 | AQ7: 103
A8: 3 | B8: 葵区(静岡市) | D8: 107,332 | E8: 92,839 | F8: 2405 | G8: 395 | H8: 158 | I8: 1852 | J8: 519 | K8: 1,917 | L8: 630 | M8: 167 | N8: 522 | O8: 6 | P8: 15 | Q8: 168 | R8: 12 | S8: 16 | T8: 140 | U8: 41 | V8: 34 | W8: 32 | X8: 34 | Y8: 22 | Z8: 5 | AA8: 82 | AB8: 78 | AC8: 57 | AD8: 65 | AE8: 115 | AF8: 61 | AG8: 31 | AH8: 163 | AI8: 84 | AJ8: 154 | AK8: 19 | AL8: 14 | AM8: 2 | AN8: 160 | AO8: 71 | AP8: 77 | AQ8: 63
A9: 4 | C9: 静岡市２－１ | D9: 8,884 | E9: 3,049 | F9: 795 | G9: 191 | H9: 53 | I9: 551 | J9: 340 | K9: 651 | L9: 278 | M9: 38 | N9: 256 | O9: 2 | P9: 7 | Q9: 38 | R9: 7 | S9: 8 | T9: 23 | U9: 23 | V9: 10 | W9: 2 | X9: 2 | Y9: 1 | Z9: - | AA9: 35 | AB9: 29 | AC9: 20 | AD9: 24 | AE9: 31 | AF9: 13 | AG9: 3 | AH9: 36 | AI9: 0 | AJ9: 31 | AK9: 1 | AL9: 4 | AM9: 1 | AN9: 37 | AO9: 15 | AP9: 28 | AQ9: 21
A10: 5 | C10: 美和村 | D10: 5,545 | E10: 3,857 | F10: 443 | G10: 72 | H10: 15 | I10: 356 | J10: 39 | K10: 330 | L10: 78 | M10: 23 | N10: 59 | O10: - | P10: 4 | Q10: 29 | R10: 4 | S10: 3 | T10: 22 | U10: 6 | V10: 7 | W10: 10 | X10: 3 | Y10: 3 | Z10: - | AA10: 11 | AB10: 17 | AC10: 11 | AD10: 11 | AE10: 15 | AF10: 9 | AG10: 7 | AH10: 29 | AI10: 19 | AJ10: 25 | AK10: 2 | AL10: 1 | AM10: 0 | AN10: 29 | AO10: 19 | AP10: 15 | AQ10: 12
A11: 6 | C11: 服織村 | D11: 2,767 | E11: 1,740 | F11: 167 | G11: 25 | H11: 7 | I11: 135 | J11: 21 | K11: 132 | L11: 50 | M11: 14 | N11: 43 | O11: 2 | P11: - | Q11: 15 | R11: 1 | S11: - | T11: 14 | U11: 9 | V11: 4 | W11: 1 | X11: 1 | Y11: - | Z11: - | AA11: 11 | AB11: 9 | AC11: 5 | AD11: 5 | AE11: 11 | AF11: 6 | AG11: 0 | AH11: 15 | AI11: 10 | AJ11: 13 | AK11: 4 | AL11: 0 | AM11: 0 | AN11: 14 | AO11: 11 | AP11: 13 | AQ11: 12
A12: 7 | C12: 中藁科村 | D12: 3,065 | E12: 2,231 | F12: 205 | G12: 39 | H12: 5 | I12: 161 | J12: 26 | K12: 178 | L12: 46 | M12: 18 | N12: 33 | O12: - | P12: - | Q12: 6 | R12: - | S12: 2 | T12: 4 | U12: - | V12: 2 | W12: 2 | X12: - | Y12: 2 | Z12: - | AA12: 4 | AB12: 4 | AC12: 5 | AD12: 5 | AE12: 6 | AF12: 3 | AG12: 0 | AH12: 6 | AI12: 6 | AJ12: 6 | AK12: 4 | AL12: 0 | AM12: 0 | AN12: 6 | AO12: 6 | AP12: 5 | AQ12: 5
A13: 8 | C13: 南藁科村 | D13: 2,059 | E13: 1,416 | F13: 133 | G13: 34 | H13: 7 | I13: 92 | J13: 16 | K13: 105 | L13: 45 | M13: 7 | N13: 40 | O13: - | P13: 3 | Q13: 6 | R13: - | S13: 2 | T13: 4 | U13: 3 | V13: 2 | W13: 1 | X13: - | Y13: - | Z13: - | AA13: 6 | AB13: 4 | AC13: 5 | AD13: 4 | AE13: 5 | AF13: 4 | AG13: 0 | AH13: 6 | AI13: 2 | AJ13: 6 | AK13: 2 | AL13: 0 | AM13: 0 | AN13: 6 | AO13: 5 | AP13: 6 | AQ13: 6
A14: 9 | C14: 大河内村 | D14: 5,456 | E14: 4,763 | F14: 95 | G14: 14 | H14: 4 | I14: 77 | J14: 7 | K14: 120 | L14: 23 | M14: 15 | N14: 13 | O14: - | P14: - | Q14: 7 | R14: - | S14: - | T14: 7 | U14: - | V14: - | W14: - | X14: 3 | Y14: 4 | Z14: - | AA14: 7 | AB14: 7 | AC14: 7 | AD14: 7 | AE14: 6 | AF14: 1 | AG14: 0 | AH14: 7 | AI14: 7 | AJ14: 7 | AK14: 4 | AL14: 0 | AM14: 0 | AN14: 7 | AO14: 7 | AP14: 1 | AQ14: 0
A15: 10 | C15: 梅ヶ島村 | D15: 9,208 | E15: 8,263 | F15: 61 | G15: 0 | H15: 2 | I15: 59 | J15: 6 | K15: 55 | L15: 25 | M15: 20 | N15: 11 | O15: 2 | P15: - | Q15: 7 | R15: - | S15: - | T15: 7 | U15: - | V15: - | W15: 3 | X15: 3 | Y15: 1 | Z15: - | AA15: 0 | AB15: 5 | AC15: 2 | AD15: 2 | AE15: 7 | AF15: 0 | AG15: 0 | AH15: 7 | AI15: 5 | AJ15: 7 | AK15: 0 | AL15: 0 | AM15: 0 | AN15: 7 | AO15: 0 | AP15: 0 | AQ15: 0
A16: 11 | C16: 玉川村 | D16: 9,532 | E16: 8,846 | F16: 133 | G16: 4 | H16: 3 | I16: 126 | J16: 15 | K16: 98 | L16: 23 | M16: 9 | N16: 18 | O16: - | P16: - | Q16: 20 | R16: - | S16: - | T16: 20 | U16: - | V16: 4 | W16: 5 | X16: 7 | Y16: 3 | Z16: 1 | AA16: 0 | AB16: 0 | AC16: 0 | AD16: 1 | AE16: 19 | AF16: 18 | AG16: 1 | AH16: 20 | AI16: 12 | AJ16: 20 | AK16: 0 | AL16: 0 | AM16: 0 | AN16: 20 | AO16: 2 | AP16: 3 | AQ16: 2
A17: 12 | C17: 井川村 | D17: 50,052 | E17: 48,856 | F17: 83 | G17: 3 | H17: 45 | I17: 35 | J17: 11 | K17: 22 | L17: 8 | M17: 4 | N17: 7 | O17: - | P17: - | Q17: 16 | R17: - | S17: 1 | T17: 15 | U17: - | V17: 1 | W17: 4 | X17: 7 | Y17: 3 | Z17: 1 | AA17: 4 | AB17: 1 | AC17: 0 | AD17: 1 | AE17: 1 | AF17: 0 | AG17: 10 | AH17: 13 | AI17: 2 | AJ17: 15 | AK17: 0 | AL17: 9 | AM17: 1 | AN17: 14 | AO17: 3 | AP17: 1 | AQ17: 1
A18: 13 | C18: 清沢村 | D18: 4,437 | E18: 3,949 | F18: 153 | G18: 3 | H18: 9 | I18: 141 | J18: 19 | K18: 125 | L18: 34 | M18: 14 | N18: 25 | O18: - | P18: 1 | Q18: 15 | R18: - | S18: - | T18: 15 | U18: - | V18: 3 | W18: 3 | X18: 4 | Y18: 3 | Z18: 2 | AA18: 1 | AB18: 0 | AC18: 1 | AD18: 3 | AE18: 6 | AF18: 2 | AG18: 9 | AH18: 15 | AI18: 12 | AJ18: 15 | AK18: 2 | AL18: 0 | AM18: 0 | AN18: 12 | AO18: 1 | AP18: 2 | AQ18: 2
A19: 14 | C19: 大川村 | D19: 6,327 | E19: 5,869 | F19: 137 | G19: 10 | H19: 8 | I19: 119 | J19: 21 | K19: 101 | L19: 20 | M19: 5 | N19: 17 | O19: - | P19: - | Q19: 9 | R19: - | S19: - | T19: 9 | U19: - | V19: 1 | W19: 1 | X19: 4 | Y19: 2 | Z19: 1 | AA19: 3 | AB19: 2 | AC19: 1 | AD19: 2 | AE19: 8 | AF19: 5 | AG19: 1 | AH19: 9 | AI19: 9 | AJ19: 9 | AK19: 0 | AL19: 0 | AM19: 0 | AN19: 8 | AO19: 2 | AP19: 3 | AQ19: 2
A20: 15 | B20: 駿河区(静岡市) | D20: 7,289 | E20: 1,854 | F20: 699 | G20: 93 | H20: 99 | I20: 507 | J20: 177 | K20: 777 | L20: 352 | M20: 46 | N20: 339 | O20: 47 | P20: 14 | Q20: 48 | R20: 5 | S20: 7 | T20: 36 | U20: 29 | V20: 13 | W20: 3 | X20: 2 | Y20: 1 | Z20: - | AA20: 21 | AB20: 29 | AC20: 9 | AD20: 22 | AE20: 33 | AF20: 10 | AG20: 4 | AH20: 47 | AI20: 4 | AJ20: 41 | AK20: 2 | AL20: 2 | AM20: 0 | AN20: 45 | AO20: 24 | AP20: 26 | AQ20: 19
A21: 16 | C21: 静岡市2-2 | D21: 7,027 | E21: 1,793 | F21: 674 | G21: 88 | H21: 94 | I21: 492 | J21: 175 | K21: 767 | L21: 344 | M21: 44 | N21: 331 | O21: 46 | P21: 14 | Q21: 46 | R21: 5 | S21: 6 | T21: 35 | U21: 28 | V21: 13 | W21: 3 | X21: 2 | Y21: - | Z21: - | AA21: 21 | AB21: 27 | AC21: 7 | AD21: 22 | AE21: 32 | AF21: 10 | AG21: 4 | AH21: 45 | AI21: 3 | AJ21: 39 | AK21: 1 | AL21: 2 | AM21: 0 | AN21: 43 | AO21: 24 | AP21: 24 | AQ21: 17
A22: 17 | C22: 有度村２－２ | D22: 262 | E22: 61 | F22: 25 | G22: 5 | H22: 5 | I22: 15 | J22: 2 | K22: 10 | L22: 8 | M22: 2 | N22: 8 | O22: 1 | P22: - | Q22: 2 | R22: - | S22: 1 | T22: 1 | U22: 1 | V22: - | W22: - | X22: - | Y22: 1 | Z22: - | AA22: 0 | AB22: 2 | AC22: 2 | AD22: 0 | AE22: 1 | AF22: 0 | AG22: 0 | AH22: 2 | AI22: 1 | AJ22: 2 | AK22: 1 | AL22: 0 | AM22: 0 | AN22: 2 | AO22: 0 | AP22: 2 | AQ22: 2
A23: 18 | B23: 清水区(静岡市) | D23: 26,561 | E23: 12,362 | F23: 2356 | G23: 56 | H23: 288 | I23: 2012 | J23: 1415 | K23: 2,000 | L23: 653 | M23: 133 | N23: 598 | O23: 18 | P23: 15 | Q23: 107 | R23: - | S23: 6 | T23: 101 | U23: 53 | V23: 27 | W23: 13 | X23: 11 | Y23: 3 | Z23: - | AA23: 82 | AB23: 40 | AC23: 42 | AD23: 42 | AE23: 47 | AF23: 22 | AG23: 13 | AH23: 107 | AI23: 30 | AJ23: 98 | AK23: 9 | AL23: 13 | AM23: 10 | AN23: 91 | AO23: 58 | AP23: 37 | AQ23: 21
A24: 19 | C24: 清水市 | D24: 2,652 | E24: 156 | F24: 219 | G24: 0 | H24: 90 | I24: 129 | J24: 79 | K24: 286 | L24: 94 | M24: 9 | N24: 90 | O24: 14 | P24: 1 | Q24: 14 | R24: - | S24: - | T24: 14 | U24: 12 | V24: - | W24: - | X24: 2 | Y24: - | Z24: - | AA24: 14 | AB24: 4 | AC24: 1 | AD24: 2 | AE24: 2 | AF24: 0 | AG24: 0 | AH24: 14 | AI24: 0 | AJ24: 13 | AK24: 0 | AL24: 3 | AM24: 3 | AN24: 9 | AO24: 9 | AP24: 0 | AQ24: 0
A25: 20 | C25: 飯田村清水区（静岡市） | D25: 639 | E25: 41 | F25: 49 | G25: 2 | H25: 4 | I25: 43 | J25: 75 | K25: 68 | L25: 35 | M25: 6 | N25: 34 | O25: - | P25: - | Q25: 4 | R25: - | S25: 1 | T25: 3 | U25: 4 | V25: - | W25: - | X25: - | Y25: - | Z25: - | AA25: 4 | AB25: 0 | AC25: 0 | AD25: 0 | AE25: 1 | AF25: 0 | AG25: 0 | AH25: 4 | AI25: 0 | AJ25: 3 | AK25: 0 | AL25: 1 | AM25: 1 | AN25: 4 | AO25: 3 | AP25: 2 | AQ25: 0
A26: 21 | C26: 高部村 | D26: 1,010 | E26: 79 | F26: 173 | G26: 9 | H26: 40 | I26: 124 | J26: 183 | K26: 134 | L26: 57 | M26: 8 | N26: 54 | O26: - | P26: 1 | Q26: 5 | R26: - | S26: - | T26: 5 | U26: 4 | V26: 1 | W26: - | X26: - | Y26: - | Z26: - | AA26: 4 | AB26: 3 | AC26: 2 | AD26: 4 | AE26: 4 | AF26: 0 | AG26: 0 | AH26: 5 | AI26: 2 | AJ26: 5 | AK26: 1 | AL26: 2 | AM26: 1 | AN26: 5 | AO26: 4 | AP26: 5 | AQ26: 3
A27: 22 | C27: 有度村２－１ | D27: 1,069 | E27: 78 | F27: 42 | G27: 3 | H27: 5 | I27: 34 | J27: 22 | K27: 114 | L27: 69 | M27: 5 | N27: 67 | O27: - | P27: 3 | Q27: 4 | R27: - | S27: 1 | T27: 3 | U27: 4 | V27: - | W27: - | X27: - | Y27: - | Z27: - | AA27: 4 | AB27: 0 | AC27: 1 | AD27: 0 | AE27: 3 | AF27: 0 | AG27: 0 | AH27: 4 | AI27: 1 | AJ27: 4 | AK27: 0 | AL27: 2 | AM27: 1 | AN27: 4 | AO27: 3 | AP27: 3 | AQ27: 0
A28: 23 | C28: 興津町 | D28: 1,219 | E28: 168 | F28: 241 | G28: 0 | H28: 16 | I28: 225 | J28: 173 | K28: 203 | L28: 58 | M28: 8 | N28: 54 | O28: - | P28: 2 | Q28: 8 | R28: - | S28: - | T28: 8 | U28: 3 | V28: 5 | W28: - | X28: - | Y28: - | Z28: - | AA28: 8 | AB28: 8 | AC28: 7 | AD28: 6 | AE28: 4 | AF28: 4 | AG28: 0 | AH28: 8 | AI28: 2 | AJ28: 8 | AK28: 0 | AL28: 1 | AM28: 1 | AN28: 7 | AO28: 4 | AP28: 3 | AQ28: 3
A29: 24 | C29: 小島村 | D29: 4,110 | E29: 2,354 | F29: 254 | G29: 2 | H29: 14 | I29: 238 | J29: 185 | K29: 183 | L29: 32 | M29: 11 | N29: 29 | O29: - | P29: - | Q29: 9 | R29: - | S29: 1 | T29: 8 | U29: 1 | V29: 4 | W29: 2 | X29: 2 | Y29: - | Z29: - | AA29: 8 | AB29: 2 | AC29: 2 | AD29: 0 | AE29: 4 | AF29: 0 | AG29: 1 | AH29: 9 | AI29: 6 | AJ29: 9 | AK29: 2 | AL29: 0 | AM29: 0 | AN29: 9 | AO29: 5 | AP29: 3 | AQ29: 1
A30: 25 | C30: 両河内村 | D30: 8,381 | E30: 6,783 | F30: 285 | G30: 33 | H30: 26 | I30: 226 | J30: 107 | K30: 218 | L30: 75 | M30: 49 | N30: 53 | O30: - | P30: 1 | Q30: 18 | R30: - | S30: 1 | T30: 17 | U30: - | V30: 7 | W30: 4 | X30: 4 | Y30: 3 | Z30: - | AA30: 16 | AB30: 13 | AC30: 16 | AD30: 16 | AE30: 15 | AF30: 8 | AG30: 0 | AH30: 18 | AI30: 11 | AJ30: 18 | AK30: 4 | AL30: 0 | AM30: 0 | AN30: 16 | AO30: 1 | AP30: 12 | AQ30: 10
A31: 26 | C31: 庵原村 | D31: 3,243 | E31: 1,220 | F31: 687 | G31: 0 | H31: 36 | I31: 651 | J31: 281 | K31: 449 | L31: 107 | M31: 30 | N31: 92 | O31: 1 | P31: 5 | Q31: 12 | R31: - | S31: - | T31: 12 | U31: 1 | V31: 6 | W31: 3 | X31: 2 | Y31: - | Z31: - | AA31: 12 | AB31: 1 | AC31: 1 | AD31: 2 | AE31: 2 | AF31: 0 | AG31: 0 | AH31: 12 | AI31: 6 | AJ31: 12 | AK31: 1 | AL31: 1 | AM31: 1 | AN31: 12 | AO31: 12 | AP31: 1 | AQ31: 1
A32: 27 | C32: 袖師町 | D32: 459 | E32: 3 | F32: 35 | G32: 2 | H32: 6 | I32: 27 | J32: 39 | K32: 64 | L32: 23 | M32: 3 | N32: 23 | O32: - | P32: 1 | Q32: 4 | R32: - | S32: 1 | T32: 3 | U32: 4 | V32: - | W32: - | X32: - | Y32: - | Z32: - | AA32: 4 | AB32: 2 | AC32: 3 | AD32: 0 | AE32: 2 | AF32: 2 | AG32: 0 | AH32: 4 | AI32: 2 | AJ32: 1 | AK32: 0 | AL32: 0 | AM32: 0 | AN32: 4 | AO32: 4 | AP32: 3 | AQ32: 0
A33: 28 | C33: 蒲原町 | D33: 1,474 | E33: 419 | F33: 111 | G33: 3 | H33: 34 | I33: 74 | J33: 92 | K33: 60 | L33: 17 | M33: 1 | N33: 17 | O33: - | P33: - | Q33: 15 | R33: - | S33: 1 | T33: 14 | U33: 14 | V33: 1 | W33: - | X33: - | Y33: - | Z33: - | AA33: 3 | AB33: 1 | AC33: 0 | AD33: 1 | AE33: 0 | AF33: 0 | AG33: 11 | AH33: 15 | AI33: 0 | AJ33: 13 | AK33: 0 | AL33: 2 | AM33: 2 | AN33: 7 | AO33: 3 | AP33: 4 | AQ33: 2
A34: 29 | C34: 由比町 | D34: 2,305 | E34: 1,061 | F34: 260 | G34: 2 | H34: 17 | I34: 241 | J34: 178 | K34: 221 | L34: 86 | M34: 3 | N34: 85 | O34: 3 | P34: 1 | Q34: 14 | R34: - | S34: - | T34: 14 | U34: 6 | V34: 3 | W34: 4 | X34: 1 | Y34: - | Z34: - | AA34: 5 | AB34: 6 | AC34: 9 | AD34: 11 | AE34: 10 | AF34: 8 | AG34: 1 | AH34: 14 | AI34: 0 | AJ34: 12 | AK34: 1 | AL34: 1 | AM34: 0 | AN34: 14 | AO34: 10 | AP34: 1 | AQ34: 1
A35: 30 | B35: 浜松市 | D35: 151,117 | E35: 101,854 | F35: 12862 | G35: 2629 | H35: 4275 | I35: 5958 | J35: 2546 | K35: 7,784 | L35: 1,637 | M35: 237 | N35: 1,494 | O35: 44 | P35: 60 | Q35: 690 | R35: 38 | S35: 197 | T35: 455 | U35: 297 | V35: 203 | W35: 81 | X35: 69 | Y35: 31 | Z35: 9 | AA35: 287 | AB35: 403 | AC35: 493 | AD35: 580 | AE35: 641 | AF35: 517 | AG35: 18 | AH35: 665 | AI35: 75 | AJ35: 464 | AK35: 34 | AL35: 95 | AM35: 43 | AN35: 602 | AO35: 339 | AP35: 585 | AQ35: 430
A36: 31 | B36: 中区(浜松市) | D36: 4,423 | E36: 160 | F36: 139 | G36: 42 | H36: 60 | I36: 37 | J36: 45 | K36: 200 | L36: 53 | M36: 9 | N36: 46 | O36: - | P36: 3 | Q36: 13 | R36: 2 | S36: 1 | T36: 10 | U36: 9 | V36: 4 | W36: - | X36: - | Y36: - | Z36: - | AA36: 8 | AB36: 8 | AC36: 10 | AD36: 12 | AE36: 12 | AF36: 12 | AG36: 0 | AH36: 13 | AI36: 0 | AJ36: 9 | AK36: 0 | AL36: 0 | AM36: 0 | AN36: 12 | AO36: 6 | AP36: 13 | AQ36: 8
A37: 32 | C37: 浜松市４－１ | D37: 3,986 | E37: 130 | F37: 56 | G37: 26 | H37: 20 | I37: 10 | J37: 36 | K37: 136 | L37: 45 | M37: 8 | N37: 39 | O37: - | P37: 3 | Q37: 4 | R37: 1 | S37: - | T37: 3 | U37: 4 | V37: - | W37: - | X37: - | Y37: - | Z37: - | AA37: 1 | AB37: 1 | AC37: 2 | AD37: 4 | AE37: 4 | AF37: 4 | AG37: 0 | AH37: 4 | AI37: 0 | AJ37: 2 | AK37: 0 | AL37: 0 | AM37: 0 | AN37: 3 | AO37: 2 | AP37: 4 | AQ37: 1
A38: 33 | C38: 入野村２－１ | D38: 177 | E38: 8 | F38: 3 | G38: 0 | H38: 1 | I38: 2 | J38: x | K38: 13 | L38: 4 | M38: - | N38: 4 | O38: - | P38: - | Q38: 1 | R38: - | S38: - | T38: 1 | U38: 1 | V38: - | W38: - | X38: - | Y38: - | Z38: - | AA38: 1 | AB38: 1 | AC38: 1 | AD38: 1 | AE38: 1 | AF38: 1 | AG38: 0 | AH38: 1 | AI38: 0 | AJ38: 0 | AK38: 0 | AL38: 0 | AM38: 0 | AN38: 1 | AO38: 0 | AP38: 1 | AQ38: 0
A39: 34 | C39: 吉野村２－１ | D39: 239 | E39: 22 | F39: 69 | G39: 6 | H39: 38 | I39: 25 | J39: x | K39: 51 | L39: 4 | M39: 1 | N39: 3 | O39: - | P39: - | Q39: 7 | R39: - | S39: 1 | T39: 6 | U39: 3 | V39: 4 | W39: - | X39: - | Y39: - | Z39: - | AA39: 6 | AB39: 6 | AC39: 6 | AD39: 6 | AE39: 6 | AF39: 6 | AG39: 0 | AH39: 7 | AI39: 0 | AJ39: 7 | AK39: 0 | AL39: 0 | AM39: 0 | AN39: 7 | AO39: 4 | AP39: 7 | AQ39: 7
A40: 35 | C40: 新津村２－１ | D40: 21 | E40: - | F40: 11 | G40: 10 | H40: 1 | I40: 0 | J40: - | K40: - | L40: - | M40: - | N40: - | O40: - | P40: - | Q40: 1 | R40: 1 | S40: - | T40: - | U40: 1 | V40: - | W40: - | X40: - | Y40: - | Z40: - | AA40: 0 | AB40: 0 | AC40: 1 | AD40: 1 | AE40: 1 | AF40: 1 | AG40: 0 | AH40: 1 | AI40: 0 | AJ40: 0 | AK40: 0 | AL40: 0 | AM40: 0 | AN40: 1 | AO40: 0 | AP40: 1 | AQ40: 0
A41: 36 | B41: 東区(浜松市) | D41: 4,629 | E41: 34 | F41: 874 | G41: 504 | H41: 301 | I41: 69 | J41: 148 | K41: 527 | L41: 174 | M41: 9 | N41: 167 | O41: 1 | P41: 5 | Q41: 94 | R41: 23 | S41: 63 | T41: 8 | U41: 70 | V41: 20 | W41: 4 | X41: - | Y41: - | Z41: - | AA41: 13 | AB41: 77 | AC41: 57 | AD41: 76 | AE41: 83 | AF41: 58 | AG41: 4 | AH41: 92 | AI41: 4 | AJ41: 16 | AK41: 0 | AL41: 3 | AM41: 0 | AN41: 76 | AO41: 70 | AP41: 92 | AQ41: 84
A42: 37 | C42: 浜松市４－３ | D42: 365 | E42: - | F42: … | G42: … | H42: … | I42: … | J42: 2 | K42: 11 | L42: 2 | M42: 1 | N42: 1 | O42: - | P42: - | Q42: - | R42: - | S42: - | T42: - | U42: - | V42: - | W42: - | X42: - | Y42: - | Z42: - | AA42: … | AB42: … | AC42: … | AD42: … | AE42: … | AF42: … | AG42: … | AH42: … | AI42: … | AJ42: … | AK42: … | AL42: … | AM42: … | AN42: … | AO42: … | AP42: … | AQ42: …
A43: 38 | C43: 飯田村２－１東区（浜松市） | D43: 2 | E43: - | F43: … | G43: … | H43: … | I43: … | J43: - | K43: - | L43: - | M43: - | N43: - | O43: - | P43: - | Q43: - | R43: - | S43: - | T43: - | U43: - | V43: - | W43: - | X43: - | Y43: - | Z43: - | AA43: … | AB43: … | AC43: … | AD43: … | AE43: … | AF43: … | AG43: … | AH43: … | AI43: … | AJ43: … | AK43: … | AL43: … | AM43: … | AN43: … | AO43: … | AP43: … | AQ43: …
A44: 39 | C44: 和田村東区（浜松市） | D44: 508 | E44: - | F44: 31 | G44: 18 | H44: 10 | I44: 3 | J44: 6 | K44: 21 | L44: 5 | M44: 1 | N44: 5 | O44: - | P44: 1 | Q44: 5 | R44: - | S44: 4 | T44: 1 | U44: 3 | V44: 2 | W44: - | X44: - | Y44: - | Z44: - | AA44: 0 | AB44: 4 | AC44: 0 | AD44: 5 | AE44: 5 | AF44: 4 | AG44: 0 | AH44: 5 | AI44: 1 | AJ44: 0 | AK44: 0 | AL44: 0 | AM44: 0 | AN44: 4 | AO44: 3 | AP44: 5 | AQ44: 4
A45: 40 | C45: 長上村 | D45: 909 | E45: - | F45: 227 | G45: 150 | H45: 61 | I45: 16 | J45: 29 | K45: 135 | L45: 57 | M45: 1 | N45: 56 | O45: - | P45: - | Q45: 25 | R45: 9 | S45: 15 | T45: 1 | U45: 23 | V45: 2 | W45: - | X45: - | Y45: - | Z45: - | AA45: 8 | AB45: 24 | AC45: 18 | AD45: 25 | AE45: 25 | AF45: 15 | AG45: 0 | AH45: 25 | AI45: 1 | AJ45: 2 | AK45: 0 | AL45: 0 | AM45: 0 | AN45: 21 | AO45: 21 | AP45: 25 | AQ45: 24
A46: 41 | C46: 積志村 | D46: 1,312 | E46: 34 | F46: 287 | G46: 159 | H46: 92 | I46: 36 | J46: 62 | K46: 158 | L46: 47 | M46: 3 | N46: 47 | O46: - | P46: - | Q46: 31 | R46: 5 | S46: 24 | T46: 2 | U46: 28 | V46: 3 | W46: - | X46: - | Y46: - | Z46: - | AA46: 0 | AB46: 30 | AC46: 30 | AD46: 31 | AE46: 31 | AF46: 31 | AG46: 0 | AH46: 31 | AI46: 0 | AJ46: 6 | AK46: 0 | AL46: 0 | AM46: 0 | AN46: 24 | AO46: 24 | AP46: 31 | AQ46: 31
A47: 42 | C47: 笠井町 | D47: 251 | E47: - | F47: 61 | G47: 39 | H47: 19 | I47: 3 | J47: 6 | K47: 35 | L47: 11 | M47: 1 | N47: 10 | O47: - | P47: 1 | Q47: 4 | R47: 1 | S47: 3 | T47: - | U47: 3 | V47: 1 | W47: - | X47: - | Y47: - | Z47: - | AA47: 0 | AB47: 1 | AC47: 0 | AD47: 0 | AE47: 1 | AF47: 0 | AG47: 3 | AH47: 4 | AI47: 0 | AJ47: 4 | AK47: 0 | AL47: 0 | AM47: 0 | AN47: 4 | AO47: 4 | AP47: 4 | AQ47: 4
A48: 43 | C48: 豊西村 | D48: 793 | E48: - | F48: 183 | G48: 81 | H48: 95 | I48: 7 | J48: 35 | K48: 113 | L48: 30 | M48: 1 | N48: 26 | O48: 1 | P48: 3 | Q48: 14 | R48: 2 | S48: 10 | T48: 2 | U48: 6 | V48: 7 | W48: 1 | X48: - | Y48: - | Z48: - | AA48: 4 | AB48: 7 | AC48: 6 | AD48: 8 | AE48: 10 | AF48: 5 | AG48: 1 | AH48: 14 | AI48: 1 | AJ48: 4 | AK48: 0 | AL48: 3 | AM48: 0 | AN48: 12 | AO48: 7 | AP48: 14 | AQ48: 8
A49: 44 | C49: 中ノ町村 | D49: 474 | E49: - | F49: 85 | G49: 57 | H49: 24 | I49: 4 | J49: 8 | K49: 54 | L49: 22 | M49: 1 | N49: 22 | O49: - | P49: - | Q49: 13 | R49: 6 | S49: 7 | T49: - | U49: 5 | V49: 5 | W49: 3 | X49: - | Y49: - | Z49: - | AA49: 1 | AB49: 11 | AC49: 1 | AD49: 5 | AE49: 9 | AF49: 1 | AG49: 0 | AH49: 13 | AI49: 1 | AJ49: 0 | AK49: 0 | AL49: 0 | AM49: 0 | AN49: 11 | AO49: 11 | AP49: 13 | AQ49: 13
A50: 45 | C50: 三方原村２－１ | D50: 15 | E50: - | F50: 0 | G50: 0 | H50: 0 | I50: 0 | J50: - | K50: - | L50: - | M50: - | N50: - | O50: - | P50: - | Q50: 2 | R50: - | S50: - | T50: 2 | U50: 2 | V50: - | W50: - | X50: - | Y50: - | Z50: - | AA50: 0 | AB50: 0 | AC50: 2 | AD50: 2 | AE50: 2 | AF50: 2 | AG50: 0 | AH50: 0 | AI50: 0 | AJ50: 0 | AK50: 0 | AL50: 0 | AM50: 0 | AN50: 0 | AO50: 0 | AP50: 0 | AQ50: 0
A51: 46 | B51: 西区(浜松市) | D51: 8,549 | E51: 828 | F51: 2117 | G51: 394 | H51: 1464 | I51: 259 | J51: 649 | K51: 1,518 | L51: 211 | M51: 24 | N51: 196 | O51: 15 | P51: 8 | Q51: 86 | R51: 5 | S51: 17 | T51: 64 | U51: 41 | V51: 34 | W51: 10 | X51: 1 | Y51: - | Z51: - | AA51: 59 | AB51: 58 | AC51: 60 | AD51: 65 | AE51: 76 | AF51: 63 | AG51: 0 | AH51: 86 | AI51: 4 | AJ51: 60 | AK51: 9 | AL51: 30 | AM51: 13 | AN51: 77 | AO51: 58 | AP51: 86 | AQ51: 60
A52: 47 | C52: 神久呂村 | D52: 1,216 | E52: 189 | F52: 380 | G52: 53 | H52: 260 | I52: 67 | J52: 98 | K52: 250 | L52: 45 | M52: 6 | N52: 41 | O52: 1 | P52: 2 | Q52: 11 | R52: 1 | S52: 1 | T52: 9 | U52: 4 | V52: 5 | W52: 1 | X52: 1 | Y52: - | Z52: - | AA52: 11 | AB52: 11 | AC52: 11 | AD52: 11 | AE52: 11 | AF52: 11 | AG52: 0 | AH52: 11 | AI52: 1 | AJ52: 11 | AK52: 0 | AL52: 5 | AM52: 1 | AN52: 11 | AO52: 11 | AP52: 11 | AQ52: 8
A53: 48 | C53: 入野村２－２ | D53: 791 | E53: 56 | F53: 90 | G53: 35 | H53: 40 | I53: 15 | J53: 50 | K53: 60 | L53: 20 | M53: 1 | N53: 20 | O53: - | P53: - | Q53: 11 | R53: 1 | S53: 7 | T53: 3 | U53: 10 | V53: 1 | W53: - | X53: - | Y53: - | Z53: - | AA53: 8 | AB53: 5 | AC53: 6 | AD53: 9 | AE53: 11 | AF53: 11 | AG53: 0 | AH53: 11 | AI53: 0 | AJ53: 5 | AK53: 0 | AL53: 4 | AM53: 0 | AN53: 9 | AO53: 0 | AP53: 11 | AQ53: 1
A54: 49 | C54: 吉野村２－２ | D54: 30 | E54: - | F54: 4 | G54: 0 | H54: 3 | I54: 1 | J54: - | K54: - | L54: - | M54: - | N54: - | O54: - | P54: - | Q54: 3 | R54: - | S54: - | T54: 3 | U54: 3 | V54: - | W54: - | X54: - | Y54: - | Z54: - | AA54: 3 | AB54: 3 | AC54: 3 | AD54: 3 | AE54: 3 | AF54: 3 | AG54: 0 | AH54: 3 | AI54: 0 | AJ54: 3 | AK54: 0 | AL54: 0 | AM54: 0 | AN54: 3 | AO54: 2 | AP54: 3 | AQ54: 3
A55: 50 | C55: 和地村 | D55: 903 | E55: 89 | F55: 306 | G55: 38 | H55: 190 | I55: 78 | J55: 76 | K55: 223 | L55: 22 | M55: 5 | N55: 19 | O55: - | P55: - | Q55: 9 | R55: 1 | S55: - | T55: 8 | U55: - | V55: 5 | W55: 4 | X55: - | Y55: - | Z55: - | AA55: 0 | AB55: 4 | AC55: 7 | AD55: 9 | AE55: 9 | AF55: 9 | AG55: 0 | AH55: 9 | AI55: 0 | AJ55: 5 | AK55: 3 | AL55: 2 | AM55: 1 | AN55: 7 | AO55: 7 | AP55: 9 | AQ55: 9
A56: 51 | C56: 伊佐見村 | D56: 1,235 | E56: 171 | F56: 404 | G56: 79 | H56: 298 | I56: 27 | J56: 153 | K56: 295 | L56: 37 | M56: 5 | N56: 31 | O56: 1 | P56: 3 | Q56: 6 | R56: - | S56: 1 | T56: 5 | U56: 1 | V56: 3 | W56: 2 | X56: - | Y56: - | Z56: - | AA56: 6 | AB56: 6 | AC56: 6 | AD56: 6 | AE56: 6 | AF56: 6 | AG56: 0 | AH56: 6 | AI56: 0 | AJ56: 6 | AK56: 0 | AL56: 2 | AM56: 1 | AN56: 6 | AO56: 6 | AP56: 6 | AQ56: 6
A57: 52 | C57: 篠原村 | D57: 1,004 | E57: 14 | F57: 233 | G57: 33 | H57: 193 | I57: 7 | J57: 69 | K57: 234 | L57: 8 | M57: - | N57: 8 | O57: - | P57: - | Q57: 27 | R57: 1 | S57: 4 | T57: 22 | U57: 13 | V57: 14 | W57: - | X57: - | Y57: - | Z57: - | AA57: 22 | AB57: 14 | AC57: 9 | AD57: 9 | AE57: 17 | AF57: 4 | AG57: 0 | AH57: 27 | AI57: 0 | AJ57: 15 | AK57: 0 | AL57: 1 | AM57: 0 | AN57: 23 | AO57: 19 | AP57: 27 | AQ57: 18
A58: 53 | C58: 北庄内村 | D58: 1,030 | E58: 176 | F58: 260 | G58: 26 | H58: 182 | I58: 52 | J58: 83 | K58: 266 | L58: 47 | M58: 5 | N58: 45 | O58: 13 | P58: 2 | Q58: 5 | R58: - | S58: - | T58: 5 | U58: 1 | V58: 1 | W58: 3 | X58: - | Y58: - | Z58: - | AA58: 1 | AB58: 5 | AC58: 5 | AD58: 5 | AE58: 5 | AF58: 5 | AG58: 0 | AH58: 5 | AI58: 1 | AJ58: 5 | AK58: 3 | AL58: 5 | AM58: 5 | AN58: 5 | AO58: 5 | AP58: 5 | AQ58: 5
A59: 54 | C59: 南庄内村 | D59: 419 | E59: 47 | F59: 102 | G59: 21 | H59: 77 | I59: 4 | J59: 52 | K59: 40 | L59: 3 | M59: - | N59: 3 | O59: - | P59: - | Q59: 3 | R59: - | S59: 1 | T59: 2 | U59: - | V59: 3 | W59: - | X59: - | Y59: - | Z59: - | AA59: 0 | AB59: 3 | AC59: 3 | AD59: 3 | AE59: 3 | AF59: 3 | AG59: 0 | AH59: 3 | AI59: 1 | AJ59: 3 | AK59: 3 | AL59: 3 | AM59: 3 | AN59: 3 | AO59: 3 | AP59: 3 | AQ59: 3
A60: 55 | C60: 村櫛村 | D60: 505 | E60: 39 | F60: 117 | G60: 24 | H60: 91 | I60: 2 | J60: 22 | K60: 29 | L60: 5 | M60: - | N60: 5 | O60: - | P60: - | Q60: 2 | R60: - | S60: - | T60: 2 | U60: 1 | V60: 1 | W60: - | X60: - | Y60: - | Z60: - | AA60: 2 | AB60: 2 | AC60: 2 | AD60: 2 | AE60: 2 | AF60: 2 | AG60: 0 | AH60: 2 | AI60: 0 | AJ60: 1 | AK60: 0 | AL60: 2 | AM60: 0 | AN60: 2 | AO60: 2 | AP60: 2 | AQ60: 2
A61: 56 | C61: 舞阪町 | D61: 457 | E61: 1 | F61: 32 | G61: 0 | H61: 32 | I61: 0 | J61: 3 | K61: 16 | L61: 1 | M61: - | N61: 1 | O61: - | P61: - | Q61: 2 | R61: - | S61: - | T61: 2 | U61: 2 | V61: - | W61: - | X61: - | Y61: - | Z61: - | AA61: 2 | AB61: 1 | AC61: 2 | AD61: 2 | AE61: 2 | AF61: 2 | AG61: 0 | AH61: 2 | AI61: 0 | AJ61: 2 | AK61: 0 | AL61: 0 | AM61: 0 | AN61: 1 | AO61: 1 | AP61: 2 | AQ61: 1
A62: 57 | C62: 雄踏町 | D62: 821 | E62: 45 | F62: 189 | G62: 85 | H62: 98 | I62: 6 | J62: 42 | K62: 105 | L62: 23 | M62: 2 | N62: 23 | O62: - | P62: 1 | Q62: 7 | R62: 1 | S62: 3 | T62: 3 | U62: 6 | V62: 1 | W62: - | X62: - | Y62: - | Z62: - | AA62: 4 | AB62: 4 | AC62: 6 | AD62: 6 | AE62: 7 | AF62: 7 | AG62: 0 | AH62: 7 | AI62: 1 | AJ62: 4 | AK62: 0 | AL62: 6 | AM62: 2 | AN62: 7 | AO62: 2 | AP62: 7 | AQ62: 4
A63: 58 | C63: 浜松市４－２ | D63: 138 | E63: - | F63: … | G63: … | H63: … | I63: … | J63: - | K63: - | L63: - | M63: - | N63: - | O63: - | P63: - | Q63: - | R63: - | S63: - | T63: - | U63: - | V63: - | W63: - | X63: - | Y63: - | Z63: - | AA63: … | AB63: … | AC63: … | AD63: … | AE63: … | AF63: … | AG63: … | AH63: … | AI63: … | AJ63: … | AK63: … | AL63: … | AM63: … | AN63: … | AO63: … | AP63: … | AQ63: …
A64: 59 | B64: 南区(浜松市) | D64: 4,702 | E64: 191 | F64: 1061 | G64: 468 | H64: 568 | I64: 25 | J64: 223 | K64: 802 | L64: 159 | M64: 6 | N64: 152 | O64: - | P64: 5 | Q64: 74 | R64: 6 | S64: 52 | T64: 16 | U64: 43 | V64: 27 | W64: 2 | X64: 2 | Y64: - | Z64: - | AA64: 39 | AB64: 63 | AC64: 67 | AD64: 68 | AE64: 70 | AF64: 64 | AG64: 3 | AH64: 74 | AI64: 1 | AJ64: 16 | AK64: 1 | AL64: 3 | AM64: 3 | AN64: 50 | AO64: 45 | AP64: 74 | AQ64: 64
A65: 60 | C65: 浜松市４－４ | D65: 862 | E65: 56 | F65: 201 | G65: 126 | H65: 69 | I65: 6 | J65: 28 | K65: 134 | L65: 31 | M65: 1 | N65: 30 | O65: - | P65: - | Q65: 6 | R65: - | S65: 6 | T65: - | U65: 5 | V65: 1 | W65: - | X65: - | Y65: - | Z65: - | AA65: 5 | AB65: 6 | AC65: 6 | AD65: 6 | AE65: 6 | AF65: 6 | AG65: 0 | AH65: 6 | AI65: 0 | AJ65: 2 | AK65: 0 | AL65: 0 | AM65: 0 | AN65: 4 | AO65: 4 | AP65: 6 | AQ65: 6
A66: 61 | C66: 芳川村 | D66: 790 | E66: - | F66: 163 | G66: 83 | H66: 77 | I66: 3 | J66: 37 | K66: 121 | L66: 27 | M66: 1 | N66: 26 | O66: - | P66: 1 | Q66: 16 | R66: - | S66: 12 | T66: 4 | U66: 11 | V66: 4 | W66: 1 | X66: - | Y66: - | Z66: - | AA66: 4 | AB66: 14 | AC66: 15 | AD66: 16 | AE66: 16 | AF66: 16 | AG66: 0 | AH66: 16 | AI66: 0 | AJ66: 1 | AK66: 1 | AL66: 2 | AM66: 2 | AN66: 11 | AO66: 10 | AP66: 16 | AQ66: 15
A67: 62 | C67: 飯田村２－１南区（浜松市） | D67: 608 | E67: - | F67: 100 | G67: 31 | H67: 64 | I67: 5 | J67: 25 | K67: 79 | L67: 16 | M67: - | N67: 16 | O67: - | P67: - | Q67: 12 | R67: - | S67: 8 | T67: 4 | U67: 8 | V67: 4 | W67: - | X67: - | Y67: - | Z67: - | AA67: 2 | AB67: 6 | AC67: 6 | AD67: 6 | AE67: 8 | AF67: 2 | AG67: 3 | AH67: 12 | AI67: 0 | AJ67: 0 | AK67: 0 | AL67: 0 | AM67: 0 | AN67: 7 | AO67: 7 | AP67: 12 | AQ67: 12
A68: 63 | C68: 河輪村 | D68: 347 | E68: - | F68: 75 | G68: 32 | H68: 39 | I68: 4 | J68: 26 | K68: 54 | L68: 19 | M68: - | N68: 19 | O68: - | P68: - | Q68: 8 | R68: - | S68: 6 | T68: 2 | U68: 4 | V68: 4 | W68: - | X68: - | Y68: - | Z68: - | AA68: 3 | AB68: 8 | AC68: 8 | AD68: 8 | AE68: 8 | AF68: 8 | AG68: 0 | AH68: 8 | AI68: 1 | AJ68: 0 | AK68: 0 | AL68: 0 | AM68: 0 | AN68: 6 | AO68: 6 | AP68: 8 | AQ68: 8
A69: 64 | C69: 五島村 | D69: 725 | E69: 68 | F69: 194 | G69: 70 | H69: 122 | I69: 2 | J69: 29 | K69: 170 | L69: 25 | M69: 3 | N69: 22 | O69: - | P69: 2 | Q69: 18 | R69: 5 | S69: 8 | T69: 5 | U69: 5 | V69: 10 | W69: 1 | X69: 2 | Y69: - | Z69: - | AA69: 18 | AB69: 17 | AC69: 18 | AD69: 18 | AE69: 18 | AF69: 18 | AG69: 0 | AH69: 18 | AI69: 0 | AJ69: 6 | AK69: 0 | AL69: 1 | AM69: 1 | AN69: 13 | AO69: 13 | AP69: 18 | AQ69: 17
A70: 65 | C70: 新津村２－２ | D70: 971 | E70: 64 | F70: 290 | G70: 107 | H70: 179 | I70: 4 | J70: 60 | K70: 221 | L70: 36 | M70: 1 | N70: 34 | O70: - | P70: 2 | Q70: 7 | R70: 1 | S70: 5 | T70: 1 | U70: 4 | V70: 3 | W70: - | X70: - | Y70: - | Z70: - | AA70: 6 | AB70: 6 | AC70: 7 | AD70: 7 | AE70: 7 | AF70: 7 | AG70: 0 | AH70: 7 | AI70: 0 | AJ70: 4 | AK70: 0 | AL70: 0 | AM70: 0 | AN70: 3 | AO70: 0 | AP70: 7 | AQ70: 4
A71: 66 | C71: 可美村 | D71: 399 | E71: 2 | F71: 38 | G71: 19 | H71: 18 | I71: 1 | J71: 18 | K71: 23 | L71: 5 | M71: - | N71: 5 | O71: - | P71: - | Q71: 7 | R71: - | S71: 7 | T71: - | U71: 6 | V71: 1 | W71: - | X71: - | Y71: - | Z71: - | AA71: 1 | AB71: 6 | AC71: 7 | AD71: 7 | AE71: 7 | AF71: 7 | AG71: 0 | AH71: 7 | AI71: 0 | AJ71: 3 | AK71: 0 | AL71: 0 | AM71: 0 | AN71: 6 | AO71: 5 | AP71: 7 | AQ71: 2
A72: 67 | B72: 北区(浜松市) | D72: 27,763 | E72: 13,963 | F72: 5744 | G72: 747 | H72: 850 | I72: 4147 | J72: 630 | K72: 3,273 | L72: 645 | M72: 78 | N72: 586 | O72: 26 | P72: 28 | Q72: 139 | R72: 1 | S72: 23 | T72: 115 | U72: 22 | V72: 54 | W72: 21 | X72: 27 | Y72: 13 | Z72: 2 | AA72: 73 | AB72: 80 | AC72: 110 | AD72: 118 | AE72: 123 | AF72: 106 | AG72: 5 | AH72: 139 | AI72: 19 | AJ72: 127 | AK72: 24 | AL72: 46 | AM72: 22 | AN72: 126 | AO72: 101 | AP72: 139 | AQ72: 109
A73: 68 | C73: 三方原村２－２ | D73: 1,628 | E73: - | F73: 598 | G73: 4 | H73: 394 | I73: 200 | J73: 109 | K73: 315 | L73: 83 | M73: 21 | N73: 68 | O73: 3 | P73: 5 | Q73: 21 | R73: - | S73: - | T73: 21 | U73: 10 | V73: 10 | W73: 1 | X73: - | Y73: - | Z73: - | AA73: 10 | AB73: 15 | AC73: 19 | AD73: 21 | AE73: 21 | AF73: 20 | AG73: 0 | AH73: 21 | AI73: 1 | AJ73: 15 | AK73: 4 | AL73: 2 | AM73: 1 | AN73: 16 | AO73: 10 | AP73: 21 | AQ73: 13
A74: 69 | C74: 都田村 | D74: 3,016 | E74: 1,077 | F74: 758 | G74: 89 | H74: 125 | I74: 544 | J74: 77 | K74: 399 | L74: 114 | M74: 14 | N74: 100 | O74: 12 | P74: 7 | Q74: 18 | R74: - | S74: 3 | T74: 15 | U74: 1 | V74: 4 | W74: 5 | X74: 6 | Y74: 2 | Z74: - | AA74: 1 | AB74: 15 | AC74: 17 | AD74: 18 | AE74: 18 | AF74: 15 | AG74: 0 | AH74: 18 | AI74: 1 | AJ74: 18 | AK74: 4 | AL74: 6 | AM74: 2 | AN74: 17 | AO74: 16 | AP74: 18 | AQ74: 17
A75: 70 | C75: 気賀町 | D75: 2,241 | E75: 822 | F75: 638 | G75: 114 | H75: 58 | I75: 466 | J75: 109 | K75: 371 | L75: 104 | M75: 5 | N75: 100 | O75: 3 | P75: - | Q75: 11 | R75: - | S75: 2 | T75: 9 | U75: 2 | V75: 6 | W75: 3 | X75: - | Y75: - | Z75: - | AA75: 9 | AB75: 7 | AC75: 5 | AD75: 4 | AE75: 6 | AF75: 3 | AG75: 2 | AH75: 11 | AI75: 4 | AJ75: 11 | AK75: 0 | AL75: 5 | AM75: 4 | AN75: 10 | AO75: 9 | AP75: 11 | AQ75: 9
A76: 71 | C76: 中川村北区（浜松市） | D76: 1,176 | E76: 253 | F76: 413 | G76: 176 | H76: 46 | I76: 191 | J76: 40 | K76: 252 | L76: 88 | M76: 8 | N76: 86 | O76: 1 | P76: 3 | Q76: 8 | R76: 1 | S76: 5 | T76: 2 | U76: 1 | V76: 7 | W76: - | X76: - | Y76: - | Z76: - | AA76: 5 | AB76: 3 | AC76: 2 | AD76: 5 | AE76: 3 | AF76: 4 | AG76: 0 | AH76: 8 | AI76: 2 | AJ76: 6 | AK76: 1 | AL76: 0 | AM76: 0 | AN76: 7 | AO76: 7 | AP76: 8 | AQ76: 8
A77: 72 | C77: 金指町 | D77: 98 | E77: 19 | F77: 16 | G77: 1 | H77: 9 | I77: 6 | J77: 10 | K77: 16 | L77: 4 | M77: 1 | N77: 4 | O77: - | P77: - | Q77: 2 | R77: - | S77: - | T77: 2 | U77: 1 | V77: 1 | W77: - | X77: - | Y77: - | Z77: - | AA77: 0 | AB77: 0 | AC77: 1 | AD77: 0 | AE77: 2 | AF77: 0 | AG77: 0 | AH77: 2 | AI77: 0 | AJ77: 1 | AK77: 0 | AL77: 0 | AM77: 0 | AN77: 2 | AO77: 2 | AP77: 2 | AQ77: 2
A78: 73 | C78: 井伊谷村 | D78: 1,240 | E78: 534 | F78: 279 | G78: 37 | H78: 47 | I78: 195 | J78: 34 | K78: 174 | L78: 26 | M78: 1 | N78: 26 | O78: - | P78: - | Q78: 9 | R78: - | S78: 1 | T78: 8 | U78: 2 | V78: 4 | W78: 2 | X78: - | Y78: 1 | Z78: - | AA78: 2 | AB78: 1 | AC78: 9 | AD78: 9 | AE78: 9 | AF78: 9 | AG78: 0 | AH78: 9 | AI78: 0 | AJ78: 9 | AK78: 2 | AL78: 3 | AM78: 2 | AN78: 9 | AO78: 9 | AP78: 9 | AQ78: 7
A79: 74 | C79: 奥山村 | D79: 2,848 | E79: 1,912 | F79: 357 | G79: 73 | H79: 49 | I79: 235 | J79: 50 | K79: 183 | L79: 36 | M79: 5 | N79: 34 | O79: 1 | P79: 1 | Q79: 14 | R79: - | S79: 2 | T79: 12 | U79: - | V79: 6 | W79: - | X79: 4 | Y79: 2 | Z79: 2 | AA79: 6 | AB79: 6 | AC79: 13 | AD79: 14 | AE79: 14 | AF79: 14 | AG79: 0 | AH79: 14 | AI79: 2 | AJ79: 14 | AK79: 3 | AL79: 1 | AM79: 1 | AN79: 14 | AO79: 13 | AP79: 14 | AQ79: 10
A80: 75 | C80: 伊平村 | D80: 3,068 | E80: 2,522 | F80: 204 | G80: 34 | H80: 29 | I80: 141 | J80: 54 | K80: 100 | L80: 13 | M80: 5 | N80: 12 | O80: - | P80: 1 | Q80: 14 | R80: - | S80: 2 | T80: 12 | U80: 1 | V80: 5 | W80: 2 | X80: 4 | Y80: 2 | Z80: - | AA80: 5 | AB80: 2 | AC80: 6 | AD80: 7 | AE80: 10 | AF80: 5 | AG80: 2 | AH80: 14 | AI80: 1 | AJ80: 14 | AK80: 5 | AL80: 9 | AM80: 1 | AN80: 12 | AO80: 7 | AP80: 14 | AQ80: 13
A81: 76 | C81: 鎮玉村 | D81: 4,874 | E81: 3,716 | F81: 283 | G81: 80 | H81: 30 | I81: 173 | J81: 43 | K81: 169 | L81: 29 | M81: 5 | N81: 26 | O81: - | P81: - | Q81: 10 | R81: - | S81: 4 | T81: 6 | U81: - | V81: 1 | W81: - | X81: 6 | Y81: 3 | Z81: - | AA81: 7 | AB81: 8 | AC81: 8 | AD81: 9 | AE81: 9 | AF81: 7 | AG81: 1 | AH81: 10 | AI81: 3 | AJ81: 10 | AK81: 2 | AL81: 2 | AM81: 0 | AN81: 10 | AO81: 6 | AP81: 10 | AQ81: 9
A82: 77 | C82: 三ヶ日町 | D82: 6,052 | E82: 2,525 | F82: 1819 | G82: 97 | H82: 43 | I82: 1679 | J82: 37 | K82: 953 | L82: 103 | M82: 10 | N82: 91 | O82: 4 | P82: 8 | Q82: 20 | R82: - | S82: 4 | T82: 16 | U82: 4 | V82: 4 | W82: 4 | X82: 6 | Y82: 2 | Z82: - | AA82: 16 | AB82: 16 | AC82: 19 | AD82: 20 | AE82: 19 | AF82: 17 | AG82: 0 | AH82: 20 | AI82: 4 | AJ82: 17 | AK82: 3 | AL82: 9 | AM82: 6 | AN82: 19 | AO82: 18 | AP82: 20 | AQ82: 16
A83: 78 | C83: 東浜名村 | D83: 1,522 | E83: 588 | F83: 379 | G83: 42 | H83: 20 | I83: 317 | J83: 66 | K83: 341 | L83: 45 | M83: 3 | N83: 39 | O83: 2 | P83: 3 | Q83: 12 | R83: - | S83: - | T83: 12 | U83: - | V83: 6 | W83: 4 | X83: 1 | Y83: 1 | Z83: - | AA83: 12 | AB83: 7 | AC83: 11 | AD83: 11 | AE83: 12 | AF83: 12 | AG83: 0 | AH83: 12 | AI83: 1 | AJ83: 12 | AK83: 0 | AL83: 9 | AM83: 5 | AN83: 10 | AO83: 4 | AP83: 12 | AQ83: 5
A84: 79 | B84: 浜北区(浜松市) | D84: 6,651 | E84: 1,338 | F84: 1584 | G84: 376 | H84: 586 | I84: 622 | J84: 540 | K84: 789 | L84: 224 | M84: 22 | N84: 212 | O84: 2 | P84: 9 | Q84: 78 | R84: 1 | S84: 32 | T84: 45 | U84: 52 | V84: 21 | W84: 3 | X84: 1 | Y84: 1 | Z84: - | AA84: 31 | AB84: 57 | AC84: 45 | AD84: 67 | AE84: 78 | AF84: 76 | AG84: 0 | AH84: 78 | AI84: 0 | AJ84: 31 | AK84: 0 | AL84: 10 | AM84: 4 | AN84: 65 | AO84: 59 | AP84: 70 | AQ84: 61
A85: 80 | C85: 小野口村 | D85: 1,020 | E85: 79 | F85: 292 | G85: 120 | H85: 75 | I85: 97 | J85: 45 | K85: 126 | L85: 34 | M85: 4 | N85: 33 | O85: - | P85: 1 | Q85: 16 | R85: 1 | S85: 10 | T85: 5 | U85: 10 | V85: 6 | W85: - | X85: - | Y85: - | Z85: - | AA85: 7 | AB85: 15 | AC85: 16 | AD85: 16 | AE85: 16 | AF85: 15 | AG85: 0 | AH85: 16 | AI85: 0 | AJ85: 2 | AK85: 0 | AL85: 0 | AM85: 0 | AN85: 13 | AO85: 13 | AP85: 13 | AQ85: 12
A86: 81 | C86: 北浜村 | D86: 948 | E86: 9 | F86: 245 | G86: 42 | H86: 115 | I86: 88 | J86: 127 | K86: 138 | L86: 34 | M86: 1 | N86: 33 | O86: - | P86: 3 | Q86: 22 | R86: - | S86: 6 | T86: 16 | U86: 20 | V86: 2 | W86: - | X86: - | Y86: - | Z86: - | AA86: 12 | AB86: 21 | AC86: 22 | AD86: 22 | AE86: 22 | AF86: 22 | AG86: 0 | AH86: 22 | AI86: 0 | AJ86: 4 | AK86: 0 | AL86: 0 | AM86: 0 | AN86: 16 | AO86: 15 | AP86: 21 | AQ86: 19
A87: 82 | C87: 竜池村 | D87: 624 | E87: 1 | F87: 138 | G87: 49 | H87: 74 | I87: 15 | J87: 55 | K87: 44 | L87: 11 | M87: 2 | N87: 10 | O87: - | P87: 1 | Q87: 8 | R87: - | S87: 6 | T87: 2 | U87: 5 | V87: 2 | W87: 1 | X87: - | Y87: - | Z87: - | AA87: 8 | AB87: 7 | AC87: 1 | AD87: 8 | AE87: 8 | AF87: 8 | AG87: 0 | AH87: 8 | AI87: 0 | AJ87: 1 | AK87: 0 | AL87: 0 | AM87: 0 | AN87: 7 | AO87: 7 | AP87: 8 | AQ87: 6
A88: 83 | C88: 中瀬村 | D88: 928 | E88: 17 | F88: 204 | G88: 4 | H88: 165 | I88: 35 | J88: 118 | K88: 95 | L88: 14 | M88: 4 | N88: 11 | O88: - | P88: 1 | Q88: 8 | R88: - | S88: - | T88: 8 | U88: 6 | V88: 2 | W88: - | X88: - | Y88: - | Z88: - | AA88: 0 | AB88: 2 | AC88: 0 | AD88: 7 | AE88: 8 | AF88: 8 | AG88: 0 | AH88: 8 | AI88: 0 | AJ88: 8 | AK88: 0 | AL88: 2 | AM88: 0 | AN88: 8 | AO88: 5 | AP88: 4 | AQ88: 2
A89: 84 | C89: 赤佐村 | D89: 921 | E89: 283 | F89: 179 | G89: 62 | H89: 61 | I89: 56 | J89: 75 | K89: 69 | L89: 22 | M89: - | N89: 22 | O89: - | P89: - | Q89: 11 | R89: - | S89: 5 | T89: 6 | U89: 10 | V89: 1 | W89: - | X89: - | Y89: - | Z89: - | AA89: 1 | AB89: 3 | AC89: 1 | AD89: 6 | AE89: 11 | AF89: 10 | AG89: 0 | AH89: 11 | AI89: 0 | AJ89: 6 | AK89: 0 | AL89: 3 | AM89: 2 | AN89: 9 | AO89: 7 | AP89: 11 | AQ89: 9
A90: 85 | C90: 麁玉村 | D90: 2,210 | E90: 950 | F90: 526 | G90: 99 | H90: 96 | I90: 331 | J90: 120 | K90: 317 | L90: 109 | M90: 11 | N90: 103 | O90: 2 | P90: 3 | Q90: 13 | R90: - | S90: 5 | T90: 8 | U90: 1 | V90: 8 | W90: 2 | X90: 1 | Y90: 1 | Z90: - | AA90: 3 | AB90: 9 | AC90: 5 | AD90: 8 | AE90: 13 | AF90: 13 | AG90: 0 | AH90: 13 | AI90: 0 | AJ90: 10 | AK90: 0 | AL90: 5 | AM90: 2 | AN90: 12 | AO90: 12 | AP90: 13 | AQ90: 13
A91: 86 | B91: 天竜区(浜松市) | D91: 94,400 | E91: 85,340 | F91: 1343 | G91: 98 | H91: 446 | I91: 799 | J91: 310 | K91: 675 | L91: 171 | M91: 89 | N91: 135 | O91: - | P91: 2 | Q91: 206 | R91: - | S91: 9 | T91: 197 | U91: 60 | V91: 43 | W91: 41 | X91: 38 | Y91: 17 | Z91: 7 | AA91: 64 | AB91: 60 | AC91: 144 | AD91: 174 | AE91: 199 | AF91: 138 | AG91: 6 | AH91: 183 | AI91: 47 | AJ91: 205 | AK91: 0 | AL91: 3 | AM91: 1 | AN91: 196 | AO91: 0 | AP91: 111 | AQ91: 44
A92: 87 | C92: 二俣町 | D92: 747 | E92: 421 | F92: 17 | G92: 0 | H92: 13 | I92: 4 | J92: x | K92: 2 | L92: x | M92: x | N92: x | O92: x | P92: x | Q92: 7 | R92: - | S92: - | T92: 7 | U92: 6 | V92: - | W92: 1 | X92: - | Y92: - | Z92: - | AA92: 0 | AB92: 0 | AC92: 0 | AD92: 3 | AE92: 7 | AF92: 0 | AG92: 0 | AH92: 7 | AI92: 0 | AJ92: 7 | AK92: 0 | AL92: 0 | AM92: 0 | AN92: 7 | AO92: 0 | AP92: 0 | AQ92: 0
A93: 88 | C93: 光明村 | D93: 4,098 | E93: 3,638 | F93: 66 | G93: 3 | H93: 27 | I93: 36 | J93: 43 | K93: 50 | L93: 8 | M93: 2 | N93: 6 | O93: - | P93: 1 | Q93: 15 | R93: - | S93: 1 | T93: 14 | U93: 9 | V93: 1 | W93: 2 | X93: 2 | Y93: 1 | Z93: - | AA93: 0 | AB93: 0 | AC93: 5 | AD93: 13 | AE93: 15 | AF93: 0 | AG93: 0 | AH93: 10 | AI93: 3 | AJ93: 14 | AK93: 0 | AL93: 1 | AM93: 1 | AN93: 15 | AO93: 0 | AP93: 5 | AQ93: 2
A94: 89 | C94: 上阿多古村 | D94: 2,804 | E94: 2,231 | F94: 118 | G94: 11 | H94: 27 | I94: 80 | J94: 25 | K94: 54 | L94: 7 | M94: 4 | N94: 4 | O94: - | P94: - | Q94: 11 | R94: - | S94: 1 | T94: 10 | U94: - | V94: 3 | W94: 3 | X94: 3 | Y94: 2 | Z94: - | AA94: 0 | AB94: 0 | AC94: 0 | AD94: 11 | AE94: 11 | AF94: 0 | AG94: 0 | AH94: 11 | AI94: 4 | AJ94: 11 | AK94: 0 | AL94: 0 | AM94: 0 | AN94: 10 | AO94: 0 | AP94: 9 | AQ94: 3
A95: 90 | C95: 下阿多古村 | D95: 2,743 | E95: 2,076 | F95: 84 | G95: 16 | H95: 49 | I95: 19 | J95: 42 | K95: 24 | L95: 7 | M95: 4 | N95: 4 | O95: - | P95: - | Q95: 8 | R95: - | S95: 1 | T95: 7 | U95: 6 | V95: 2 | W95: - | X95: - | Y95: - | Z95: - | AA95: 0 | AB95: 0 | AC95: 0 | AD95: 7 | AE95: 7 | AF95: 0 | AG95: 1 | AH95: 5 | AI95: 0 | AJ95: 8 | AK95: 0 | AL95: 0 | AM95: 0 | AN95: 8 | AO95: 0 | AP95: 5 | AQ95: 2
A96: 91 | C96: 熊村 | D96: 3,168 | E96: 2,777 | F96: 84 | G96: 10 | H96: 38 | I96: 36 | J96: 17 | K96: 64 | L96: 8 | M96: 1 | N96: 7 | O96: - | P96: - | Q96: 21 | R96: - | S96: 3 | T96: 18 | U96: 2 | V96: 1 | W96: 2 | X96: 7 | Y96: 5 | Z96: 4 | AA96: 0 | AB96: 0 | AC96: 3 | AD96: 18 | AE96: 20 | AF96: 0 | AG96: 1 | AH96: 18 | AI96: 12 | AJ96: 21 | AK96: 0 | AL96: 0 | AM96: 0 | AN96: 21 | AO96: 0 | AP96: 16 | AQ96: 9
A97: 92 | C97: 竜川村 | D97: 4,611 | E97: 3,811 | F97: 75 | G97: 1 | H97: 44 | I97: 30 | J97: 11 | K97: 34 | L97: 9 | M97: 5 | N97: 8 | O97: - | P97: - | Q97: 18 | R97: - | S97: - | T97: 18 | U97: 7 | V97: 4 | W97: 5 | X97: 1 | Y97: - | Z97: 1 | AA97: 1 | AB97: 1 | AC97: 15 | AD97: 4 | AE97: 18 | AF97: 17 | AG97: 0 | AH97: 15 | AI97: 2 | AJ97: 18 | AK97: 0 | AL97: 0 | AM97: 0 | AN97: 18 | AO97: 0 | AP97: 3 | AQ97: 2
A98: 93 | C98: 犬居町 | D98: 3,146 | E98: 2,738 | F98: 104 | G98: 5 | H98: 24 | I98: 75 | J98: 17 | K98: 50 | L98: 11 | M98: 7 | N98: 9 | O98: - | P98: - | Q98: 10 | R98: - | S98: - | T98: 10 | U98: 3 | V98: 3 | W98: 3 | X98: 1 | Y98: - | Z98: - | AA98: 10 | AB98: 0 | AC98: 10 | AD98: 10 | AE98: 10 | AF98: 10 | AG98: 0 | AH98: 10 | AI98: 1 | AJ98: 10 | AK98: 0 | AL98: 1 | AM98: 0 | AN98: 9 | AO98: 0 | AP98: 10 | AQ98: 1
A99: 94 | C99: 気多村 | D99: 10,914 | E99: 9,936 | F99: 134 | G99: 17 | H99: 37 | I99: 80 | J99: 37 | K99: 45 | L99: 12 | M99: 2 | N99: 12 | O99: - | P99: - | Q99: 19 | R99: - | S99: 2 | T99: 17 | U99: 5 | V99: 7 | W99: 6 | X99: 1 | Y99: - | Z99: - | AA99: 18 | AB99: 1 | AC99: 18 | AD99: 18 | AE99: 18 | AF99: 18 | AG99: 1 | AH99: 18 | AI99: 0 | AJ99: 19 | AK99: 0 | AL99: 0 | AM99: 0 | AN99: 16 | AO99: 0 | AP99: 13 | AQ99: 0
A100: 95 | C100: 熊切村 | D100: 11,150 | E100: 10,227 | F100: 293 | G100: 18 | H100: 59 | I100: 216 | J100: 27 | K100: 205 | L100: 47 | M100: 29 | N100: 36 | O100: - | P100: - | Q100: 17 | R100: - | S100: - | T100: 17 | U100: - | V100: 1 | W100: 1 | X100: 11 | Y100: 3 | Z100: 1 | AA100: 17 | AB100: 9 | AC100: 17 | AD100: 17 | AE100: 17 | AF100: 17 | AG100: 0 | AH100: 17 | AI100: 11 | AJ100: 17 | AK100: 0 | AL100: 1 | AM100: 0 | AN100: 12 | AO100: 0 | AP100: 16 | AQ100: 12
A101: 96 | C101: 龍山村 | D101: 7,034 | E101: 6,541 | F101: 53 | G101: 0 | H101: 8 | I101: 45 | J101: 10 | K101: 50 | L101: 14 | M101: 8 | N101: 12 | O101: - | P101: - | Q101: 12 | R101: - | S101: - | T101: 12 | U101: 2 | V101: 3 | W101: 4 | X101: 2 | Y101: 1 | Z101: - | AA101: 0 | AB101: 10 | AC101: 11 | AD101: 11 | AE101: 12 | AF101: 12 | AG101: 0 | AH101: 11 | AI101: 9 | AJ101: 12 | AK101: 0 | AL101: 0 | AM101: 0 | AN101: 12 | AO101: 0 | AP101: 9 | AQ101: 9
A102: 97 | C102: 浦川町 | D102: 6,941 | E102: 6,049 | F102: 63 | G102: 6 | H102: 24 | I102: 33 | J102: 29 | K102: 10 | L102: 1 | M102: 1 | N102: 1 | O102: - | P102: - | Q102: 15 | R102: - | S102: - | T102: 15 | U102: 4 | V102: 7 | W102: 2 | X102: - | Y102: 2 | Z102: - | AA102: 4 | AB102: 9 | AC102: 15 | AD102: 14 | AE102: 15 | AF102: 15 | AG102: 0 | AH102: 13 | AI102: 0 | AJ102: 15 | AK102: 0 | AL102: 0 | AM102: 0 | AN102: 15 | AO102: 0 | AP102: 6 | AQ102: 1
A103: 98 | C103: 佐久間村 | D103: 2,623 | E103: 2,562 | F103: 27 | G103: 2 | H103: 13 | I103: 12 | J103: x | K103: 9 | L103: x | M103: x | N103: x | O103: x | P103: x | Q103: 7 | R103: - | S103: - | T103: 7 | U103: 2 | V103: 2 | W103: 2 | X103: - | Y103: 1 | Z103: - | AA103: 1 | AB103: 4 | AC103: 7 | AD103: 7 | AE103: 7 | AF103: 7 | AG103: 0 | AH103: 5 | AI103: 0 | AJ103: 7 | AK103: 0 | AL103: 0 | AM103: 0 | AN103: 7 | AO103: 0 | AP103: 2 | AQ103: 0
A104: 99 | C104: 山香村 | D104: 4,296 | E104: 4,053 | F104: 51 | G104: 0 | H104: 12 | I104: 39 | J104: 8 | K104: 26 | L104: 17 | M104: 13 | N104: 9 | O104: - | P104: - | Q104: 12 | R104: - | S104: - | T104: 12 | U104: 5 | V104: 2 | W104: 2 | X104: 3 | Y104: - | Z104: - | AA104: 8 | AB104: 11 | AC104: 11 | AD104: 11 | AE104: 10 | AF104: 10 | AG104: 1 | AH104: 10 | AI104: 0 | AJ104: 12 | AK104: 0 | AL104: 0 | AM104: 0 | AN104: 12 | AO104: 0 | AP104: 2 | AQ104: 1
A105: 100 | C105: 城西村 | D105: 3,009 | E105: 2,734 | F105: 76 | G105: 5 | H105: 20 | I105: 51 | J105: 18 | K105: 24 | L105: 13 | M105: 4 | N105: 11 | O105: - | P105: 1 | Q105: 16 | R105: - | S105: 1 | T105: 15 | U105: 2 | V105: 3 | W105: 6 | X105: 3 | Y105: 2 | Z105: - | AA105: 5 | AB105: 10 | AC105: 16 | AD105: 15 | AE105: 16 | AF105: 16 | AG105: 0 | AH105: 16 | AI105: 0 | AJ105: 16 | AK105: 0 | AL105: 0 | AM105: 0 | AN105: 16 | AO105: 0 | AP105: 8 | AQ105: 1
A106: 101 | C106: 水窪町 | D106: 27,116 | E106: 25,546 | F106: 98 | G106: 4 | H106: 51 | I106: 43 | J106: 17 | K106: 28 | L106: 15 | M106: 9 | N106: 14 | O106: - | P106: - | Q106: 18 | R106: - | S106: - | T106: 18 | U106: 7 | V106: 4 | W106: 2 | X106: 4 | Y106: - | Z106: 1 | AA106: 0 | AB106: 5 | AC106: 16 | AD106: 15 | AE106: 16 | AF106: 16 | AG106: 2 | AH106: 17 | AI106: 5 | AJ106: 18 | AK106: 0 | AL106: 0 | AM106: 0 | AN106: 18 | AO106: 0 | AP106: 7 | AQ106: 1
A107: 102 | B107: 沼津市 | D107: 18,711 | E107: 9,457 | F107: 2270 | G107: 464 | H107: 392 | I107: 1414 | J107: 293 | K107: 1,223 | L107: 325 | M107: 64 | N107: 291 | O107: 3 | P107: 9 | Q107: 112 | R107: 14 | S107: 16 | T107: 82 | U107: 68 | V107: 24 | W107: 7 | X107: 9 | Y107: 4 | Z107: - | AA107: 36 | AB107: 45 | AC107: 35 | AD107: 61 | AE107: 55 | AF107: 18 | AG107: 33 | AH107: 91 | AI107: 13 | AJ107: 90 | AK107: 10 | AL107: 8 | AM107: 4 | AN107: 105 | AO107: 24 | AP107: 65 | AQ107: 21
A108: 103 | C108: 沼津市（旧） | D108: 5,339 | E108: 1,432 | F108: 363 | G108: 42 | H108: 194 | I108: 127 | J108: 68 | K108: 255 | L108: 85 | M108: 17 | N108: 75 | O108: - | P108: 4 | Q108: 45 | R108: 1 | S108: 9 | T108: 35 | U108: 43 | V108: 2 | W108: - | X108: - | Y108: - | Z108: - | AA108: 6 | AB108: 12 | AC108: 9 | AD108: 25 | AE108: 22 | AF108: 8 | AG108: 18 | AH108: 29 | AI108: 0 | AJ108: 30 | AK108: 3 | AL108: 3 | AM108: 1 | AN108: 43 | AO108: 10 | AP108: 16 | AQ108: 1
A109: 104 | C109: 愛鷹村 | D109: 2,107 | E109: 1,042 | F109: 450 | G109: 90 | H109: 58 | I109: 302 | J109: 38 | K109: 199 | L109: 53 | M109: 26 | N109: 41 | O109: - | P109: 4 | Q109: 8 | R109: - | S109: - | T109: 8 | U109: 4 | V109: 3 | W109: 1 | X109: - | Y109: - | Z109: - | AA109: 3 | AB109: 3 | AC109: 4 | AD109: 4 | AE109: 3 | AF109: 3 | AG109: 3 | AH109: 7 | AI109: 2 | AJ109: 8 | AK109: 1 | AL109: 0 | AM109: 0 | AN109: 8 | AO109: 1 | AP109: 7 | AQ109: 0
A110: 105 | C110: 大平村 | D110: 585 | E110: 283 | F110: 142 | G110: 111 | H110: 29 | I110: 2 | J110: 9 | K110: 112 | L110: 48 | M110: 2 | N110: 47 | O110: - | P110: - | Q110: 10 | R110: 8 | S110: 1 | T110: 1 | U110: - | V110: 5 | W110: 3 | X110: 2 | Y110: - | Z110: - | AA110: 4 | AB110: 6 | AC110: 5 | AD110: 7 | AE110: 9 | AF110: 4 | AG110: 0 | AH110: 10 | AI110: 2 | AJ110: 8 | AK110: 0 | AL110: 0 | AM110: 0 | AN110: 9 | AO110: 2 | AP110: 10 | AQ110: 4
A111: 106 | C111: 内浦村 | D111: 752 | E111: 434 | F111: 88 | G111: 0 | H111: 4 | I111: 84 | J111: 39 | K111: 69 | L111: 9 | M111: - | N111: 9 | O111: - | P111: - | Q111: 5 | R111: - | S111: - | T111: 5 | U111: 3 | V111: 1 | W111: 1 | X111: - | Y111: - | Z111: - | AA111: 4 | AB111: 4 | AC111: 1 | AD111: 1 | AE111: 2 | AF111: 0 | AG111: 0 | AH111: 5 | AI111: 1 | AJ111: 5 | AK111: 2 | AL111: 1 | AM111: 1 | AN111: 5 | AO111: 1 | AP111: 0 | AQ111: 0
A112: 107 | C112: 西浦村 | D112: 3,193 | E112: 1,968 | F112: 514 | G112: 0 | H112: 11 | I112: 503 | J112: 47 | K112: 328 | L112: 52 | M112: - | N112: 52 | O112: - | P112: - | Q112: 9 | R112: - | S112: - | T112: 9 | U112: - | V112: - | W112: - | X112: 6 | Y112: 3 | Z112: - | AA112: 8 | AB112: 6 | AC112: 8 | AD112: 5 | AE112: 6 | AF112: 2 | AG112: 0 | AH112: 9 | AI112: 1 | AJ112: 9 | AK112: 0 | AL112: 1 | AM112: 0 | AN112: 9 | AO112: 1 | AP112: 2 | AQ112: 2
A113: 108 | C113: 原町 | D113: 819 | E113: 68 | F113: 166 | G113: 119 | H113: 43 | I113: 4 | J113: 33 | K113: 22 | L113: 11 | M113: 1 | N113: 10 | O113: - | P113: - | Q113: 11 | R113: 4 | S113: 4 | T113: 3 | U113: 9 | V113: 2 | W113: - | X113: - | Y113: - | Z113: - | AA113: 4 | AB113: 5 | AC113: 1 | AD113: 6 | AE113: 5 | AF113: 0 | AG113: 3 | AH113: 11 | AI113: 3 | AJ113: 10 | AK113: 2 | AL113: 1 | AM113: 1 | AN113: 10 | AO113: 6 | AP113: 11 | AQ113: 6
A114: 109 | C114: 浮島村２－１ | D114: 2,419 | E114: 1,191 | F114: 445 | G114: 88 | H114: 47 | I114: 310 | J114: 37 | K114: 165 | L114: 47 | M114: 17 | N114: 37 | O114: - | P114: 1 | Q114: 7 | R114: - | S114: - | T114: 7 | U114: 1 | V114: 6 | W114: - | X114: - | Y114: - | Z114: - | AA114: 3 | AB114: 6 | AC114: 3 | AD114: 6 | AE114: 4 | AF114: 1 | AG114: 1 | AH114: 6 | AI114: 1 | AJ114: 7 | AK114: 0 | AL114: 1 | AM114: 0 | AN114: 7 | AO114: 1 | AP114: 6 | AQ114: 6
A115: 110 | C115: 戸田村 | D115: 3,497 | E115: 3,039 | F115: 102 | G115: 14 | H115: 6 | I115: 82 | J115: 22 | K115: 73 | L115: 20 | M115: 1 | N115: 20 | O115: 3 | P115: - | Q115: 17 | R115: 1 | S115: 2 | T115: 14 | U115: 8 | V115: 5 | W115: 2 | X115: 1 | Y115: 1 | Z115: - | AA115: 4 | AB115: 3 | AC115: 4 | AD115: 7 | AE115: 4 | AF115: 0 | AG115: 8 | AH115: 14 | AI115: 3 | AJ115: 13 | AK115: 2 | AL115: 1 | AM115: 1 | AN115: 14 | AO115: 2 | AP115: 13 | AQ115: 2
A116: 111 | B116: 熱海市 | D116: 6,160 | E116: 3,885 | F116: 244 | G116: 0 | H116: 38 | I116: 206 | J116: 93 | K116: 167 | L116: 84 | M116: 5 | N116: 81 | O116: 2 | P116: 7 | Q116: 20 | R116: - | S116: - | T116: 20 | U116: 17 | V116: 3 | W116: - | X116: - | Y116: - | Z116: - | AA116: 13 | AB116: 11 | AC116: 5 | AD116: 6 | AE116: 12 | AF116: 6 | AG116: 7 | AH116: 15 | AI116: 0 | AJ116: 20 | AK116: 1 | AL116: 0 | AM116: 0 | AN116: 20 | AO116: 1 | AP116: 20 | AQ116: 0
A117: 112 | C117: 熱海市（旧） | D117: 5,986 | E117: 3,807 | F117: 237 | G117: 0 | H117: 38 | I117: 199 | J117: x | K117: 164 | L117: 82 | M117: 5 | N117: 79 | O117: 2 | P117: 7 | Q117: 18 | R117: - | S117: - | T117: 18 | U117: 15 | V117: 3 | W117: - | X117: - | Y117: - | Z117: - | AA117: 12 | AB117: 11 | AC117: 5 | AD117: 6 | AE117: 11 | AF117: 6 | AG117: 6 | AH117: 13 | AI117: 0 | AJ117: 18 | AK117: 1 | AL117: 0 | AM117: 0 | AN117: 18 | AO117: 1 | AP117: 18 | AQ117: 0
A118: 113 | C118: 網代町 | D118: 174 | E118: 78 | F118: 7 | G118: 0 | H118: 0 | I118: 7 | J118: x | K118: 3 | L118: 2 | M118: - | N118: 2 | O118: - | P118: - | Q118: 2 | R118: - | S118: - | T118: 2 | U118: 2 | V118: - | W118: - | X118: - | Y118: - | Z118: - | AA118: 1 | AB118: 0 | AC118: 0 | AD118: 0 | AE118: 1 | AF118: 0 | AG118: 1 | AH118: 2 | AI118: 0 | AJ118: 2 | AK118: 0 | AL118: 0 | AM118: 0 | AN118: 2 | AO118: 0 | AP118: 2 | AQ118: 0
A119: 114 | B119: 三島市 | D119: 6,213 | E119: 2,378 | F119: 852 | G119: 276 | H119: 523 | I119: 53 | J119: 182 | K119: 599 | L119: 183 | M119: 31 | N119: 159 | O119: 2 | P119: 13 | Q119: 39 | R119: 17 | S119: 7 | T119: 15 | U119: 24 | V119: 3 | W119: 5 | X119: 2 | Y119: 3 | Z119: 2 | AA119: 29 | AB119: 30 | AC119: 31 | AD119: 27 | AE119: 36 | AF119: 26 | AG119: 1 | AH119: 39 | AI119: 5 | AJ119: 24 | AK119: 5 | AL119: 5 | AM119: 1 | AN119: 38 | AO119: 3 | AP119: 32 | AQ119: 2
A120: 115 | C120: 三島市（旧） | D120: 5,293 | E120: 2,324 | F120: 630 | G120: 96 | H120: 484 | I120: 50 | J120: 161 | K120: 377 | L120: 102 | M120: 26 | N120: 83 | O120: 2 | P120: 8 | Q120: 22 | R120: 2 | S120: 5 | T120: 15 | U120: 9 | V120: 1 | W120: 5 | X120: 2 | Y120: 3 | Z120: 2 | AA120: 14 | AB120: 14 | AC120: 14 | AD120: 10 | AE120: 19 | AF120: 10 | AG120: 1 | AH120: 22 | AI120: 4 | AJ120: 20 | AK120: 5 | AL120: 4 | AM120: 1 | AN120: 21 | AO120: 3 | AP120: 15 | AQ120: 2
A121: 116 | C121: 中郷村 | D121: 920 | E121: 54 | F121: 222 | G121: 180 | H121: 39 | I121: 3 | J121: 21 | K121: 222 | L121: 81 | M121: 5 | N121: 76 | O121: - | P121: 5 | Q121: 17 | R121: 15 | S121: 2 | T121: - | U121: 15 | V121: 2 | W121: - | X121: - | Y121: - | Z121: - | AA121: 15 | AB121: 16 | AC121: 17 | AD121: 17 | AE121: 17 | AF121: 16 | AG121: 0 | AH121: 17 | AI121: 1 | AJ121: 4 | AK121: 0 | AL121: 1 | AM121: 0 | AN121: 17 | AO121: 0 | AP121: 17 | AQ121: 0
A122: 117 | B122: 富士宮市 | D122: 38,899 | E122: 24,851 | F122: @ | G122: @ | H122: @ | I122: @ | J122: @ | K122: @ | L122: @ | M122: @ | N122: @ | O122: @ | P122: @ | Q122: 132 | R122: 18 | S122: 50 | T122: 64 | U122: 27 | V122: 57 | W122: 22 | X122: 22 | Y122: 3 | Z122: 1 | AA122: @ | AB122: @ | AC122: @ | AD122: @ | AE122: @ | AF122: @ | AG122: @ | AH122: @ | AI122: @ | AJ122: @ | AK122: @ | AL122: @ | AM122: @ | AN122: @ | AO122: @ | AP122: @ | AQ122: @
A123: 118 | C123: 富士宮市（旧） | D123: 3,708 | E123: 862 | F123: 183 | G123: 62 | H123: 80 | I123: 41 | J123: 131 | K123: 223 | L123: 76 | M123: 16 | N123: 68 | O123: 1 | P123: 2 | Q123: 27 | R123: 6 | S123: 8 | T123: 13 | U123: 12 | V123: 10 | W123: 2 | X123: 3 | Y123: - | Z123: - | AA123: 8 | AB123: 14 | AC123: 5 | AD123: 14 | AE123: 18 | AF123: 3 | AG123: 4 | AH123: 26 | AI123: 3 | AJ123: 19 | AK123: 1 | AL123: 1 | AM123: 0 | AN123: 26 | AO123: 3 | AP123: 25 | AQ123: 20
A124: 119 | C124: 富士根村 | D124: 5,266 | E124: 3,345 | F124: 219 | G124: 9 | H124: 156 | I124: 54 | J124: 105 | K124: 225 | L124: 63 | M124: 24 | N124: 48 | O124: - | P124: 1 | Q124: 15 | R124: - | S124: 2 | T124: 13 | U124: 6 | V124: 5 | W124: 4 | X124: - | Y124: - | Z124: - | AA124: 1 | AB124: 3 | AC124: 6 | AD124: 5 | AE124: 9 | AF124: 5 | AG124: 5 | AH124: 14 | AI124: 0 | AJ124: 13 | AK124: 0 | AL124: 1 | AM124: 0 | AN124: 15 | AO124: 11 | AP124: 14 | AQ124: 3
A125: 120 | C125: 北山村 | D125: 7,690 | E125: 5,935 | F125: 183 | G125: 50 | H125: 111 | I125: 22 | J125: 80 | K125: 131 | L125: 45 | M125: 8 | N125: 38 | O125: - | P125: 2 | Q125: 28 | R125: 1 | S125: 10 | T125: 17 | U125: 3 | V125: 18 | W125: 2 | X125: 4 | Y125: 1 | Z125: - | AA125: 3 | AB125: 7 | AC125: 6 | AD125: 15 | AE125: 25 | AF125: 2 | AG125: 1 | AH125: 27 | AI125: 0 | AJ125: 26 | AK125: 0 | AL125: 1 | AM125: 0 | AN125: 28 | AO125: 23 | AP125: 27 | AQ125: 26
A126: 121 | C126: 上井出村 | D126: 11,348 | E126: 7,270 | F126: 896 | G126: 19 | H126: 877 | I126: 0 | J126: 123 | K126: 109 | L126: 20 | M126: 7 | N126: 13 | O126: 2 | P126: 8 | Q126: 21 | R126: - | S126: 9 | T126: 12 | U126: 4 | V126: 9 | W126: 3 | X126: 4 | Y126: 1 | Z126: - | AA126: 5 | AB126: 6 | AC126: 7 | AD126: 9 | AE126: 16 | AF126: 5 | AG126: 3 | AH126: 21 | AI126: 1 | AJ126: 20 | AK126: 1 | AL126: 3 | AM126: 1 | AN126: 20 | AO126: 15 | AP126: 21 | AQ126: 14
A127: 122 | C127: 白糸村 | D127: 2,134 | E127: 1,392 | F127: 107 | G127: 73 | H127: 32 | I127: 2 | J127: 20 | K127: 69 | L127: 53 | M127: 2 | N127: 53 | O127: 1 | P127: 2 | Q127: 5 | R127: 2 | S127: 3 | T127: - | U127: - | V127: 2 | W127: 1 | X127: 2 | Y127: - | Z127: - | AA127: 2 | AB127: 3 | AC127: 2 | AD127: 3 | AE127: 5 | AF127: 2 | AG127: 0 | AH127: 5 | AI127: 2 | AJ127: 5 | AK127: 2 | AL127: 1 | AM127: 0 | AN127: 5 | AO127: 5 | AP127: 5 | AQ127: 5
A128: 123 | C128: 上野村 | D128: 1,335 | E128: 615 | F128: 258 | G128: 179 | H128: 74 | I128: 5 | J128: 53 | K128: 172 | L128: 114 | M128: 9 | N128: 112 | O128: - | P128: - | Q128: 7 | R128: 4 | S128: 3 | T128: - | U128: - | V128: 5 | W128: 1 | X128: 1 | Y128: - | Z128: - | AA128: 2 | AB128: 3 | AC128: 0 | AD128: 5 | AE128: 6 | AF128: 1 | AG128: 0 | AH128: 7 | AI128: 0 | AJ128: 7 | AK128: 0 | AL128: 0 | AM128: 0 | AN128: 7 | AO128: 3 | AP128: 7 | AQ128: 7
A129: 124 | C129: 芝富村 | D129: 1,587 | E129: 845 | F129: 213 | G129: 104 | H129: 88 | I129: 21 | J129: 85 | K129: 75 | L129: 35 | M129: - | N129: 35 | O129: - | P129: - | Q129: 9 | R129: 2 | S129: 4 | T129: 3 | U129: 2 | V129: 3 | W129: 2 | X129: 2 | Y129: - | Z129: - | AA129: 0 | AB129: 5 | AC129: 2 | AD129: 6 | AE129: 7 | AF129: 0 | AG129: 2 | AH129: 9 | AI129: 0 | AJ129: 9 | AK129: 0 | AL129: 2 | AM129: 1 | AN129: 9 | AO129: 8 | AP129: 9 | AQ129: 1
A130: 125 | C130: 柚野村 | D130: 3,874 | E130: 3,137 | F130: 245 | G130: 152 | H130: 66 | I130: 27 | J130: 36 | K130: 166 | L130: 73 | M130: 7 | N130: 71 | O130: - | P130: - | Q130: 7 | R130: 2 | S130: 5 | T130: - | U130: - | V130: 2 | W130: 4 | X130: 1 | Y130: - | Z130: - | AA130: 0 | AB130: 4 | AC130: 2 | AD130: 4 | AE130: 7 | AF130: 1 | AG130: 0 | AH130: 7 | AI130: 0 | AJ130: 7 | AK130: 0 | AL130: 0 | AM130: 0 | AN130: 7 | AO130: 5 | AP130: 7 | AQ130: 4
A131: 126 | C131: 内房村 | D131: 1,957 | E131: 1,450 | F131: 96 | G131: 38 | H131: 21 | I131: 37 | J131: 21 | K131: 31 | L131: 9 | M131: 2 | N131: 9 | O131: - | P131: - | Q131: 13 | R131: 1 | S131: 6 | T131: 6 | U131: - | V131: 3 | W131: 3 | X131: 5 | Y131: 1 | Z131: 1 | AA131: 3 | AB131: 6 | AC131: 12 | AD131: 10 | AE131: 12 | AF131: 8 | AG131: 0 | AH131: 13 | AI131: 0 | AJ131: 13 | AK131: 3 | AL131: 0 | AM131: 0 | AN131: 12 | AO131: 11 | AP131: 13 | AQ131: 2
A132: 127 | B132: 伊東市 | D132: 12,413 | E132: 6,909 | F132: 543 | G132: 27 | H132: 257 | I132: 259 | J132: 231 | K132: 370 | L132: 116 | M132: 10 | N132: 112 | O132: 15 | P132: 5 | Q132: 41 | R132: - | S132: 2 | T132: 39 | U132: 35 | V132: 6 | W132: - | X132: - | Y132: - | Z132: - | AA132: 15 | AB132: 14 | AC132: 24 | AD132: 35 | AE132: 39 | AF132: 17 | AG132: 0 | AH132: 38 | AI132: 10 | AJ132: 38 | AK132: 7 | AL132: 4 | AM132: 1 | AN132: 40 | AO132: 13 | AP132: 35 | AQ132: 7
A133: 128 | C133: 伊東市（旧） | D133: 5,692 | E133: 3,311 | F133: 316 | G133: 4 | H133: 184 | I133: 128 | J133: 125 | K133: 200 | L133: 53 | M133: 7 | N133: 52 | O133: 2 | P133: 1 | Q133: 18 | R133: - | S133: 1 | T133: 17 | U133: 18 | V133: - | W133: - | X133: - | Y133: - | Z133: - | AA133: 7 | AB133: 5 | AC133: 8 | AD133: 13 | AE133: 16 | AF133: 10 | AG133: 0 | AH133: 17 | AI133: 5 | AJ133: 18 | AK133: 5 | AL133: 4 | AM133: 1 | AN133: 18 | AO133: 5 | AP133: 16 | AQ133: 2
A134: 129 | C134: 宇佐美村 | D134: 2,107 | E134: 1,410 | F134: 99 | G134: 0 | H134: 14 | I134: 85 | J134: 25 | K134: 90 | L134: 34 | M134: 1 | N134: 34 | O134: 11 | P134: 1 | Q134: 10 | R134: - | S134: - | T134: 10 | U134: 9 | V134: 1 | W134: - | X134: - | Y134: - | Z134: - | AA134: 5 | AB134: 6 | AC134: 3 | AD134: 9 | AE134: 10 | AF134: 1 | AG134: 0 | AH134: 9 | AI134: 5 | AJ134: 8 | AK134: 2 | AL134: 0 | AM134: 0 | AN134: 10 | AO134: 8 | AP134: 9 | AQ134: 4
A135: 130 | C135: 対島村 | D135: 4,614 | E135: 2,188 | F135: 128 | G135: 23 | H135: 59 | I135: 46 | J135: 80 | K135: 80 | L135: 29 | M135: 2 | N135: 26 | O135: 2 | P135: 3 | Q135: 13 | R135: - | S135: 1 | T135: 12 | U135: 8 | V135: 5 | W135: - | X135: - | Y135: - | Z135: - | AA135: 3 | AB135: 3 | AC135: 13 | AD135: 13 | AE135: 13 | AF135: 6 | AG135: 0 | AH135: 12 | AI135: 0 | AJ135: 12 | AK135: 0 | AL135: 0 | AM135: 0 | AN135: 12 | AO135: 0 | AP135: 10 | AQ135: 1
A136: 131 | B136: 島田市 | D136: 31,588 | E136: 20,953 | F136: 3393 | G136: 728 | H136: 121 | I136: 2544 | J136: 196 | K136: 2,204 | L136: 664 | M136: 163 | N136: 548 | O136: 4 | P136: 14 | Q136: 156 | R136: 29 | S136: 30 | T136: 97 | U136: 56 | V136: 32 | W136: 17 | X136: 24 | Y136: 26 | Z136: 1 | AA136: 37 | AB136: 44 | AC136: 53 | AD136: 83 | AE136: 90 | AF136: 37 | AG136: 47 | AH136: 143 | AI136: 50 | AJ136: 97 | AK136: 17 | AL136: 11 | AM136: 3 | AN136: 156 | AO136: 25 | AP136: 107 | AQ136: 22
A137: 132 | C137: 島田市（旧） | D137: 1,187 | E137: - | F137: 92 | G137: 67 | H137: 25 | I137: 0 | J137: 15 | K137: 63 | L137: 28 | M137: 2 | N137: 28 | O137: - | P137: - | Q137: 23 | R137: 11 | S137: 4 | T137: 8 | U137: 23 | V137: - | W137: - | X137: - | Y137: - | Z137: - | AA137: 2 | AB137: 1 | AC137: 0 | AD137: 0 | AE137: 0 | AF137: 0 | AG137: 21 | AH137: 16 | AI137: 1 | AJ137: 0 | AK137: 0 | AL137: 0 | AM137: 0 | AN137: 23 | AO137: 3 | AP137: 16 | AQ137: 3
A138: 133 | C138: 六合村 | D138: 1,192 | E138: 391 | F138: 232 | G138: 131 | H138: 6 | I138: 95 | J138: 17 | K138: 181 | L138: 101 | M138: 7 | N138: 96 | O138: - | P138: 1 | Q138: 14 | R138: 8 | S138: 5 | T138: 1 | U138: 9 | V138: 4 | W138: - | X138: - | Y138: 1 | Z138: - | AA138: 1 | AB138: 3 | AC138: 5 | AD138: 12 | AE138: 13 | AF138: 2 | AG138: 0 | AH138: 14 | AI138: 0 | AJ138: 5 | AK138: 0 | AL138: 0 | AM138: 0 | AN138: 14 | AO138: 5 | AP138: 14 | AQ138: 4
A139: 134 | C139: 大津村 | D139: 1,482 | E139: 976 | F139: 254 | G139: 63 | H139: 5 | I139: 186 | J139: 30 | K139: 149 | L139: 45 | M139: 7 | N139: 40 | O139: - | P139: 2 | Q139: 7 | R139: - | S139: 3 | T139: 4 | U139: 1 | V139: 3 | W139: 1 | X139: 2 | Y139: - | Z139: - | AA139: 3 | AB139: 2 | AC139: 4 | AD139: 4 | AE139: 7 | AF139: 0 | AG139: 0 | AH139: 7 | AI139: 6 | AJ139: 7 | AK139: 3 | AL139: 3 | AM139: 1 | AN139: 7 | AO139: 2 | AP139: 6 | AQ139: 1
A140: 135 | C140: 大長村 | D140: 2,849 | E140: 1,831 | F140: 318 | G140: 36 | H140: 6 | I140: 276 | J140: 29 | K140: 138 | L140: 55 | M140: 4 | N140: 51 | O140: 2 | P140: 2 | Q140: 4 | R140: - | S140: - | T140: 4 | U140: 1 | V140: 2 | W140: 1 | X140: - | Y140: - | Z140: - | AA140: 0 | AB140: 2 | AC140: 3 | AD140: 4 | AE140: 4 | AF140: 2 | AG140: 0 | AH140: 4 | AI140: 2 | AJ140: 4 | AK140: 2 | AL140: 1 | AM140: 0 | AN140: 4 | AO140: 2 | AP140: 3 | AQ140: 1
A141: 136 | C141: 伊久身村２－１ | D141: 2,664 | E141: 2,183 | F141: 150 | G141: 9 | H141: 7 | I141: 134 | J141: 10 | K141: 109 | L141: 23 | M141: 15 | N141: 11 | O141: - | P141: 1 | Q141: 9 | R141: - | S141: - | T141: 9 | U141: - | V141: 1 | W141: 3 | X141: 4 | Y141: 1 | Z141: - | AA141: 5 | AB141: 3 | AC141: 8 | AD141: 7 | AE141: 9 | AF141: 3 | AG141: 0 | AH141: 9 | AI141: 7 | AJ141: 9 | AK141: 3 | AL141: 0 | AM141: 0 | AN141: 9 | AO141: 2 | AP141: 8 | AQ141: 2
A142: 137 | C142: 笹間村２－１ | D142: 1,152 | E142: 1,026 | F142: 10 | G142: 0 | H142: 0 | I142: 10 | J142: x | K142: 13 | L142: 1 | M142: - | N142: 1 | O142: - | P142: - | Q142: 3 | R142: - | S142: - | T142: 3 | U142: - | V142: - | W142: - | X142: - | Y142: 3 | Z142: - | AA142: 0 | AB142: 2 | AC142: 2 | AD142: 2 | AE142: 3 | AF142: 0 | AG142: 0 | AH142: 3 | AI142: 2 | AJ142: 3 | AK142: 1 | AL142: 0 | AM142: 0 | AN142: 3 | AO142: 0 | AP142: 0 | AQ142: 0
A143: 138 | C143: 初倉村２－１ | D143: 2,570 | E143: 488 | F143: 747 | G143: 199 | H143: 15 | I143: 533 | J143: 16 | K143: 511 | L143: 169 | M143: 19 | N143: 152 | O143: - | P143: 3 | Q143: 19 | R143: 5 | S143: 5 | T143: 9 | U143: 3 | V143: 10 | W143: 1 | X143: 3 | Y143: 2 | Z143: - | AA143: 0 | AB143: 12 | AC143: 19 | AD143: 15 | AE143: 19 | AF143: 19 | AG143: 0 | AH143: 19 | AI143: 0 | AJ143: 12 | AK143: 0 | AL143: 0 | AM143: 0 | AN143: 19 | AO143: 4 | AP143: 13 | AQ143: 2
A144: 139 | C144: 金谷町 | D144: 1,329 | E144: 279 | F144: 393 | G144: 60 | H144: 3 | I144: 330 | J144: 18 | K144: 190 | L144: 34 | M144: 15 | N144: 24 | O144: - | P144: 3 | Q144: 24 | R144: 3 | S144: 4 | T144: 17 | U144: 15 | V144: 1 | W144: 2 | X144: 2 | Y144: 4 | Z144: - | AA144: 7 | AB144: 6 | AC144: 1 | AD144: 17 | AE144: 12 | AF144: 2 | AG144: 4 | AH144: 18 | AI144: 0 | AJ144: 14 | AK144: 0 | AL144: 3 | AM144: 1 | AN144: 24 | AO144: 0 | AP144: 16 | AQ144: 1
A145: 140 | C145: 五和村 | D145: 4,891 | E145: 3,141 | F145: 651 | G145: 126 | H145: 14 | I145: 511 | J145: 33 | K145: 366 | L145: 102 | M145: 26 | N145: 86 | O145: 1 | P145: 1 | Q145: 22 | R145: 2 | S145: 8 | T145: 12 | U145: 3 | V145: 9 | W145: 6 | X145: 3 | Y145: 1 | Z145: - | AA145: 7 | AB145: 5 | AC145: 2 | AD145: 3 | AE145: 4 | AF145: 1 | AG145: 14 | AH145: 22 | AI145: 9 | AJ145: 13 | AK145: 3 | AL145: 3 | AM145: 0 | AN145: 22 | AO145: 2 | AP145: 21 | AQ145: 4
A146: 141 | C146: 初倉村２－２ | D146: 7 | E146: - | F146: 3 | G146: 0 | H146: 0 | I146: 3 | J146: 0 | K146: 8 | L146: 3 | M146: 3 | N146: 2 | O146: - | P146: - | Q146: 1 | R146: - | S146: - | T146: 1 | U146: - | V146: - | W146: - | X146: 1 | Y146: - | Z146: - | AA146: 1 | AB146: 0 | AC146: 0 | AD146: 1 | AE146: 1 | AF146: 0 | AG146: 0 | AH146: 1 | AI146: 0 | AJ146: 0 | AK146: 0 | AL146: 0 | AM146: 0 | AN146: 1 | AO146: 0 | AP146: 0 | AQ146: 0
A147: 142 | C147: 勝間田村２－２ | D147: 177 | E147: 33 | F147: 75 | G147: 11 | H147: 1 | I147: 63 | J147: x | K147: 66 | L147: 14 | M147: 11 | N147: 10 | O147: 1 | P147: 1 | Q147: 2 | R147: - | S147: - | T147: 2 | U147: - | V147: - | W147: 1 | X147: - | Y147: 1 | Z147: - | AA147: 1 | AB147: 1 | AC147: 1 | AD147: 2 | AE147: 2 | AF147: 1 | AG147: 0 | AH147: 2 | AI147: 0 | AJ147: 2 | AK147: 0 | AL147: 0 | AM147: 0 | AN147: 2 | AO147: 0 | AP147: 1 | AQ147: 0
A148: 143 | C148: 日坂村２－２ | D148: 40 | E148: 23 | F148: 6 | G148: 1 | H148: 0 | I148: 5 | J148: 1 | K148: 7 | L148: 2 | M148: 2 | N148: 1 | O148: - | P148: - | Q148: 1 | R148: - | S148: - | T148: 1 | U148: - | V148: - | W148: - | X148: - | Y148: 1 | Z148: - | AA148: 1 | AB148: 0 | AC148: 0 | AD148: 0 | AE148: 0 | AF148: 0 | AG148: 0 | AH148: 1 | AI148: 0 | AJ148: 1 | AK148: 0 | AL148: 0 | AM148: 0 | AN148: 1 | AO148: 0 | AP148: 1 | AQ148: 0
A149: 144 | C149: 下川根村 | D149: 5,012 | E149: 4,181 | F149: 249 | G149: 19 | H149: 16 | I149: 214 | J149: 9 | K149: 219 | L149: 51 | M149: 38 | N149: 19 | O149: - | P149: - | Q149: 11 | R149: - | S149: 1 | T149: 10 | U149: 1 | V149: 1 | W149: 1 | X149: 2 | Y149: 6 | Z149: - | AA149: 4 | AB149: 3 | AC149: 3 | AD149: 5 | AE149: 5 | AF149: 2 | AG149: 5 | AH149: 11 | AI149: 9 | AJ149: 11 | AK149: 3 | AL149: 1 | AM149: 1 | AN149: 11 | AO149: 3 | AP149: 6 | AQ149: 4
A150: 145 | C150: 笹間村２－２ | D150: 5,412 | E150: 5,067 | F150: 113 | G150: 0 | H150: 10 | I150: 103 | J150: 9 | K150: 98 | L150: 29 | M150: 8 | N150: 24 | O150: - | P150: - | Q150: 9 | R150: - | S150: - | T150: 9 | U150: - | V150: - | W150: - | X150: 5 | Y150: 4 | Z150: - | AA150: 4 | AB150: 1 | AC150: 1 | AD150: 9 | AE150: 9 | AF150: 4 | AG150: 0 | AH150: 9 | AI150: 7 | AJ150: 9 | AK150: 2 | AL150: 0 | AM150: 0 | AN150: 9 | AO150: 2 | AP150: 0 | AQ150: 0
A151: 146 | C151: 伊久身村２－２ | D151: 1,624 | E151: 1,334 | F151: 100 | G151: 6 | H151: 13 | I151: 81 | J151: 3 | K151: 86 | L151: 7 | M151: 6 | N151: 3 | O151: - | P151: - | Q151: 7 | R151: - | S151: - | T151: 7 | U151: - | V151: 1 | W151: 1 | X151: 2 | Y151: 2 | Z151: 1 | AA151: 1 | AB151: 3 | AC151: 4 | AD151: 2 | AE151: 2 | AF151: 1 | AG151: 3 | AH151: 7 | AI151: 7 | AJ151: 7 | AK151: 0 | AL151: 0 | AM151: 0 | AN151: 7 | AO151: 0 | AP151: 2 | AQ151: 0
A152: 147 | B152: 富士市 | D152: 24,502 | E152: 12,112 | F152: 1947 | G152: 656 | H152: 315 | I152: 976 | J152: 308 | K152: 1,313 | L152: 533 | M152: 80 | N152: 485 | O152: 4 | P152: 13 | Q152: 138 | R152: 26 | S152: 25 | T152: 87 | U152: 79 | V152: 41 | W152: 11 | X152: 2 | Y152: 3 | Z152: 2 | AA152: 44 | AB152: 40 | AC152: 42 | AD152: 68 | AE152: 97 | AF152: 38 | AG152: 32 | AH152: 134 | AI152: 12 | AJ152: 101 | AK152: 18 | AL152: 10 | AM152: 5 | AN152: 109 | AO152: 44 | AP152: 118 | AQ152: 41
A153: 148 | C153: 吉原市 | D153: 2,098 | E153: 182 | F153: 126 | G153: 29 | H153: 25 | I153: 72 | J153: 19 | K153: 197 | L153: 74 | M153: 11 | N153: 67 | O153: - | P153: 3 | Q153: 13 | R153: 3 | S153: 2 | T153: 8 | U153: 11 | V153: 2 | W153: - | X153: - | Y153: - | Z153: - | AA153: 3 | AB153: 1 | AC153: 1 | AD153: 3 | AE153: 5 | AF153: 1 | AG153: 8 | AH153: 12 | AI153: 0 | AJ153: 5 | AK153: 0 | AL153: 1 | AM153: 0 | AN153: 12 | AO153: 1 | AP153: 11 | AQ153: 3
A154: 149 | C154: 元吉原村 | D154: 549 | E154: 88 | F154: 67 | G154: 51 | H154: 16 | I154: 0 | J154: 18 | K154: 49 | L154: 24 | M154: - | N154: 24 | O154: - | P154: - | Q154: 9 | R154: 2 | S154: 2 | T154: 5 | U154: 4 | V154: 5 | W154: - | X154: - | Y154: - | Z154: - | AA154: 3 | AB154: 1 | AC154: 3 | AD154: 4 | AE154: 3 | AF154: 0 | AG154: 4 | AH154: 7 | AI154: 0 | AJ154: 8 | AK154: 2 | AL154: 3 | AM154: 0 | AN154: 8 | AO154: 1 | AP154: 8 | AQ154: 2
A155: 150 | C155: 原田村（富士市） | D155: 444 | E155: 39 | F155: 37 | G155: 0 | H155: 23 | I155: 14 | J155: 6 | K155: 19 | L155: 8 | M155: 3 | N155: 7 | O155: - | P155: - | Q155: 4 | R155: - | S155: - | T155: 4 | U155: 4 | V155: - | W155: - | X155: - | Y155: - | Z155: - | AA155: 0 | AB155: 0 | AC155: 0 | AD155: 0 | AE155: 0 | AF155: 0 | AG155: 4 | AH155: 4 | AI155: 0 | AJ155: 2 | AK155: 0 | AL155: 0 | AM155: 0 | AN155: 4 | AO155: 0 | AP155: 4 | AQ155: 0
A156: 151 | C156: 吉永村（富士市） | D156: 4,804 | E156: 4,098 | F156: 171 | G156: 63 | H156: 61 | I156: 47 | J156: 22 | K156: 81 | L156: 27 | M156: 4 | N156: 24 | O156: - | P156: - | Q156: 10 | R156: 1 | S156: - | T156: 9 | U156: 6 | V156: 4 | W156: - | X156: - | Y156: - | Z156: - | AA156: 2 | AB156: 0 | AC156: 0 | AD156: 7 | AE156: 8 | AF156: 0 | AG156: 2 | AH156: 10 | AI156: 0 | AJ156: 8 | AK156: 1 | AL156: 0 | AM156: 0 | AN156: 10 | AO156: 2 | AP156: 10 | AQ156: 0
A157: 152 | C157: 須津村 | D157: 2,410 | E157: 1,442 | F157: 428 | G157: 259 | H157: 43 | I157: 126 | J157: 35 | K157: 145 | L157: 63 | M157: 8 | N157: 55 | O157: - | P157: 2 | Q157: 16 | R157: 5 | S157: 6 | T157: 5 | U157: 9 | V157: 6 | W157: - | X157: - | Y157: - | Z157: 1 | AA157: 9 | AB157: 11 | AC157: 10 | AD157: 9 | AE157: 12 | AF157: 4 | AG157: 1 | AH157: 16 | AI157: 5 | AJ157: 12 | AK157: 4 | AL157: 3 | AM157: 3 | AN157: 15 | AO157: 12 | AP157: 15 | AQ157: 2
A158: 153 | C158: 大淵村（富士市） | D158: 6,664 | E158: 4,275 | F158: 349 | G158: 0 | H158: 59 | I158: 290 | J158: 69 | K158: 252 | L158: 54 | M158: 25 | N158: 41 | O158: 2 | P158: 2 | Q158: 21 | R158: - | S158: - | T158: 21 | U158: 9 | V158: 10 | W158: - | X158: 1 | Y158: 1 | Z158: - | AA158: 6 | AB158: 6 | AC158: 13 | AD158: 14 | AE158: 18 | AF158: 9 | AG158: 2 | AH158: 21 | AI158: 3 | AJ158: 19 | AK158: 3 | AL158: 1 | AM158: 0 | AN158: 18 | AO158: 2 | AP158: 20 | AQ158: 2
A159: 154 | C159: 浮島村２－２ | D159: 415 | E159: 148 | F159: 215 | G159: 114 | H159: 2 | I159: 99 | J159: 24 | K159: 104 | L159: 26 | M159: 2 | N159: 26 | O159: - | P159: - | Q159: 3 | R159: - | S159: 3 | T159: - | U159: - | V159: 2 | W159: 1 | X159: - | Y159: - | Z159: - | AA159: 1 | AB159: 3 | AC159: 1 | AD159: 0 | AE159: 2 | AF159: 0 | AG159: 0 | AH159: 3 | AI159: 3 | AJ159: 3 | AK159: 1 | AL159: 1 | AM159: 1 | AN159: 3 | AO159: 3 | AP159: 3 | AQ159: 3
A160: 155 | C160: 富士町 | D160: 1,134 | E160: - | F160: 20 | G160: 11 | H160: 4 | I160: 5 | J160: 12 | K160: 119 | L160: 73 | M160: 5 | N160: 68 | O160: - | P160: 5 | Q160: 2 | R160: - | S160: 2 | T160: - | U160: 1 | V160: 1 | W160: - | X160: - | Y160: - | Z160: - | AA160: 2 | AB160: 2 | AC160: 1 | AD160: 2 | AE160: 2 | AF160: 1 | AG160: 0 | AH160: 2 | AI160: 0 | AJ160: 0 | AK160: 0 | AL160: 0 | AM160: 0 | AN160: 2 | AO160: 2 | AP160: 2 | AQ160: 1
A161: 156 | C161: 岩松村 | D161: 852 | E161: 124 | F161: 194 | G161: 12 | H161: 33 | I161: 149 | J161: 8 | K161: 110 | L161: 58 | M161: 6 | N161: 55 | O161: - | P161: - | Q161: 9 | R161: - | S161: 3 | T161: 6 | U161: 5 | V161: 3 | W161: 1 | X161: - | Y161: - | Z161: - | AA161: 5 | AB161: 5 | AC161: 6 | AD161: 9 | AE161: 9 | AF161: 8 | AG161: 0 | AH161: 9 | AI161: 0 | AJ161: 9 | AK161: 0 | AL161: 0 | AM161: 0 | AN161: 9 | AO161: 2 | AP161: 7 | AQ161: 1
A162: 157 | C162: 田子浦村 | D162: 1,038 | E162: 33 | F162: 40 | G162: 30 | H162: 9 | I162: 1 | J162: 4 | K162: 50 | L162: 29 | M162: - | N162: 29 | O162: - | P162: - | Q162: 9 | R162: 5 | S162: 1 | T162: 3 | U162: 8 | V162: 1 | W162: - | X162: - | Y162: - | Z162: - | AA162: 2 | AB162: 2 | AC162: 1 | AD162: 3 | AE162: 8 | AF162: 2 | AG162: 0 | AH162: 8 | AI162: 0 | AJ162: 6 | AK162: 6 | AL162: 0 | AM162: 0 | AN162: 9 | AO162: 8 | AP162: 9 | AQ162: 7
A163: 158 | C163: 鷹岡町 | D163: 1,003 | E163: 26 | F163: 108 | G163: 26 | H163: 25 | I163: 57 | J163: 16 | K163: 76 | L163: 32 | M163: 7 | N163: 26 | O163: - | P163: - | Q163: 10 | R163: 2 | S163: 2 | T163: 6 | U163: 6 | V163: 1 | W163: 2 | X163: - | Y163: 1 | Z163: - | AA163: 0 | AB163: 0 | AC163: 0 | AD163: 0 | AE163: 0 | AF163: 0 | AG163: 10 | AH163: 10 | AI163: 1 | AJ163: 3 | AK163: 1 | AL163: 0 | AM163: 0 | AN163: 10 | AO163: 3 | AP163: 6 | AQ163: 1
A164: 159 | C164: 富士川町 | D164: 1,184 | E164: 440 | F164: 83 | G164: 3 | H164: 4 | I164: 76 | J164: 40 | K164: 59 | L164: 27 | M164: 7 | N164: 25 | O164: 2 | P164: 1 | Q164: 16 | R164: - | S164: 1 | T164: 15 | U164: 12 | V164: - | W164: 2 | X164: 1 | Y164: 1 | Z164: - | AA164: 2 | AB164: 1 | AC164: 2 | AD164: 2 | AE164: 14 | AF164: 5 | AG164: 1 | AH164: 16 | AI164: 0 | AJ164: 12 | AK164: 0 | AL164: 0 | AM164: 0 | AN164: 0 | AO164: 0 | AP164: 7 | AQ164: 4
A165: 160 | C165: 松野村 | D165: 1,907 | E165: 1,217 | F165: 109 | G165: 58 | H165: 11 | I165: 40 | J165: 36 | K165: 52 | L165: 38 | M165: 2 | N165: 38 | O165: - | P165: - | Q165: 16 | R165: 8 | S165: 3 | T165: 5 | U165: 4 | V165: 6 | W165: 5 | X165: - | Y165: - | Z165: 1 | AA165: 9 | AB165: 8 | AC165: 4 | AD165: 15 | AE165: 16 | AF165: 8 | AG165: 0 | AH165: 16 | AI165: 0 | AJ165: 14 | AK165: 0 | AL165: 1 | AM165: 1 | AN165: 9 | AO165: 8 | AP165: 16 | AQ165: 15
A166: 161 | B166: 磐田市 | D166: 16,408 | E166: 2,702 | F166: 4614 | G166: 2350 | H166: 1363 | I166: 901 | J166: 522 | K166: 1,955 | L166: 599 | M166: 82 | N166: 555 | O166: 4 | P166: 11 | Q166: 228 | R166: 79 | S166: 76 | T166: 73 | U166: 105 | V166: 84 | W166: 28 | X166: 8 | Y166: 3 | Z166: - | AA166: 81 | AB166: 138 | AC166: 113 | AD166: 151 | AE166: 166 | AF166: 100 | AG166: 29 | AH166: 216 | AI166: 8 | AJ166: 93 | AK166: 7 | AL166: 10 | AM166: 2 | AN166: 169 | AO166: 32 | AP166: 201 | AQ166: 65
A167: 162 | C167: 磐田市（旧） | D167: 1,915 | E167: 64 | F167: 321 | G167: 212 | H167: 60 | I167: 49 | J167: 23 | K167: 149 | L167: 56 | M167: 15 | N167: 47 | O167: - | P167: - | Q167: 17 | R167: 10 | S167: 1 | T167: 6 | U167: 13 | V167: 4 | W167: - | X167: - | Y167: - | Z167: - | AA167: 3 | AB167: 6 | AC167: 15 | AD167: 16 | AE167: 15 | AF167: 15 | AG167: 1 | AH167: 17 | AI167: 0 | AJ167: 5 | AK167: 0 | AL167: 1 | AM167: 0 | AN167: 14 | AO167: 0 | AP167: 15 | AQ167: 0
A168: 163 | C168: 大藤村 | D168: 708 | E168: 73 | F168: 360 | G168: 0 | H168: 34 | I168: 326 | J168: 7 | K168: 187 | L168: 27 | M168: 11 | N168: 21 | O168: - | P168: 1 | Q168: 12 | R168: - | S168: - | T168: 12 | U168: 1 | V168: 8 | W168: 2 | X168: 1 | Y168: - | Z168: - | AA168: 5 | AB168: 10 | AC168: 4 | AD168: 12 | AE168: 12 | AF168: 11 | AG168: 0 | AH168: 12 | AI168: 0 | AJ168: 12 | AK168: 0 | AL168: 0 | AM168: 0 | AN168: 4 | AO168: 0 | AP168: 8 | AQ168: 0
A169: 164 | C169: 岩田村 | D169: 692 | E169: 63 | F169: 251 | G169: 80 | H169: 93 | I169: 78 | J169: 25 | K169: 88 | L169: 26 | M169: 4 | N169: 25 | O169: - | P169: 1 | Q169: 7 | R169: - | S169: 4 | T169: 3 | U169: - | V169: 5 | W169: 2 | X169: - | Y169: - | Z169: - | AA169: 3 | AB169: 7 | AC169: 2 | AD169: 7 | AE169: 7 | AF169: 6 | AG169: 0 | AH169: 7 | AI169: 1 | AJ169: 7 | AK169: 2 | AL169: 1 | AM169: 0 | AN169: 6 | AO169: 4 | AP169: 7 | AQ169: 4
A170: 165 | C170: 長野村 | D170: 692 | E170: 14 | F170: 335 | G170: 241 | H170: 91 | I170: 3 | J170: 35 | K170: 109 | L170: 19 | M170: 2 | N170: 18 | O170: - | P170: - | Q170: 10 | R170: 6 | S170: 4 | T170: - | U170: 4 | V170: 5 | W170: 1 | X170: - | Y170: - | Z170: - | AA170: 6 | AB170: 6 | AC170: 4 | AD170: 6 | AE170: 10 | AF170: 3 | AG170: 0 | AH170: 10 | AI170: 1 | AJ170: 1 | AK170: 0 | AL170: 0 | AM170: 0 | AN170: 10 | AO170: 6 | AP170: 10 | AQ170: 9
A171: 166 | C171: 向笠村 | D171: 1,088 | E171: 211 | F171: 347 | G171: 132 | H171: 50 | I171: 165 | J171: 9 | K171: 113 | L171: 43 | M171: 8 | N171: 40 | O171: 1 | P171: 2 | Q171: 14 | R171: 4 | S171: 4 | T171: 6 | U171: 4 | V171: 7 | W171: 2 | X171: 1 | Y171: - | Z171: - | AA171: 9 | AB171: 11 | AC171: 10 | AD171: 11 | AE171: 13 | AF171: 3 | AG171: 1 | AH171: 14 | AI171: 1 | AJ171: 12 | AK171: 1 | AL171: 1 | AM171: 1 | AN171: 13 | AO171: 4 | AP171: 9 | AQ171: 5
A172: 167 | C172: 御厨村 | D172: 506 | E172: 16 | F172: 183 | G172: 146 | H172: 24 | I172: 13 | J172: 7 | K172: 64 | L172: 23 | M172: 1 | N172: 23 | O172: 1 | P172: - | Q172: 4 | R172: 4 | S172: - | T172: - | U172: 1 | V172: 2 | W172: 1 | X172: - | Y172: - | Z172: - | AA172: 3 | AB172: 4 | AC172: 3 | AD172: 4 | AE172: 4 | AF172: 0 | AG172: 0 | AH172: 4 | AI172: 0 | AJ172: 4 | AK172: 1 | AL172: 1 | AM172: 1 | AN172: 4 | AO172: 3 | AP172: 4 | AQ172: 4
A173: 168 | C173: 南御厨村２－１ | D173: 225 | E173: - | F173: 100 | G173: 84 | H173: 14 | I173: 2 | J173: 4 | K173: 42 | L173: 10 | M173: 1 | N173: 9 | O173: - | P173: - | Q173: 5 | R173: 5 | S173: - | T173: - | U173: 2 | V173: 2 | W173: - | X173: 1 | Y173: - | Z173: - | AA173: 2 | AB173: 5 | AC173: 1 | AD173: 5 | AE173: 5 | AF173: 0 | AG173: 0 | AH173: 5 | AI173: 0 | AJ173: 0 | AK173: 0 | AL173: 0 | AM173: 0 | AN173: 4 | AO173: 4 | AP173: 5 | AQ173: 4
A174: 169 | C174: 田原村２－１ | D174: 313 | E174: 21 | F174: 113 | G174: 99 | H174: 10 | I174: 4 | J174: 6 | K174: 44 | L174: 15 | M174: 1 | N174: 15 | O174: - | P174: - | Q174: 5 | R174: 4 | S174: - | T174: 1 | U174: 4 | V174: - | W174: - | X174: 1 | Y174: - | Z174: - | AA174: 2 | AB174: 3 | AC174: 4 | AD174: 5 | AE174: 5 | AF174: 4 | AG174: 0 | AH174: 5 | AI174: 0 | AJ174: 3 | AK174: 0 | AL174: 0 | AM174: 0 | AN174: 5 | AO174: 0 | AP174: 4 | AQ174: 4
A175: 170 | C175: 於保村２－２ | D175: 300 | E175: 14 | F175: 137 | G175: 123 | H175: 14 | I175: 0 | J175: 5 | K175: 59 | L175: 34 | M175: - | N175: 34 | O175: - | P175: - | Q175: 5 | R175: 5 | S175: - | T175: - | U175: 1 | V175: 4 | W175: - | X175: - | Y175: - | Z175: - | AA175: 3 | AB175: 5 | AC175: 2 | AD175: 4 | AE175: 5 | AF175: 0 | AG175: 0 | AH175: 5 | AI175: 0 | AJ175: 1 | AK175: 1 | AL175: 0 | AM175: 0 | AN175: 5 | AO175: 5 | AP175: 5 | AQ175: 5
A176: 171 | C176: 三川村２－２ | D176: 15 | E176: - | F176: 12 | G176: 0 | H176: 2 | I176: 10 | J176: - | K176: 10 | L176: - | M176: - | N176: - | O176: - | P176: - | Q176: 1 | R176: - | S176: - | T176: 1 | U176: - | V176: 1 | W176: - | X176: - | Y176: - | Z176: - | AA176: 0 | AB176: 1 | AC176: 1 | AD176: 1 | AE176: 1 | AF176: 1 | AG176: 0 | AH176: 1 | AI176: 0 | AJ176: 0 | AK176: 0 | AL176: 0 | AM176: 0 | AN176: 0 | AO176: 0 | AP176: 1 | AQ176: 1
A177: 172 | C177: 福田町 | D177: 738 | E177: 39 | F177: 145 | G177: 104 | H177: 41 | I177: 0 | J177: 11 | K177: 19 | L177: 11 | M177: - | N177: 11 | O177: - | P177: - | Q177: 23 | R177: 14 | S177: 2 | T177: 7 | U177: 21 | V177: 1 | W177: 1 | X177: - | Y177: - | Z177: - | AA177: 5 | AB177: 5 | AC177: 8 | AD177: 12 | AE177: 11 | AF177: 10 | AG177: 5 | AH177: 19 | AI177: 2 | AJ177: 2 | AK177: 0 | AL177: 0 | AM177: 0 | AN177: 13 | AO177: 0 | AP177: 18 | AQ177: 1
A178: 173 | C178: 豊浜村 | D178: 380 | E178: 7 | F178: 145 | G178: 111 | H178: 34 | I178: 0 | J178: 6 | K178: 45 | L178: 5 | M178: - | N178: 5 | O178: - | P178: - | Q178: 4 | R178: 3 | S178: 1 | T178: - | U178: 3 | V178: 1 | W178: - | X178: - | Y178: - | Z178: - | AA178: 1 | AB178: 1 | AC178: 1 | AD178: 1 | AE178: 3 | AF178: 1 | AG178: 1 | AH178: 4 | AI178: 0 | AJ178: 0 | AK178: 0 | AL178: 0 | AM178: 0 | AN178: 3 | AO178: 0 | AP178: 4 | AQ178: 0
A179: 174 | C179: 於保村２－１ | D179: 381 | E179: 13 | F179: 156 | G179: 118 | H179: 38 | I179: 0 | J179: 14 | K179: 44 | L179: 8 | M179: - | N179: 8 | O179: - | P179: - | Q179: 8 | R179: 5 | S179: 3 | T179: - | U179: 1 | V179: 4 | W179: 3 | X179: - | Y179: - | Z179: - | AA179: 4 | AB179: 6 | AC179: 2 | AD179: 5 | AE179: 7 | AF179: 2 | AG179: 0 | AH179: 8 | AI179: 0 | AJ179: 0 | AK179: 0 | AL179: 0 | AM179: 0 | AN179: 6 | AO179: 0 | AP179: 8 | AQ179: 0
A180: 175 | C180: 南御厨村２－２ | D180: 166 | E180: - | F180: 87 | G180: 77 | H180: 10 | I180: 0 | J180: 2 | K180: 30 | L180: 12 | M180: - | N180: 12 | O180: - | P180: - | Q180: 3 | R180: 3 | S180: - | T180: - | U180: 1 | V180: 2 | W180: - | X180: - | Y180: - | Z180: - | AA180: 0 | AB180: 0 | AC180: 1 | AD180: 0 | AE180: 2 | AF180: 0 | AG180: 1 | AH180: 3 | AI180: 0 | AJ180: 0 | AK180: 0 | AL180: 0 | AM180: 0 | AN180: 1 | AO180: 0 | AP180: 3 | AQ180: 0
A181: 176 | C181: 掛塚町 | D181: 782 | E181: 13 | F181: 155 | G181: 63 | H181: 90 | I181: 2 | J181: 43 | K181: 66 | L181: 30 | M181: - | N181: 30 | O181: - | P181: - | Q181: 18 | R181: 2 | S181: 9 | T181: 7 | U181: 15 | V181: 3 | W181: - | X181: - | Y181: - | Z181: - | AA181: 5 | AB181: 18 | AC181: 18 | AD181: 18 | AE181: 18 | AF181: 6 | AG181: 0 | AH181: 14 | AI181: 0 | AJ181: 2 | AK181: 0 | AL181: 0 | AM181: 0 | AN181: 9 | AO181: 0 | AP181: 13 | AQ181: 0
A182: 177 | C182: 袖浦村 | D182: 1,146 | E182: 148 | F182: 308 | G182: 147 | H182: 161 | I182: 0 | J182: 75 | K182: 130 | L182: 44 | M182: 1 | N182: 44 | O182: - | P182: - | Q182: 10 | R182: 2 | S182: 5 | T182: 3 | U182: 1 | V182: 5 | W182: 4 | X182: - | Y182: - | Z182: - | AA182: 4 | AB182: 5 | AC182: 3 | AD182: 5 | AE182: 6 | AF182: 5 | AG182: 1 | AH182: 10 | AI182: 0 | AJ182: 6 | AK182: 0 | AL182: 0 | AM182: 0 | AN182: 7 | AO182: 1 | AP182: 10 | AQ182: 3
A183: 178 | C183: 十束村２－１ | D183: 369 | E183: 2 | F183: 154 | G183: 79 | H183: 74 | I183: 1 | J183: 23 | K183: 65 | L183: 30 | M183: 2 | N183: 29 | O183: - | P183: - | Q183: 6 | R183: - | S183: 6 | T183: - | U183: 4 | V183: 2 | W183: - | X183: - | Y183: - | Z183: - | AA183: 3 | AB183: 4 | AC183: 4 | AD183: 3 | AE183: 3 | AF183: 2 | AG183: 2 | AH183: 6 | AI183: 0 | AJ183: 0 | AK183: 0 | AL183: 0 | AM183: 0 | AN183: 3 | AO183: 1 | AP183: 6 | AQ183: 2
A184: 179 | C184: 富岡村（磐田市） | D184: 877 | E184: 18 | F184: 324 | G184: 124 | H184: 85 | I184: 115 | J184: 22 | K184: 191 | L184: 63 | M184: 11 | N184: 56 | O184: - | P184: - | Q184: 13 | R184: 4 | S184: 6 | T184: 3 | U184: 4 | V184: 4 | W184: 4 | X184: 1 | Y184: - | Z184: - | AA184: 6 | AB184: 4 | AC184: 2 | AD184: 2 | AE184: 5 | AF184: 0 | AG184: 3 | AH184: 13 | AI184: 1 | AJ184: 8 | AK184: 0 | AL184: 1 | AM184: 0 | AN184: 11 | AO184: 1 | AP184: 13 | AQ184: 4
A185: 180 | C185: 池田村 | D185: 145 | E185: - | F185: 12 | G185: 7 | H185: 5 | I185: 0 | J185: 1 | K185: 4 | L185: - | M185: - | N185: - | O185: - | P185: - | Q185: 8 | R185: 1 | S185: 1 | T185: 6 | U185: 8 | V185: - | W185: - | X185: - | Y185: - | Z185: - | AA185: 0 | AB185: 4 | AC185: 0 | AD185: 0 | AE185: 0 | AF185: 0 | AG185: 4 | AH185: 4 | AI185: 0 | AJ185: 0 | AK185: 0 | AL185: 0 | AM185: 0 | AN185: 6 | AO185: 0 | AP185: 4 | AQ185: 0
A186: 181 | C186: 井通村 | D186: 870 | E186: 3 | F186: 281 | G186: 175 | H186: 101 | I186: 5 | J186: 25 | K186: 178 | L186: 52 | M186: 3 | N186: 48 | O186: - | P186: 2 | Q186: 18 | R186: 2 | S186: 15 | T186: 1 | U186: 11 | V186: 7 | W186: - | X186: - | Y186: - | Z186: - | AA186: 6 | AB186: 5 | AC186: 0 | AD186: 0 | AE186: 0 | AF186: 0 | AG186: 9 | AH186: 18 | AI186: 0 | AJ186: 1 | AK186: 0 | AL186: 0 | AM186: 0 | AN186: 15 | AO186: 3 | AP186: 18 | AQ186: 5
A187: 182 | C187: 十束村２－２ | D187: 106 | E187: - | F187: 40 | G187: 22 | H187: 18 | I187: 0 | J187: 8 | K187: 27 | L187: 8 | M187: 3 | N187: 8 | O187: - | P187: - | Q187: 3 | R187: - | S187: 3 | T187: - | U187: 3 | V187: - | W187: - | X187: - | Y187: - | Z187: - | AA187: 1 | AB187: 2 | AC187: 0 | AD187: 0 | AE187: 0 | AF187: 0 | AG187: 1 | AH187: 3 | AI187: 0 | AJ187: 0 | AK187: 0 | AL187: 0 | AM187: 0 | AN187: 2 | AO187: 0 | AP187: 3 | AQ187: 0
A188: 183 | C188: 広瀬村 | D188: 1,147 | E188: 138 | F188: 352 | G188: 102 | H188: 224 | I188: 26 | J188: 42 | K188: 151 | L188: 30 | M188: 10 | N188: 25 | O188: 1 | P188: 2 | Q188: 11 | R188: - | S188: 6 | T188: 5 | U188: - | V188: 9 | W188: 2 | X188: - | Y188: - | Z188: - | AA188: 5 | AB188: 8 | AC188: 8 | AD188: 11 | AE188: 11 | AF188: 9 | AG188: 0 | AH188: 11 | AI188: 0 | AJ188: 8 | AK188: 0 | AL188: 1 | AM188: 0 | AN188: 9 | AO188: 0 | AP188: 11 | AQ188: 6
A189: 184 | C189: 野部村 | D189: 1,426 | E189: 864 | F189: 162 | G189: 49 | H189: 72 | I189: 41 | J189: 116 | K189: 62 | L189: 19 | M189: 1 | N189: 19 | O189: 1 | P189: - | Q189: 11 | R189: 1 | S189: 3 | T189: 7 | U189: 3 | V189: 5 | W189: 3 | X189: - | Y189: - | Z189: - | AA189: 3 | AB189: 8 | AC189: 8 | AD189: 11 | AE189: 11 | AF189: 10 | AG189: 0 | AH189: 11 | AI189: 0 | AJ189: 9 | AK189: 0 | AL189: 3 | AM189: 0 | AN189: 9 | AO189: 0 | AP189: 11 | AQ189: 0
A190: 185 | C190: 敷地村 | D190: 1,421 | E190: 981 | F190: 134 | G190: 55 | H190: 18 | I190: 61 | J190: 13 | K190: 78 | L190: 34 | M190: 8 | N190: 28 | O190: - | P190: 3 | Q190: 12 | R190: 4 | S190: 3 | T190: 5 | U190: - | V190: 3 | W190: 3 | X190: 3 | Y190: 3 | Z190: - | AA190: 2 | AB190: 10 | AC190: 12 | AD190: 12 | AE190: 12 | AF190: 12 | AG190: 0 | AH190: 12 | AI190: 2 | AJ190: 12 | AK190: 2 | AL190: 1 | AM190: 0 | AN190: 10 | AO190: 0 | AP190: 11 | AQ190: 8
A191: 186 | B191: 焼津市 | D191: 7,055 | E191: 388 | F191: 1488 | G191: 1189 | H191: 145 | I191: 154 | J191: 155 | K191: 1,312 | L191: 781 | M191: 21 | N191: 768 | O191: 2 | P191: 8 | Q191: 111 | R191: 81 | S191: 17 | T191: 13 | U191: 56 | V191: 42 | W191: 10 | X191: 3 | Y191: - | Z191: - | AA191: 38 | AB191: 58 | AC191: 36 | AD191: 58 | AE191: 64 | AF191: 38 | AG191: 12 | AH191: 107 | AI191: 30 | AJ191: 28 | AK191: 9 | AL191: 1 | AM191: 1 | AN191: 110 | AO191: 56 | AP191: 103 | AQ191: 59
A192: 187 | C192: 焼津町 | D192: 519 | E192: - | F192: 9 | G192: 3 | H192: 6 | I192: 0 | J192: 2 | K192: 20 | L192: 9 | M192: 1 | N192: 9 | O192: - | P192: - | Q192: 5 | R192: - | S192: 2 | T192: 3 | U192: 5 | V192: - | W192: - | X192: - | Y192: - | Z192: - | AA192: 2 | AB192: 0 | AC192: 0 | AD192: 0 | AE192: 0 | AF192: 3 | AG192: 0 | AH192: 3 | AI192: 0 | AJ192: 0 | AK192: 0 | AL192: 0 | AM192: 0 | AN192: 5 | AO192: 1 | AP192: 2 | AQ192: 1
A193: 188 | C193: 豊田村 | D193: 516 | E193: - | F193: 43 | G193: 31 | H193: 7 | I193: 5 | J193: 8 | K193: 85 | L193: 56 | M193: 1 | N193: 56 | O193: - | P193: - | Q193: 2 | R193: 1 | S193: 1 | T193: - | U193: 2 | V193: - | W193: - | X193: - | Y193: - | Z193: - | AA193: 2 | AB193: 0 | AC193: 0 | AD193: 0 | AE193: 0 | AF193: 1 | AG193: 0 | AH193: 2 | AI193: 2 | AJ193: 0 | AK193: 0 | AL193: 0 | AM193: 0 | AN193: 2 | AO193: 2 | AP193: 2 | AQ193: 2
A194: 189 | C194: 大富村 | D194: 925 | E194: - | F194: 256 | G194: 245 | H194: 11 | I194: 0 | J194: 20 | K194: 308 | L194: 194 | M194: 4 | N194: 191 | O194: - | P194: 3 | Q194: 15 | R194: 15 | S194: - | T194: - | U194: 12 | V194: 3 | W194: - | X194: - | Y194: - | Z194: - | AA194: 6 | AB194: 4 | AC194: 0 | AD194: 2 | AE194: 3 | AF194: 9 | AG194: 0 | AH194: 15 | AI194: 0 | AJ194: 0 | AK194: 0 | AL194: 0 | AM194: 0 | AN194: 15 | AO194: 0 | AP194: 15 | AQ194: 0
A195: 190 | C195: 和田村（焼津市） | D195: 722 | E195: 14 | F195: 182 | G195: 164 | H195: 16 | I195: 2 | J195: 14 | K195: 175 | L195: 123 | M195: 1 | N195: 122 | O195: - | P195: 2 | Q195: 15 | R195: 13 | S195: 1 | T195: 1 | U195: 10 | V195: 4 | W195: 1 | X195: - | Y195: - | Z195: - | AA195: 2 | AB195: 2 | AC195: 1 | AD195: 2 | AE195: 1 | AF195: 3 | AG195: 9 | AH195: 14 | AI195: 4 | AJ195: 4 | AK195: 1 | AL195: 1 | AM195: 1 | AN195: 14 | AO195: 2 | AP195: 14 | AQ195: 5
A196: 191 | C196: 小川村 | D196: 483 | E196: 2 | F196: 24 | G196: 20 | H196: 4 | I196: 0 | J196: 8 | K196: 49 | L196: 32 | M196: - | N196: 32 | O196: - | P196: 2 | Q196: 3 | R196: 2 | S196: - | T196: 1 | U196: 3 | V196: - | W196: - | X196: - | Y196: - | Z196: - | AA196: 1 | AB196: 1 | AC196: 0 | AD196: 0 | AE196: 0 | AF196: 0 | AG196: 2 | AH196: 3 | AI196: 1 | AJ196: 0 | AK196: 0 | AL196: 0 | AM196: 0 | AN196: 3 | AO196: 1 | AP196: 3 | AQ196: 1
A197: 192 | C197: 東益津村 | D197: 1,263 | E197: 355 | F197: 250 | G197: 99 | H197: 43 | I197: 108 | J197: 46 | K197: 108 | L197: 58 | M197: 6 | N197: 55 | O197: 1 | P197: 1 | Q197: 19 | R197: 4 | S197: 7 | T197: 8 | U197: 11 | V197: 3 | W197: 3 | X197: 2 | Y197: - | Z197: - | AA197: 1 | AB197: 10 | AC197: 17 | AD197: 17 | AE197: 17 | AF197: 8 | AG197: 1 | AH197: 18 | AI197: 0 | AJ197: 14 | AK197: 0 | AL197: 0 | AM197: 0 | AN197: 19 | AO197: 12 | AP197: 15 | AQ197: 10
A198: 193 | C198: 広幡村２－２ | D198: 76 | E198: - | F198: 15 | G198: 15 | H198: 0 | I198: 0 | J198: 1 | K198: 10 | L198: 6 | M198: - | N198: 6 | O198: 1 | P198: - | Q198: 1 | R198: 1 | S198: - | T198: - | U198: 1 | V198: - | W198: - | X198: - | Y198: - | Z198: - | AA198: 1 | AB198: 1 | AC198: 0 | AD198: 0 | AE198: 0 | AF198: 0 | AG198: 0 | AH198: 1 | AI198: 1 | AJ198: 0 | AK198: 0 | AL198: 0 | AM198: 0 | AN198: 1 | AO198: 0 | AP198: 1 | AQ198: 1
A199: 194 | C199: 西益津村２－２ | D199: 95 | E199: - | F199: 8 | G199: 3 | H199: 4 | I199: 1 | J199: 2 | K199: 13 | L199: 6 | M199: - | N199: 6 | O199: - | P199: - | Q199: 1 | R199: - | S199: 1 | T199: - | U199: 1 | V199: - | W199: - | X199: - | Y199: - | Z199: - | AA199: 0 | AB199: 0 | AC199: 0 | AD199: 0 | AE199: 0 | AF199: 1 | AG199: 0 | AH199: 1 | AI199: 0 | AJ199: 0 | AK199: 0 | AL199: 0 | AM199: 0 | AN199: 1 | AO199: 0 | AP199: 1 | AQ199: 0
A200: 195 | C200: 静浜村 | D200: 648 | E200: 7 | F200: 232 | G200: 216 | H200: 16 | I200: 0 | J200: 11 | K200: 179 | L200: 103 | M200: 3 | N200: 100 | O200: - | P200: - | Q200: 19 | R200: 18 | S200: 1 | T200: - | U200: 3 | V200: 10 | W200: 5 | X200: 1 | Y200: - | Z200: - | AA200: 10 | AB200: 14 | AC200: 10 | AD200: 16 | AE200: 14 | AF200: 8 | AG200: 0 | AH200: 19 | AI200: 18 | AJ200: 3 | AK200: 2 | AL200: 0 | AM200: 0 | AN200: 19 | AO200: 17 | AP200: 19 | AQ200: 17
... 305 more rows

Sheet 2015 (hidden)
A1: 農山村地域調査
A2: １ 総土地面積及び林野面積
D3: 1 | E3: 2 | F3: 3 | G3: 4 | H3: 5 | I3: 6 | J3: 7 | K3: 8 | L3: 9 | M3: 10 | N3: 11 | O3: 12 | P3: 13 | Q3: 14 | R3: 15 | S3: 16 | T3: 17 | U3: 18 | V3: 19 | W3: 20 | X3: 21 | Y3: 22 | Z3: 23 | AA3: 24 | AB3: 25 | AC3: 26 | AD3: 27 | AE3: 28 | AF3: 29 | AG3: 30 | AH3: 31 | AI3: 32 | AJ3: 33 | AK3: 34 | AL3: 35 | AM3: 36 | AN3: 37 | AO3: 38 | AP3: 39 | AQ3: 40 | AR3: 41 | AS3: 42 | AT3: 43 | AU3: 44 | AV3: 45
D4: 総土地面積 | F4: 耕地面積 | K4: 生産関連 | Q4: 水田率 | U4: 農家率 | Y4: 寄り合いの議題_農業生産にかかる事項 | AH4: 保全管理
A5: 新旧市区町村 | D5: 総土地 面 積 | E5: 林野面積 | F5: 耕地面積 | G5: 田面積 | H5: 畑面積 | I5: 樹園地面積 | J5: 耕作 放棄地 面積 | K5: 計 | L5: 農業生産関連事業を行っている実経営体数 | M5: 事業種類別_農産物の加工 | N5: 事業種類別_消費者に直接販売 | O5: 事業種類別_観光農園 | P5: その他 | Q5: 計 | R5: 水田集落 （70％以上） | S5: 田畑集落 （30～70） | T5: 畑地集落 （30％未満） | U5: 10％未満 | V5: 10～30 | W5: 30～50 | X5: 50～70 | Y5: 70～90 | Z5: 90％以上 | AA5: 寄り合いの議題_農業生産にかかる事項 | AB5: 寄り合いの議題_農道・農業用用排水路・ため池の管理 | AC5: 寄り合いの議題_集落共有財産・共用施設の管理 | AD5: 寄り合いの議題_環境美化・自然環境の保全 | AE5: 寄り合いの議題_農業集落行事（祭り・イベント等）の計画・推進 | AF5: 寄り合いの議題_農業集落内の福祉・厚生 | AG5: 寄り合いを開催しなかった | AH5: 農地_ある | AI5: 農地_保全している | AJ5: 森林_ある | AK5: 森林_保全している | AL5: ため池・湖沼_ある | AM5: ため池・湖沼_保全している | AN5: 河川・水路_ある | AO5: 河川・水路_保全している | AP5: 農業用用排水路_ある | AQ5: 農業用用排水路_保全している
A6: 1 | B6: 静岡県 | D6: 777870 | E6: 495653 | F6: 66589 | G6: 22370 | H6: 15385 | I6: 28834 | J6: 12842.5 | K6: 33143 | L6: 9423 | M6: 1087 | N6: 8926 | O6: 218 | P6: 270 | Q6: 3361 | R6: 662 | S6: 873 | T6: 1826 | U6: 1526 | V6: 999 | W6: 484 | X6: 253 | Y6: 83 | Z6: 16 | AA6: 1395 | AB6: 2273 | AC6: 1972 | AD6: 2844 | AE6: 2897 | AF6: 2258 | AG6: 285 | AH6: 3242 | AI6: 788 | AJ6: 2466 | AK6: 404 | AL6: 552 | AM6: 222 | AN6: 3070 | AO6: 1585 | AP6: 2734 | AQ6: 1688
A7: 2 | B7: 静岡市 | D7: 141190 | E7: 108788 | F7: 5128 | G7: 535 | H7: 523 | I7: 4070 | J7: 1868.96 | K7: 3915 | L7: 1489 | M7: 212 | N7: 1407 | O7: 61 | P7: 55 | Q7: 321 | R7: 17 | S7: 34 | T7: 270 | U7: 130 | V7: 78 | W7: 55 | X7: 42 | Y7: 14 | Z7: 2 | AA7: 184 | AB7: 179 | AC7: 147 | AD7: 230 | AE7: 257 | AF7: 162 | AG7: 29 | AH7: 317 | AI7: 137 | AJ7: 293 | AK7: 29 | AL7: 28 | AM7: 9 | AN7: 296 | AO7: 151 | AP7: 144 | AQ7: 108
A8: 3 | B8: 葵区(静岡市) | D8: 107376 | E8: 94603 | F8: 2284 | G8: 393 | H8: 160 | I8: 1731 | J8: 491.8 | K8: 1586 | L8: 547 | M8: 90 | N8: 509 | O8: 7 | P8: 28 | Q8: 168 | R8: 11 | S8: 19 | T8: 138 | U8: 44 | V8: 39 | W8: 38 | X8: 35 | Y8: 10 | Z8: 2 | AA8: 80 | AB8: 96 | AC8: 68 | AD8: 116 | AE8: 137 | AF8: 81 | AG8: 21 | AH8: 165 | AI8: 92 | AJ8: 154 | AK8: 17 | AL8: 14 | AM8: 1 | AN8: 159 | AO8: 73 | AP8: 78 | AQ8: 63
A9: 4 | C9: 静岡市２－１ | D9: 8897 | E9: 3098 | F9: 734 | G9: 192 | H9: 51 | I9: 491 | J9: 285.56 | K9: 553 | L9: 255 | M9: 26 | N9: 241 | O9: 3 | P9: 9 | Q9: 38 | R9: 7 | S9: 8 | T9: 23 | U9: 24 | V9: 9 | W9: 3 | X9: 1 | Y9: 1 | Z9: - | AA9: 29 | AB9: 28 | AC9: 18 | AD9: 18 | AE9: 32 | AF9: 13 | AG9: 3 | AH9: 36 | AI9: 2 | AJ9: 31 | AK9: 1 | AL9: 3 | AM9: 1 | AN9: 37 | AO9: 17 | AP9: 28 | AQ9: 22
A10: 5 | C10: 美和村 | D10: 5547 | E10: 3918 | F10: 434 | G10: 72 | H10: 19 | I10: 343 | J10: 42.07 | K10: 264 | L10: 57 | M10: 11 | N10: 50 | O10: - | P10: 6 | Q10: 29 | R10: 3 | S10: 4 | T10: 22 | U10: 5 | V10: 11 | W10: 10 | X10: 3 | Y10: - | Z10: - | AA10: 15 | AB10: 22 | AC10: 17 | AD10: 26 | AE10: 26 | AF10: 17 | AG10: 2 | AH10: 29 | AI10: 20 | AJ10: 25 | AK10: 2 | AL10: 1 | AM10: 0 | AN10: 29 | AO10: 23 | AP10: 15 | AQ10: 13
A11: 6 | C11: 服織村 | D11: 2768 | E11: 1768 | F11: 160 | G11: 25 | H11: 7 | I11: 128 | J11: 27.59 | K11: 123 | L11: 55 | M11: 13 | N11: 50 | O11: 1 | P11: 2 | Q11: 15 | R11: 1 | S11: 1 | T11: 13 | U11: 11 | V11: 2 | W11: 1 | X11: 1 | Y11: - | Z11: - | AA11: 10 | AB11: 12 | AC11: 7 | AD11: 13 | AE11: 14 | AF11: 9 | AG11: 0 | AH11: 15 | AI11: 5 | AJ11: 13 | AK11: 1 | AL11: 0 | AM11: 0 | AN11: 14 | AO11: 12 | AP11: 14 | AQ11: 11
A12: 7 | C12: 中藁科村 | D12: 3066 | E12: 2550 | F12: 199 | G12: 36 | H12: 5 | I12: 158 | J12: 32.15 | K12: 141 | L12: 42 | M12: 8 | N12: 38 | O12: 1 | P12: 2 | Q12: 6 | R12: - | S12: 2 | T12: 4 | U12: - | V12: 2 | W12: 2 | X12: 1 | Y12: 1 | Z12: - | AA12: 5 | AB12: 5 | AC12: 4 | AD12: 6 | AE12: 6 | AF12: 4 | AG12: 0 | AH12: 6 | AI12: 6 | AJ12: 6 | AK12: 3 | AL12: 0 | AM12: 0 | AN12: 6 | AO12: 5 | AP12: 5 | AQ12: 5
A13: 8 | C13: 南藁科村 | D13: 2060 | E13: 1439 | F13: 133 | G13: 34 | H13: 7 | I13: 92 | J13: 22.28 | K13: 86 | L13: 38 | M13: 4 | N13: 37 | O13: - | P13: 3 | Q13: 6 | R13: - | S13: 2 | T13: 4 | U13: 3 | V13: - | W13: 2 | X13: 1 | Y13: - | Z13: - | AA13: 5 | AB13: 5 | AC13: 3 | AD13: 4 | AE13: 5 | AF13: 4 | AG13: 1 | AH13: 6 | AI13: 3 | AJ13: 6 | AK13: 2 | AL13: 0 | AM13: 0 | AN13: 6 | AO13: 5 | AP13: 6 | AQ13: 6
A14: 9 | C14: 大河内村 | D14: 5458 | E14: 4839 | F14: 81 | G14: 14 | H14: 4 | I14: 63 | J14: 10.2 | K14: 90 | L14: 30 | M14: 10 | N14: 29 | O14: - | P14: 1 | Q14: 7 | R14: - | S14: 1 | T14: 6 | U14: - | V14: - | W14: - | X14: 5 | Y14: 2 | Z14: - | AA14: 5 | AB14: 6 | AC14: 7 | AD14: 7 | AE14: 6 | AF14: 4 | AG14: 0 | AH14: 7 | AI14: 7 | AJ14: 7 | AK14: 4 | AL14: 0 | AM14: 0 | AN14: 7 | AO14: 6 | AP14: 1 | AQ14: 0
A15: 10 | C15: 梅ヶ島村 | D15: 9211 | E15: 8395 | F15: 60 | G15: - | H15: 2 | I15: 58 | J15: 6.28 | K15: 49 | L15: 13 | M15: 4 | N15: 12 | O15: 2 | P15: 2 | Q15: 7 | R15: - | S15: - | T15: 7 | U15: - | V15: 2 | W15: 1 | X15: 3 | Y15: 1 | Z15: - | AA15: 1 | AB15: 5 | AC15: 3 | AD15: 6 | AE15: 7 | AF15: 2 | AG15: 0 | AH15: 7 | AI15: 5 | AJ15: 7 | AK15: 1 | AL15: 0 | AM15: 0 | AN15: 7 | AO15: 0 | AP15: 0 | AQ15: 0
A16: 11 | C16: 玉川村 | D16: 9535 | E16: 8987 | F16: 133 | G16: 4 | H16: 3 | I16: 126 | J16: 11.74 | K16: 82 | L16: 16 | M16: 3 | N16: 15 | O16: - | P16: - | Q16: 20 | R16: - | S16: - | T16: 20 | U16: - | V16: 5 | W16: 6 | X16: 7 | Y16: 2 | Z16: - | AA16: 0 | AB16: 3 | AC16: 2 | AD16: 16 | AE16: 19 | AF16: 18 | AG16: 1 | AH16: 20 | AI16: 20 | AJ16: 20 | AK16: 0 | AL16: 0 | AM16: 0 | AN16: 20 | AO16: 1 | AP16: 3 | AQ16: 2
A17: 12 | C17: 井川村 | D17: 50067 | E17: 49635 | F17: 83 | G17: 3 | H17: 45 | I17: 35 | J17: 8.43 | K17: 18 | L17: 7 | M17: 1 | N17: 7 | O17: - | P17: 1 | Q17: 16 | R17: - | S17: 1 | T17: 15 | U17: 1 | V17: 4 | W17: 6 | X17: 4 | Y17: - | Z17: 1 | AA17: 3 | AB17: 1 | AC17: 0 | AD17: 0 | AE17: 2 | AF17: 0 | AG17: 11 | AH17: 15 | AI17: 0 | AJ17: 15 | AK17: 0 | AL17: 9 | AM17: 0 | AN17: 14 | AO17: 3 | AP17: 1 | AQ17: 1
A18: 13 | C18: 清沢村 | D18: 4438 | E18: 4012 | F18: 138 | G18: 3 | H18: 9 | I18: 126 | J18: 26.42 | K18: 97 | L18: 16 | M18: 7 | N18: 14 | O18: - | P18: - | Q18: 15 | R18: - | S18: - | T18: 15 | U18: - | V18: 3 | W18: 5 | X18: 6 | Y18: 1 | Z18: - | AA18: 3 | AB18: 3 | AC18: 3 | AD18: 11 | AE18: 12 | AF18: 7 | AG18: 3 | AH18: 15 | AI18: 15 | AJ18: 15 | AK18: 3 | AL18: 1 | AM18: 0 | AN18: 11 | AO18: 0 | AP18: 2 | AQ18: 2
A19: 14 | C19: 大川村 | D19: 6329 | E19: 5962 | F19: 129 | G19: 10 | H19: 8 | I19: 111 | J19: 19.08 | K19: 83 | L19: 18 | M19: 3 | N19: 16 | O19: - | P19: 2 | Q19: 9 | R19: - | S19: - | T19: 9 | U19: - | V19: 1 | W19: 2 | X19: 3 | Y19: 2 | Z19: 1 | AA19: 4 | AB19: 6 | AC19: 4 | AD19: 9 | AE19: 8 | AF19: 3 | AG19: 0 | AH19: 9 | AI19: 9 | AJ19: 9 | AK19: 0 | AL19: 0 | AM19: 0 | AN19: 8 | AO19: 1 | AP19: 3 | AQ19: 1
A20: 15 | B20: 駿河区(静岡市) | D20: 7305 | E20: 1858 | F20: 655 | G20: 90 | H20: 102 | I20: 463 | J20: 171.64 | K20: 643 | L20: 305 | M20: 32 | N20: 296 | O20: 33 | P20: 7 | Q20: 49 | R20: 5 | S20: 10 | T20: 34 | U20: 33 | V20: 9 | W20: 6 | X20: - | Y20: 1 | Z20: - | AA20: 30 | AB20: 30 | AC20: 12 | AD20: 32 | AE20: 39 | AF20: 18 | AG20: 5 | AH20: 48 | AI20: 3 | AJ20: 41 | AK20: 2 | AL20: 2 | AM20: 1 | AN20: 45 | AO20: 24 | AP20: 27 | AQ20: 22
A21: 16 | C21: 静岡市2-2 | D21: 7042 | E21: 1797 | F21: 630 | G21: 85 | H21: 97 | I21: 448 | J21: 171.02 | K21: 634 | L21: 299 | M21: 30 | N21: 290 | O21: 32 | P21: 7 | Q21: 47 | R21: 5 | S21: 9 | T21: 33 | U21: 32 | V21: 9 | W21: 6 | X21: - | Y21: - | Z21: - | AA21: 29 | AB21: 28 | AC21: 10 | AD21: 30 | AE21: 37 | AF21: 17 | AG21: 5 | AH21: 46 | AI21: 2 | AJ21: 39 | AK21: 1 | AL21: 2 | AM21: 1 | AN21: 43 | AO21: 24 | AP21: 25 | AQ21: 20
A22: 17 | C22: 有度村２－２ | D22: 263 | E22: 61 | F22: 25 | G22: 5 | H22: 5 | I22: 15 | J22: 0.62 | K22: 9 | L22: 6 | M22: 2 | N22: 6 | O22: 1 | P22: - | Q22: 2 | R22: - | S22: 1 | T22: 1 | U22: 1 | V22: - | W22: - | X22: - | Y22: 1 | Z22: - | AA22: 1 | AB22: 2 | AC22: 2 | AD22: 2 | AE22: 2 | AF22: 1 | AG22: 0 | AH22: 2 | AI22: 1 | AJ22: 2 | AK22: 1 | AL22: 0 | AM22: 0 | AN22: 2 | AO22: 0 | AP22: 2 | AQ22: 2
A23: 18 | B23: 清水区(静岡市) | D23: 26509 | E23: 12327 | F23: 2189 | G23: 52 | H23: 261 | I23: 1876 | J23: 1205.52 | K23: 1686 | L23: 637 | M23: 90 | N23: 602 | O23: 21 | P23: 20 | Q23: 104 | R23: 1 | S23: 5 | T23: 98 | U23: 53 | V23: 30 | W23: 11 | X23: 7 | Y23: 3 | Z23: - | AA23: 74 | AB23: 53 | AC23: 67 | AD23: 82 | AE23: 81 | AF23: 63 | AG23: 3 | AH23: 104 | AI23: 42 | AJ23: 98 | AK23: 10 | AL23: 12 | AM23: 7 | AN23: 92 | AO23: 54 | AP23: 39 | AQ23: 23
A24: 19 | C24: 清水市 | D24: 2650 | E24: 156 | F24: 215 | G24: - | H24: 90 | I24: 125 | J24: 72.55 | K24: 249 | L24: 115 | M24: 13 | N24: 114 | O24: 10 | P24: 2 | Q24: 14 | R24: - | S24: - | T24: 14 | U24: 12 | V24: - | W24: 1 | X24: 1 | Y24: - | Z24: - | AA24: 14 | AB24: 6 | AC24: 5 | AD24: 8 | AE24: 9 | AF24: 8 | AG24: 0 | AH24: 14 | AI24: 1 | AJ24: 13 | AK24: 0 | AL24: 3 | AM24: 2 | AN24: 8 | AO24: 7 | AP24: 0 | AQ24: 0
A25: 20 | C25: 飯田村清水区（静岡市） | D25: 638 | E25: 41 | F25: 42 | G25: 1 | H25: 3 | I25: 38 | J25: 52.33 | K25: 62 | L25: 40 | M25: 2 | N25: 40 | O25: - | P25: - | Q25: 3 | R25: - | S25: - | T25: 3 | U25: 3 | V25: - | W25: - | X25: - | Y25: - | Z25: - | AA25: 2 | AB25: 1 | AC25: 2 | AD25: 0 | AE25: 3 | AF25: 2 | AG25: 0 | AH25: 3 | AI25: 0 | AJ25: 3 | AK25: 0 | AL25: 1 | AM25: 1 | AN25: 3 | AO25: 2 | AP25: 1 | AQ25: 0
A26: 21 | C26: 高部村 | D26: 1004 | E26: 79 | F26: 120 | G26: 8 | H26: 26 | I26: 86 | J26: 127.38 | K26: 119 | L26: 56 | M26: 4 | N26: 52 | O26: - | P26: 2 | Q26: 5 | R26: - | S26: 1 | T26: 4 | U26: 4 | V26: 1 | W26: - | X26: - | Y26: - | Z26: - | AA26: 5 | AB26: 4 | AC26: 5 | AD26: 4 | AE26: 5 | AF26: 3 | AG26: 0 | AH26: 5 | AI26: 2 | AJ26: 5 | AK26: 1 | AL26: 2 | AM26: 1 | AN26: 5 | AO26: 4 | AP26: 5 | AQ26: 4
A27: 22 | C27: 有度村２－１ | D27: 1067 | E27: 78 | F27: 42 | G27: 3 | H27: 5 | I27: 34 | J27: 23.25 | K27: 107 | L27: 70 | M27: 7 | N27: 68 | O27: 2 | P27: 4 | Q27: 4 | R27: - | S27: 1 | T27: 3 | U27: 4 | V27: - | W27: - | X27: - | Y27: - | Z27: - | AA27: 4 | AB27: 1 | AC27: 1 | AD27: 1 | AE27: 4 | AF27: 1 | AG27: 0 | AH27: 4 | AI27: 0 | AJ27: 4 | AK27: 0 | AL27: 2 | AM27: 1 | AN27: 4 | AO27: 3 | AP27: 3 | AQ27: 0
A28: 23 | C28: 興津町 | D28: 1225 | E28: 167 | F28: 241 | G28: - | H28: 16 | I28: 225 | J28: 125.85 | K28: 162 | L28: 61 | M28: 8 | N28: 59 | O28: - | P28: 2 | Q28: 8 | R28: - | S28: - | T28: 8 | U28: 5 | V28: 3 | W28: - | X28: - | Y28: - | Z28: - | AA28: 8 | AB28: 8 | AC28: 6 | AD28: 6 | AE28: 2 | AF28: 0 | AG28: 0 | AH28: 8 | AI28: 4 | AJ28: 8 | AK28: 0 | AL28: 1 | AM28: 0 | AN28: 8 | AO28: 3 | AP28: 4 | AQ28: 3
A29: 24 | C29: 小島村 | D29: 4102 | E29: 2347 | F29: 231 | G29: 2 | H29: 13 | I29: 216 | J29: 163.85 | K29: 156 | L29: 43 | M29: 11 | N29: 39 | O29: - | P29: - | Q29: 9 | R29: 1 | S29: - | T29: 8 | U29: 1 | V29: 4 | W29: 3 | X29: 1 | Y29: - | Z29: - | AA29: 5 | AB29: 4 | AC29: 4 | AD29: 7 | AE29: 7 | AF29: 4 | AG29: 1 | AH29: 9 | AI29: 7 | AJ29: 9 | AK29: 1 | AL29: 0 | AM29: 0 | AN29: 9 | AO29: 7 | AP29: 6 | AQ29: 3
A30: 25 | C30: 両河内村 | D30: 8363 | E30: 6764 | F30: 262 | G30: 32 | H30: 25 | I30: 205 | J30: 118.07 | K30: 184 | L30: 48 | M30: 17 | N30: 41 | O30: 1 | P30: 3 | Q30: 18 | R30: - | S30: 2 | T30: 16 | U30: - | V30: 8 | W30: 4 | X30: 4 | Y30: 2 | Z30: - | AA30: 15 | AB30: 14 | AC30: 16 | AD30: 16 | AE30: 14 | AF30: 12 | AG30: 0 | AH30: 18 | AI30: 13 | AJ30: 18 | AK30: 2 | AL30: 0 | AM30: 0 | AN30: 16 | AO30: 3 | AP30: 12 | AQ30: 9
A31: 26 | C31: 庵原村 | D31: 3231 | E31: 1216 | F31: 660 | G31: - | H31: 35 | I31: 625 | J31: 259.44 | K31: 380 | L31: 110 | M31: 18 | N31: 97 | O31: 3 | P31: 5 | Q31: 12 | R31: - | S31: - | T31: 12 | U31: 2 | V31: 7 | W31: 2 | X31: 1 | Y31: - | Z31: - | AA31: 12 | AB31: 6 | AC31: 3 | AD31: 12 | AE31: 11 | AF31: 10 | AG31: 0 | AH31: 12 | AI31: 8 | AJ31: 12 | AK31: 2 | AL31: 1 | AM31: 1 | AN31: 12 | AO31: 11 | AP31: 2 | AQ31: 2
A32: 27 | C32: 袖師町 | D32: 458 | E32: 3 | F32: 28 | G32: 1 | H32: 2 | I32: 25 | J32: 36.42 | K32: 59 | L32: 15 | M32: 5 | N32: 13 | O32: - | P32: 2 | Q32: 2 | R32: - | S32: - | T32: 2 | U32: 2 | V32: - | W32: - | X32: - | Y32: - | Z32: - | AA32: 2 | AB32: 1 | AC32: 1 | AD32: 1 | AE32: 1 | AF32: 0 | AG32: 0 | AH32: 2 | AI32: 1 | AJ32: 1 | AK32: 0 | AL32: 0 | AM32: 0 | AN32: 2 | AO32: 2 | AP32: 2 | AQ32: 0
A33: 28 | C33: 蒲原町 | D33: 1471 | E33: 418 | F33: 104 | G33: 3 | H33: 29 | I33: 72 | J33: 81.6 | K33: 50 | L33: 11 | M33: 1 | N33: 11 | O33: - | P33: - | Q33: 15 | R33: - | S33: 1 | T33: 14 | U33: 14 | V33: 1 | W33: - | X33: - | Y33: - | Z33: - | AA33: 1 | AB33: 2 | AC33: 14 | AD33: 14 | AE33: 13 | AF33: 14 | AG33: 1 | AH33: 15 | AI33: 5 | AJ33: 13 | AK33: 2 | AL33: 1 | AM33: 1 | AN33: 11 | AO33: 4 | AP33: 3 | AQ33: 2
A34: 29 | C34: 由比町 | D34: 2300 | E34: 1058 | F34: 244 | G34: 2 | H34: 17 | I34: 225 | J34: 144.78 | K34: 158 | L34: 68 | M34: 4 | N34: 68 | O34: 5 | P34: - | Q34: 14 | R34: - | S34: - | T34: 14 | U34: 6 | V34: 6 | W34: 1 | X34: - | Y34: 1 | Z34: - | AA34: 6 | AB34: 6 | AC34: 10 | AD34: 13 | AE34: 12 | AF34: 9 | AG34: 1 | AH34: 14 | AI34: 1 | AJ34: 12 | AK34: 2 | AL34: 1 | AM34: 0 | AN34: 14 | AO34: 8 | AP34: 1 | AQ34: 0
A35: 30 | B35: 浜松市 | D35: 155806 | E35: 101739 | F35: 12577 | G35: 2604 | H35: 4141 | I35: 5832 | J35: 2681.59 | K35: 6453 | L35: 1294 | M35: 148 | N35: 1207 | O35: 34 | P35: 54 | Q35: 704 | R35: 46 | S35: 199 | T35: 459 | U35: 357 | V35: 179 | W35: 87 | X35: 54 | Y35: 19 | Z35: 8 | AA35: 260 | AB35: 513 | AC35: 515 | AD35: 624 | AE35: 649 | AF35: 555 | AG35: 34 | AH35: 687 | AI35: 132 | AJ35: 458 | AK35: 86 | AL35: 100 | AM35: 32 | AN35: 616 | AO35: 356 | AP35: 595 | AQ35: 426
A36: 31 | B36: 中区(浜松市) | D36: 4434 | E36: 145 | F36: 127 | G36: 41 | H36: 63 | I36: 23 | J36: 53.15 | K36: 153 | L36: 36 | M36: 5 | N36: 35 | O36: - | P36: - | Q36: 21 | R36: 2 | S36: 1 | T36: 18 | U36: 19 | V36: 2 | W36: - | X36: - | Y36: - | Z36: - | AA36: 6 | AB36: 11 | AC36: 20 | AD36: 21 | AE36: 21 | AF36: 21 | AG36: 0 | AH36: 21 | AI36: 0 | AJ36: 13 | AK36: 0 | AL36: 1 | AM36: 0 | AN36: 19 | AO36: 10 | AP36: 18 | AQ36: 10
A37: 32 | C37: 浜松市４－１ | D37: 3996 | E37: 110 | F37: 68 | G37: 25 | H37: 35 | I37: 8 | J37: 43.94 | K37: 116 | L37: 32 | M37: 4 | N37: 31 | O37: - | P37: - | Q37: 12 | R37: 1 | S37: - | T37: 11 | U37: 12 | V37: - | W37: - | X37: - | Y37: - | Z37: - | AA37: 0 | AB37: 2 | AC37: 12 | AD37: 12 | AE37: 12 | AF37: 12 | AG37: 0 | AH37: 12 | AI37: 0 | AJ37: 5 | AK37: 0 | AL37: 1 | AM37: 0 | AN37: 10 | AO37: 4 | AP37: 9 | AQ37: 2
A38: 33 | C38: 入野村２－１ | D38: 177 | E38: 13 | F38: 1 | G38: - | H38: 0 | I38: 1 | J38: x | K38: 11 | L38: 2 | M38: 1 | N38: 2 | O38: - | P38: - | Q38: 1 | R38: - | S38: - | T38: 1 | U38: 1 | V38: - | W38: - | X38: - | Y38: - | Z38: - | AA38: 0 | AB38: 1 | AC38: 1 | AD38: 1 | AE38: 1 | AF38: 1 | AG38: 0 | AH38: 1 | AI38: 0 | AJ38: 1 | AK38: 0 | AL38: 0 | AM38: 0 | AN38: 1 | AO38: 0 | AP38: 1 | AQ38: 0
A39: 34 | C39: 吉野村２－１ | D39: 240 | E39: 22 | F39: 47 | G39: 6 | H39: 27 | I39: 14 | J39: 7.49 | K39: 26 | L39: 2 | M39: - | N39: 2 | O39: - | P39: - | Q39: 7 | R39: - | S39: 1 | T39: 6 | U39: 5 | V39: 2 | W39: - | X39: - | Y39: - | Z39: - | AA39: 6 | AB39: 7 | AC39: 6 | AD39: 7 | AE39: 7 | AF39: 7 | AG39: 0 | AH39: 7 | AI39: 0 | AJ39: 7 | AK39: 0 | AL39: 0 | AM39: 0 | AN39: 7 | AO39: 6 | AP39: 7 | AQ39: 7
A40: 35 | C40: 新津村２－１ | D40: 21 | E40: - | F40: 11 | G40: 10 | H40: 1 | I40: 0 | J40: x | K40: - | L40: - | M40: - | N40: - | O40: - | P40: - | Q40: 1 | R40: 1 | S40: - | T40: - | U40: 1 | V40: - | W40: - | X40: - | Y40: - | Z40: - | AA40: 0 | AB40: 1 | AC40: 1 | AD40: 1 | AE40: 1 | AF40: 1 | AG40: 0 | AH40: 1 | AI40: 0 | AJ40: 0 | AK40: 0 | AL40: 0 | AM40: 0 | AN40: 1 | AO40: 0 | AP40: 1 | AQ40: 1
A41: 36 | B41: 東区(浜松市) | D41: 4629 | E41: 20 | F41: 841 | G41: 492 | H41: 286 | I41: 63 | J41: 185.86 | K41: 426 | L41: 129 | M41: 8 | N41: 121 | O41: 2 | P41: 4 | Q41: 99 | R41: 28 | S41: 62 | T41: 9 | U41: 78 | V41: 18 | W41: 3 | X41: - | Y41: - | Z41: - | AA41: 13 | AB41: 88 | AC41: 58 | AD41: 80 | AE41: 87 | AF41: 67 | AG41: 7 | AH41: 99 | AI41: 8 | AJ41: 6 | AK41: 0 | AL41: 6 | AM41: 0 | AN41: 84 | AO41: 70 | AP41: 99 | AQ41: 84
A42: 37 | C42: 浜松市４－３ | D42: 365 | E42: - | F42: … | G42: … | H42: … | I42: … | J42: 3.19 | K42: 10 | L42: 5 | M42: 1 | N42: 5 | O42: 1 | P42: 1 | Q42: - | R42: - | S42: - | T42: - | U42: - | V42: - | W42: - | X42: - | Y42: - | Z42: - | AA42: … | AB42: … | AC42: … | AD42: … | AE42: … | AF42: … | AG42: … | AH42: … | AI42: … | AJ42: … | AK42: … | AL42: … | AM42: … | AN42: … | AO42: … | AP42: … | AQ42: …
A43: 38 | C43: 飯田村２－１東区（浜松市） | D43: 2 | E43: - | F43: … | G43: … | H43: … | I43: … | J43: - | K43: - | L43: - | M43: - | N43: - | O43: - | P43: - | Q43: - | R43: - | S43: - | T43: - | U43: - | V43: - | W43: - | X43: - | Y43: - | Z43: - | AA43: … | AB43: … | AC43: … | AD43: … | AE43: … | AF43: … | AG43: … | AH43: … | AI43: … | AJ43: … | AK43: … | AL43: … | AM43: … | AN43: … | AO43: … | AP43: … | AQ43: …
A44: 39 | C44: 和田村東区（浜松市） | D44: 508 | E44: - | F44: 25 | G44: 16 | H44: 7 | I44: 2 | J44: 6.85 | K44: 13 | L44: 2 | M44: - | N44: 2 | O44: - | P44: - | Q44: 6 | R44: 1 | S44: 3 | T44: 2 | U44: 6 | V44: - | W44: - | X44: - | Y44: - | Z44: - | AA44: 0 | AB44: 5 | AC44: 6 | AD44: 6 | AE44: 6 | AF44: 6 | AG44: 0 | AH44: 6 | AI44: 0 | AJ44: 0 | AK44: 0 | AL44: 1 | AM44: 0 | AN44: 5 | AO44: 4 | AP44: 6 | AQ44: 5
A45: 40 | C45: 長上村 | D45: 909 | E45: - | F45: 215 | G45: 145 | H45: 55 | I45: 15 | J45: 27.13 | K45: 104 | L45: 32 | M45: - | N45: 32 | O45: - | P45: - | Q45: 25 | R45: 11 | S45: 14 | T45: - | U45: 23 | V45: 2 | W45: - | X45: - | Y45: - | Z45: - | AA45: 8 | AB45: 24 | AC45: 16 | AD45: 24 | AE45: 24 | AF45: 19 | AG45: 1 | AH45: 25 | AI45: 2 | AJ45: 0 | AK45: 0 | AL45: 0 | AM45: 0 | AN45: 22 | AO45: 21 | AP45: 25 | AQ45: 24
A46: 41 | C46: 積志村 | D46: 1312 | E46: 20 | F46: 289 | G46: 168 | H46: 88 | I46: 33 | J46: 61.65 | K46: 122 | L46: 30 | M46: 3 | N46: 26 | O46: - | P46: 3 | Q46: 35 | R46: 8 | S46: 24 | T46: 3 | U46: 30 | V46: 5 | W46: - | X46: - | Y46: - | Z46: - | AA46: 0 | AB46: 34 | AC46: 27 | AD46: 33 | AE46: 34 | AF46: 30 | AG46: 1 | AH46: 35 | AI46: 2 | AJ46: 4 | AK46: 0 | AL46: 1 | AM46: 0 | AN46: 28 | AO46: 26 | AP46: 35 | AQ46: 34
A47: 42 | C47: 笠井町 | D47: 251 | E47: - | F47: 81 | G47: 39 | H47: 39 | I47: 3 | J47: 8.89 | K47: 35 | L47: 13 | M47: 1 | N47: 12 | O47: - | P47: - | Q47: 5 | R47: 1 | S47: 3 | T47: 1 | U47: 5 | V47: - | W47: - | X47: - | Y47: - | Z47: - | AA47: 0 | AB47: 1 | AC47: 0 | AD47: 0 | AE47: 1 | AF47: 0 | AG47: 4 | AH47: 5 | AI47: 1 | AJ47: 1 | AK47: 0 | AL47: 1 | AM47: 0 | AN47: 5 | AO47: 3 | AP47: 5 | AQ47: 0
A48: 43 | C48: 豊西村 | D48: 793 | E48: - | F48: 156 | G48: 73 | H48: 76 | I48: 7 | J48: 70.6 | K48: 102 | L48: 27 | M48: 2 | N48: 25 | O48: 1 | P48: - | Q48: 14 | R48: 2 | S48: 10 | T48: 2 | U48: 7 | V48: 6 | W48: 1 | X48: - | Y48: - | Z48: - | AA48: 4 | AB48: 11 | AC48: 8 | AD48: 10 | AE48: 12 | AF48: 6 | AG48: 1 | AH48: 14 | AI48: 1 | AJ48: 1 | AK48: 0 | AL48: 3 | AM48: 0 | AN48: 12 | AO48: 6 | AP48: 14 | AQ48: 8
A49: 44 | C49: 中ノ町村 | D49: 474 | E49: - | F49: 75 | G49: 51 | H49: 21 | I49: 3 | J49: 7.55 | K49: 40 | L49: 20 | M49: 1 | N49: 19 | O49: - | P49: - | Q49: 14 | R49: 5 | S49: 8 | T49: 1 | U49: 7 | V49: 5 | W49: 2 | X49: - | Y49: - | Z49: - | AA49: 1 | AB49: 13 | AC49: 1 | AD49: 7 | AE49: 10 | AF49: 6 | AG49: 0 | AH49: 14 | AI49: 2 | AJ49: 0 | AK49: 0 | AL49: 0 | AM49: 0 | AN49: 12 | AO49: 10 | AP49: 14 | AQ49: 13
A50: 45 | C50: 三方原村２－１ | D50: 15 | E50: - | F50: … | G50: … | H50: … | I50: … | J50: - | K50: - | L50: - | M50: - | N50: - | O50: - | P50: - | Q50: - | R50: - | S50: - | T50: - | U50: - | V50: - | W50: - | X50: - | Y50: - | Z50: - | AA50: … | AB50: … | AC50: … | AD50: … | AE50: … | AF50: … | AG50: … | AH50: … | AI50: … | AJ50: … | AK50: … | AL50: … | AM50: … | AN50: … | AO50: … | AP50: … | AQ50: …
A51: 46 | B51: 西区(浜松市) | D51: 11471 | E51: 843 | F51: 2005 | G51: 393 | H51: 1398 | I51: 214 | J51: 652.93 | K51: 1248 | L51: 213 | M51: 22 | N51: 203 | O51: 11 | P51: 5 | Q51: 83 | R51: 6 | S51: 16 | T51: 61 | U51: 48 | V51: 25 | W51: 9 | X51: 1 | Y51: - | Z51: - | AA51: 51 | AB51: 63 | AC51: 57 | AD51: 70 | AE51: 77 | AF51: 65 | AG51: 1 | AH51: 83 | AI51: 10 | AJ51: 63 | AK51: 11 | AL51: 28 | AM51: 11 | AN51: 73 | AO51: 51 | AP51: 82 | AQ51: 58
A52: 47 | C52: 神久呂村 | D52: 1220 | E52: 189 | F52: 356 | G52: 53 | H52: 246 | I52: 57 | J52: 109.23 | K52: 214 | L52: 36 | M52: 5 | N52: 35 | O52: 1 | P52: - | Q52: 11 | R52: 1 | S52: 1 | T52: 9 | U52: 4 | V52: 5 | W52: 1 | X52: 1 | Y52: - | Z52: - | AA52: 11 | AB52: 11 | AC52: 11 | AD52: 11 | AE52: 11 | AF52: 10 | AG52: 0 | AH52: 11 | AI52: 1 | AJ52: 11 | AK52: 2 | AL52: 5 | AM52: 0 | AN52: 11 | AO52: 11 | AP52: 11 | AQ52: 9
A53: 48 | C53: 入野村２－２ | D53: 794 | E53: 56 | F53: 80 | G53: 35 | H53: 34 | I53: 11 | J53: 48.56 | K53: 50 | L53: 19 | M53: 2 | N53: 19 | O53: - | P53: 1 | Q53: 11 | R53: 2 | S53: 6 | T53: 3 | U53: 10 | V53: 1 | W53: - | X53: - | Y53: - | Z53: - | AA53: 7 | AB53: 3 | AC53: 5 | AD53: 10 | AE53: 11 | AF53: 9 | AG53: 0 | AH53: 11 | AI53: 0 | AJ53: 6 | AK53: 0 | AL53: 2 | AM53: 0 | AN53: 9 | AO53: 0 | AP53: 11 | AQ53: 1
A54: 49 | C54: 吉野村２－２ | D54: 30 | E54: - | F54: 3 | G54: - | H54: 3 | I54: 0 | J54: 0.43 | K54: 3 | L54: 1 | M54: 1 | N54: 1 | O54: - | P54: - | Q54: 3 | R54: - | S54: - | T54: 3 | U54: 3 | V54: - | W54: - | X54: - | Y54: - | Z54: - | AA54: 2 | AB54: 2 | AC54: 2 | AD54: 2 | AE54: 2 | AF54: 2 | AG54: 1 | AH54: 3 | AI54: 0 | AJ54: 3 | AK54: 0 | AL54: 0 | AM54: 0 | AN54: 3 | AO54: 1 | AP54: 3 | AQ54: 2
A55: 50 | C55: 和地村 | D55: 927 | E55: 89 | F55: 283 | G55: 38 | H55: 180 | I55: 65 | J55: 75.95 | K55: 180 | L55: 30 | M55: 10 | N55: 24 | O55: 1 | P55: - | Q55: 9 | R55: 1 | S55: - | T55: 8 | U55: - | V55: 6 | W55: 3 | X55: - | Y55: - | Z55: - | AA55: 0 | AB55: 9 | AC55: 7 | AD55: 9 | AE55: 9 | AF55: 9 | AG55: 0 | AH55: 9 | AI55: 1 | AJ55: 8 | AK55: 3 | AL55: 2 | AM55: 1 | AN55: 7 | AO55: 6 | AP55: 9 | AQ55: 9
A56: 51 | C56: 伊佐見村 | D56: 1480 | E56: 171 | F56: 390 | G56: 79 | H56: 290 | I56: 21 | J56: 145.36 | K56: 252 | L56: 36 | M56: 2 | N56: 34 | O56: - | P56: 1 | Q56: 6 | R56: - | S56: 1 | T56: 5 | U56: 1 | V56: 3 | W56: 2 | X56: - | Y56: - | Z56: - | AA56: 6 | AB56: 6 | AC56: 6 | AD56: 6 | AE56: 6 | AF56: 6 | AG56: 0 | AH56: 6 | AI56: 0 | AJ56: 6 | AK56: 0 | AL56: 2 | AM56: 1 | AN56: 6 | AO56: 6 | AP56: 6 | AQ56: 6
A57: 52 | C57: 篠原村 | D57: 1076 | E57: 14 | F57: 214 | G57: 32 | H57: 177 | I57: 5 | J57: 51.68 | K57: 188 | L57: 7 | M57: - | N57: 6 | O57: - | P57: 1 | Q57: 24 | R57: 1 | S57: 4 | T57: 19 | U57: 18 | V57: 6 | W57: - | X57: - | Y57: - | Z57: - | AA57: 17 | AB57: 16 | AC57: 8 | AD57: 15 | AE57: 20 | AF57: 12 | AG57: 0 | AH57: 24 | AI57: 5 | AJ57: 15 | AK57: 0 | AL57: 1 | AM57: 0 | AN57: 20 | AO57: 14 | AP57: 24 | AQ57: 16
A58: 53 | C58: 北庄内村 | D58: 1633 | E58: 176 | F58: 248 | G58: 26 | H58: 179 | I58: 43 | J58: 93.66 | K58: 219 | L58: 59 | M58: - | N58: 59 | O58: 8 | P58: 1 | Q58: 5 | R58: - | S58: - | T58: 5 | U58: 1 | V58: 1 | W58: 3 | X58: - | Y58: - | Z58: - | AA58: 1 | AB58: 5 | AC58: 5 | AD58: 5 | AE58: 5 | AF58: 5 | AG58: 0 | AH58: 5 | AI58: 1 | AJ58: 5 | AK58: 3 | AL58: 5 | AM58: 5 | AN58: 5 | AO58: 5 | AP58: 5 | AQ58: 5
A59: 54 | C59: 南庄内村 | D59: 652 | E59: 46 | F59: 97 | G59: 21 | H59: 72 | I59: 4 | J59: 54.65 | K59: 34 | L59: 8 | M59: - | N59: 8 | O59: - | P59: - | Q59: 3 | R59: - | S59: 1 | T59: 2 | U59: - | V59: 3 | W59: - | X59: - | Y59: - | Z59: - | AA59: 0 | AB59: 3 | AC59: 3 | AD59: 3 | AE59: 3 | AF59: 3 | AG59: 0 | AH59: 3 | AI59: 1 | AJ59: 3 | AK59: 3 | AL59: 3 | AM59: 3 | AN59: 3 | AO59: 3 | AP59: 3 | AQ59: 3
A60: 55 | C60: 村櫛村 | D60: 1756 | E60: 39 | F60: 114 | G60: 24 | H60: 88 | I60: 2 | J60: 28.42 | K60: 20 | L60: 4 | M60: - | N60: 4 | O60: - | P60: - | Q60: 2 | R60: - | S60: - | T60: 2 | U60: 2 | V60: - | W60: - | X60: - | Y60: - | Z60: - | AA60: 2 | AB60: 2 | AC60: 2 | AD60: 2 | AE60: 2 | AF60: 2 | AG60: 0 | AH60: 2 | AI60: 0 | AJ60: 1 | AK60: 0 | AL60: 2 | AM60: 0 | AN60: 2 | AO60: 2 | AP60: 2 | AQ60: 2
A61: 56 | C61: 舞阪町 | D61: 726 | E61: 1 | F61: 35 | G61: - | H61: 35 | I61: - | J61: 3.36 | K61: 14 | L61: - | M61: - | N61: - | O61: - | P61: - | Q61: 3 | R61: - | S61: - | T61: 3 | U61: 3 | V61: - | W61: - | X61: - | Y61: - | Z61: - | AA61: 2 | AB61: 1 | AC61: 2 | AD61: 1 | AE61: 2 | AF61: 1 | AG61: 0 | AH61: 3 | AI61: 0 | AJ61: 2 | AK61: 0 | AL61: 0 | AM61: 0 | AN61: 1 | AO61: 1 | AP61: 2 | AQ61: 1
A62: 57 | C62: 雄踏町 | D62: 1039 | E62: 62 | F62: 185 | G62: 85 | H62: 94 | I62: 6 | J62: 41.63 | K62: 74 | L62: 13 | M62: 2 | N62: 13 | O62: 1 | P62: 1 | Q62: 6 | R62: 1 | S62: 3 | T62: 2 | U62: 6 | V62: - | W62: - | X62: - | Y62: - | Z62: - | AA62: 3 | AB62: 5 | AC62: 6 | AD62: 6 | AE62: 6 | AF62: 6 | AG62: 0 | AH62: 6 | AI62: 1 | AJ62: 3 | AK62: 0 | AL62: 6 | AM62: 1 | AN62: 6 | AO62: 2 | AP62: 6 | AQ62: 4
A63: 58 | C63: 浜松市４－２ | D63: 138 | E63: - | F63: … | G63: … | H63: … | I63: … | J63: - | K63: - | L63: - | M63: - | N63: - | O63: - | P63: - | Q63: - | R63: - | S63: - | T63: - | U63: - | V63: - | W63: - | X63: - | Y63: - | Z63: - | AA63: … | AB63: … | AC63: … | AD63: … | AE63: … | AF63: … | AG63: … | AH63: … | AI63: … | AJ63: … | AK63: … | AL63: … | AM63: … | AN63: … | AO63: … | AP63: … | AQ63: …
A64: 59 | B64: 南区(浜松市) | D64: 4684 | E64: 190 | F64: 1010 | G64: 460 | H64: 527 | I64: 23 | J64: 250.38 | K64: 569 | L64: 110 | M64: 4 | N64: 106 | O64: - | P64: 4 | Q64: 78 | R64: 8 | S64: 53 | T64: 17 | U64: 54 | V64: 20 | W64: 4 | X64: - | Y64: - | Z64: - | AA64: 32 | AB64: 65 | AC64: 67 | AD64: 70 | AE64: 71 | AF64: 68 | AG64: 6 | AH64: 77 | AI64: 4 | AJ64: 10 | AK64: 0 | AL64: 3 | AM64: 2 | AN64: 53 | AO64: 45 | AP64: 77 | AQ64: 64
A65: 60 | C65: 浜松市４－４ | D65: 858 | E65: 56 | F65: 194 | G65: 126 | H65: 62 | I65: 6 | J65: 32.62 | K65: 84 | L65: 21 | M65: 1 | N65: 19 | O65: - | P65: 1 | Q65: 8 | R65: 1 | S65: 7 | T65: - | U65: 7 | V65: 1 | W65: - | X65: - | Y65: - | Z65: - | AA65: 0 | AB65: 8 | AC65: 8 | AD65: 8 | AE65: 8 | AF65: 8 | AG65: 0 | AH65: 8 | AI65: 0 | AJ65: 2 | AK65: 0 | AL65: 0 | AM65: 0 | AN65: 5 | AO65: 5 | AP65: 8 | AQ65: 8
A66: 61 | C66: 芳川村 | D66: 786 | E66: - | F66: 152 | G66: 81 | H66: 68 | I66: 3 | J66: 44.89 | K66: 82 | L66: 26 | M66: 1 | N66: 26 | O66: - | P66: - | Q66: 18 | R66: 1 | S66: 12 | T66: 5 | U66: 15 | V66: 2 | W66: 1 | X66: - | Y66: - | Z66: - | AA66: 4 | AB66: 15 | AC66: 13 | AD66: 16 | AE66: 16 | AF66: 15 | AG66: 1 | AH66: 17 | AI66: 1 | AJ66: 0 | AK66: 0 | AL66: 2 | AM66: 1 | AN66: 13 | AO66: 10 | AP66: 17 | AQ66: 15
A67: 62 | C67: 飯田村２－１南区（浜松市） | D67: 605 | E67: - | F67: 91 | G67: 31 | H67: 56 | I67: 4 | J67: 25.4 | K67: 48 | L67: 11 | M67: - | N67: 11 | O67: - | P67: - | Q67: 12 | R67: - | S67: 9 | T67: 3 | U67: 9 | V67: 3 | W67: - | X67: - | Y67: - | Z67: - | AA67: 0 | AB67: 7 | AC67: 6 | AD67: 6 | AE67: 7 | AF67: 5 | AG67: 5 | AH67: 12 | AI67: 1 | AJ67: 0 | AK67: 0 | AL67: 0 | AM67: 0 | AN67: 7 | AO67: 5 | AP67: 12 | AQ67: 7
A68: 63 | C68: 河輪村 | D68: 347 | E68: - | F68: 71 | G68: 32 | H68: 36 | I68: 3 | J68: 25.26 | K68: 34 | L68: 9 | M68: - | N68: 9 | O68: - | P68: - | Q68: 8 | R68: - | S68: 6 | T68: 2 | U68: 6 | V68: 2 | W68: - | X68: - | Y68: - | Z68: - | AA68: 3 | AB68: 8 | AC68: 8 | AD68: 8 | AE68: 8 | AF68: 8 | AG68: 0 | AH68: 8 | AI68: 2 | AJ68: 0 | AK68: 0 | AL68: 0 | AM68: 0 | AN68: 6 | AO68: 6 | AP68: 8 | AQ68: 8
A69: 64 | C69: 五島村 | D69: 722 | E69: 68 | F69: 188 | G69: 69 | H69: 117 | I69: 2 | J69: 39.03 | K69: 128 | L69: 18 | M69: 2 | N69: 17 | O69: - | P69: - | Q69: 18 | R69: 5 | S69: 8 | T69: 5 | U69: 6 | V69: 9 | W69: 3 | X69: - | Y69: - | Z69: - | AA69: 18 | AB69: 18 | AC69: 18 | AD69: 18 | AE69: 18 | AF69: 18 | AG69: 0 | AH69: 18 | AI69: 0 | AJ69: 5 | AK69: 0 | AL69: 1 | AM69: 1 | AN69: 13 | AO69: 13 | AP69: 18 | AQ69: 18
A70: 65 | C70: 新津村２－２ | D70: 967 | E70: 64 | F70: 278 | G70: 104 | H70: 170 | I70: 4 | J70: 67.48 | K70: 179 | L70: 23 | M70: - | N70: 22 | O70: - | P70: 3 | Q70: 7 | R70: 1 | S70: 4 | T70: 2 | U70: 4 | V70: 3 | W70: - | X70: - | Y70: - | Z70: - | AA70: 6 | AB70: 6 | AC70: 7 | AD70: 7 | AE70: 7 | AF70: 7 | AG70: 0 | AH70: 7 | AI70: 0 | AJ70: 3 | AK70: 0 | AL70: 0 | AM70: 0 | AN70: 3 | AO70: 1 | AP70: 7 | AQ70: 5
A71: 66 | C71: 可美村 | D71: 399 | E71: 2 | F71: 36 | G71: 17 | H71: 18 | I71: 1 | J71: 15.7 | K71: 14 | L71: 2 | M71: - | N71: 2 | O71: - | P71: - | Q71: 7 | R71: - | S71: 7 | T71: - | U71: 7 | V71: - | W71: - | X71: - | Y71: - | Z71: - | AA71: 1 | AB71: 3 | AC71: 7 | AD71: 7 | AE71: 7 | AF71: 7 | AG71: 0 | AH71: 7 | AI71: 0 | AJ71: 0 | AK71: 0 | AL71: 0 | AM71: 0 | AN71: 6 | AO71: 5 | AP71: 7 | AQ71: 3
A72: 67 | B72: 北区(浜松市) | D72: 29554 | E72: 13904 | F72: 5714 | G72: 746 | H72: 848 | I72: 4120 | J72: 660.59 | K72: 2878 | L72: 501 | M72: 64 | N72: 458 | O72: 17 | P72: 26 | Q72: 139 | R72: 1 | S72: 24 | T72: 114 | U72: 35 | V72: 51 | W72: 24 | X72: 20 | Y72: 5 | Z72: 4 | AA72: 77 | AB72: 124 | AC72: 116 | AD72: 133 | AE72: 132 | AF72: 124 | AG72: 2 | AH72: 138 | AI72: 52 | AJ72: 127 | AK72: 36 | AL72: 44 | AM72: 13 | AN72: 126 | AO72: 95 | AP72: 138 | AQ72: 106
A73: 68 | C73: 三方原村２－２ | D73: 1628 | E73: - | F73: 590 | G73: 4 | H73: 394 | I73: 192 | J73: 121.74 | K73: 258 | L73: 96 | M73: 13 | N73: 87 | O73: 1 | P73: 4 | Q73: 21 | R73: - | S73: - | T73: 21 | U73: 14 | V73: 7 | W73: - | X73: - | Y73: - | Z73: - | AA73: 15 | AB73: 18 | AC73: 20 | AD73: 21 | AE73: 19 | AF73: 18 | AG73: 0 | AH73: 21 | AI73: 1 | AJ73: 13 | AK73: 6 | AL73: 2 | AM73: 1 | AN73: 16 | AO73: 8 | AP73: 21 | AQ73: 10
A74: 69 | C74: 都田村 | D74: 3015 | E74: 1055 | F74: 757 | G74: 89 | H74: 125 | I74: 543 | J74: 73.84 | K74: 349 | L74: 83 | M74: 16 | N74: 73 | O74: 6 | P74: 5 | Q74: 18 | R74: - | S74: 3 | T74: 15 | U74: 2 | V74: 8 | W74: 4 | X74: 2 | Y74: - | Z74: 2 | AA74: 3 | AB74: 16 | AC74: 16 | AD74: 16 | AE74: 16 | AF74: 14 | AG74: 1 | AH74: 18 | AI74: 1 | AJ74: 18 | AK74: 4 | AL74: 7 | AM74: 2 | AN74: 17 | AO74: 15 | AP74: 18 | AQ74: 14
A75: 70 | C75: 気賀町 | D75: 2709 | E75: 823 | F75: 638 | G75: 114 | H75: 58 | I75: 466 | J75: 123.58 | K75: 329 | L75: 77 | M75: 4 | N75: 75 | O75: 1 | P75: 1 | Q75: 12 | R75: - | S75: 2 | T75: 10 | U75: 5 | V75: 4 | W75: 3 | X75: - | Y75: - | Z75: - | AA75: 8 | AB75: 10 | AC75: 9 | AD75: 11 | AE75: 11 | AF75: 11 | AG75: 1 | AH75: 11 | AI75: 0 | AJ75: 12 | AK75: 0 | AL75: 5 | AM75: 2 | AN75: 11 | AO75: 10 | AP75: 11 | AQ75: 9
A76: 71 | C76: 中川村北区（浜松市） | D76: 1176 | E76: 252 | F76: 411 | G76: 176 | H76: 44 | I76: 191 | J76: 45.47 | K76: 229 | L76: 65 | M76: 7 | N76: 61 | O76: 2 | P76: 2 | Q76: 8 | R76: 1 | S76: 5 | T76: 2 | U76: 1 | V76: 7 | W76: - | X76: - | Y76: - | Z76: - | AA76: 6 | AB76: 8 | AC76: 6 | AD76: 8 | AE76: 8 | AF76: 8 | AG76: 0 | AH76: 8 | AI76: 1 | AJ76: 7 | AK76: 1 | AL76: 0 | AM76: 0 | AN76: 7 | AO76: 7 | AP76: 8 | AQ76: 8
A77: 72 | C77: 金指町 | D77: 98 | E77: 19 | F77: 16 | G77: 1 | H77: 9 | I77: 6 | J77: 8.81 | K77: 11 | L77: 2 | M77: 1 | N77: 2 | O77: - | P77: 1 | Q77: 2 | R77: - | S77: - | T77: 2 | U77: 2 | V77: - | W77: - | X77: - | Y77: - | Z77: - | AA77: 0 | AB77: 2 | AC77: 1 | AD77: 2 | AE77: 2 | AF77: 2 | AG77: 0 | AH77: 2 | AI77: 0 | AJ77: 1 | AK77: 0 | AL77: 0 | AM77: 0 | AN77: 2 | AO77: 1 | AP77: 2 | AQ77: 2
A78: 73 | C78: 井伊谷村 | D78: 1240 | E78: 534 | F78: 279 | G78: 37 | H78: 47 | I78: 195 | J78: 33.79 | K78: 161 | L78: 29 | M78: 1 | N78: 28 | O78: - | P78: 1 | Q78: 9 | R78: - | S78: 1 | T78: 8 | U78: 3 | V78: 3 | W78: 2 | X78: 1 | Y78: - | Z78: - | AA78: 2 | AB78: 8 | AC78: 9 | AD78: 9 | AE78: 9 | AF78: 9 | AG78: 0 | AH78: 9 | AI78: 3 | AJ78: 9 | AK78: 4 | AL78: 2 | AM78: 1 | AN78: 9 | AO78: 8 | AP78: 9 | AQ78: 8
A79: 74 | C79: 奥山村 | D79: 2848 | E79: 1911 | F79: 357 | G79: 73 | H79: 49 | I79: 235 | J79: 47.6 | K79: 154 | L79: 36 | M79: 4 | N79: 34 | O79: 2 | P79: 2 | Q79: 14 | R79: - | S79: 2 | T79: 12 | U79: - | V79: 6 | W79: 2 | X79: 3 | Y79: 1 | Z79: 2 | AA79: 6 | AB79: 11 | AC79: 12 | AD79: 14 | AE79: 14 | AF79: 14 | AG79: 0 | AH79: 14 | AI79: 9 | AJ79: 14 | AK79: 9 | AL79: 1 | AM79: 1 | AN79: 14 | AO79: 13 | AP79: 14 | AQ79: 10
A80: 75 | C80: 伊平村 | D80: 3067 | E80: 2506 | F80: 192 | G80: 34 | H80: 30 | I80: 128 | J80: 52.76 | K80: 96 | L80: 8 | M80: 3 | N80: 6 | O80: - | P80: 1 | Q80: 14 | R80: - | S80: 3 | T80: 11 | U80: 2 | V80: 5 | W80: 3 | X80: 3 | Y80: 1 | Z80: - | AA80: 2 | AB80: 14 | AC80: 5 | AD80: 12 | AE80: 13 | AF80: 10 | AG80: 0 | AH80: 14 | AI80: 9 | AJ80: 14 | AK80: 7 | AL80: 8 | AM80: 1 | AN80: 12 | AO80: 6 | AP80: 14 | AQ80: 13
A81: 76 | C81: 鎮玉村 | D81: 4873 | E81: 3700 | F81: 281 | G81: 79 | H81: 30 | I81: 172 | J81: 53.37 | K81: 139 | L81: 18 | M81: 3 | N81: 17 | O81: - | P81: 1 | Q81: 10 | R81: - | S81: 4 | T81: 6 | U81: - | V81: 1 | W81: 3 | X81: 5 | Y81: 1 | Z81: - | AA81: 7 | AB81: 10 | AC81: 10 | AD81: 10 | AE81: 10 | AF81: 9 | AG81: 0 | AH81: 10 | AI81: 9 | AJ81: 10 | AK81: 3 | AL81: 2 | AM81: 0 | AN81: 10 | AO81: 7 | AP81: 10 | AQ81: 10
A82: 77 | C82: 三ヶ日町 | D82: 6050 | E82: 2549 | F82: 1815 | G82: 97 | H82: 42 | I82: 1676 | J82: 37.78 | K82: 859 | L82: 54 | M82: 8 | N82: 47 | O82: 5 | P82: 6 | Q82: 19 | R82: - | S82: 4 | T82: 15 | U82: 4 | V82: 5 | W82: 4 | X82: 5 | Y82: 1 | Z82: - | AA82: 16 | AB82: 18 | AC82: 18 | AD82: 18 | AE82: 18 | AF82: 18 | AG82: 0 | AH82: 19 | AI82: 14 | AJ82: 17 | AK82: 2 | AL82: 8 | AM82: 2 | AN82: 18 | AO82: 16 | AP82: 19 | AQ82: 16
A83: 78 | C83: 東浜名村 | D83: 2850 | E83: 555 | F83: 378 | G83: 42 | H83: 20 | I83: 316 | J83: 61.85 | K83: 293 | L83: 33 | M83: 4 | N83: 28 | O83: - | P83: 2 | Q83: 12 | R83: - | S83: - | T83: 12 | U83: 2 | V83: 5 | W83: 3 | X83: 1 | Y83: 1 | Z83: - | AA83: 12 | AB83: 9 | AC83: 10 | AD83: 12 | AE83: 12 | AF83: 11 | AG83: 0 | AH83: 12 | AI83: 5 | AJ83: 12 | AK83: 0 | AL83: 9 | AM83: 3 | AN83: 10 | AO83: 4 | AP83: 12 | AQ83: 6
A84: 79 | B84: 浜北区(浜松市) | D84: 6650 | E84: 1297 | F84: 1538 | G84: 374 | H84: 569 | I84: 595 | J84: 554.44 | K84: 663 | L84: 174 | M84: 14 | N84: 166 | O84: 3 | P84: 9 | Q84: 78 | R84: 1 | S84: 34 | T84: 43 | U84: 54 | V84: 21 | W84: 2 | X84: - | Y84: 1 | Z84: - | AA84: 20 | AB84: 67 | AC84: 54 | AD84: 78 | AE84: 78 | AF84: 77 | AG84: 0 | AH84: 78 | AI84: 4 | AJ84: 34 | AK84: 1 | AL84: 10 | AM84: 3 | AN84: 65 | AO84: 56 | AP84: 70 | AQ84: 58
A85: 80 | C85: 小野口村 | D85: 1020 | E85: 60 | F85: 283 | G85: 118 | H85: 71 | I85: 94 | J85: 39.4 | K85: 103 | L85: 27 | M85: 4 | N85: 27 | O85: 1 | P85: 1 | Q85: 16 | R85: 1 | S85: 10 | T85: 5 | U85: 11 | V85: 5 | W85: - | X85: - | Y85: - | Z85: - | AA85: 3 | AB85: 14 | AC85: 15 | AD85: 16 | AE85: 16 | AF85: 16 | AG85: 0 | AH85: 16 | AI85: 0 | AJ85: 5 | AK85: 0 | AL85: 0 | AM85: 0 | AN85: 13 | AO85: 13 | AP85: 13 | AQ85: 12
A86: 81 | C86: 北浜村 | D86: 948 | E86: 7 | F86: 223 | G86: 42 | H86: 103 | I86: 78 | J86: 181.63 | K86: 108 | L86: 16 | M86: 2 | N86: 15 | O86: - | P86: - | Q86: 22 | R86: - | S86: 8 | T86: 14 | U86: 20 | V86: 2 | W86: - | X86: - | Y86: - | Z86: - | AA86: 2 | AB86: 20 | AC86: 22 | AD86: 22 | AE86: 22 | AF86: 22 | AG86: 0 | AH86: 22 | AI86: 0 | AJ86: 5 | AK86: 0 | AL86: 0 | AM86: 0 | AN86: 16 | AO86: 13 | AP86: 21 | AQ86: 18
A87: 82 | C87: 竜池村 | D87: 624 | E87: 1 | F87: 136 | G87: 49 | H87: 74 | I87: 13 | J87: 50.29 | K87: 29 | L87: 9 | M87: 1 | N87: 8 | O87: - | P87: 1 | Q87: 8 | R87: - | S87: 6 | T87: 2 | U87: 5 | V87: 3 | W87: - | X87: - | Y87: - | Z87: - | AA87: 7 | AB87: 8 | AC87: 4 | AD87: 8 | AE87: 8 | AF87: 8 | AG87: 0 | AH87: 8 | AI87: 0 | AJ87: 1 | AK87: 0 | AL87: 0 | AM87: 0 | AN87: 7 | AO87: 6 | AP87: 8 | AQ87: 6
A88: 83 | C88: 中瀬村 | D88: 928 | E88: 16 | F88: 195 | G88: 4 | H88: 163 | I88: 28 | J88: 109.66 | K88: 70 | L88: 13 | M88: - | N88: 13 | O88: 1 | P88: - | Q88: 8 | R88: - | S88: - | T88: 8 | U88: 6 | V88: 2 | W88: - | X88: - | Y88: - | Z88: - | AA88: 0 | AB88: 2 | AC88: 0 | AD88: 8 | AE88: 8 | AF88: 8 | AG88: 0 | AH88: 8 | AI88: 1 | AJ88: 6 | AK88: 0 | AL88: 2 | AM88: 0 | AN88: 8 | AO88: 5 | AP88: 4 | AQ88: 2
A89: 84 | C89: 赤佐村 | D89: 921 | E89: 282 | F89: 178 | G89: 62 | H89: 62 | I89: 54 | J89: 64.83 | K89: 61 | L89: 21 | M89: 1 | N89: 21 | O89: - | P89: 2 | Q89: 11 | R89: - | S89: 5 | T89: 6 | U89: 10 | V89: 1 | W89: - | X89: - | Y89: - | Z89: - | AA89: 3 | AB89: 10 | AC89: 4 | AD89: 11 | AE89: 11 | AF89: 10 | AG89: 0 | AH89: 11 | AI89: 0 | AJ89: 7 | AK89: 0 | AL89: 3 | AM89: 1 | AN89: 9 | AO89: 7 | AP89: 11 | AQ89: 8
A90: 85 | C90: 麁玉村 | D90: 2209 | E90: 931 | F90: 523 | G90: 99 | H90: 96 | I90: 328 | J90: 108.63 | K90: 292 | L90: 88 | M90: 6 | N90: 82 | O90: 1 | P90: 5 | Q90: 13 | R90: - | S90: 5 | T90: 8 | U90: 2 | V90: 8 | W90: 2 | X90: - | Y90: 1 | Z90: - | AA90: 5 | AB90: 13 | AC90: 9 | AD90: 13 | AE90: 13 | AF90: 13 | AG90: 0 | AH90: 13 | AI90: 3 | AJ90: 10 | AK90: 1 | AL90: 5 | AM90: 2 | AN90: 12 | AO90: 12 | AP90: 13 | AQ90: 12
A91: 86 | B91: 天竜区(浜松市) | D91: 94384 | E91: 85340 | F91: 1342 | G91: 98 | H91: 450 | I91: 794 | J91: 324.24 | K91: 516 | L91: 131 | M91: 31 | N91: 118 | O91: 1 | P91: 6 | Q91: 206 | R91: - | S91: 9 | T91: 197 | U91: 69 | V91: 42 | W91: 45 | X91: 33 | Y91: 13 | Z91: 4 | AA91: 61 | AB91: 95 | AC91: 143 | AD91: 172 | AE91: 183 | AF91: 133 | AG91: 18 | AH91: 191 | AI91: 54 | AJ91: 205 | AK91: 38 | AL91: 8 | AM91: 3 | AN91: 196 | AO91: 29 | AP91: 111 | AQ91: 46
A92: 87 | C92: 二俣町 | D92: 747 | E92: 419 | F92: 17 | G92: - | H92: 13 | I92: 4 | J92: 3.3 | K92: 4 | L92: - | M92: - | N92: - | O92: - | P92: - | Q92: 7 | R92: - | S92: - | T92: 7 | U92: 6 | V92: - | W92: 1 | X92: - | Y92: - | Z92: - | AA92: 0 | AB92: 1 | AC92: 2 | AD92: 4 | AE92: 6 | AF92: 0 | AG92: 1 | AH92: 7 | AI92: 0 | AJ92: 7 | AK92: 0 | AL92: 1 | AM92: 0 | AN92: 7 | AO92: 1 | AP92: 0 | AQ92: 0
A93: 88 | C93: 光明村 | D93: 4097 | E93: 3638 | F93: 66 | G93: 3 | H93: 27 | I93: 36 | J93: 31.07 | K93: 40 | L93: 13 | M93: 2 | N93: 12 | O93: - | P93: 1 | Q93: 15 | R93: - | S93: 1 | T93: 14 | U93: 9 | V93: 3 | W93: - | X93: 3 | Y93: - | Z93: - | AA93: 0 | AB93: 3 | AC93: 6 | AD93: 15 | AE93: 15 | AF93: 4 | AG93: 0 | AH93: 11 | AI93: 4 | AJ93: 14 | AK93: 1 | AL93: 1 | AM93: 1 | AN93: 15 | AO93: 1 | AP93: 5 | AQ93: 2
A94: 89 | C94: 上阿多古村 | D94: 2804 | E94: 2282 | F94: 118 | G94: 11 | H94: 27 | I94: 80 | J94: 22.84 | K94: 46 | L94: 6 | M94: 1 | N94: 5 | O94: - | P94: - | Q94: 11 | R94: - | S94: 1 | T94: 10 | U94: 1 | V94: 4 | W94: - | X94: 5 | Y94: - | Z94: 1 | AA94: 0 | AB94: 1 | AC94: 4 | AD94: 10 | AE94: 10 | AF94: 5 | AG94: 1 | AH94: 11 | AI94: 1 | AJ94: 11 | AK94: 1 | AL94: 0 | AM94: 0 | AN94: 10 | AO94: 2 | AP94: 9 | AQ94: 1
A95: 90 | C95: 下阿多古村 | D95: 2743 | E95: 2076 | F95: 84 | G95: 16 | H95: 49 | I95: 19 | J95: 40.42 | K95: 18 | L95: 3 | M95: 1 | N95: 3 | O95: - | P95: - | Q95: 8 | R95: - | S95: 1 | T95: 7 | U95: 6 | V95: 2 | W95: - | X95: - | Y95: - | Z95: - | AA95: 0 | AB95: 2 | AC95: 0 | AD95: 7 | AE95: 7 | AF95: 3 | AG95: 1 | AH95: 7 | AI95: 0 | AJ95: 8 | AK95: 1 | AL95: 0 | AM95: 0 | AN95: 8 | AO95: 1 | AP95: 5 | AQ95: 2
A96: 91 | C96: 熊村 | D96: 3168 | E96: 2779 | F96: 84 | G96: 10 | H96: 40 | I96: 34 | J96: 20.07 | K96: 54 | L96: 5 | M96: 1 | N96: 5 | O96: - | P96: - | Q96: 21 | R96: - | S96: 3 | T96: 18 | U96: 3 | V96: - | W96: 3 | X96: 8 | Y96: 6 | Z96: 1 | AA96: 2 | AB96: 10 | AC96: 8 | AD96: 17 | AE96: 19 | AF96: 2 | AG96: 2 | AH96: 20 | AI96: 11 | AJ96: 21 | AK96: 10 | AL96: 0 | AM96: 0 | AN96: 21 | AO96: 5 | AP96: 16 | AQ96: 10
A97: 92 | C97: 竜川村 | D97: 4610 | E97: 3765 | F97: 75 | G97: 1 | H97: 44 | I97: 30 | J97: 15.78 | K97: 27 | L97: 11 | M97: 2 | N97: 10 | O97: - | P97: - | Q97: 18 | R97: - | S97: - | T97: 18 | U97: 8 | V97: 3 | W97: 5 | X97: - | Y97: 1 | Z97: 1 | AA97: 1 | AB97: 2 | AC97: 14 | AD97: 10 | AE97: 15 | AF97: 15 | AG97: 3 | AH97: 15 | AI97: 4 | AJ97: 18 | AK97: 3 | AL97: 0 | AM97: 0 | AN97: 18 | AO97: 0 | AP97: 3 | AQ97: 2
A98: 93 | C98: 犬居町 | D98: 3146 | E98: 2737 | F98: 104 | G98: 5 | H98: 24 | I98: 75 | J98: 16.59 | K98: 39 | L98: 10 | M98: 3 | N98: 9 | O98: - | P98: 1 | Q98: 10 | R98: - | S98: - | T98: 10 | U98: 2 | V98: 4 | W98: 4 | X98: - | Y98: - | Z98: - | AA98: 10 | AB98: 8 | AC98: 10 | AD98: 10 | AE98: 10 | AF98: 10 | AG98: 0 | AH98: 10 | AI98: 2 | AJ98: 10 | AK98: 0 | AL98: 1 | AM98: 1 | AN98: 9 | AO98: 2 | AP98: 10 | AQ98: 1
A99: 94 | C99: 気多村 | D99: 10912 | E99: 9874 | F99: 134 | G99: 17 | H99: 37 | I99: 80 | J99: 37.75 | K99: 27 | L99: 7 | M99: 1 | N99: 7 | O99: - | P99: - | Q99: 19 | R99: - | S99: 2 | T99: 17 | U99: 6 | V99: 8 | W99: 4 | X99: 1 | Y99: - | Z99: - | AA99: 18 | AB99: 13 | AC99: 18 | AD99: 18 | AE99: 18 | AF99: 18 | AG99: 1 | AH99: 19 | AI99: 2 | AJ99: 19 | AK99: 3 | AL99: 0 | AM99: 0 | AN99: 16 | AO99: 10 | AP99: 13 | AQ99: 8
A100: 95 | C100: 熊切村 | D100: 11148 | E100: 10201 | F100: 291 | G100: 18 | H100: 59 | I100: 214 | J100: 40.05 | K100: 150 | L100: 40 | M100: 10 | N100: 35 | O100: 1 | P100: 1 | Q100: 17 | R100: - | S100: - | T100: 17 | U100: - | V100: 2 | W100: 8 | X100: 4 | Y100: 3 | Z100: - | AA100: 17 | AB100: 15 | AC100: 17 | AD100: 17 | AE100: 17 | AF100: 17 | AG100: 0 | AH100: 17 | AI100: 12 | AJ100: 17 | AK100: 10 | AL100: 0 | AM100: 0 | AN100: 12 | AO100: 1 | AP100: 16 | AQ100: 12
A101: 96 | C101: 龍山村 | D101: 7032 | E101: 6499 | F101: 53 | G101: - | H101: 8 | I101: 45 | J101: 12.65 | K101: 45 | L101: 13 | M101: 5 | N101: 12 | O101: - | P101: - | Q101: 12 | R101: - | S101: - | T101: 12 | U101: 2 | V101: 2 | W101: 6 | X101: 1 | Y101: - | Z101: 1 | AA101: 1 | AB101: 8 | AC101: 11 | AD101: 11 | AE101: 11 | AF101: 10 | AG101: 1 | AH101: 11 | AI101: 10 | AJ101: 12 | AK101: 2 | AL101: 0 | AM101: 0 | AN101: 12 | AO101: 0 | AP101: 9 | AQ101: 3
A102: 97 | C102: 浦川町 | D102: 6939 | E102: 6075 | F102: 62 | G102: 6 | H102: 23 | I102: 33 | J102: 26.15 | K102: 5 | L102: 1 | M102: - | N102: 1 | O102: - | P102: - | Q102: 15 | R102: - | S102: - | T102: 15 | U102: 6 | V102: 5 | W102: 3 | X102: - | Y102: 1 | Z102: - | AA102: 3 | AB102: 7 | AC102: 13 | AD102: 11 | AE102: 11 | AF102: 11 | AG102: 1 | AH102: 13 | AI102: 1 | AJ102: 15 | AK102: 1 | AL102: 0 | AM102: 0 | AN102: 15 | AO102: 0 | AP102: 6 | AQ102: 1
A103: 98 | C103: 佐久間村 | D103: 2623 | E103: 2562 | F103: 29 | G103: 2 | H103: 15 | I103: 12 | J103: 9.16 | K103: 5 | L103: 2 | M103: - | N103: 1 | O103: - | P103: 1 | Q103: 7 | R103: - | S103: - | T103: 7 | U103: 2 | V103: 3 | W103: - | X103: 2 | Y103: - | Z103: - | AA103: 2 | AB103: 3 | AC103: 5 | AD103: 5 | AE103: 5 | AF103: 5 | AG103: 1 | AH103: 7 | AI103: 0 | AJ103: 7 | AK103: 1 | AL103: 2 | AM103: 1 | AN103: 7 | AO103: 0 | AP103: 2 | AQ103: 0
A104: 99 | C104: 山香村 | D104: 4295 | E104: 4063 | F104: 51 | G104: - | H104: 13 | I104: 38 | J104: 8.7 | K104: 19 | L104: 6 | M104: - | N104: 6 | O104: - | P104: - | Q104: 12 | R104: - | S104: - | T104: 12 | U104: 6 | V104: 1 | W104: 2 | X104: 2 | Y104: 1 | Z104: - | AA104: 4 | AB104: 11 | AC104: 11 | AD104: 10 | AE104: 11 | AF104: 8 | AG104: 1 | AH104: 10 | AI104: 3 | AJ104: 12 | AK104: 2 | AL104: 0 | AM104: 0 | AN104: 12 | AO104: 1 | AP104: 2 | AQ104: 1
A105: 100 | C105: 城西村 | D105: 3009 | E105: 2734 | F105: 76 | G105: 5 | H105: 20 | I105: 51 | J105: 23.93 | K105: 17 | L105: 10 | M105: 3 | N105: 8 | O105: - | P105: 2 | Q105: 16 | R105: - | S105: 1 | T105: 15 | U105: 4 | V105: 2 | W105: 5 | X105: 4 | Y105: 1 | Z105: - | AA105: 3 | AB105: 5 | AC105: 13 | AD105: 13 | AE105: 14 | AF105: 11 | AG105: 1 | AH105: 16 | AI105: 0 | AJ105: 16 | AK105: 0 | AL105: 0 | AM105: 0 | AN105: 16 | AO105: 0 | AP105: 8 | AQ105: 0
A106: 101 | C106: 水窪町 | D106: 27111 | E106: 25636 | F106: 98 | G106: 4 | H106: 51 | I106: 43 | J106: 15.78 | K106: 20 | L106: 4 | M106: 2 | N106: 4 | O106: - | P106: - | Q106: 18 | R106: - | S106: - | T106: 18 | U106: 8 | V106: 3 | W106: 4 | X106: 3 | Y106: - | Z106: - | AA106: 0 | AB106: 6 | AC106: 11 | AD106: 14 | AE106: 14 | AF106: 14 | AG106: 4 | AH106: 17 | AI106: 4 | AJ106: 18 | AK106: 3 | AL106: 3 | AM106: 0 | AN106: 18 | AO106: 5 | AP106: 7 | AQ106: 3
A107: 102 | B107: 沼津市 | D107: 18696 | E107: 9363 | F107: 2141 | G107: 433 | H107: 370 | I107: 1338 | J107: 321.64 | K107: 1085 | L107: 259 | M107: 24 | N107: 247 | O107: 6 | P107: 7 | Q107: 98 | R107: 13 | S107: 12 | T107: 73 | U107: 57 | V107: 23 | W107: 6 | X107: 9 | Y107: 3 | Z107: - | AA107: 34 | AB107: 54 | AC107: 38 | AD107: 69 | AE107: 69 | AF107: 51 | AG107: 21 | AH107: 82 | AI107: 24 | AJ107: 90 | AK107: 14 | AL107: 7 | AM107: 5 | AN107: 93 | AO107: 32 | AP107: 61 | AQ107: 29
A108: 103 | C108: 沼津市（旧） | D108: 5323 | E108: 1418 | F108: 319 | G108: 21 | H108: 174 | I108: 124 | J108: 68.32 | K108: 213 | L108: 90 | M108: 9 | N108: 85 | O108: 1 | P108: 3 | Q108: 31 | R108: - | S108: 5 | T108: 26 | U108: 29 | V108: 2 | W108: - | X108: - | Y108: - | Z108: - | AA108: 5 | AB108: 9 | AC108: 10 | AD108: 23 | AE108: 23 | AF108: 18 | AG108: 7 | AH108: 21 | AI108: 0 | AJ108: 29 | AK108: 3 | AL108: 3 | AM108: 1 | AN108: 30 | AO108: 8 | AP108: 12 | AQ108: 2
A109: 104 | C109: 愛鷹村 | D109: 2107 | E109: 1032 | F109: 431 | G109: 87 | H109: 58 | I109: 286 | J109: 50.63 | K109: 172 | L109: 32 | M109: 8 | N109: 28 | O109: - | P109: - | Q109: 8 | R109: - | S109: - | T109: 8 | U109: 4 | V109: 4 | W109: - | X109: - | Y109: - | Z109: - | AA109: 4 | AB109: 5 | AC109: 6 | AD109: 4 | AE109: 3 | AF109: 3 | AG109: 2 | AH109: 7 | AI109: 3 | AJ109: 8 | AK109: 2 | AL109: 0 | AM109: 0 | AN109: 8 | AO109: 3 | AP109: 7 | AQ109: 2
A110: 105 | C110: 大平村 | D110: 585 | E110: 280 | F110: 141 | G110: 110 | H110: 29 | I110: 2 | J110: 10.44 | K110: 104 | L110: 27 | M110: - | N110: 27 | O110: 1 | P110: - | Q110: 10 | R110: 8 | S110: 1 | T110: 1 | U110: - | V110: 5 | W110: 4 | X110: 1 | Y110: - | Z110: - | AA110: 4 | AB110: 8 | AC110: 5 | AD110: 9 | AE110: 10 | AF110: 10 | AG110: 0 | AH110: 10 | AI110: 2 | AJ110: 8 | AK110: 0 | AL110: 0 | AM110: 0 | AN110: 9 | AO110: 2 | AP110: 10 | AQ110: 4
A111: 106 | C111: 内浦村 | D111: 753 | E111: 430 | F111: 84 | G111: - | H111: 4 | I111: 80 | J111: 43.66 | K111: 60 | L111: 14 | M111: 1 | N111: 14 | O111: - | P111: - | Q111: 5 | R111: - | S111: - | T111: 5 | U111: 3 | V111: 1 | W111: 1 | X111: - | Y111: - | Z111: - | AA111: 4 | AB111: 4 | AC111: 2 | AD111: 3 | AE111: 3 | AF111: 0 | AG111: 0 | AH111: 5 | AI111: 1 | AJ111: 5 | AK111: 2 | AL111: 1 | AM111: 1 | AN111: 5 | AO111: 1 | AP111: 0 | AQ111: 0
A112: 107 | C112: 西浦村 | D112: 3193 | E112: 1948 | F112: 486 | G112: - | H112: 10 | I112: 476 | J112: 44.07 | K112: 313 | L112: 39 | M112: 2 | N112: 37 | O112: 2 | P112: 2 | Q112: 9 | R112: - | S112: - | T112: 9 | U112: - | V112: - | W112: - | X112: 6 | Y112: 3 | Z112: - | AA112: 9 | AB112: 8 | AC112: 8 | AD112: 7 | AE112: 9 | AF112: 5 | AG112: 0 | AH112: 9 | AI112: 8 | AJ112: 9 | AK112: 3 | AL112: 1 | AM112: 1 | AN112: 9 | AO112: 4 | AP112: 2 | AQ112: 2
A113: 108 | C113: 原町 | D113: 819 | E113: 67 | F113: 160 | G113: 115 | H113: 42 | I113: 3 | J113: 27.06 | K113: 21 | L113: 6 | M113: - | N113: 6 | O113: - | P113: - | Q113: 11 | R113: 4 | S113: 4 | T113: 3 | U113: 10 | V113: 1 | W113: - | X113: - | Y113: - | Z113: - | AA113: 3 | AB113: 9 | AC113: 1 | AD113: 11 | AE113: 11 | AF113: 10 | AG113: 0 | AH113: 11 | AI113: 1 | AJ113: 11 | AK113: 2 | AL113: 0 | AM113: 0 | AN113: 11 | AO113: 9 | AP113: 11 | AQ113: 7
A114: 109 | C114: 浮島村２－１ | D114: 2419 | E114: 1179 | F114: 424 | G114: 86 | H114: 47 | I114: 291 | J114: 55.36 | K114: 145 | L114: 35 | M114: 4 | N114: 34 | O114: - | P114: - | Q114: 7 | R114: - | S114: - | T114: 7 | U114: 1 | V114: 6 | W114: - | X114: - | Y114: - | Z114: - | AA114: 3 | AB114: 6 | AC114: 3 | AD114: 6 | AE114: 6 | AF114: 5 | AG114: 1 | AH114: 6 | AI114: 6 | AJ114: 7 | AK114: 0 | AL114: 1 | AM114: 1 | AN114: 7 | AO114: 1 | AP114: 6 | AQ114: 6
A115: 110 | C115: 戸田村 | D115: 3497 | E115: 3009 | F115: 96 | G115: 14 | H115: 6 | I115: 76 | J115: 22.1 | K115: 57 | L115: 16 | M115: - | N115: 16 | O115: 2 | P115: 2 | Q115: 17 | R115: 1 | S115: 2 | T115: 14 | U115: 10 | V115: 4 | W115: 1 | X115: 2 | Y115: - | Z115: - | AA115: 2 | AB115: 5 | AC115: 3 | AD115: 6 | AE115: 4 | AF115: 0 | AG115: 11 | AH115: 13 | AI115: 3 | AJ115: 13 | AK115: 2 | AL115: 1 | AM115: 1 | AN115: 14 | AO115: 4 | AP115: 13 | AQ115: 6
A116: 111 | B116: 熱海市 | D116: 6178 | E116: 3825 | F116: 202 | G116: - | H116: 36 | I116: 166 | J116: 89.51 | K116: 145 | L116: 95 | M116: 8 | N116: 91 | O116: 2 | P116: 6 | Q116: 20 | R116: - | S116: - | T116: 20 | U116: 19 | V116: 1 | W116: - | X116: - | Y116: - | Z116: - | AA116: 9 | AB116: 11 | AC116: 6 | AD116: 9 | AE116: 10 | AF116: 4 | AG116: 9 | AH116: 16 | AI116: 7 | AJ116: 20 | AK116: 5 | AL116: 0 | AM116: 0 | AN116: 20 | AO116: 5 | AP116: 20 | AQ116: 2
A117: 112 | C117: 熱海市（旧） | D117: 6003 | E117: 3747 | F117: 195 | G117: - | H117: 36 | I117: 159 | J117: x | K117: 143 | L117: x | M117: x | N117: x | O117: x | P117: x | Q117: 18 | R117: - | S117: - | T117: 18 | U117: 17 | V117: 1 | W117: - | X117: - | Y117: - | Z117: - | AA117: 9 | AB117: 11 | AC117: 6 | AD117: 9 | AE117: 10 | AF117: 4 | AG117: 7 | AH117: 14 | AI117: 7 | AJ117: 18 | AK117: 5 | AL117: 0 | AM117: 0 | AN117: 18 | AO117: 5 | AP117: 18 | AQ117: 2
A118: 113 | C118: 網代町 | D118: 175 | E118: 78 | F118: 7 | G118: - | H118: - | I118: 7 | J118: x | K118: 2 | L118: x | M118: x | N118: x | O118: x | P118: x | Q118: 2 | R118: - | S118: - | T118: 2 | U118: 2 | V118: - | W118: - | X118: - | Y118: - | Z118: - | AA118: 0 | AB118: 0 | AC118: 0 | AD118: 0 | AE118: 0 | AF118: 0 | AG118: 2 | AH118: 2 | AI118: 0 | AJ118: 2 | AK118: 0 | AL118: 0 | AM118: 0 | AN118: 2 | AO118: 0 | AP118: 2 | AQ118: 0
A119: 114 | B119: 三島市 | D119: 6202 | E119: 2378 | F119: 828 | G119: 274 | H119: 500 | I119: 54 | J119: 189.24 | K119: 544 | L119: 169 | M119: 18 | N119: 159 | O119: 2 | P119: 10 | Q119: 39 | R119: 17 | S119: 7 | T119: 15 | U119: 25 | V119: 5 | W119: 3 | X119: 3 | Y119: 2 | Z119: 1 | AA119: 26 | AB119: 27 | AC119: 29 | AD119: 34 | AE119: 33 | AF119: 28 | AG119: 1 | AH119: 39 | AI119: 3 | AJ119: 24 | AK119: 5 | AL119: 4 | AM119: 1 | AN119: 39 | AO119: 8 | AP119: 32 | AQ119: 13
A120: 115 | C120: 三島市（旧） | D120: 5284 | E120: 2324 | F120: 607 | G120: 95 | H120: 462 | I120: 50 | J120: 165.86 | K120: 350 | L120: 103 | M120: 14 | N120: 96 | O120: 2 | P120: 6 | Q120: 22 | R120: 2 | S120: 5 | T120: 15 | U120: 9 | V120: 4 | W120: 3 | X120: 3 | Y120: 2 | Z120: 1 | AA120: 12 | AB120: 11 | AC120: 14 | AD120: 19 | AE120: 19 | AF120: 14 | AG120: 1 | AH120: 22 | AI120: 2 | AJ120: 20 | AK120: 5 | AL120: 3 | AM120: 1 | AN120: 22 | AO120: 4 | AP120: 15 | AQ120: 7
A121: 116 | C121: 中郷村 | D121: 918 | E121: 54 | F121: 221 | G121: 179 | H121: 38 | I121: 4 | J121: 23.38 | K121: 194 | L121: 66 | M121: 4 | N121: 63 | O121: - | P121: 4 | Q121: 17 | R121: 15 | S121: 2 | T121: - | U121: 16 | V121: 1 | W121: - | X121: - | Y121: - | Z121: - | AA121: 14 | AB121: 16 | AC121: 15 | AD121: 15 | AE121: 14 | AF121: 14 | AG121: 0 | AH121: 17 | AI121: 1 | AJ121: 4 | AK121: 0 | AL121: 1 | AM121: 0 | AN121: 17 | AO121: 4 | AP121: 17 | AQ121: 6
A122: 117 | B122: 富士宮市 | D122: 38908 | E122: 24766 | F122: 2392 | G122: 688 | H122: 1494 | I122: 210 | J122: 603.19 | K122: 1059 | L122: 358 | M122: 58 | N122: 334 | O122: 6 | P122: 18 | Q122: 134 | R122: 19 | S122: 50 | T122: 65 | U122: 33 | V122: 60 | W122: 29 | X122: 10 | Y122: 2 | Z122: - | AA122: 25 | AB122: 97 | AC122: 41 | AD122: 117 | AE122: 120 | AF122: 40 | AG122: 11 | AH122: 132 | AI122: 8 | AJ122: 121 | AK122: 2 | AL122: 10 | AM122: 1 | AN122: 131 | AO122: 81 | AP122: 131 | AQ122: 88
A123: 118 | C123: 富士宮市（旧） | D123: 3708 | E123: 818 | F123: 185 | G123: 62 | H123: 82 | I123: 41 | J123: 114.58 | K123: 201 | L123: 66 | M123: 16 | N123: 62 | O123: 3 | P123: 1 | Q123: 28 | R123: 6 | S123: 8 | T123: 14 | U123: 14 | V123: 10 | W123: 2 | X123: 2 | Y123: - | Z123: - | AA123: 8 | AB123: 20 | AC123: 5 | AD123: 23 | AE123: 23 | AF123: 3 | AG123: 5 | AH123: 28 | AI123: 2 | AJ123: 20 | AK123: 1 | AL123: 1 | AM123: 0 | AN123: 27 | AO123: 3 | AP123: 27 | AQ123: 20
A124: 119 | C124: 富士根村 | D124: 5269 | E124: 3338 | F124: 226 | G124: 14 | H124: 157 | I124: 55 | J124: 121.45 | K124: 184 | L124: 65 | M124: 16 | N124: 61 | O124: - | P124: - | Q124: 16 | R124: 1 | S124: 2 | T124: 13 | U124: 8 | V124: 6 | W124: 2 | X124: - | Y124: - | Z124: - | AA124: 2 | AB124: 6 | AC124: 6 | AD124: 13 | AE124: 13 | AF124: 6 | AG124: 2 | AH124: 15 | AI124: 0 | AJ124: 14 | AK124: 0 | AL124: 2 | AM124: 0 | AN124: 16 | AO124: 12 | AP124: 15 | AQ124: 4
A125: 120 | C125: 北山村 | D125: 7693 | E125: 5923 | F125: 183 | G125: 50 | H125: 111 | I125: 22 | J125: 84.59 | K125: 108 | L125: 44 | M125: 8 | N125: 38 | O125: - | P125: 2 | Q125: 28 | R125: 1 | S125: 10 | T125: 17 | U125: 3 | V125: 18 | W125: 6 | X125: - | Y125: 1 | Z125: - | AA125: 3 | AB125: 26 | AC125: 6 | AD125: 24 | AE125: 26 | AF125: 5 | AG125: 1 | AH125: 27 | AI125: 0 | AJ125: 26 | AK125: 0 | AL125: 1 | AM125: 0 | AN125: 28 | AO125: 23 | AP125: 27 | AQ125: 26
A126: 121 | C126: 上井出村 | D126: 11351 | E126: 7260 | F126: 882 | G126: 19 | H126: 863 | I126: - | J126: 115.47 | K126: 105 | L126: 20 | M126: 6 | N126: 14 | O126: 1 | P126: 7 | Q126: 21 | R126: - | S126: 9 | T126: 12 | U126: 5 | V126: 10 | W126: 3 | X126: 2 | Y126: 1 | Z126: - | AA126: 5 | AB126: 12 | AC126: 7 | AD126: 18 | AE126: 18 | AF126: 5 | AG126: 3 | AH126: 21 | AI126: 0 | AJ126: 20 | AK126: 0 | AL126: 3 | AM126: 0 | AN126: 20 | AO126: 12 | AP126: 21 | AQ126: 11
A127: 122 | C127: 白糸村 | D127: 2134 | E127: 1392 | F127: 107 | G127: 73 | H127: 32 | I127: 2 | J127: 19.02 | K127: 67 | L127: 29 | M127: 1 | N127: 28 | O127: 1 | P127: 1 | Q127: 5 | R127: 2 | S127: 3 | T127: - | U127: - | V127: 2 | W127: 2 | X127: 1 | Y127: - | Z127: - | AA127: 2 | AB127: 5 | AC127: 2 | AD127: 4 | AE127: 5 | AF127: 2 | AG127: 0 | AH127: 5 | AI127: 1 | AJ127: 5 | AK127: 0 | AL127: 1 | AM127: 0 | AN127: 5 | AO127: 5 | AP127: 5 | AQ127: 5
A128: 123 | C128: 上野村 | D128: 1335 | E128: 615 | F128: 257 | G128: 178 | H128: 74 | I128: 5 | J128: 51.79 | K128: 158 | L128: 61 | M128: 3 | N128: 61 | O128: - | P128: - | Q128: 7 | R128: 4 | S128: 3 | T128: - | U128: - | V128: 5 | W128: 2 | X128: - | Y128: - | Z128: - | AA128: 2 | AB128: 7 | AC128: 0 | AD128: 7 | AE128: 7 | AF128: 7 | AG128: 0 | AH128: 7 | AI128: 0 | AJ128: 7 | AK128: 0 | AL128: 0 | AM128: 0 | AN128: 7 | AO128: 3 | AP128: 7 | AQ128: 7
A129: 124 | C129: 芝富村 | D129: 1587 | E129: 833 | F129: 213 | G129: 104 | H129: 88 | I129: 21 | J129: 47 | K129: 65 | L129: 19 | M129: - | N129: 19 | O129: 1 | P129: - | Q129: 9 | R129: 2 | S129: 4 | T129: 3 | U129: 2 | V129: 3 | W129: 3 | X129: 1 | Y129: - | Z129: - | AA129: 0 | AB129: 5 | AC129: 2 | AD129: 9 | AE129: 9 | AF129: 0 | AG129: 0 | AH129: 9 | AI129: 1 | AJ129: 9 | AK129: 0 | AL129: 1 | AM129: 1 | AN129: 9 | AO129: 8 | AP129: 9 | AQ129: 1
A130: 125 | C130: 柚野村 | D130: 3874 | E130: 3137 | F130: 243 | G130: 150 | H130: 66 | I130: 27 | J130: 27.4 | K130: 155 | L130: 48 | M130: 6 | N130: 46 | O130: - | P130: 7 | Q130: 7 | R130: 2 | S130: 5 | T130: - | U130: - | V130: 3 | W130: 3 | X130: 1 | Y130: - | Z130: - | AA130: 0 | AB130: 5 | AC130: 2 | AD130: 7 | AE130: 7 | AF130: 5 | AG130: 0 | AH130: 7 | AI130: 4 | AJ130: 7 | AK130: 0 | AL130: 0 | AM130: 0 | AN130: 7 | AO130: 5 | AP130: 7 | AQ130: 4
A131: 126 | C131: 内房村 | D131: 1957 | E131: 1450 | F131: 96 | G131: 38 | H131: 21 | I131: 37 | J131: 21.89 | K131: 16 | L131: 6 | M131: 2 | N131: 5 | O131: - | P131: - | Q131: 13 | R131: 1 | S131: 6 | T131: 6 | U131: 1 | V131: 3 | W131: 6 | X131: 3 | Y131: - | Z131: - | AA131: 3 | AB131: 11 | AC131: 11 | AD131: 12 | AE131: 12 | AF131: 7 | AG131: 0 | AH131: 13 | AI131: 0 | AJ131: 13 | AK131: 1 | AL131: 1 | AM131: 0 | AN131: 12 | AO131: 10 | AP131: 13 | AQ131: 10
A132: 127 | B132: 伊東市 | D132: 12410 | E132: 6891 | F132: 432 | G132: 24 | H132: 211 | I132: 197 | J132: 246.78 | K132: 316 | L132: 99 | M132: 9 | N132: 96 | O132: 14 | P132: 3 | Q132: 41 | R132: - | S132: 2 | T132: 39 | U132: 37 | V132: 4 | W132: - | X132: - | Y132: - | Z132: - | AA132: 17 | AB132: 13 | AC132: 21 | AD132: 38 | AE132: 40 | AF132: 31 | AG132: 1 | AH132: 38 | AI132: 11 | AJ132: 38 | AK132: 8 | AL132: 4 | AM132: 1 | AN132: 41 | AO132: 16 | AP132: 35 | AQ132: 6
A133: 128 | C133: 伊東市（旧） | D133: 5691 | E133: 3292 | F133: 254 | G133: 4 | H133: 149 | I133: 101 | J133: 140.09 | K133: 178 | L133: 49 | M133: 6 | N133: 46 | O133: 2 | P133: - | Q133: 18 | R133: - | S133: 1 | T133: 17 | U133: 18 | V133: - | W133: - | X133: - | Y133: - | Z133: - | AA133: 7 | AB133: 5 | AC133: 7 | AD133: 16 | AE133: 17 | AF133: 17 | AG133: 1 | AH133: 17 | AI133: 5 | AJ133: 18 | AK133: 4 | AL133: 4 | AM133: 1 | AN133: 18 | AO133: 5 | AP133: 16 | AQ133: 2
A134: 129 | C134: 宇佐美村 | D134: 2107 | E134: 1407 | F134: 74 | G134: - | H134: 14 | I134: 60 | J134: 30.04 | K134: 73 | L134: 31 | M134: 1 | N134: 31 | O134: 10 | P134: - | Q134: 10 | R134: - | S134: - | T134: 10 | U134: 9 | V134: 1 | W134: - | X134: - | Y134: - | Z134: - | AA134: 6 | AB134: 6 | AC134: 2 | AD134: 9 | AE134: 10 | AF134: 4 | AG134: 0 | AH134: 9 | AI134: 5 | AJ134: 8 | AK134: 4 | AL134: 0 | AM134: 0 | AN134: 10 | AO134: 9 | AP134: 9 | AQ134: 3
A135: 130 | C135: 対島村 | D135: 4614 | E135: 2192 | F135: 104 | G135: 20 | H135: 48 | I135: 36 | J135: 76.65 | K135: 65 | L135: 19 | M135: 2 | N135: 19 | O135: 2 | P135: 3 | Q135: 13 | R135: - | S135: 1 | T135: 12 | U135: 10 | V135: 3 | W135: - | X135: - | Y135: - | Z135: - | AA135: 4 | AB135: 2 | AC135: 12 | AD135: 13 | AE135: 13 | AF135: 10 | AG135: 0 | AH135: 12 | AI135: 1 | AJ135: 12 | AK135: 0 | AL135: 0 | AM135: 0 | AN135: 13 | AO135: 2 | AP135: 10 | AQ135: 1
A136: 131 | B136: 島田市 | D136: 31570 | E136: 20818 | F136: 3261 | G136: 694 | H136: 117 | I136: 2450 | J136: 281.11 | K136: 1774 | L136: 388 | M136: 53 | N136: 358 | O136: 2 | P136: 5 | Q136: 156 | R136: 28 | S136: 32 | T136: 96 | U136: 62 | V136: 29 | W136: 24 | X136: 26 | Y136: 14 | Z136: 1 | AA136: 59 | AB136: 73 | AC136: 66 | AD136: 109 | AE136: 105 | AF136: 67 | AG136: 39 | AH136: 145 | AI136: 60 | AJ136: 96 | AK136: 24 | AL136: 10 | AM136: 3 | AN136: 155 | AO136: 49 | AP136: 107 | AQ136: 44
A137: 132 | C137: 島田市（旧） | D137: 1186 | E137: - | F137: 88 | G137: 64 | H137: 24 | I137: - | J137: 15.55 | K137: 52 | L137: 7 | M137: 1 | N137: 7 | O137: - | P137: - | Q137: 23 | R137: 11 | S137: 4 | T137: 8 | U137: 23 | V137: - | W137: - | X137: - | Y137: - | Z137: - | AA137: 3 | AB137: 3 | AC137: 1 | AD137: 4 | AE137: 3 | AF137: 3 | AG137: 19 | AH137: 17 | AI137: 1 | AJ137: 0 | AK137: 0 | AL137: 0 | AM137: 0 | AN137: 23 | AO137: 7 | AP137: 16 | AQ137: 7
A138: 133 | C138: 六合村 | D138: 1191 | E138: 392 | F138: 222 | G138: 125 | H138: 5 | I138: 92 | J138: 21.91 | K138: 130 | L138: 54 | M138: 3 | N138: 52 | O138: - | P138: 1 | Q138: 14 | R138: 8 | S138: 5 | T138: 1 | U138: 13 | V138: - | W138: - | X138: 1 | Y138: - | Z138: - | AA138: 0 | AB138: 8 | AC138: 5 | AD138: 14 | AE138: 14 | AF138: 5 | AG138: 0 | AH138: 14 | AI138: 0 | AJ138: 5 | AK138: 0 | AL138: 0 | AM138: 0 | AN138: 14 | AO138: 6 | AP138: 14 | AQ138: 6
A139: 134 | C139: 大津村 | D139: 1481 | E139: 965 | F139: 243 | G139: 60 | H139: 5 | I139: 178 | J139: 49.45 | K139: 104 | L139: 16 | M139: 1 | N139: 16 | O139: - | P139: - | Q139: 7 | R139: - | S139: 3 | T139: 4 | U139: 1 | V139: 4 | W139: 1 | X139: 1 | Y139: - | Z139: - | AA139: 4 | AB139: 4 | AC139: 6 | AD139: 7 | AE139: 7 | AF139: 4 | AG139: 0 | AH139: 7 | AI139: 5 | AJ139: 7 | AK139: 5 | AL139: 4 | AM139: 2 | AN139: 7 | AO139: 5 | AP139: 6 | AQ139: 4
A140: 135 | C140: 大長村 | D140: 2848 | E140: 1837 | F140: 306 | G140: 34 | H140: 5 | I140: 267 | J140: 38.08 | K140: 120 | L140: 47 | M140: 3 | N140: 44 | O140: - | P140: - | Q140: 4 | R140: - | S140: - | T140: 4 | U140: 1 | V140: 2 | W140: 1 | X140: - | Y140: - | Z140: - | AA140: 0 | AB140: 2 | AC140: 2 | AD140: 4 | AE140: 4 | AF140: 3 | AG140: 0 | AH140: 4 | AI140: 3 | AJ140: 4 | AK140: 1 | AL140: 1 | AM140: 0 | AN140: 4 | AO140: 4 | AP140: 3 | AQ140: 1
A141: 136 | C141: 伊久身村２－１ | D141: 2663 | E141: 2214 | F141: 145 | G141: 9 | H141: 6 | I141: 130 | J141: 13.58 | K141: 87 | L141: 10 | M141: 2 | N141: 9 | O141: - | P141: - | Q141: 9 | R141: - | S141: - | T141: 9 | U141: - | V141: 1 | W141: 5 | X141: 2 | Y141: 1 | Z141: - | AA141: 7 | AB141: 6 | AC141: 8 | AD141: 9 | AE141: 9 | AF141: 6 | AG141: 0 | AH141: 9 | AI141: 6 | AJ141: 9 | AK141: 3 | AL141: 0 | AM141: 0 | AN141: 9 | AO141: 2 | AP141: 8 | AQ141: 4
A142: 137 | C142: 笹間村２－１ | D142: 1151 | E142: 1005 | F142: 10 | G142: - | H142: - | I142: 10 | J142: 1.11 | K142: 11 | L142: 2 | M142: 1 | N142: 1 | O142: - | P142: - | Q142: 3 | R142: - | S142: - | T142: 3 | U142: - | V142: - | W142: - | X142: - | Y142: 2 | Z142: 1 | AA142: 0 | AB142: 2 | AC142: 2 | AD142: 2 | AE142: 3 | AF142: 1 | AG142: 0 | AH142: 3 | AI142: 2 | AJ142: 3 | AK142: 1 | AL142: 0 | AM142: 0 | AN142: 3 | AO142: 0 | AP142: 0 | AQ142: 0
A143: 138 | C143: 初倉村２－１ | D143: 2569 | E143: 388 | F143: 718 | G143: 190 | H143: 15 | I143: 513 | J143: 15.27 | K143: 454 | L143: 118 | M143: 8 | N143: 112 | O143: - | P143: 1 | Q143: 19 | R143: 5 | S143: 5 | T143: 9 | U143: 4 | V143: 10 | W143: - | X143: 3 | Y143: 2 | Z143: - | AA143: 12 | AB143: 15 | AC143: 19 | AD143: 17 | AE143: 19 | AF143: 19 | AG143: 0 | AH143: 19 | AI143: 5 | AJ143: 11 | AK143: 0 | AL143: 0 | AM143: 0 | AN143: 19 | AO143: 5 | AP143: 13 | AQ143: 2
A144: 139 | C144: 金谷町 | D144: 1328 | E144: 273 | F144: 380 | G144: 57 | H144: 3 | I144: 320 | J144: 21.81 | K144: 153 | L144: 22 | M144: 7 | N144: 18 | O144: - | P144: 1 | Q144: 24 | R144: 2 | S144: 5 | T144: 17 | U144: 15 | V144: 2 | W144: 1 | X144: 2 | Y144: 4 | Z144: - | AA144: 10 | AB144: 8 | AC144: 2 | AD144: 17 | AE144: 10 | AF144: 2 | AG144: 7 | AH144: 19 | AI144: 7 | AJ144: 14 | AK144: 0 | AL144: 3 | AM144: 0 | AN144: 24 | AO144: 6 | AP144: 16 | AQ144: 5
A145: 140 | C145: 五和村 | D145: 4888 | E145: 3124 | F145: 627 | G145: 120 | H145: 14 | I145: 493 | J145: 51.45 | K145: 279 | L145: 60 | M145: 11 | N145: 52 | O145: 1 | P145: 1 | Q145: 22 | R145: 2 | S145: 8 | T145: 12 | U145: 4 | V145: 6 | W145: 10 | X145: 2 | Y145: - | Z145: - | AA145: 8 | AB145: 8 | AC145: 6 | AD145: 5 | AE145: 8 | AF145: 5 | AG145: 12 | AH145: 22 | AI145: 9 | AJ145: 13 | AK145: 6 | AL145: 1 | AM145: 0 | AN145: 22 | AO145: 4 | AP145: 21 | AQ145: 9
A146: 141 | C146: 初倉村２－２ | D146: 7 | E146: - | F146: 3 | G146: - | H146: - | I146: 3 | J146: 0.22 | K146: 7 | L146: - | M146: - | N146: - | O146: - | P146: - | Q146: 1 | R146: - | S146: - | T146: 1 | U146: - | V146: - | W146: 1 | X146: - | Y146: - | Z146: - | AA146: 1 | AB146: 0 | AC146: 0 | AD146: 1 | AE146: 1 | AF146: 0 | AG146: 0 | AH146: 1 | AI146: 0 | AJ146: 0 | AK146: 0 | AL146: 0 | AM146: 0 | AN146: 1 | AO146: 0 | AP146: 0 | AQ146: 0
A147: 142 | C147: 勝間田村２－２ | D147: 177 | E147: 36 | F147: 72 | G147: 10 | H147: 1 | I147: 61 | J147: 4.31 | K147: 59 | L147: 12 | M147: 8 | N147: 8 | O147: 1 | P147: 1 | Q147: 2 | R147: - | S147: - | T147: 2 | U147: - | V147: - | W147: 1 | X147: 1 | Y147: - | Z147: - | AA147: 0 | AB147: 1 | AC147: 2 | AD147: 2 | AE147: 2 | AF147: 2 | AG147: 0 | AH147: 2 | AI147: 0 | AJ147: 2 | AK147: 0 | AL147: 0 | AM147: 0 | AN147: 1 | AO147: 0 | AP147: 1 | AQ147: 0
A148: 143 | C148: 日坂村２－２ | D148: 40 | E148: 20 | F148: 6 | G148: 1 | H148: - | I148: 5 | J148: 2.91 | K148: 7 | L148: 2 | M148: 1 | N148: 2 | O148: - | P148: - | Q148: 1 | R148: - | S148: - | T148: 1 | U148: - | V148: - | W148: - | X148: 1 | Y148: - | Z148: - | AA148: 1 | AB148: 0 | AC148: 0 | AD148: 1 | AE148: 0 | AF148: 0 | AG148: 0 | AH148: 1 | AI148: 0 | AJ148: 1 | AK148: 0 | AL148: 0 | AM148: 0 | AN148: 1 | AO148: 0 | AP148: 1 | AQ148: 0
A149: 144 | C149: 下川根村 | D149: 5009 | E149: 4160 | F149: 238 | G149: 18 | H149: 16 | I149: 204 | J149: 24.02 | K149: 163 | L149: 18 | M149: 3 | N149: 18 | O149: - | P149: - | Q149: 11 | R149: - | S149: 2 | T149: 9 | U149: 1 | V149: 1 | W149: 1 | X149: 6 | Y149: 2 | Z149: - | AA149: 6 | AB149: 10 | AC149: 4 | AD149: 11 | AE149: 11 | AF149: 4 | AG149: 0 | AH149: 11 | AI149: 9 | AJ149: 11 | AK149: 4 | AL149: 1 | AM149: 1 | AN149: 11 | AO149: 6 | AP149: 6 | AQ149: 5
A150: 145 | C150: 笹間村２－２ | D150: 5409 | E150: 5127 | F150: 108 | G150: - | H150: 10 | I150: 98 | J150: 16.56 | K150: 75 | L150: 17 | M150: 2 | N150: 17 | O150: - | P150: - | Q150: 9 | R150: - | S150: - | T150: 9 | U150: - | V150: 2 | W150: 1 | X150: 5 | Y150: 1 | Z150: - | AA150: 6 | AB150: 2 | AC150: 5 | AD150: 9 | AE150: 9 | AF150: 9 | AG150: 0 | AH150: 9 | AI150: 6 | AJ150: 9 | AK150: 4 | AL150: 0 | AM150: 0 | AN150: 9 | AO150: 2 | AP150: 0 | AQ150: 0
A151: 146 | C151: 伊久身村２－２ | D151: 1623 | E151: 1277 | F151: 95 | G151: 6 | H151: 13 | I151: 76 | J151: 4.88 | K151: 73 | L151: 3 | M151: 2 | N151: 2 | O151: - | P151: - | Q151: 7 | R151: - | S151: - | T151: 7 | U151: - | V151: 1 | W151: 2 | X151: 2 | Y151: 2 | Z151: - | AA151: 1 | AB151: 4 | AC151: 4 | AD151: 6 | AE151: 5 | AF151: 4 | AG151: 1 | AH151: 7 | AI151: 7 | AJ151: 7 | AK151: 0 | AL151: 0 | AM151: 0 | AN151: 7 | AO151: 2 | AP151: 2 | AQ151: 1
A152: 147 | B152: 富士市 | D152: 24495 | E152: 11945 | F152: 1873 | G152: 632 | H152: 321 | I152: 920 | J152: 326.97 | K152: 1108 | L152: 352 | M152: 53 | N152: 337 | O152: 3 | P152: 2 | Q152: 131 | R152: 24 | S152: 24 | T152: 83 | U152: 83 | V152: 39 | W152: 5 | X152: 4 | Y152: - | Z152: - | AA152: 48 | AB152: 70 | AC152: 69 | AD152: 101 | AE152: 102 | AF152: 87 | AG152: 25 | AH152: 129 | AI152: 19 | AJ152: 99 | AK152: 15 | AL152: 16 | AM152: 7 | AN152: 124 | AO152: 56 | AP152: 120 | AQ152: 52
A153: 148 | C153: 吉原市 | D153: 2097 | E153: 228 | F153: 118 | G153: 26 | H153: 24 | I153: 68 | J153: 23.71 | K153: 174 | L153: 51 | M153: 5 | N153: 50 | O153: - | P153: - | Q153: 10 | R153: 3 | S153: - | T153: 7 | U153: 8 | V153: 2 | W153: - | X153: - | Y153: - | Z153: - | AA153: 4 | AB153: 5 | AC153: 2 | AD153: 5 | AE153: 4 | AF153: 2 | AG153: 5 | AH153: 10 | AI153: 2 | AJ153: 4 | AK153: 0 | AL153: 0 | AM153: 0 | AN153: 10 | AO153: 3 | AP153: 9 | AQ153: 4
A154: 149 | C154: 元吉原村 | D154: 549 | E154: 49 | F154: 65 | G154: 49 | H154: 16 | I154: - | J154: 21.85 | K154: 40 | L154: 14 | M154: - | N154: 14 | O154: - | P154: - | Q154: 9 | R154: 2 | S154: 2 | T154: 5 | U154: 5 | V154: 4 | W154: - | X154: - | Y154: - | Z154: - | AA154: 2 | AB154: 0 | AC154: 1 | AD154: 3 | AE154: 2 | AF154: 1 | AG154: 6 | AH154: 7 | AI154: 0 | AJ154: 9 | AK154: 0 | AL154: 3 | AM154: 0 | AN154: 9 | AO154: 0 | AP154: 9 | AQ154: 1
A155: 150 | C155: 原田村（富士市） | D155: 444 | E155: 24 | F155: 35 | G155: - | H155: 21 | I155: 14 | J155: 2.96 | K155: 19 | L155: 7 | M155: - | N155: 7 | O155: - | P155: - | Q155: 4 | R155: - | S155: - | T155: 4 | U155: 4 | V155: - | W155: - | X155: - | Y155: - | Z155: - | AA155: 0 | AB155: 0 | AC155: 0 | AD155: 0 | AE155: 0 | AF155: 0 | AG155: 4 | AH155: 4 | AI155: 0 | AJ155: 3 | AK155: 0 | AL155: 0 | AM155: 0 | AN155: 4 | AO155: 0 | AP155: 4 | AQ155: 0
A156: 151 | C156: 吉永村（富士市） | D156: 4803 | E156: 3861 | F156: 155 | G156: 61 | H156: 55 | I156: 39 | J156: 21.81 | K156: 64 | L156: 14 | M156: 5 | N156: 13 | O156: - | P156: - | Q156: 11 | R156: 1 | S156: - | T156: 10 | U156: 8 | V156: 3 | W156: - | X156: - | Y156: - | Z156: - | AA156: 2 | AB156: 2 | AC156: 1 | AD156: 4 | AE156: 4 | AF156: 2 | AG156: 6 | AH156: 11 | AI156: 0 | AJ156: 10 | AK156: 1 | AL156: 2 | AM156: 0 | AN156: 11 | AO156: 1 | AP156: 11 | AQ156: 1
A157: 152 | C157: 須津村 | D157: 2409 | E157: 1404 | F157: 417 | G157: 252 | H157: 42 | I157: 123 | J157: 36.59 | K157: 120 | L157: 35 | M157: 5 | N157: 35 | O157: - | P157: - | Q157: 16 | R157: 5 | S157: 6 | T157: 5 | U157: 11 | V157: 5 | W157: - | X157: - | Y157: - | Z157: - | AA157: 12 | AB157: 13 | AC157: 13 | AD157: 12 | AE157: 14 | AF157: 12 | AG157: 2 | AH157: 16 | AI157: 4 | AJ157: 12 | AK157: 0 | AL157: 7 | AM157: 4 | AN157: 16 | AO157: 8 | AP157: 15 | AQ157: 4
A158: 153 | C158: 大淵村（富士市） | D158: 6663 | E158: 4258 | F158: 338 | G158: - | H158: 59 | I158: 279 | J158: 76.72 | K158: 208 | L158: 41 | M158: 15 | N158: 33 | O158: - | P158: - | Q158: 21 | R158: - | S158: - | T158: 21 | U158: 11 | V158: 8 | W158: - | X158: 2 | Y158: - | Z158: - | AA158: 7 | AB158: 7 | AC158: 17 | AD158: 20 | AE158: 20 | AF158: 14 | AG158: 1 | AH158: 21 | AI158: 2 | AJ158: 19 | AK158: 2 | AL158: 1 | AM158: 0 | AN158: 21 | AO158: 1 | AP158: 20 | AQ158: 1
A159: 154 | C159: 浮島村２－２ | D159: 415 | E159: 54 | F159: 206 | G159: 110 | H159: 2 | I159: 94 | J159: 28.16 | K159: 89 | L159: 16 | M159: 3 | N159: 14 | O159: - | P159: - | Q159: 3 | R159: - | S159: 3 | T159: - | U159: - | V159: 3 | W159: - | X159: - | Y159: - | Z159: - | AA159: 3 | AB159: 3 | AC159: 3 | AD159: 3 | AE159: 3 | AF159: 3 | AG159: 0 | AH159: 3 | AI159: 3 | AJ159: 3 | AK159: 0 | AL159: 2 | AM159: 2 | AN159: 3 | AO159: 3 | AP159: 3 | AQ159: 3
A160: 155 | C160: 富士町 | D160: 1133 | E160: 1 | F160: 35 | G160: 20 | H160: 10 | I160: 5 | J160: 9.12 | K160: 97 | L160: 43 | M160: 1 | N160: 43 | O160: - | P160: - | Q160: 4 | R160: - | S160: 4 | T160: - | U160: 3 | V160: 1 | W160: - | X160: - | Y160: - | Z160: - | AA160: 3 | AB160: 3 | AC160: 1 | AD160: 3 | AE160: 3 | AF160: 2 | AG160: 0 | AH160: 4 | AI160: 1 | AJ160: 0 | AK160: 0 | AL160: 0 | AM160: 0 | AN160: 3 | AO160: 2 | AP160: 3 | AQ160: 1
A161: 156 | C161: 岩松村 | D161: 852 | E161: 108 | F161: 182 | G161: 9 | H161: 30 | I161: 143 | J161: 11.69 | K161: 105 | L161: 50 | M161: 5 | N161: 50 | O161: 3 | P161: 1 | Q161: 7 | R161: - | S161: 2 | T161: 5 | U161: 4 | V161: 3 | W161: - | X161: - | Y161: - | Z161: - | AA161: 3 | AB161: 7 | AC161: 7 | AD161: 7 | AE161: 7 | AF161: 7 | AG161: 0 | AH161: 7 | AI161: 7 | AJ161: 5 | AK161: 0 | AL161: 0 | AM161: 0 | AN161: 7 | AO161: 7 | AP161: 7 | AQ161: 7
A162: 157 | C162: 田子浦村 | D162: 1038 | E162: 25 | F162: 44 | G162: 33 | H162: 11 | I162: - | J162: 2.18 | K162: 44 | L162: 21 | M162: 1 | N162: 21 | O162: - | P162: - | Q162: 8 | R162: 5 | S162: 1 | T162: 2 | U162: 8 | V162: - | W162: - | X162: - | Y162: - | Z162: - | AA162: 0 | AB162: 7 | AC162: 8 | AD162: 8 | AE162: 8 | AF162: 7 | AG162: 0 | AH162: 8 | AI162: 0 | AJ162: 7 | AK162: 7 | AL162: 0 | AM162: 0 | AN162: 8 | AO162: 6 | AP162: 8 | AQ162: 7
A163: 158 | C163: 鷹岡町 | D163: 1003 | E163: 48 | F163: 97 | G163: 12 | H163: 37 | I163: 48 | J163: 18.17 | K163: 67 | L163: 26 | M163: 5 | N163: 25 | O163: - | P163: - | Q163: 11 | R163: 1 | S163: 1 | T163: 9 | U163: 10 | V163: 1 | W163: - | X163: - | Y163: - | Z163: - | AA163: 1 | AB163: 2 | AC163: 9 | AD163: 9 | AE163: 10 | AF163: 10 | AG163: 1 | AH163: 11 | AI163: 0 | AJ163: 1 | AK163: 0 | AL163: 0 | AM163: 0 | AN163: 11 | AO163: 10 | AP163: 7 | AQ163: 2
A164: 159 | C164: 富士川町 | D164: 1183 | E164: 486 | F164: 73 | G164: 3 | H164: 3 | I164: 67 | J164: 36.89 | K164: 43 | L164: 22 | M164: 5 | N164: 20 | O164: - | P164: 1 | Q164: 12 | R164: - | S164: 2 | T164: 10 | U164: 8 | V164: 1 | W164: 3 | X164: - | Y164: - | Z164: - | AA164: 3 | AB164: 7 | AC164: 2 | AD164: 12 | AE164: 12 | AF164: 12 | AG164: 0 | AH164: 12 | AI164: 0 | AJ164: 11 | AK164: 0 | AL164: 0 | AM164: 0 | AN164: 8 | AO164: 4 | AP164: 9 | AQ164: 7
A165: 160 | C165: 松野村 | D165: 1906 | E165: 1399 | F165: 108 | G165: 57 | H165: 11 | I165: 40 | J165: 37.12 | K165: 38 | L165: 12 | M165: 3 | N165: 12 | O165: - | P165: - | Q165: 15 | R165: 7 | S165: 3 | T165: 5 | U165: 3 | V165: 8 | W165: 2 | X165: 2 | Y165: - | Z165: - | AA165: 8 | AB165: 14 | AC165: 5 | AD165: 15 | AE165: 15 | AF165: 15 | AG165: 0 | AH165: 15 | AI165: 0 | AJ165: 15 | AK165: 5 | AL165: 1 | AM165: 1 | AN165: 13 | AO165: 11 | AP165: 15 | AQ165: 14
A166: 161 | B166: 磐田市 | D166: 16345 | E166: 2712 | F166: 4556 | G166: 2334 | H166: 1353 | I166: 869 | J166: 480.75 | K166: 1508 | L166: 461 | M166: 51 | N166: 439 | O166: 2 | P166: 9 | Q166: 226 | R166: 79 | S166: 73 | T166: 74 | U166: 117 | V166: 81 | W166: 21 | X166: 6 | Y166: 1 | Z166: - | AA166: 74 | AB166: 166 | AC166: 130 | AD166: 179 | AE166: 187 | AF166: 162 | AG166: 24 | AH166: 218 | AI166: 49 | AJ166: 86 | AK166: 6 | AL166: 13 | AM166: 4 | AN166: 167 | AO166: 63 | AP166: 201 | AQ166: 103
A167: 162 | C167: 磐田市（旧） | D167: 1915 | E167: 76 | F167: 321 | G167: 214 | H167: 63 | I167: 44 | J167: 18.79 | K167: 117 | L167: 40 | M167: 6 | N167: 39 | O167: - | P167: - | Q167: 17 | R167: 10 | S167: 1 | T167: 6 | U167: 15 | V167: 2 | W167: - | X167: - | Y167: - | Z167: - | AA167: 2 | AB167: 8 | AC167: 16 | AD167: 17 | AE167: 17 | AF167: 17 | AG167: 0 | AH167: 17 | AI167: 0 | AJ167: 5 | AK167: 0 | AL167: 2 | AM167: 1 | AN167: 14 | AO167: 0 | AP167: 15 | AQ167: 4
A168: 163 | C168: 大藤村 | D168: 708 | E168: 72 | F168: 361 | G168: - | H168: 34 | I168: 327 | J168: 6.47 | K168: 148 | L168: 29 | M168: 12 | N168: 21 | O168: - | P168: 1 | Q168: 12 | R168: - | S168: - | T168: 12 | U168: 3 | V168: 7 | W168: 2 | X168: - | Y168: - | Z168: - | AA168: 3 | AB168: 8 | AC168: 5 | AD168: 10 | AE168: 12 | AF168: 12 | AG168: 0 | AH168: 12 | AI168: 0 | AJ168: 12 | AK168: 0 | AL168: 0 | AM168: 0 | AN168: 4 | AO168: 0 | AP168: 8 | AQ168: 1
A169: 164 | C169: 岩田村 | D169: 692 | E169: 62 | F169: 250 | G169: 80 | H169: 101 | I169: 69 | J169: 24.76 | K169: 67 | L169: 23 | M169: 3 | N169: 22 | O169: - | P169: 1 | Q169: 7 | R169: - | S169: 4 | T169: 3 | U169: 3 | V169: 3 | W169: 1 | X169: - | Y169: - | Z169: - | AA169: 2 | AB169: 5 | AC169: 2 | AD169: 5 | AE169: 5 | AF169: 5 | AG169: 2 | AH169: 7 | AI169: 2 | AJ169: 6 | AK169: 0 | AL169: 0 | AM169: 0 | AN169: 6 | AO169: 2 | AP169: 7 | AQ169: 3
A170: 165 | C170: 長野村 | D170: 692 | E170: 14 | F170: 335 | G170: 241 | H170: 91 | I170: 3 | J170: 33.64 | K170: 83 | L170: 18 | M170: 1 | N170: 17 | O170: - | P170: - | Q170: 10 | R170: 6 | S170: 4 | T170: - | U170: 5 | V170: 5 | W170: - | X170: - | Y170: - | Z170: - | AA170: 6 | AB170: 10 | AC170: 5 | AD170: 10 | AE170: 9 | AF170: 7 | AG170: 0 | AH170: 10 | AI170: 2 | AJ170: 1 | AK170: 0 | AL170: 0 | AM170: 0 | AN170: 10 | AO170: 8 | AP170: 10 | AQ170: 10
A171: 166 | C171: 向笠村 | D171: 1088 | E171: 252 | F171: 342 | G171: 130 | H171: 51 | I171: 161 | J171: 7.02 | K171: 90 | L171: 28 | M171: 4 | N171: 27 | O171: 1 | P171: 1 | Q171: 14 | R171: 4 | S171: 4 | T171: 6 | U171: 4 | V171: 7 | W171: 1 | X171: 2 | Y171: - | Z171: - | AA171: 11 | AB171: 12 | AC171: 9 | AD171: 11 | AE171: 12 | AF171: 8 | AG171: 2 | AH171: 14 | AI171: 5 | AJ171: 11 | AK171: 1 | AL171: 3 | AM171: 1 | AN171: 13 | AO171: 6 | AP171: 9 | AQ171: 7
A172: 167 | C172: 御厨村 | D172: 506 | E172: 14 | F172: 178 | G172: 146 | H172: 21 | I172: 11 | J172: 3.9 | K172: 46 | L172: 10 | M172: - | N172: 10 | O172: - | P172: - | Q172: 4 | R172: 4 | S172: - | T172: - | U172: 2 | V172: 2 | W172: - | X172: - | Y172: - | Z172: - | AA172: 3 | AB172: 4 | AC172: 3 | AD172: 4 | AE172: 3 | AF172: 2 | AG172: 0 | AH172: 4 | AI172: 3 | AJ172: 2 | AK172: 1 | AL172: 1 | AM172: 1 | AN172: 4 | AO172: 3 | AP172: 4 | AQ172: 4
A173: 168 | C173: 南御厨村２－１ | D173: 225 | E173: - | F173: 100 | G173: 85 | H173: 13 | I173: 2 | J173: 4.19 | K173: 34 | L173: 7 | M173: - | N173: 7 | O173: - | P173: - | Q173: 5 | R173: 5 | S173: - | T173: - | U173: 2 | V173: 2 | W173: 1 | X173: - | Y173: - | Z173: - | AA173: 1 | AB173: 5 | AC173: 1 | AD173: 5 | AE173: 5 | AF173: 5 | AG173: 0 | AH173: 5 | AI173: 2 | AJ173: 0 | AK173: 0 | AL173: 0 | AM173: 0 | AN173: 4 | AO173: 4 | AP173: 5 | AQ173: 4
A174: 169 | C174: 田原村２－１ | D174: 313 | E174: 19 | F174: 115 | G174: 101 | H174: 10 | I174: 4 | J174: 4.26 | K174: 39 | L174: 7 | M174: - | N174: 7 | O174: - | P174: - | Q174: 5 | R174: 4 | S174: - | T174: 1 | U174: 3 | V174: 1 | W174: 1 | X174: - | Y174: - | Z174: - | AA174: 2 | AB174: 4 | AC174: 3 | AD174: 5 | AE174: 5 | AF174: 4 | AG174: 0 | AH174: 5 | AI174: 0 | AJ174: 3 | AK174: 0 | AL174: 0 | AM174: 0 | AN174: 5 | AO174: 0 | AP174: 4 | AQ174: 4
A175: 170 | C175: 於保村２－２ | D175: 300 | E175: 14 | F175: 136 | G175: 122 | H175: 14 | I175: - | J175: 5.08 | K175: 45 | L175: 17 | M175: 2 | N175: 16 | O175: - | P175: 1 | Q175: 5 | R175: 5 | S175: - | T175: - | U175: 2 | V175: 3 | W175: - | X175: - | Y175: - | Z175: - | AA175: 2 | AB175: 5 | AC175: 4 | AD175: 5 | AE175: 5 | AF175: 5 | AG175: 0 | AH175: 5 | AI175: 3 | AJ175: 1 | AK175: 0 | AL175: 0 | AM175: 0 | AN175: 5 | AO175: 5 | AP175: 5 | AQ175: 5
A176: 171 | C176: 三川村２－２ | D176: 15 | E176: - | F176: 12 | G176: - | H176: 2 | I176: 10 | J176: x | K176: 8 | L176: x | M176: x | N176: x | O176: x | P176: x | Q176: 1 | R176: - | S176: - | T176: 1 | U176: - | V176: 1 | W176: - | X176: - | Y176: - | Z176: - | AA176: 0 | AB176: 1 | AC176: 1 | AD176: 1 | AE176: 1 | AF176: 1 | AG176: 0 | AH176: 1 | AI176: 0 | AJ176: 0 | AK176: 0 | AL176: 0 | AM176: 0 | AN176: 0 | AO176: 0 | AP176: 1 | AQ176: 1
A177: 172 | C177: 福田町 | D177: 738 | E177: 44 | F177: 147 | G177: 106 | H177: 41 | I177: 0 | J177: 10.99 | K177: 13 | L177: 2 | M177: - | N177: 2 | O177: - | P177: - | Q177: 21 | R177: 14 | S177: 2 | T177: 5 | U177: 17 | V177: 4 | W177: - | X177: - | Y177: - | Z177: - | AA177: 2 | AB177: 8 | AC177: 6 | AD177: 13 | AE177: 12 | AF177: 9 | AG177: 6 | AH177: 19 | AI177: 2 | AJ177: 1 | AK177: 0 | AL177: 0 | AM177: 0 | AN177: 11 | AO177: 4 | AP177: 18 | AQ177: 6
A178: 173 | C178: 豊浜村 | D178: 380 | E178: 9 | F178: 144 | G178: 111 | H178: 33 | I178: - | J178: 6.28 | K178: 33 | L178: 6 | M178: 1 | N178: 5 | O178: - | P178: - | Q178: 4 | R178: 3 | S178: 1 | T178: - | U178: 3 | V178: 1 | W178: - | X178: - | Y178: - | Z178: - | AA178: 1 | AB178: 1 | AC178: 1 | AD178: 2 | AE178: 3 | AF178: 1 | AG178: 1 | AH178: 4 | AI178: 0 | AJ178: 1 | AK178: 0 | AL178: 0 | AM178: 0 | AN178: 3 | AO178: 0 | AP178: 4 | AQ178: 1
A179: 174 | C179: 於保村２－１ | D179: 381 | E179: 16 | F179: 156 | G179: 118 | H179: 38 | I179: - | J179: 13.33 | K179: 37 | L179: 2 | M179: - | N179: 2 | O179: - | P179: - | Q179: 8 | R179: 5 | S179: 3 | T179: - | U179: 1 | V179: 5 | W179: 2 | X179: - | Y179: - | Z179: - | AA179: 4 | AB179: 7 | AC179: 2 | AD179: 6 | AE179: 7 | AF179: 7 | AG179: 0 | AH179: 8 | AI179: 1 | AJ179: 1 | AK179: 0 | AL179: 0 | AM179: 0 | AN179: 6 | AO179: 0 | AP179: 8 | AQ179: 2
A180: 175 | C180: 南御厨村２－２ | D180: 166 | E180: - | F180: 87 | G180: 77 | H180: 10 | I180: - | J180: 1.3 | K180: 20 | L180: 6 | M180: - | N180: 6 | O180: - | P180: - | Q180: 3 | R180: 3 | S180: - | T180: - | U180: 2 | V180: 1 | W180: - | X180: - | Y180: - | Z180: - | AA180: 0 | AB180: 0 | AC180: 1 | AD180: 1 | AE180: 2 | AF180: 1 | AG180: 1 | AH180: 3 | AI180: 0 | AJ180: 0 | AK180: 0 | AL180: 0 | AM180: 0 | AN180: 1 | AO180: 0 | AP180: 3 | AQ180: 0
A181: 176 | C181: 掛塚町 | D181: 782 | E181: 4 | F181: 152 | G181: 63 | H181: 87 | I181: 2 | J181: 40.16 | K181: 44 | L181: 13 | M181: - | N181: 13 | O181: - | P181: 1 | Q181: 18 | R181: 2 | S181: 9 | T181: 7 | U181: 16 | V181: 2 | W181: - | X181: - | Y181: - | Z181: - | AA181: 4 | AB181: 17 | AC181: 16 | AD181: 14 | AE181: 16 | AF181: 16 | AG181: 1 | AH181: 14 | AI181: 3 | AJ181: 1 | AK181: 0 | AL181: 0 | AM181: 0 | AN181: 9 | AO181: 0 | AP181: 13 | AQ181: 2
A182: 177 | C182: 袖浦村 | D182: 1083 | E182: 145 | F182: 310 | G182: 149 | H182: 161 | I182: 0 | J182: 65.59 | K182: 108 | L182: 33 | M182: - | N182: 33 | O182: - | P182: - | Q182: 10 | R182: 2 | S182: 5 | T182: 3 | U182: 1 | V182: 6 | W182: 3 | X182: - | Y182: - | Z182: - | AA182: 4 | AB182: 8 | AC182: 6 | AD182: 8 | AE182: 10 | AF182: 7 | AG182: 0 | AH182: 10 | AI182: 1 | AJ182: 6 | AK182: 0 | AL182: 0 | AM182: 0 | AN182: 7 | AO182: 4 | AP182: 10 | AQ182: 6
A183: 178 | C183: 十束村２－１ | D183: 369 | E183: - | F183: 153 | G183: 78 | H183: 74 | I183: 1 | J183: 23.5 | K183: 57 | L183: 15 | M183: 1 | N183: 15 | O183: - | P183: - | Q183: 6 | R183: - | S183: 6 | T183: - | U183: 4 | V183: 2 | W183: - | X183: - | Y183: - | Z183: - | AA183: 2 | AB183: 4 | AC183: 3 | AD183: 2 | AE183: 1 | AF183: 1 | AG183: 2 | AH183: 6 | AI183: 0 | AJ183: 0 | AK183: 0 | AL183: 0 | AM183: 0 | AN183: 3 | AO183: 2 | AP183: 6 | AQ183: 3
A184: 179 | C184: 富岡村（磐田市） | D184: 877 | E184: 18 | F184: 310 | G184: 120 | H184: 83 | I184: 107 | J184: 23.7 | K184: 156 | L184: 50 | M184: 6 | N184: 48 | O184: - | P184: 2 | Q184: 13 | R184: 4 | S184: 5 | T184: 4 | U184: 6 | V184: 4 | W184: 2 | X184: 1 | Y184: - | Z184: - | AA184: 2 | AB184: 9 | AC184: 3 | AD184: 8 | AE184: 8 | AF184: 5 | AG184: 3 | AH184: 13 | AI184: 0 | AJ184: 7 | AK184: 0 | AL184: 1 | AM184: 0 | AN184: 11 | AO184: 4 | AP184: 13 | AQ184: 8
A185: 180 | C185: 池田村 | D185: 145 | E185: - | F185: 12 | G185: 7 | H185: 5 | I185: - | J185: x | K185: 1 | L185: x | M185: x | N185: x | O185: x | P185: x | Q185: 8 | R185: 1 | S185: 1 | T185: 6 | U185: 8 | V185: - | W185: - | X185: - | Y185: - | Z185: - | AA185: 4 | AB185: 8 | AC185: 8 | AD185: 8 | AE185: 8 | AF185: 8 | AG185: 0 | AH185: 6 | AI185: 0 | AJ185: 0 | AK185: 0 | AL185: 0 | AM185: 0 | AN185: 6 | AO185: 6 | AP185: 4 | AQ185: 3
A186: 181 | C186: 井通村 | D186: 870 | E186: 3 | F186: 274 | G186: 171 | H186: 98 | I186: 5 | J186: 19.73 | K186: 130 | L186: 50 | M186: 1 | N186: 49 | O186: - | P186: - | Q186: 18 | R186: 2 | S186: 15 | T186: 1 | U186: 12 | V186: 6 | W186: - | X186: - | Y186: - | Z186: - | AA186: 8 | AB186: 12 | AC186: 4 | AD186: 11 | AE186: 10 | AF186: 10 | AG186: 5 | AH186: 18 | AI186: 1 | AJ186: 0 | AK186: 0 | AL186: 0 | AM186: 0 | AN186: 15 | AO186: 5 | AP186: 18 | AQ186: 8
A187: 182 | C187: 十束村２－２ | D187: 106 | E187: - | F187: 38 | G187: 21 | H187: 17 | I187: - | J187: 9.99 | K187: 19 | L187: 5 | M187: 1 | N187: 5 | O187: - | P187: - | Q187: 3 | R187: - | S187: 3 | T187: - | U187: 3 | V187: - | W187: - | X187: - | Y187: - | Z187: - | AA187: 1 | AB187: 2 | AC187: 1 | AD187: 1 | AE187: 2 | AF187: 1 | AG187: 1 | AH187: 3 | AI187: 0 | AJ187: 0 | AK187: 0 | AL187: 0 | AM187: 0 | AN187: 2 | AO187: 0 | AP187: 3 | AQ187: 2
A188: 183 | C188: 広瀬村 | D188: 1161 | E188: 138 | F188: 342 | G188: 95 | H188: 221 | I188: 26 | J188: 44.81 | K188: 112 | L188: 54 | M188: 7 | N188: 53 | O188: - | P188: 1 | Q188: 11 | R188: - | S188: 5 | T188: 6 | U188: 1 | V188: 9 | W188: 1 | X188: - | Y188: - | Z188: - | AA188: 4 | AB188: 8 | AC188: 9 | AD188: 10 | AE188: 11 | AF188: 9 | AG188: 0 | AH188: 11 | AI188: 1 | AJ188: 8 | AK188: 0 | AL188: 1 | AM188: 1 | AN188: 9 | AO188: 3 | AP188: 11 | AQ188: 7
A189: 184 | C189: 野部村 | D189: 1412 | E189: 835 | F189: 154 | G189: 46 | H189: 68 | I189: 40 | J189: 96.89 | K189: 37 | L189: 14 | M189: 1 | N189: 14 | O189: 1 | P189: - | Q189: 11 | R189: 1 | S189: 2 | T189: 8 | U189: 4 | V189: 5 | W189: 2 | X189: - | Y189: - | Z189: - | AA189: 4 | AB189: 9 | AC189: 9 | AD189: 10 | AE189: 11 | AF189: 9 | AG189: 0 | AH189: 11 | AI189: 11 | AJ189: 8 | AK189: 0 | AL189: 3 | AM189: 0 | AN189: 9 | AO189: 4 | AP189: 11 | AQ189: 4
A190: 185 | C190: 敷地村 | D190: 1421 | E190: 977 | F190: 127 | G190: 53 | H190: 17 | I190: 57 | J190: 14.91 | K190: 64 | L190: 31 | M190: 4 | N190: 28 | O190: - | P190: 1 | Q190: 12 | R190: 4 | S190: 3 | T190: 5 | U190: - | V190: 3 | W190: 5 | X190: 3 | Y190: 1 | Z190: - | AA190: 2 | AB190: 11 | AC190: 12 | AD190: 12 | AE190: 12 | AF190: 12 | AG190: 0 | AH190: 12 | AI190: 12 | AJ190: 12 | AK190: 4 | AL190: 2 | AM190: 0 | AN190: 10 | AO190: 3 | AP190: 11 | AQ190: 8
A191: 186 | B191: 焼津市 | D191: 7031 | E191: 387 | F191: 1455 | G191: 1171 | H191: 148 | I191: 136 | J191: 159.39 | K191: 1062 | L191: 646 | M191: 17 | N191: 639 | O191: 2 | P191: 5 | Q191: 111 | R191: 82 | S191: 13 | T191: 16 | U191: 61 | V191: 41 | W191: 9 | X191: - | Y191: - | Z191: - | AA191: 59 | AB191: 91 | AC191: 52 | AD191: 99 | AE191: 75 | AF191: 51 | AG191: 7 | AH191: 105 | AI191: 35 | AJ191: 25 | AK191: 2 | AL191: 0 | AM191: 0 | AN191: 111 | AO191: 75 | AP191: 103 | AQ191: 76
A192: 187 | C192: 焼津町 | D192: 517 | E192: - | F192: 9 | G192: 3 | H192: 6 | I192: - | J192: 1.9 | K192: 14 | L192: 8 | M192: 1 | N192: 8 | O192: - | P192: - | Q192: 5 | R192: - | S192: 2 | T192: 3 | U192: 5 | V192: - | W192: - | X192: - | Y192: - | Z192: - | AA192: 5 | AB192: 2 | AC192: 0 | AD192: 5 | AE192: 0 | AF192: 5 | AG192: 0 | AH192: 4 | AI192: 0 | AJ192: 0 | AK192: 0 | AL192: 0 | AM192: 0 | AN192: 5 | AO192: 5 | AP192: 2 | AQ192: 2
A193: 188 | C193: 豊田村 | D193: 514 | E193: - | F193: 43 | G193: 31 | H193: 7 | I193: 5 | J193: 7.93 | K193: 65 | L193: 37 | M193: - | N193: 37 | O193: - | P193: - | Q193: 2 | R193: 1 | S193: 1 | T193: - | U193: 2 | V193: - | W193: - | X193: - | Y193: - | Z193: - | AA193: 2 | AB193: 2 | AC193: 0 | AD193: 2 | AE193: 0 | AF193: 1 | AG193: 0 | AH193: 2 | AI193: 0 | AJ193: 0 | AK193: 0 | AL193: 0 | AM193: 0 | AN193: 2 | AO193: 2 | AP193: 2 | AQ193: 0
A194: 189 | C194: 大富村 | D194: 921 | E194: - | F194: 254 | G194: 243 | H194: 11 | I194: - | J194: 22.09 | K194: 265 | L194: 162 | M194: - | N194: 161 | O194: - | P194: 1 | Q194: 15 | R194: 15 | S194: - | T194: - | U194: 12 | V194: 3 | W194: - | X194: - | Y194: - | Z194: - | AA194: 11 | AB194: 15 | AC194: 15 | AD194: 15 | AE194: 15 | AF194: 14 | AG194: 0 | AH194: 15 | AI194: 0 | AJ194: 0 | AK194: 0 | AL194: 0 | AM194: 0 | AN194: 15 | AO194: 15 | AP194: 15 | AQ194: 15
A195: 190 | C195: 和田村（焼津市） | D195: 726 | E195: 14 | F195: 181 | G195: 163 | H195: 16 | I195: 2 | J195: 16.83 | K195: 135 | L195: 100 | M195: - | N195: 100 | O195: - | P195: 1 | Q195: 15 | R195: 13 | S195: 1 | T195: 1 | U195: 12 | V195: 2 | W195: 1 | X195: - | Y195: - | Z195: - | AA195: 15 | AB195: 15 | AC195: 0 | AD195: 15 | AE195: 0 | AF195: 0 | AG195: 0 | AH195: 14 | AI195: 14 | AJ195: 3 | AK195: 0 | AL195: 0 | AM195: 0 | AN195: 15 | AO195: 9 | AP195: 15 | AQ195: 15
A196: 191 | C196: 小川村 | D196: 481 | E196: - | F196: 24 | G196: 20 | H196: 4 | I196: 0 | J196: 6 | K196: 34 | L196: 17 | M196: - | N196: 17 | O196: - | P196: - | Q196: 3 | R196: 2 | S196: - | T196: 1 | U196: 3 | V196: - | W196: - | X196: - | Y196: - | Z196: - | AA196: 0 | AB196: 0 | AC196: 0 | AD196: 0 | AE196: 0 | AF196: 0 | AG196: 3 | AH196: 2 | AI196: 0 | AJ196: 0 | AK196: 0 | AL196: 0 | AM196: 0 | AN196: 3 | AO196: 0 | AP196: 3 | AQ196: 0
A197: 192 | C197: 東益津村 | D197: 1256 | E197: 357 | F197: 231 | G197: 95 | H197: 44 | I197: 92 | J197: 47.92 | K197: 88 | L197: 57 | M197: 10 | N197: 55 | O197: 1 | P197: 1 | Q197: 19 | R197: 4 | S197: 5 | T197: 10 | U197: 11 | V197: 5 | W197: 3 | X197: - | Y197: - | Z197: - | AA197: 1 | AB197: 11 | AC197: 18 | AD197: 18 | AE197: 16 | AF197: 14 | AG197: 1 | AH197: 16 | AI197: 0 | AJ197: 14 | AK197: 0 | AL197: 0 | AM197: 0 | AN197: 19 | AO197: 14 | AP197: 14 | AQ197: 11
A198: 193 | C198: 広幡村２－２ | D198: 76 | E198: - | F198: 15 | G198: 15 | H198: - | I198: - | J198: 0.8 | K198: 8 | L198: 3 | M198: - | N198: 3 | O198: 1 | P198: - | Q198: 1 | R198: 1 | S198: - | T198: - | U198: 1 | V198: - | W198: - | X198: - | Y198: - | Z198: - | AA198: 1 | AB198: 1 | AC198: 0 | AD198: 0 | AE198: 0 | AF198: 0 | AG198: 0 | AH198: 1 | AI198: 0 | AJ198: 0 | AK198: 0 | AL198: 0 | AM198: 0 | AN198: 1 | AO198: 0 | AP198: 1 | AQ198: 0
A199: 194 | C199: 西益津村２－２ | D199: 95 | E199: - | F199: 4 | G199: 1 | H199: 2 | I199: 1 | J199: 1.34 | K199: 9 | L199: 3 | M199: - | N199: 3 | O199: - | P199: - | Q199: 1 | R199: - | S199: - | T199: 1 | U199: 1 | V199: - | W199: - | X199: - | Y199: - | Z199: - | AA199: 1 | AB199: 1 | AC199: 0 | AD199: 1 | AE199: 1 | AF199: 0 | AG199: 0 | AH199: 1 | AI199: 0 | AJ199: 0 | AK199: 0 | AL199: 0 | AM199: 0 | AN199: 1 | AO199: 1 | AP199: 1 | AQ199: 1
A200: 195 | C200: 静浜村 | D200: 645 | E200: 4 | F200: 230 | G200: 214 | H200: 16 | I200: - | J200: 9.4 | K200: 151 | L200: 91 | M200: - | N200: 91 | O200: - | P200: - | Q200: 19 | R200: 18 | S200: 1 | T200: - | U200: 4 | V200: 10 | W200: 5 | X200: - | Y200: - | Z200: - | AA200: 10 | AB200: 19 | AC200: 10 | AD200: 19 | AE200: 17 | AF200: 7 | AG200: 0 | AH200: 19 | AI200: 18 | AJ200: 3 | AK200: 2 | AL200: 0 | AM200: 0 | AN200: 19 | AO200: 17 | AP200: 19 | AQ200: 17
... 305 more rows

Sheet 指定地域 (hidden)
B1: KCITY_NAME | C1: 森林地域_森林地域 | D1: 農業地域_農業地域 | E1: 都市地域_市街化区域 | F1: 都市地域_市街化調整 | G1: 商業関連 | H1: 工業関連
A2: 1 | B2: 静岡県 | C2: 501285 | D2: 446248 | E2: 46409 | F2: 185889 | G2: 4319 | H2: 14490
A3: 2 | B3: 静岡市 | C3: 110500 | D3: 80472 | E3: 10474 | F3: 12728 | G3: 938 | H3: 2909
A4: 3 | B4: 葵区(静岡市) | C4: 95346 | D4: 56063 | E4: 2885 | F4: 5633 | G4: 408 | H4: 451
A5: 4 | B5: 静岡市２－１ | C5: 3008 | D5: 6546 | E5: 2613 | F5: 2913 | G5: 408 | H5: 404
A6: 5 | B6: 美和村 | C6: 4029 | D6: 5304 | E6: 0 | F6: 1057 | G6: 0 | H6: 0
A7: 6 | B7: 服織村 | C7: 1830 | D7: 2514 | E7: 229 | F7: 701 | G7: 0 | H7: 12
A8: 7 | B8: 中藁科村 | C8: 2498 | D8: 3008 | E8: 0 | F8: 495 | G8: 0 | H8: 0
A9: 8 | B9: 南藁科村 | C9: 1550 | D9: 2035 | E9: 43 | F9: 465 | G9: 0 | H9: 35
A10: 9 | B10: 大河内村 | C10: 4899 | D10: 4745 | E10: 0 | F10: 0 | G10: 0 | H10: 0
A11: 10 | B11: 梅ヶ島村 | C11: 8869 | D11: 5004 | E11: 0 | F11: 0 | G11: 0 | H11: 0
A12: 11 | B12: 玉川村 | C12: 9237 | D12: 9678 | E12: 0 | F12: 2 | G12: 0 | H12: 0
A13: 12 | B13: 井川村 | C13: 49137 | D13: 6397 | E13: 0 | F13: 0 | G13: 0 | H13: 0
A14: 13 | B14: 清沢村 | C14: 4146 | D14: 4470 | E14: 0 | F14: 0 | G14: 0 | H14: 0
A15: 14 | B15: 大川村 | C15: 6143 | D15: 6360 | E15: 0 | F15: 0 | G15: 0 | H15: 0
A16: 15 | B16: 駿河区(静岡市) | C16: 1953 | D16: 3957 | E16: 3248 | F16: 3412 | G16: 243 | H16: 871
A17: 16 | B17: 静岡市2-2 | C17: 1888 | D17: 3812 | E17: 3130 | F17: 3266 | G17: 240 | H17: 823
A18: 17 | B18: 有度村２－２ | C18: 65 | D18: 145 | E18: 118 | F18: 145 | G18: 3 | H18: 48
A19: 18 | B19: 清水区(静岡市) | C19: 13201 | D19: 20453 | E19: 4341 | F19: 3684 | G19: 287 | H19: 1586
A20: 19 | B20: 清水市 | C20: 126 | D20: 889 | E20: 1648 | F20: 913 | G20: 232 | H20: 497
A21: 20 | B21: 飯田村清水区（静岡市） | C21: 36 | D21: 276 | E21: 368 | F21: 73 | G21: 0 | H21: 7
A22: 21 | B22: 高部村 | C22: 82 | D22: 731 | E22: 253 | F22: 512 | G22: 0 | H22: 65
A23: 22 | B23: 有度村２－１ | C23: 108 | D23: 312 | E23: 790 | F23: 312 | G23: 36 | H23: 374
A24: 23 | B24: 興津町 | C24: 123 | D24: 981 | E24: 305 | F24: 896 | G24: 16 | H24: 118
A25: 24 | B25: 小島村 | C25: 2596 | D25: 3795 | E25: 0 | F25: 27 | G25: 0 | H25: 0
A26: 25 | B26: 両河内村 | C26: 7175 | D26: 7284 | E26: 0 | F26: 0 | G26: 0 | H26: 0
A27: 26 | B27: 庵原村 | C27: 1272 | D27: 3179 | E27: 68 | F27: 355 | G27: 0 | H27: 55
A28: 27 | B28: 袖師町 | C28: 3 | D28: 82 | E28: 376 | F28: 73 | G28: 3 | H28: 224
A29: 28 | B29: 蒲原町 | C29: 501 | D29: 832 | E29: 394 | F29: 292 | G29: 0 | H29: 176
A30: 29 | B30: 由比町 | C30: 1180 | D30: 2091 | E30: 140 | F30: 231 | G30: 0 | H30: 70
A31: 30 | B31: 浜松市 | C31: 104080 | D31: 79593 | E31: 9535 | F31: 36701 | G31: 917 | H31: 1939
A32: 31 | B32: 中区(浜松市) | C32: 155 | D32: 547 | E32: 3716 | F32: 723 | G32: 649 | H32: 427
A33: 32 | B33: 浜松市４－１ | C33: 105 | D33: 282 | E33: 3544 | F33: 458 | G33: 644 | H33: 427
A34: 33 | B34: 入野村２－１ | C34: 12 | D34: 8 | E34: 172 | F34: 8 | G34: 5 | H34: 0
A35: 34 | B35: 吉野村２－１ | C35: 38 | D35: 237 | E35: 1 | F35: 238 | G35: 0 | H35: 0
A36: 35 | B36: 新津村２－１ | C36: 0 | D36: 19 | E36: 0 | F36: 19 | G36: 0 | H36: 0
A37: 36 | B37: 東区(浜松市) | C37: 20 | D37: 3186 | E37: 1432 | F37: 3196 | G37: 45 | H37: 489
A38: 37 | B38: 浜松市４－３ | C38: 0 | D38: 1 | E38: 373 | F38: 0 | G38: 17 | H38: 112
A39: 38 | B39: 飯田村２－１東区（浜松市） | C39: 0 | D39: 0 | E39: 2 | F39: 0 | G39: 0 | H39: 2
A40: 39 | B40: 和田村東区（浜松市） | C40: 0 | D40: 113 | E40: 349 | F40: 114 | G40: 19 | H40: 160
A41: 40 | B41: 長上村 | C41: 0 | D41: 553 | E41: 354 | F41: 551 | G41: 2 | H41: 173
A42: 41 | B42: 積志村 | C42: 19 | D42: 1121 | E42: 208 | F42: 1127 | G42: 0 | H42: 8
A43: 42 | B43: 笠井町 | C43: 1 | D43: 186 | E43: 68 | F43: 182 | G43: 6 | H43: 0
A44: 43 | B44: 豊西村 | C44: 0 | D44: 782 | E44: 4 | F44: 787 | G44: 1 | H44: 0
A45: 44 | B45: 中ノ町村 | C45: 0 | D45: 424 | E45: 65 | F45: 429 | G45: 0 | H45: 34
A46: 45 | B46: 三方原村２－１ | C46: 0 | D46: 5 | E46: 10 | F46: 5 | G46: 0 | H46: 0
A47: 46 | B47: 西区(浜松市) | C47: 1558 | D47: 6720 | E47: 1461 | F47: 7152 | G47: 102 | H47: 233
A48: 47 | B48: 神久呂村 | C48: 302 | D48: 1165 | E48: 68 | F48: 1170 | G48: 4 | H48: 26
A49: 48 | B49: 入野村２－２ | C49: 89 | D49: 281 | E49: 514 | F49: 269 | G49: 18 | H49: 27
A50: 49 | B50: 吉野村２－２ | C50: 5 | D50: 22 | E50: 8 | F50: 23 | G50: 0 | H50: 10
A51: 50 | B51: 和地村 | C51: 155 | D51: 808 | E51: 82 | F51: 817 | G51: 3 | H51: 35
A52: 51 | B52: 伊佐見村 | C52: 260 | D52: 1203 | E52: 0 | F52: 1204 | G52: 0 | H52: 0
A53: 52 | B53: 篠原村 | C53: 36 | D53: 783 | E53: 238 | F53: 803 | G53: 7 | H53: 52
A54: 53 | B54: 北庄内村 | C54: 383 | D54: 978 | E54: 53 | F54: 976 | G54: 23 | H54: 0
A55: 54 | B55: 南庄内村 | C55: 130 | D55: 404 | E55: 5 | F55: 403 | G55: 0 | H55: 0
A56: 55 | B56: 村櫛村 | C56: 80 | D56: 462 | E56: 53 | F56: 465 | G56: 0 | H56: 0
A57: 56 | B57: 舞阪町 | C57: 14 | D57: 27 | E57: 245 | F57: 241 | G57: 38 | H57: 76
A58: 57 | B58: 雄踏町 | C58: 103 | D58: 586 | E58: 194 | F58: 642 | G58: 10 | H58: 8
A59: 58 | B59: 浜松市４－２ | C59: 0 | D59: 1 | E59: 0 | F59: 139 | G59: 0 | H59: 0
A60: 59 | B60: 南区(浜松市) | C60: 245 | D60: 3559 | E60: 1071 | F60: 3653 | G60: 11 | H60: 316
A61: 60 | B61: 浜松市４－４ | C61: 68 | D61: 607 | E61: 247 | F61: 601 | G61: 0 | H61: 32
A62: 61 | B62: 芳川村 | C62: 0 | D62: 534 | E62: 248 | F62: 534 | G62: 4 | H62: 25
A63: 62 | B63: 飯田村２－１南区（浜松市） | C63: 0 | D63: 442 | E63: 217 | F63: 441 | G63: 0 | H63: 112
A64: 63 | B64: 河輪村 | C64: 0 | D64: 364 | E64: 0 | F64: 364 | G64: 0 | H64: 0
A65: 64 | B65: 五島村 | C65: 86 | D65: 638 | E65: 66 | F65: 638 | G65: 0 | H65: 0
A66: 65 | B66: 新津村２－２ | C66: 91 | D66: 962 | E66: 1 | F66: 967 | G66: 0 | H66: 1
A67: 66 | B67: 可美村 | C67: 0 | D67: 12 | E67: 292 | F67: 108 | G67: 6 | H67: 146
A68: 67 | B68: 北区(浜松市) | C68: 14913 | D68: 22638 | E68: 1006 | F68: 15799 | G68: 44 | H68: 262
A69: 68 | B69: 三方原村２－２ | C69: 3 | D69: 1507 | E69: 116 | F69: 1511 | G69: 7 | H69: 0
A70: 69 | B70: 都田村 | C70: 1190 | D70: 2694 | E70: 245 | F70: 2764 | G70: 17 | H70: 166
A71: 70 | B71: 気賀町 | C71: 887 | D71: 1873 | E71: 171 | F71: 2070 | G71: 12 | H71: 18
A72: 71 | B72: 中川村北区（浜松市） | C72: 264 | D72: 1028 | E72: 160 | F72: 1021 | G72: 0 | H72: 35
A73: 72 | B73: 金指町 | C73: 14 | D73: 32 | E73: 66 | F73: 31 | G73: 1 | H73: 4
A74: 73 | B74: 井伊谷村 | C74: 601 | D74: 1174 | E74: 99 | F74: 770 | G74: 3 | H74: 26
A75: 74 | B75: 奥山村 | C75: 2011 | D75: 2491 | E75: 0 | F75: 197 | G75: 0 | H75: 0
A76: 75 | B76: 伊平村 | C76: 2365 | D76: 2626 | E76: 0 | F76: 34 | G76: 0 | H76: 0
A77: 76 | B77: 鎮玉村 | C77: 4096 | D77: 4323 | E77: 0 | F77: 0 | G77: 0 | H77: 0
A78: 77 | B78: 三ヶ日町 | C78: 2862 | D78: 3730 | E78: 80 | F78: 5956 | G78: 4 | H78: 13
A79: 78 | B79: 東浜名村 | C79: 619 | D79: 1161 | E79: 69 | F79: 1446 | G79: 0 | H79: 0
A80: 79 | B80: 浜北区(浜松市) | C80: 1375 | D80: 5499 | E80: 804 | F80: 5843 | G80: 31 | H80: 179
A81: 80 | B81: 小野口村 | C81: 102 | D81: 759 | E81: 265 | F81: 758 | G81: 5 | H81: 53
A82: 81 | B82: 北浜村 | C82: 5 | D82: 540 | E82: 390 | F82: 548 | G82: 14 | H82: 38
A83: 82 | B83: 竜池村 | C83: 0 | D83: 618 | E83: 0 | F83: 625 | G83: 0 | H83: 0
A84: 83 | B84: 中瀬村 | C84: 9 | D84: 792 | E84: 104 | F84: 828 | G84: 12 | H84: 41
A85: 84 | B85: 赤佐村 | C85: 322 | D85: 664 | E85: 45 | F85: 887 | G85: 0 | H85: 47
A86: 85 | B86: 麁玉村 | C86: 937 | D86: 2127 | E86: 0 | F86: 2198 | G86: 0 | H86: 0
A87: 86 | B87: 天竜区(浜松市) | C87: 85815 | D87: 37443 | E87: 45 | F87: 334 | G87: 35 | H87: 33
A88: 87 | B88: 二俣町 | C88: 422 | D88: 65 | E88: 45 | F88: 194 | G88: 35 | H88: 15
A89: 88 | B89: 光明村 | C89: 3528 | D89: 1206 | E89: 0 | F89: 106 | G89: 0 | H89: 19
A90: 89 | B90: 上阿多古村 | C90: 2329 | D90: 1736 | E90: 0 | F90: 0 | G90: 0 | H90: 0
A91: 90 | B91: 下阿多古村 | C91: 2124 | D91: 1387 | E91: 0 | F91: 35 | G91: 0 | H91: 0
A92: 91 | B92: 熊村 | C92: 2908 | D92: 1522 | E92: 0 | F92: 0 | G92: 0 | H92: 0
A93: 92 | B93: 竜川村 | C93: 3731 | D93: 2722 | E93: 0 | F93: 0 | G93: 0 | H93: 0
A94: 93 | B94: 犬居町 | C94: 2609 | D94: 3156 | E94: 0 | F94: 0 | G94: 0 | H94: 0
A95: 94 | B95: 気多村 | C95: 10176 | D95: 1956 | E95: 0 | F95: 0 | G95: 0 | H95: 0
A96: 95 | B96: 熊切村 | C96: 10390 | D96: 8774 | E96: 0 | F96: 0 | G96: 0 | H96: 0
A97: 96 | B97: 龍山村 | C97: 6347 | D97: 1334 | E97: 0 | F97: 0 | G97: 0 | H97: 0
A98: 97 | B98: 浦川町 | C98: 6572 | D98: 2381 | E98: 0 | F98: 0 | G98: 0 | H98: 0
A99: 98 | B99: 佐久間村 | C99: 2101 | D99: 1374 | E99: 0 | F99: 0 | G99: 0 | H99: 0
A100: 99 | B100: 山香村 | C100: 3888 | D100: 1905 | E100: 0 | F100: 0 | G100: 0 | H100: 0
A101: 100 | B101: 城西村 | C101: 2611 | D101: 1741 | E101: 0 | F101: 0 | G101: 0 | H101: 0
A102: 101 | B102: 水窪町 | C102: 26079 | D102: 6185 | E102: 0 | F102: 0 | G102: 0 | H102: 0
A103: 102 | B103: 沼津市 | C103: 10202 | D103: 10850 | E103: 3339 | F103: 10651 | G103: 296 | H103: 697
A104: 103 | B104: 沼津市（旧） | C104: 1671 | D104: 1118 | E104: 2722 | F104: 2164 | G104: 286 | H104: 566
A105: 104 | B105: 愛鷹村 | C105: 954 | D105: 1212 | E105: 308 | F105: 1553 | G105: 0 | H105: 56
A106: 105 | B106: 大平村 | C106: 293 | D106: 580 | E106: 0 | F106: 585 | G106: 0 | H106: 0
A107: 106 | B107: 内浦村 | C107: 500 | D107: 735 | E107: 0 | F107: 733 | G107: 0 | H107: 0
A108: 107 | B108: 西浦村 | C108: 2164 | D108: 3069 | E108: 0 | F108: 3174 | G108: 0 | H108: 0
A109: 108 | B109: 原町 | C109: 55 | D109: 446 | E109: 290 | F109: 513 | G109: 10 | H109: 76
A110: 109 | B110: 浮島村２－１ | C110: 1519 | D110: 1877 | E110: 19 | F110: 1903 | G110: 0 | H110: 0
A111: 110 | B111: 戸田村 | C111: 3034 | D111: 1812 | E111: 0 | F111: 12 | G111: 0 | H111: 0
A112: 111 | B112: 熱海市 | C112: 4019 | D112: 760 | E112: 0 | F112: 24 | G112: 168 | H112: 0
A113: 112 | B113: 熱海市（旧） | C113: 3919 | D113: 756 | E113: 0 | F113: 24 | G113: 154 | H113: 0
A114: 113 | B114: 網代町 | C114: 101 | D114: 4 | E114: 0 | F114: 0 | G114: 14 | H114: 0
A115: 114 | B115: 三島市 | C115: 2681 | D115: 4366 | E115: 1386 | F115: 4807 | G115: 147 | H115: 176
A116: 115 | B116: 三島市（旧） | C116: 2608 | D116: 3697 | E116: 1149 | F116: 4129 | G116: 144 | H116: 74
A117: 116 | B117: 中郷村 | C117: 73 | D117: 669 | E117: 237 | F117: 678 | G117: 3 | H117: 102
A118: 117 | B118: 富士宮市 | C118: 25893 | D118: 26493 | E118: 2333 | F118: 21960 | G118: 140 | H118: 303
A119: 118 | B119: 富士宮市（旧） | C119: 792 | D119: 1937 | E119: 1619 | F119: 2026 | G119: 105 | H119: 208
A120: 119 | B120: 富士根村 | C120: 3770 | D120: 2971 | E120: 586 | F120: 2901 | G120: 35 | H120: 48
A121: 120 | B121: 北山村 | C121: 6270 | D121: 4646 | E121: 129 | F121: 4640 | G121: 0 | H121: 47
A122: 121 | B122: 上井出村 | C122: 8023 | D122: 7253 | E122: 0 | F122: 9184 | G122: 0 | H122: 0
A123: 122 | B123: 白糸村 | C123: 1220 | D123: 1741 | E123: 0 | F123: 1849 | G123: 0 | H123: 0
A124: 123 | B124: 上野村 | C124: 393 | D124: 1345 | E124: 0 | F124: 1331 | G124: 0 | H124: 0
A125: 124 | B125: 芝富村 | C125: 712 | D125: 1497 | E125: 0 | F125: 21 | G125: 0 | H125: 0
A126: 125 | B126: 柚野村 | C126: 3223 | D126: 3267 | E126: 0 | F126: 7 | G126: 0 | H126: 0
A127: 126 | B127: 内房村 | C127: 1490 | D127: 1837 | E127: 0 | F127: 0 | G127: 0 | H127: 0
A128: 127 | B128: 伊東市 | C128: 7174 | D128: 7517 | E128: 0 | F128: 2 | G128: 191 | H128: 6
A129: 128 | B129: 伊東市（旧） | C129: 3307 | D129: 3530 | E129: 0 | F129: 0 | G129: 172 | H129: 6
A130: 129 | B130: 宇佐美村 | C130: 1546 | D130: 1348 | E130: 0 | F130: 2 | G130: 18 | H130: 0
A131: 130 | B131: 対島村 | C131: 2322 | D131: 2639 | E131: 0 | F131: 0 | G131: 0 | H131: 0
A132: 131 | B132: 島田市 | C132: 20607 | D132: 24716 | E132: 0 | F132: 15 | G132: 83 | H132: 420
A133: 132 | B133: 島田市（旧） | C133: 0 | D133: 23 | E133: 0 | F133: 0 | G133: 73 | H133: 184
A134: 133 | B134: 六合村 | C134: 394 | D134: 876 | E134: 0 | F134: 15 | G134: 0 | H134: 59
A135: 134 | B135: 大津村 | C135: 923 | D135: 1439 | E135: 0 | F135: 0 | G135: 0 | H135: 0
A136: 135 | B136: 大長村 | C136: 1831 | D136: 2816 | E136: 0 | F136: 0 | G136: 0 | H136: 2
A137: 136 | B137: 伊久身村２－１ | C137: 2137 | D137: 2696 | E137: 0 | F137: 0 | G137: 0 | H137: 0
A138: 137 | B138: 笹間村２－１ | C138: 1115 | D138: 1149 | E138: 0 | F138: 0 | G138: 0 | H138: 0
A139: 138 | B139: 初倉村２－１ | C139: 334 | D139: 1966 | E139: 0 | F139: 0 | G139: 0 | H139: 72
A140: 139 | B140: 金谷町 | C140: 270 | D140: 1064 | E140: 0 | F140: 0 | G140: 10 | H140: 77
A141: 140 | B141: 五和村 | C141: 3215 | D141: 3982 | E141: 0 | F141: 0 | G141: 0 | H141: 26
A142: 141 | B142: 初倉村２－２ | C142: 0 | D142: 6 | E142: 0 | F142: 0 | G142: 0 | H142: 0
A143: 142 | B143: 勝間田村２－２ | C143: 17 | D143: 178 | E143: 0 | F143: 0 | G143: 0 | H143: 0
A144: 143 | B144: 日坂村２－２ | C144: 28 | D144: 36 | E144: 0 | F144: 0 | G144: 0 | H144: 0
A145: 144 | B145: 下川根村 | C145: 4115 | D145: 3897 | E145: 0 | F145: 0 | G145: 0 | H145: 0
A146: 145 | B146: 笹間村２－２ | C146: 5014 | D146: 2948 | E146: 0 | F146: 0 | G146: 0 | H146: 0
A147: 146 | B147: 伊久身村２－２ | C147: 1212 | D147: 1641 | E147: 0 | F147: 0 | G147: 0 | H147: 0
A148: 147 | B148: 富士市 | C148: 12642 | D148: 10557 | E148: 6015 | F148: 12235 | G148: 319 | H148: 1901
A149: 148 | B149: 吉原市 | C149: 101 | D149: 556 | E149: 1534 | F149: 623 | G149: 155 | H149: 516
A150: 149 | B150: 元吉原村 | C150: 47 | D150: 75 | E150: 339 | F150: 175 | G150: 0 | H150: 164
A151: 150 | B151: 原田村（富士市） | C151: 19 | D151: 112 | E151: 291 | F151: 112 | G151: 1 | H151: 81
A152: 151 | B152: 吉永村（富士市） | C152: 4049 | D152: 1006 | E152: 272 | F152: 3388 | G152: 0 | H152: 135
A153: 152 | B153: 須津村 | C153: 1426 | D153: 979 | E153: 192 | F153: 1468 | G153: 0 | H153: 17
A154: 153 | B154: 大淵村（富士市） | C154: 5119 | D154: 4279 | E154: 225 | F154: 4767 | G154: 0 | H154: 80
A155: 154 | B155: 浮島村２－２ | C155: 77 | D155: 465 | E155: 0 | F155: 465 | G155: 0 | H155: 0
A156: 155 | B156: 富士町 | C156: 0 | D156: 17 | E156: 942 | F156: 187 | G156: 145 | H156: 245
A157: 156 | B157: 岩松村 | C157: 69 | D157: 339 | E157: 364 | F157: 469 | G157: 5 | H157: 31
A158: 157 | B158: 田子浦村 | C158: 14 | D158: 0 | E158: 738 | F158: 277 | G158: 4 | H158: 346
A159: 158 | B159: 鷹岡町 | C159: 37 | D159: 294 | E159: 699 | F159: 293 | G159: 8 | H159: 188
A160: 159 | B160: 富士川町 | C160: 444 | D160: 754 | E160: 272 | F160: 5 | G160: 0 | H160: 75
A161: 160 | B161: 松野村 | C161: 1241 | D161: 1681 | E161: 145 | F161: 6 | G161: 0 | H161: 23
A162: 161 | B162: 磐田市 | C162: 2655 | D162: 12915 | E162: 2728 | F162: 13320 | G162: 116 | H162: 959
A163: 162 | B163: 磐田市（旧） | C163: 49 | D163: 743 | E163: 1175 | F163: 736 | G163: 73 | H163: 219
A164: 163 | B164: 大藤村 | C164: 120 | D164: 706 | E164: 0 | F164: 703 | G164: 0 | H164: 0
A165: 164 | B165: 岩田村 | C165: 53 | D165: 683 | E165: 0 | F165: 683 | G165: 0 | H165: 0
A166: 165 | B166: 長野村 | C166: 12 | D166: 683 | E166: 0 | F166: 683 | G166: 0 | H166: 0
A167: 166 | B167: 向笠村 | C167: 212 | D167: 981 | E167: 108 | F167: 953 | G167: 0 | H167: 74
A168: 167 | B168: 御厨村 | C168: 5 | D168: 335 | E168: 159 | F168: 342 | G168: 0 | H168: 84
A169: 168 | B169: 南御厨村２－１ | C169: 0 | D169: 226 | E169: 0 | F169: 226 | G169: 0 | H169: 0
A170: 169 | B170: 田原村２－１ | C170: 7 | D170: 228 | E170: 73 | F170: 235 | G170: 0 | H170: 27
A171: 170 | B171: 於保村２－２ | C171: 14 | D171: 290 | E171: 19 | F171: 289 | G171: 0 | H171: 8
A172: 171 | B172: 三川村２－２ | C172: 1 | D172: 27 | E172: 0 | F172: 9 | G172: 0 | H172: 0
A173: 172 | B173: 福田町 | C173: 40 | D173: 428 | E173: 310 | F173: 424 | G173: 4 | H173: 65
A174: 173 | B174: 豊浜村 | C174: 12 | D174: 318 | E174: 61 | F174: 312 | G174: 0 | H174: 0
A175: 174 | B175: 於保村２－１ | C175: 13 | D175: 313 | E175: 60 | F175: 313 | G175: 0 | H175: 60
A176: 175 | B176: 南御厨村２－２ | C176: 0 | D176: 166 | E176: 0 | F176: 166 | G176: 0 | H176: 0
A177: 176 | B177: 掛塚町 | C177: 0 | D177: 650 | E177: 118 | F177: 651 | G177: 10 | H177: 12
A178: 177 | B178: 袖浦村 | C178: 87 | D178: 808 | E178: 198 | F178: 899 | G178: 1 | H178: 177
A179: 178 | B179: 十束村２－１ | C179: 0 | D179: 284 | E179: 80 | F179: 287 | G179: 0 | H179: 41
A180: 179 | B180: 富岡村（磐田市） | C180: 15 | D180: 801 | E180: 71 | F180: 799 | G180: 10 | H180: 51
A181: 180 | B181: 池田村 | C181: 0 | D181: 85 | E181: 60 | F181: 85 | G181: 0 | H181: 7
A182: 181 | B182: 井通村 | C182: 0 | D182: 707 | E182: 164 | F182: 699 | G182: 13 | H182: 81
A183: 182 | B183: 十束村２－２ | C183: 0 | D183: 89 | E183: 17 | F183: 90 | G183: 6 | H183: 0
A184: 183 | B184: 広瀬村 | C184: 144 | D184: 861 | E184: 0 | F184: 1127 | G184: 0 | H184: 0
A185: 184 | B185: 野部村 | C185: 879 | D185: 1218 | E185: 45 | F185: 1362 | G185: 0 | H185: 42
A186: 185 | B186: 敷地村 | C186: 992 | D186: 1286 | E186: 10 | F186: 1249 | G186: 0 | H186: 10
A187: 186 | B187: 焼津市 | C187: 429 | D187: 4312 | E187: 2050 | F187: 4900 | G187: 102 | H187: 765
A188: 187 | B188: 焼津町 | C188: 0 | D188: 53 | E188: 440 | F188: 56 | G188: 79 | H188: 184
A189: 188 | B189: 豊田村 | C189: 0 | D189: 97 | E189: 420 | F189: 97 | G189: 0 | H189: 163
A190: 189 | B190: 大富村 | C190: 0 | D190: 779 | E190: 135 | F190: 786 | G190: 0 | H190: 65
A191: 190 | B191: 和田村（焼津市） | C191: 35 | D191: 529 | E191: 149 | F191: 568 | G191: 0 | H191: 0
A192: 191 | B192: 小川村 | C192: 7 | D192: 0 | E192: 438 | F192: 47 | G192: 21 | H192: 54
A193: 192 | B193: 東益津村 | C193: 358 | D193: 1181 | E193: 60 | F193: 1192 | G193: 0 | H193: 24
A194: 193 | B194: 広幡村２－２ | C194: 0 | D194: 72 | E194: 0 | F194: 72 | G194: 0 | H194: 0
A195: 194 | B195: 西益津村２－２ | C195: 0 | D195: 41 | E195: 53 | F195: 41 | G195: 0 | H195: 48
A196: 195 | B196: 静浜村 | C196: 13 | D196: 518 | E196: 4 | F196: 635 | G196: 0 | H196: 0
A197: 196 | B197: 相川村 | C197: 0 | D197: 611 | E197: 66 | F197: 748 | G197: 0 | H197: 38
A198: 197 | B198: 吉永村（焼津市） | C198: 18 | D198: 431 | E198: 285 | F198: 658 | G198: 3 | H198: 189
A199: 198 | B199: 掛川市 | C199: 10983 | D199: 22665 | E199: 0 | F199: 0 | G199: 109 | H199: 766
A200: 199 | B200: 掛川町 | C200: 13 | D200: 78 | E200: 0 | F200: 0 | G200: 64 | H200: 168
... 301 more rows

Sheet 地域類型区分 (hidden)
A2: 1 | B2: 静岡県 | C2: 設定 | D2: されていません
A3: 2 | B3: 静岡市 | C3: 都市的地域 | D3: 畑地型 | E3: 静岡市 | G3: 1 | H3: 3 | I3: 都市的地域 | J3: 畑地型
A4: 3 | B4: 葵区(静岡市) | C4: 都市的地域 | D4: 畑地型 | E4: 葵区 | G4: 1 | H4: 3 | I4: 都市的地域 | J4: 畑地型
A5: 4 | B5: 静岡市２－１ | C5: 都市的地域 | D5: 畑地型 | E5: 葵区 | F5: 静岡市２－１ | G5: 1 | H5: 3 | I5: 都市的地域 | J5: 畑地型
A6: 5 | B6: 美和村 | C6: 中間農業地域 | D6: 畑地型 | E6: 葵区 | F6: 美和村 | G6: 3 | H6: 3 | I6: 中間農業地域 | J6: 畑地型
A7: 6 | B7: 服織村 | C7: 都市的地域 | D7: 畑地型 | E7: 葵区 | F7: 服織村 | G7: 1 | H7: 3 | I7: 都市的地域 | J7: 畑地型
A8: 7 | B8: 中藁科村 | C8: 山間農業地域 | D8: 畑地型 | E8: 葵区 | F8: 中藁科村 | G8: 4 | H8: 3 | I8: 山間農業地域 | J8: 畑地型
A9: 8 | B9: 南藁科村 | C9: 中間農業地域 | D9: 畑地型 | E9: 葵区 | F9: 南藁科村 | G9: 3 | H9: 3 | I9: 中間農業地域 | J9: 畑地型
A10: 9 | B10: 大河内村 | C10: 山間農業地域 | D10: 畑地型 | E10: 葵区 | F10: 大河内村 | G10: 4 | H10: 3 | I10: 山間農業地域 | J10: 畑地型
A11: 10 | B11: 梅ヶ島村 | C11: 山間農業地域 | D11: 畑地型 | E11: 葵区 | F11: 梅ヶ島村 | G11: 4 | H11: 3 | I11: 山間農業地域 | J11: 畑地型
A12: 11 | B12: 玉川村 | C12: 山間農業地域 | D12: 畑地型 | E12: 葵区 | F12: 玉川村 | G12: 4 | H12: 3 | I12: 山間農業地域 | J12: 畑地型
A13: 12 | B13: 井川村 | C13: 山間農業地域 | D13: 畑地型 | E13: 葵区 | F13: 井川村 | G13: 4 | H13: 3 | I13: 山間農業地域 | J13: 畑地型
A14: 13 | B14: 清沢村 | C14: 山間農業地域 | D14: 畑地型 | E14: 葵区 | F14: 清沢村 | G14: 4 | H14: 3 | I14: 山間農業地域 | J14: 畑地型
A15: 14 | B15: 大川村 | C15: 山間農業地域 | D15: 畑地型 | E15: 葵区 | F15: 大川村 | G15: 4 | H15: 3 | I15: 山間農業地域 | J15: 畑地型
A16: 15 | B16: 駿河区(静岡市) | C16: 都市的地域 | D16: 畑地型 | E16: 駿河区 | G16: 1 | H16: 3 | I16: 都市的地域 | J16: 畑地型
A17: 16 | B17: 静岡市2-2 | C17: 都市的地域 | D17: 畑地型 | E17: 駿河区 | F17: 静岡市2-2 | G17: 1 | H17: 3 | I17: 都市的地域 | J17: 畑地型
A18: 17 | B18: 有度村２－２ | C18: 都市的地域 | D18: 畑地型 | E18: 駿河区 | F18: 有度村２－２ | G18: 1 | H18: 3 | I18: 都市的地域 | J18: 畑地型
A19: 18 | B19: 清水区(静岡市) | C19: 都市的地域 | D19: 畑地型 | E19: 清水区 | G19: 1 | H19: 3 | I19: 都市的地域 | J19: 畑地型
A20: 19 | B20: 清水市 | C20: 都市的地域 | D20: 畑地型 | E20: 清水区 | F20: 清水市 | G20: 1 | H20: 3 | I20: 都市的地域 | J20: 畑地型
A21: 20 | B21: 飯田村清水区（静岡市） | C21: 都市的地域 | D21: 畑地型 | E21: 清水区 | F21: 飯田村 | G21: 1 | H21: 3 | I21: 都市的地域 | J21: 畑地型
A22: 21 | B22: 高部村 | C22: 都市的地域 | D22: 畑地型 | E22: 清水区 | F22: 高部村 | G22: 1 | H22: 3 | I22: 都市的地域 | J22: 畑地型
A23: 22 | B23: 有度村２－１ | C23: 都市的地域 | D23: 畑地型 | E23: 清水区 | F23: 有度村２－１ | G23: 1 | H23: 3 | I23: 都市的地域 | J23: 畑地型
A24: 23 | B24: 興津町 | C24: 都市的地域 | D24: 畑地型 | E24: 清水区 | F24: 興津町 | G24: 1 | H24: 3 | I24: 都市的地域 | J24: 畑地型
A25: 24 | B25: 小島村 | C25: 中間農業地域 | D25: 畑地型 | E25: 清水区 | F25: 小島村 | G25: 3 | H25: 3 | I25: 中間農業地域 | J25: 畑地型
A26: 25 | B26: 両河内村 | C26: 山間農業地域 | D26: 畑地型 | E26: 清水区 | F26: 両河内村 | G26: 4 | H26: 3 | I26: 山間農業地域 | J26: 畑地型
A27: 26 | B27: 庵原村 | C27: 中間農業地域 | D27: 畑地型 | E27: 清水区 | F27: 庵原村 | G27: 3 | H27: 3 | I27: 中間農業地域 | J27: 畑地型
A28: 27 | B28: 袖師町 | C28: 都市的地域 | D28: 畑地型 | E28: 清水区 | F28: 袖師町 | G28: 1 | H28: 3 | I28: 都市的地域 | J28: 畑地型
A29: 28 | B29: 蒲原町 | C29: 都市的地域 | D29: 畑地型 | E29: 清水区 | F29: 蒲原町 | G29: 1 | H29: 3 | I29: 都市的地域 | J29: 畑地型
A30: 29 | B30: 由比町 | C30: 中間農業地域 | D30: 畑地型 | E30: 清水区 | F30: 由比町 | G30: 3 | H30: 3 | I30: 中間農業地域 | J30: 畑地型
A31: 30 | B31: 浜松市 | C31: 都市的地域 | D31: 畑地型 | E31: 浜松市 | G31: 1 | H31: 3 | I31: 都市的地域 | J31: 畑地型
A32: 31 | B32: 中区(浜松市) | C32: 都市的地域 | D32: 畑地型 | E32: 中区 | G32: 1 | H32: 3 | I32: 都市的地域 | J32: 畑地型
A33: 32 | B33: 浜松市４－１ | C33: 都市的地域 | D33: 畑地型 | E33: 中区 | F33: 浜松市４－１ | G33: 1 | H33: 3 | I33: 都市的地域 | J33: 畑地型
A34: 33 | B34: 入野村２－１ | C34: 都市的地域 | D34: 畑地型 | E34: 中区 | F34: 入野村２－１ | G34: 1 | H34: 3 | I34: 都市的地域 | J34: 畑地型
A35: 34 | B35: 吉野村２－１ | C35: 平地農業地域 | D35: 畑地型 | E35: 中区 | F35: 吉野村２－１ | G35: 2 | H35: 3 | I35: 平地農業地域 | J35: 畑地型
A36: 35 | B36: 新津村２－１ | C36: 平地農業地域 | D36: 水田型 | E36: 中区 | F36: 新津村２－１ | G36: 2 | H36: 1 | I36: 平地農業地域 | J36: 水田型
A37: 36 | B37: 東区(浜松市) | C37: 都市的地域 | D37: 田畑型 | E37: 東区 | G37: 1 | H37: 2 | I37: 都市的地域 | J37: 田畑型
A38: 37 | B38: 浜松市４－３ | C38: 都市的地域 | D38: 畑地型 | E38: 東区 | F38: 浜松市４－３ | G38: 1 | H38: 3 | I38: 都市的地域 | J38: 畑地型
A39: 38 | B39: 飯田村２－１東区（浜松市） | C39: 都市的地域 | D39: 畑地型 | E39: 東区 | F39: 飯田村２－１ | G39: 1 | H39: 3 | I39: 都市的地域 | J39: 畑地型
A40: 39 | B40: 和田村東区（浜松市） | C40: 都市的地域 | D40: 田畑型 | E40: 東区 | F40: 和田村 | G40: 1 | H40: 2 | I40: 都市的地域 | J40: 田畑型
A41: 40 | B41: 長上村 | C41: 都市的地域 | D41: 田畑型 | E41: 東区 | F41: 長上村 | G41: 1 | H41: 2 | I41: 都市的地域 | J41: 田畑型
A42: 41 | B42: 積志村 | C42: 都市的地域 | D42: 田畑型 | E42: 東区 | F42: 積志村 | G42: 1 | H42: 2 | I42: 都市的地域 | J42: 田畑型
A43: 42 | B43: 笠井町 | C43: 都市的地域 | D43: 田畑型 | E43: 東区 | F43: 笠井町 | G43: 1 | H43: 2 | I43: 都市的地域 | J43: 田畑型
A44: 43 | B44: 豊西村 | C44: 都市的地域 | D44: 田畑型 | E44: 東区 | F44: 豊西村 | G44: 1 | H44: 2 | I44: 都市的地域 | J44: 田畑型
A45: 44 | B45: 中ノ町村 | C45: 都市的地域 | D45: 田畑型 | E45: 東区 | F45: 中ノ町村 | G45: 1 | H45: 2 | I45: 都市的地域 | J45: 田畑型
A46: 45 | B46: 三方原村２－１ | C46: 都市的地域 | D46: 畑地型 | E46: 東区 | F46: 三方原村２－１ | G46: 1 | H46: 3 | I46: 都市的地域 | J46: 畑地型
A47: 46 | B47: 西区(浜松市) | C47: 都市的地域 | D47: 畑地型 | E47: 西区 | G47: 1 | H47: 3 | I47: 都市的地域 | J47: 畑地型
A48: 47 | B48: 神久呂村 | C48: 平地農業地域 | D48: 畑地型 | E48: 西区 | F48: 神久呂村 | G48: 2 | H48: 3 | I48: 平地農業地域 | J48: 畑地型
A49: 48 | B49: 入野村２－２ | C49: 都市的地域 | D49: 田畑型 | E49: 西区 | F49: 入野村２－２ | G49: 1 | H49: 2 | I49: 都市的地域 | J49: 田畑型
A50: 49 | B50: 吉野村２－２ | C50: 平地農業地域 | D50: 畑地型 | E50: 西区 | F50: 吉野村２－２ | G50: 2 | H50: 3 | I50: 平地農業地域 | J50: 畑地型
A51: 50 | B51: 和地村 | C51: 平地農業地域 | D51: 畑地型 | E51: 西区 | F51: 和地村 | G51: 2 | H51: 3 | I51: 平地農業地域 | J51: 畑地型
A52: 51 | B52: 伊佐見村 | C52: 平地農業地域 | D52: 畑地型 | E52: 西区 | F52: 伊佐見村 | G52: 2 | H52: 3 | I52: 平地農業地域 | J52: 畑地型
A53: 52 | B53: 篠原村 | C53: 都市的地域 | D53: 畑地型 | E53: 西区 | F53: 篠原村 | G53: 1 | H53: 3 | I53: 都市的地域 | J53: 畑地型
A54: 53 | B54: 北庄内村 | C54: 中間農業地域 | D54: 畑地型 | E54: 西区 | F54: 北庄内村 | G54: 3 | H54: 3 | I54: 中間農業地域 | J54: 畑地型
A55: 54 | B55: 南庄内村 | C55: 中間農業地域 | D55: 畑地型 | E55: 西区 | F55: 南庄内村 | G55: 3 | H55: 3 | I55: 中間農業地域 | J55: 畑地型
A56: 55 | B56: 村櫛村 | C56: 中間農業地域 | D56: 畑地型 | E56: 西区 | F56: 村櫛村 | G56: 3 | H56: 3 | I56: 中間農業地域 | J56: 畑地型
A57: 56 | B57: 舞阪町 | C57: 都市的地域 | D57: 畑地型 | E57: 西区 | F57: 舞阪町 | G57: 1 | H57: 3 | I57: 都市的地域 | J57: 畑地型
A58: 57 | B58: 雄踏町 | C58: 都市的地域 | D58: 田畑型 | E58: 西区 | F58: 雄踏町 | G58: 1 | H58: 2 | I58: 都市的地域 | J58: 田畑型
A59: 58 | B59: 浜松市４－２ | C59: 都市的地域 | D59: 畑地型 | E59: 西区 | F59: 浜松市４－２ | G59: 1 | H59: 3 | I59: 都市的地域 | J59: 畑地型
A60: 59 | B60: 南区(浜松市) | C60: 都市的地域 | D60: 田畑型 | E60: 南区 | G60: 1 | H60: 2 | I60: 都市的地域 | J60: 田畑型
A61: 60 | B61: 浜松市４－４ | C61: 都市的地域 | D61: 田畑型 | E61: 南区 | F61: 浜松市４－４ | G61: 1 | H61: 2 | I61: 都市的地域 | J61: 田畑型
A62: 61 | B62: 芳川村 | C62: 都市的地域 | D62: 田畑型 | E62: 南区 | F62: 芳川村 | G62: 1 | H62: 2 | I62: 都市的地域 | J62: 田畑型
A63: 62 | B63: 飯田村２－１南区（浜松市） | C63: 都市的地域 | D63: 田畑型 | E63: 南区 | F63: 飯田村２－１ | G63: 1 | H63: 2 | I63: 都市的地域 | J63: 田畑型
A64: 63 | B64: 河輪村 | C64: 都市的地域 | D64: 田畑型 | E64: 南区 | F64: 河輪村 | G64: 1 | H64: 2 | I64: 都市的地域 | J64: 田畑型
A65: 64 | B65: 五島村 | C65: 都市的地域 | D65: 田畑型 | E65: 南区 | F65: 五島村 | G65: 1 | H65: 2 | I65: 都市的地域 | J65: 田畑型
A66: 65 | B66: 新津村２－２ | C66: 都市的地域 | D66: 田畑型 | E66: 南区 | F66: 新津村２－２ | G66: 1 | H66: 2 | I66: 都市的地域 | J66: 田畑型
A67: 66 | B67: 可美村 | C67: 都市的地域 | D67: 田畑型 | E67: 南区 | F67: 可美村 | G67: 1 | H67: 2 | I67: 都市的地域 | J67: 田畑型
A68: 67 | B68: 北区(浜松市) | C68: 中間農業地域 | D68: 畑地型 | E68: 北区 | G68: 3 | H68: 3 | I68: 中間農業地域 | J68: 畑地型
A69: 68 | B69: 三方原村２－２ | C69: 都市的地域 | D69: 畑地型 | E69: 北区 | F69: 三方原村２－２ | G69: 1 | H69: 3 | I69: 都市的地域 | J69: 畑地型
A70: 69 | B70: 都田村 | C70: 平地農業地域 | D70: 畑地型 | E70: 北区 | F70: 都田村 | G70: 2 | H70: 3 | I70: 平地農業地域 | J70: 畑地型
A71: 70 | B71: 気賀町 | C71: 平地農業地域 | D71: 畑地型 | E71: 北区 | F71: 気賀町 | G71: 2 | H71: 3 | I71: 平地農業地域 | J71: 畑地型
A72: 71 | B72: 中川村北区（浜松市） | C72: 平地農業地域 | D72: 田畑型 | E72: 北区 | F72: 中川村 | G72: 2 | H72: 2 | I72: 平地農業地域 | J72: 田畑型
A73: 72 | B73: 金指町 | C73: 都市的地域 | D73: 畑地型 | E73: 北区 | F73: 金指町 | G73: 1 | H73: 3 | I73: 都市的地域 | J73: 畑地型
A74: 73 | B74: 井伊谷村 | C74: 平地農業地域 | D74: 畑地型 | E74: 北区 | F74: 井伊谷村 | G74: 2 | H74: 3 | I74: 平地農業地域 | J74: 畑地型
A75: 74 | B75: 奥山村 | C75: 中間農業地域 | D75: 畑地型 | E75: 北区 | F75: 奥山村 | G75: 3 | H75: 3 | I75: 中間農業地域 | J75: 畑地型
A76: 75 | B76: 伊平村 | C76: 山間農業地域 | D76: 畑地型 | E76: 北区 | F76: 伊平村 | G76: 4 | H76: 3 | I76: 山間農業地域 | J76: 畑地型
A77: 76 | B77: 鎮玉村 | C77: 中間農業地域 | D77: 田畑型 | E77: 北区 | F77: 鎮玉村 | G77: 3 | H77: 2 | I77: 中間農業地域 | J77: 田畑型
A78: 77 | B78: 三ヶ日町 | C78: 平地農業地域 | D78: 畑地型 | E78: 北区 | F78: 三ヶ日町 | G78: 2 | H78: 3 | I78: 平地農業地域 | J78: 畑地型
A79: 78 | B79: 東浜名村 | C79: 中間農業地域 | D79: 畑地型 | E79: 北区 | F79: 東浜名村 | G79: 3 | H79: 3 | I79: 中間農業地域 | J79: 畑地型
A80: 79 | B80: 浜北区(浜松市) | C80: 都市的地域 | D80: 畑地型 | E80: 浜北区 | G80: 1 | H80: 3 | I80: 都市的地域 | J80: 畑地型
A81: 80 | B81: 小野口村 | C81: 都市的地域 | D81: 田畑型 | E81: 浜北区 | F81: 小野口村 | G81: 1 | H81: 2 | I81: 都市的地域 | J81: 田畑型
A82: 81 | B82: 北浜村 | C82: 都市的地域 | D82: 畑地型 | E82: 浜北区 | F82: 北浜村 | G82: 1 | H82: 3 | I82: 都市的地域 | J82: 畑地型
A83: 82 | B83: 竜池村 | C83: 都市的地域 | D83: 田畑型 | E83: 浜北区 | F83: 竜池村 | G83: 1 | H83: 2 | I83: 都市的地域 | J83: 田畑型
A84: 83 | B84: 中瀬村 | C84: 都市的地域 | D84: 畑地型 | E84: 浜北区 | F84: 中瀬村 | G84: 1 | H84: 3 | I84: 都市的地域 | J84: 畑地型
A85: 84 | B85: 赤佐村 | C85: 都市的地域 | D85: 田畑型 | E85: 浜北区 | F85: 赤佐村 | G85: 1 | H85: 2 | I85: 都市的地域 | J85: 田畑型
A86: 85 | B86: 麁玉村 | C86: 平地農業地域 | D86: 畑地型 | E86: 浜北区 | F86: 麁玉村 | G86: 2 | H86: 3 | I86: 平地農業地域 | J86: 畑地型
A87: 86 | B87: 天竜区(浜松市) | C87: 山間農業地域 | D87: 畑地型 | E87: 天竜区 | G87: 4 | H87: 3 | I87: 山間農業地域 | J87: 畑地型
A88: 87 | B88: 二俣町 | C88: 都市的地域 | D88: 畑地型 | E88: 天竜区 | F88: 二俣町 | G88: 1 | H88: 3 | I88: 都市的地域 | J88: 畑地型
A89: 88 | B89: 光明村 | C89: 山間農業地域 | D89: 畑地型 | E89: 天竜区 | F89: 光明村 | G89: 4 | H89: 3 | I89: 山間農業地域 | J89: 畑地型
A90: 89 | B90: 上阿多古村 | C90: 山間農業地域 | D90: 畑地型 | E90: 天竜区 | F90: 上阿多古村 | G90: 4 | H90: 3 | I90: 山間農業地域 | J90: 畑地型
A91: 90 | B91: 下阿多古村 | C91: 中間農業地域 | D91: 畑地型 | E91: 天竜区 | F91: 下阿多古村 | G91: 3 | H91: 3 | I91: 中間農業地域 | J91: 畑地型
A92: 91 | B92: 熊村 | C92: 山間農業地域 | D92: 畑地型 | E92: 天竜区 | F92: 熊村 | G92: 4 | H92: 3 | I92: 山間農業地域 | J92: 畑地型
A93: 92 | B93: 竜川村 | C93: 山間農業地域 | D93: 畑地型 | E93: 天竜区 | F93: 竜川村 | G93: 4 | H93: 3 | I93: 山間農業地域 | J93: 畑地型
A94: 93 | B94: 犬居町 | C94: 山間農業地域 | D94: 畑地型 | E94: 天竜区 | F94: 犬居町 | G94: 4 | H94: 3 | I94: 山間農業地域 | J94: 畑地型
A95: 94 | B95: 気多村 | C95: 山間農業地域 | D95: 畑地型 | E95: 天竜区 | F95: 気多村 | G95: 4 | H95: 3 | I95: 山間農業地域 | J95: 畑地型
A96: 95 | B96: 熊切村 | C96: 山間農業地域 | D96: 畑地型 | E96: 天竜区 | F96: 熊切村 | G96: 4 | H96: 3 | I96: 山間農業地域 | J96: 畑地型
A97: 96 | B97: 龍山村 | C97: 山間農業地域 | D97: 畑地型 | E97: 天竜区 | F97: 龍山村 | G97: 4 | H97: 3 | I97: 山間農業地域 | J97: 畑地型
A98: 97 | B98: 浦川町 | C98: 山間農業地域 | D98: 畑地型 | E98: 天竜区 | F98: 浦川町 | G98: 4 | H98: 3 | I98: 山間農業地域 | J98: 畑地型
A99: 98 | B99: 佐久間村 | C99: 山間農業地域 | D99: 畑地型 | E99: 天竜区 | F99: 佐久間村 | G99: 4 | H99: 3 | I99: 山間農業地域 | J99: 畑地型
A100: 99 | B100: 山香村 | C100: 山間農業地域 | D100: 畑地型 | E100: 天竜区 | F100: 山香村 | G100: 4 | H100: 3 | I100: 山間農業地域 | J100: 畑地型
A101: 100 | B101: 城西村 | C101: 山間農業地域 | D101: 畑地型 | E101: 天竜区 | F101: 城西村 | G101: 4 | H101: 3 | I101: 山間農業地域 | J101: 畑地型
A102: 101 | B102: 水窪町 | C102: 山間農業地域 | D102: 畑地型 | E102: 天竜区 | F102: 水窪町 | G102: 4 | H102: 3 | I102: 山間農業地域 | J102: 畑地型
A103: 102 | B103: 沼津市 | C103: 都市的地域 | D103: 畑地型 | E103: 沼津市 | G103: 1 | H103: 3 | I103: 都市的地域 | J103: 畑地型
A104: 103 | B104: 沼津市（旧） | C104: 都市的地域 | D104: 畑地型 | E104: 沼津市 | F104: 沼津市 | G104: 1 | H104: 3 | I104: 都市的地域 | J104: 畑地型
A105: 104 | B105: 愛鷹村 | C105: 都市的地域 | D105: 畑地型 | E105: 沼津市 | F105: 愛鷹村 | G105: 1 | H105: 3 | I105: 都市的地域 | J105: 畑地型
A106: 105 | B106: 大平村 | C106: 平地農業地域 | D106: 水田型 | E106: 沼津市 | F106: 大平村 | G106: 2 | H106: 1 | I106: 平地農業地域 | J106: 水田型
A107: 106 | B107: 内浦村 | C107: 中間農業地域 | D107: 畑地型 | E107: 沼津市 | F107: 内浦村 | G107: 3 | H107: 3 | I107: 中間農業地域 | J107: 畑地型
A108: 107 | B108: 西浦村 | C108: 中間農業地域 | D108: 畑地型 | E108: 沼津市 | F108: 西浦村 | G108: 3 | H108: 3 | I108: 中間農業地域 | J108: 畑地型
A109: 108 | B109: 原町 | C109: 都市的地域 | D109: 水田型 | E109: 沼津市 | F109: 原町 | G109: 1 | H109: 1 | I109: 都市的地域 | J109: 水田型
A110: 109 | B110: 浮島村２－１ | C110: 平地農業地域 | D110: 畑地型 | E110: 沼津市 | F110: 浮島村２－１ | G110: 2 | H110: 3 | I110: 平地農業地域 | J110: 畑地型
A111: 110 | B111: 戸田村 | C111: 山間農業地域 | D111: 畑地型 | E111: 沼津市 | F111: 戸田村 | G111: 4 | H111: 3 | I111: 山間農業地域 | J111: 畑地型
A112: 111 | B112: 熱海市 | C112: 都市的地域 | D112: 畑地型 | E112: 熱海市 | G112: 1 | H112: 3 | I112: 都市的地域 | J112: 畑地型
A113: 112 | B113: 熱海市（旧） | C113: 都市的地域 | D113: 畑地型 | E113: 熱海市 | F113: 熱海市 | G113: 1 | H113: 3 | I113: 都市的地域 | J113: 畑地型
A114: 113 | B114: 網代町 | C114: 都市的地域 | D114: 畑地型 | E114: 熱海市 | F114: 網代町 | G114: 1 | H114: 3 | I114: 都市的地域 | J114: 畑地型
A115: 114 | B115: 三島市 | C115: 都市的地域 | D115: 田畑型 | E115: 三島市 | G115: 1 | H115: 2 | I115: 都市的地域 | J115: 田畑型
A116: 115 | B116: 三島市（旧） | C116: 都市的地域 | D116: 畑地型 | E116: 三島市 | F116: 三島市 | G116: 1 | H116: 3 | I116: 都市的地域 | J116: 畑地型
A117: 116 | B117: 中郷村 | C117: 都市的地域 | D117: 水田型 | E117: 三島市 | F117: 中郷村 | G117: 1 | H117: 1 | I117: 都市的地域 | J117: 水田型
A118: 117 | B118: 富士宮市 | C118: 都市的地域 | D118: 畑地型 | E118: 富士宮市 | G118: 1 | H118: 3 | I118: 都市的地域 | J118: 畑地型
A119: 118 | B119: 富士宮市（旧） | C119: 都市的地域 | D119: 畑地型 | E119: 富士宮市 | F119: 富士宮市 | G119: 1 | H119: 3 | I119: 都市的地域 | J119: 畑地型
A120: 119 | B120: 富士根村 | C120: 都市的地域 | D120: 畑地型 | E120: 富士宮市 | F120: 富士根村 | G120: 1 | H120: 3 | I120: 都市的地域 | J120: 畑地型
A121: 120 | B121: 北山村 | C121: 中間農業地域 | D121: 畑地型 | E121: 富士宮市 | F121: 北山村 | G121: 3 | H121: 3 | I121: 中間農業地域 | J121: 畑地型
A122: 121 | B122: 上井出村 | C122: 中間農業地域 | D122: 畑地型 | E122: 富士宮市 | F122: 上井出村 | G122: 3 | H122: 3 | I122: 中間農業地域 | J122: 畑地型
A123: 122 | B123: 白糸村 | C123: 中間農業地域 | D123: 田畑型 | E123: 富士宮市 | F123: 白糸村 | G123: 3 | H123: 2 | I123: 中間農業地域 | J123: 田畑型
A124: 123 | B124: 上野村 | C124: 平地農業地域 | D124: 田畑型 | E124: 富士宮市 | F124: 上野村 | G124: 2 | H124: 2 | I124: 平地農業地域 | J124: 田畑型
A125: 124 | B125: 芝富村 | C125: 中間農業地域 | D125: 田畑型 | E125: 富士宮市 | F125: 芝富村 | G125: 3 | H125: 2 | I125: 中間農業地域 | J125: 田畑型
A126: 125 | B126: 柚野村 | C126: 山間農業地域 | D126: 田畑型 | E126: 富士宮市 | F126: 柚野村 | G126: 4 | H126: 2 | I126: 山間農業地域 | J126: 田畑型
A127: 126 | B127: 内房村 | C127: 中間農業地域 | D127: 田畑型 | E127: 富士宮市 | F127: 内房村 | G127: 3 | H127: 2 | I127: 中間農業地域 | J127: 田畑型
A128: 127 | B128: 伊東市 | C128: 都市的地域 | D128: 畑地型 | E128: 伊東市 | G128: 1 | H128: 3 | I128: 都市的地域 | J128: 畑地型
A129: 128 | B129: 伊東市（旧） | C129: 都市的地域 | D129: 畑地型 | E129: 伊東市 | F129: 伊東市 | G129: 1 | H129: 3 | I129: 都市的地域 | J129: 畑地型
A130: 129 | B130: 宇佐美村 | C130: 中間農業地域 | D130: 畑地型 | E130: 伊東市 | F130: 宇佐美村 | G130: 3 | H130: 3 | I130: 中間農業地域 | J130: 畑地型
A131: 130 | B131: 対島村 | C131: 中間農業地域 | D131: 畑地型 | E131: 伊東市 | F131: 対島村 | G131: 3 | H131: 3 | I131: 中間農業地域 | J131: 畑地型
A132: 131 | B132: 島田市 | C132: 都市的地域 | D132: 畑地型 | E132: 島田市 | G132: 1 | H132: 3 | I132: 都市的地域 | J132: 畑地型
A133: 132 | B133: 島田市（旧） | C133: 都市的地域 | D133: 水田型 | E133: 島田市 | F133: 島田市 | G133: 1 | H133: 1 | I133: 都市的地域 | J133: 水田型
A134: 133 | B134: 六合村 | C134: 都市的地域 | D134: 田畑型 | E134: 島田市 | F134: 六合村 | G134: 1 | H134: 2 | I134: 都市的地域 | J134: 田畑型
A135: 134 | B135: 大津村 | C135: 中間農業地域 | D135: 田畑型 | E135: 島田市 | F135: 大津村 | G135: 3 | H135: 2 | I135: 中間農業地域 | J135: 田畑型
A136: 135 | B136: 大長村 | C136: 中間農業地域 | D136: 畑地型 | E136: 島田市 | F136: 大長村 | G136: 3 | H136: 3 | I136: 中間農業地域 | J136: 畑地型
A137: 136 | B137: 伊久身村２－１ | C137: 山間農業地域 | D137: 畑地型 | E137: 島田市 | F137: 伊久身村２－１ | G137: 4 | H137: 3 | I137: 山間農業地域 | J137: 畑地型
A138: 137 | B138: 笹間村２－１ | C138: 山間農業地域 | D138: 畑地型 | E138: 島田市 | F138: 笹間村２－１ | G138: 4 | H138: 3 | I138: 山間農業地域 | J138: 畑地型
A139: 138 | B139: 初倉村２－１ | C139: 平地農業地域 | D139: 畑地型 | E139: 島田市 | F139: 初倉村２－１ | G139: 2 | H139: 3 | I139: 平地農業地域 | J139: 畑地型
A140: 139 | B140: 金谷町 | C140: 都市的地域 | D140: 畑地型 | E140: 島田市 | F140: 金谷町 | G140: 1 | H140: 3 | I140: 都市的地域 | J140: 畑地型
A141: 140 | B141: 五和村 | C141: 中間農業地域 | D141: 畑地型 | E141: 島田市 | F141: 五和村 | G141: 3 | H141: 3 | I141: 中間農業地域 | J141: 畑地型
A142: 141 | B142: 初倉村２－２ | C142: 平地農業地域 | D142: 畑地型 | E142: 島田市 | F142: 初倉村２－２ | G142: 2 | H142: 3 | I142: 平地農業地域 | J142: 畑地型
A143: 142 | B143: 勝間田村２－２ | C143: 平地農業地域 | D143: 畑地型 | E143: 島田市 | F143: 勝間田村２－２ | G143: 2 | H143: 3 | I143: 平地農業地域 | J143: 畑地型
A144: 143 | B144: 日坂村２－２ | C144: 中間農業地域 | D144: 畑地型 | E144: 島田市 | F144: 日坂村２－２ | G144: 3 | H144: 3 | I144: 中間農業地域 | J144: 畑地型
A145: 144 | B145: 下川根村 | C145: 山間農業地域 | D145: 畑地型 | E145: 島田市 | F145: 下川根村 | G145: 4 | H145: 3 | I145: 山間農業地域 | J145: 畑地型
A146: 145 | B146: 笹間村２－２ | C146: 山間農業地域 | D146: 畑地型 | E146: 島田市 | F146: 笹間村２－２ | G146: 4 | H146: 3 | I146: 山間農業地域 | J146: 畑地型
A147: 146 | B147: 伊久身村２－２ | C147: 中間農業地域 | D147: 畑地型 | E147: 島田市 | F147: 伊久身村２－２ | G147: 3 | H147: 3 | I147: 中間農業地域 | J147: 畑地型
A148: 147 | B148: 富士市 | C148: 都市的地域 | D148: 畑地型 | E148: 富士市 | G148: 1 | H148: 3 | I148: 都市的地域 | J148: 畑地型
A149: 148 | B149: 吉原市 | C149: 都市的地域 | D149: 畑地型 | E149: 富士市 | F149: 吉原市 | G149: 1 | H149: 3 | I149: 都市的地域 | J149: 畑地型
A150: 149 | B150: 元吉原村 | C150: 都市的地域 | D150: 田畑型 | E150: 富士市 | F150: 元吉原村 | G150: 1 | H150: 2 | I150: 都市的地域 | J150: 田畑型
A151: 150 | B151: 原田村（富士市） | C151: 都市的地域 | D151: 畑地型 | E151: 富士市 | F151: 原田村 | G151: 1 | H151: 3 | I151: 都市的地域 | J151: 畑地型
A152: 151 | B152: 吉永村（富士市） | C152: 山間農業地域 | D152: 畑地型 | E152: 富士市 | F152: 吉永村 | G152: 4 | H152: 3 | I152: 山間農業地域 | J152: 畑地型
A153: 152 | B153: 須津村 | C153: 中間農業地域 | D153: 田畑型 | E153: 富士市 | F153: 須津村 | G153: 3 | H153: 2 | I153: 中間農業地域 | J153: 田畑型
A154: 153 | B154: 大淵村（富士市） | C154: 中間農業地域 | D154: 畑地型 | E154: 富士市 | F154: 大淵村 | G154: 3 | H154: 3 | I154: 中間農業地域 | J154: 畑地型
A155: 154 | B155: 浮島村２－２ | C155: 平地農業地域 | D155: 田畑型 | E155: 富士市 | F155: 浮島村２－２ | G155: 2 | H155: 2 | I155: 平地農業地域 | J155: 田畑型
A156: 155 | B156: 富士町 | C156: 都市的地域 | D156: 田畑型 | E156: 富士市 | F156: 富士町 | G156: 1 | H156: 2 | I156: 都市的地域 | J156: 田畑型
A157: 156 | B157: 岩松村 | C157: 都市的地域 | D157: 畑地型 | E157: 富士市 | F157: 岩松村 | G157: 1 | H157: 3 | I157: 都市的地域 | J157: 畑地型
A158: 157 | B158: 田子浦村 | C158: 都市的地域 | D158: 水田型 | E158: 富士市 | F158: 田子浦村 | G158: 1 | H158: 1 | I158: 都市的地域 | J158: 水田型
A159: 158 | B159: 鷹岡町 | C159: 都市的地域 | D159: 畑地型 | E159: 富士市 | F159: 鷹岡町 | G159: 1 | H159: 3 | I159: 都市的地域 | J159: 畑地型
A160: 159 | B160: 富士川町 | C160: 都市的地域 | D160: 畑地型 | E160: 富士市 | F160: 富士川町 | G160: 1 | H160: 3 | I160: 都市的地域 | J160: 畑地型
A161: 160 | B161: 松野村 | C161: 中間農業地域 | D161: 田畑型 | E161: 富士市 | F161: 松野村 | G161: 3 | H161: 2 | I161: 中間農業地域 | J161: 田畑型
A162: 161 | B162: 磐田市 | C162: 都市的地域 | D162: 田畑型 | E162: 磐田市 | G162: 1 | H162: 2 | I162: 都市的地域 | J162: 田畑型
A163: 162 | B163: 磐田市（旧） | C163: 都市的地域 | D163: 田畑型 | E163: 磐田市 | F163: 磐田市 | G163: 1 | H163: 2 | I163: 都市的地域 | J163: 田畑型
A164: 163 | B164: 大藤村 | C164: 平地農業地域 | D164: 畑地型 | E164: 磐田市 | F164: 大藤村 | G164: 2 | H164: 3 | I164: 平地農業地域 | J164: 畑地型
A165: 164 | B165: 岩田村 | C165: 平地農業地域 | D165: 畑地型 | E165: 磐田市 | F165: 岩田村 | G165: 2 | H165: 3 | I165: 平地農業地域 | J165: 畑地型
A166: 165 | B166: 長野村 | C166: 平地農業地域 | D166: 水田型 | E166: 磐田市 | F166: 長野村 | G166: 2 | H166: 1 | I166: 平地農業地域 | J166: 水田型
A167: 166 | B167: 向笠村 | C167: 平地農業地域 | D167: 田畑型 | E167: 磐田市 | F167: 向笠村 | G167: 2 | H167: 2 | I167: 平地農業地域 | J167: 田畑型
A168: 167 | B168: 御厨村 | C168: 都市的地域 | D168: 水田型 | E168: 磐田市 | F168: 御厨村 | G168: 1 | H168: 1 | I168: 都市的地域 | J168: 水田型
A169: 168 | B169: 南御厨村２－１ | C169: 平地農業地域 | D169: 水田型 | E169: 磐田市 | F169: 南御厨村２－１ | G169: 2 | H169: 1 | I169: 平地農業地域 | J169: 水田型
A170: 169 | B170: 田原村２－１ | C170: 都市的地域 | D170: 水田型 | E170: 磐田市 | F170: 田原村２－１ | G170: 1 | H170: 1 | I170: 都市的地域 | J170: 水田型
A171: 170 | B171: 於保村２－２ | C171: 平地農業地域 | D171: 水田型 | E171: 磐田市 | F171: 於保村２－２ | G171: 2 | H171: 1 | I171: 平地農業地域 | J171: 水田型
A172: 171 | B172: 三川村２－２ | C172: 平地農業地域 | D172: 畑地型 | E172: 磐田市 | F172: 三川村２－２ | G172: 2 | H172: 3 | I172: 平地農業地域 | J172: 畑地型
A173: 172 | B173: 福田町 | C173: 都市的地域 | D173: 田畑型 | E173: 磐田市 | F173: 福田町 | G173: 1 | H173: 2 | I173: 都市的地域 | J173: 田畑型
A174: 173 | B174: 豊浜村 | C174: 都市的地域 | D174: 水田型 | E174: 磐田市 | F174: 豊浜村 | G174: 1 | H174: 1 | I174: 都市的地域 | J174: 水田型
A175: 174 | B175: 於保村２－１ | C175: 平地農業地域 | D175: 水田型 | E175: 磐田市 | F175: 於保村２－１ | G175: 2 | H175: 1 | I175: 平地農業地域 | J175: 水田型
A176: 175 | B176: 南御厨村２－２ | C176: 平地農業地域 | D176: 水田型 | E176: 磐田市 | F176: 南御厨村２－２ | G176: 2 | H176: 1 | I176: 平地農業地域 | J176: 水田型
A177: 176 | B177: 掛塚町 | C177: 都市的地域 | D177: 田畑型 | E177: 磐田市 | F177: 掛塚町 | G177: 1 | H177: 2 | I177: 都市的地域 | J177: 田畑型
A178: 177 | B178: 袖浦村 | C178: 平地農業地域 | D178: 田畑型 | E178: 磐田市 | F178: 袖浦村 | G178: 2 | H178: 2 | I178: 平地農業地域 | J178: 田畑型
A179: 178 | B179: 十束村２－１ | C179: 都市的地域 | D179: 田畑型 | E179: 磐田市 | F179: 十束村２－１ | G179: 1 | H179: 2 | I179: 都市的地域 | J179: 田畑型
A180: 179 | B180: 富岡村（磐田市） | C180: 都市的地域 | D180: 田畑型 | E180: 磐田市 | F180: 富岡村 | G180: 1 | H180: 2 | I180: 都市的地域 | J180: 田畑型
A181: 180 | B181: 池田村 | C181: 都市的地域 | D181: 田畑型 | E181: 磐田市 | F181: 池田村 | G181: 1 | H181: 2 | I181: 都市的地域 | J181: 田畑型
A182: 181 | B182: 井通村 | C182: 都市的地域 | D182: 田畑型 | E182: 磐田市 | F182: 井通村 | G182: 1 | H182: 2 | I182: 都市的地域 | J182: 田畑型
A183: 182 | B183: 十束村２－２ | C183: 都市的地域 | D183: 田畑型 | E183: 磐田市 | F183: 十束村２－２ | G183: 1 | H183: 2 | I183: 都市的地域 | J183: 田畑型
A184: 183 | B184: 広瀬村 | C184: 都市的地域 | D184: 畑地型 | E184: 磐田市 | F184: 広瀬村 | G184: 1 | H184: 3 | I184: 都市的地域 | J184: 畑地型
A185: 184 | B185: 野部村 | C185: 中間農業地域 | D185: 田畑型 | E185: 磐田市 | F185: 野部村 | G185: 3 | H185: 2 | I185: 中間農業地域 | J185: 田畑型
A186: 185 | B186: 敷地村 | C186: 中間農業地域 | D186: 田畑型 | E186: 磐田市 | F186: 敷地村 | G186: 3 | H186: 2 | I186: 中間農業地域 | J186: 田畑型
A187: 186 | B187: 焼津市 | C187: 都市的地域 | D187: 水田型 | E187: 焼津市 | G187: 1 | H187: 1 | I187: 都市的地域 | J187: 水田型
A188: 187 | B188: 焼津町 | C188: 都市的地域 | D188: 田畑型 | E188: 焼津市 | F188: 焼津町 | G188: 1 | H188: 2 | I188: 都市的地域 | J188: 田畑型
A189: 188 | B189: 豊田村 | C189: 都市的地域 | D189: 水田型 | E189: 焼津市 | F189: 豊田村 | G189: 1 | H189: 1 | I189: 都市的地域 | J189: 水田型
A190: 189 | B190: 大富村 | C190: 都市的地域 | D190: 水田型 | E190: 焼津市 | F190: 大富村 | G190: 1 | H190: 1 | I190: 都市的地域 | J190: 水田型
A191: 190 | B191: 和田村（焼津市） | C191: 都市的地域 | D191: 水田型 | E191: 焼津市 | F191: 和田村 | G191: 1 | H191: 1 | I191: 都市的地域 | J191: 水田型
A192: 191 | B192: 小川村 | C192: 都市的地域 | D192: 水田型 | E192: 焼津市 | F192: 小川村 | G192: 1 | H192: 1 | I192: 都市的地域 | J192: 水田型
A193: 192 | B193: 東益津村 | C193: 都市的地域 | D193: 田畑型 | E193: 焼津市 | F193: 東益津村 | G193: 1 | H193: 2 | I193: 都市的地域 | J193: 田畑型
A194: 193 | B194: 広幡村２－２ | C194: 都市的地域 | D194: 水田型 | E194: 焼津市 | F194: 広幡村２－２ | G194: 1 | H194: 1 | I194: 都市的地域 | J194: 水田型
A195: 194 | B195: 西益津村２－２ | C195: 都市的地域 | D195: 田畑型 | E195: 焼津市 | F195: 西益津村２－２ | G195: 1 | H195: 2 | I195: 都市的地域 | J195: 田畑型
A196: 195 | B196: 静浜村 | C196: 平地農業地域 | D196: 水田型 | E196: 焼津市 | F196: 静浜村 | G196: 2 | H196: 1 | I196: 平地農業地域 | J196: 水田型
A197: 196 | B197: 相川村 | C197: 都市的地域 | D197: 水田型 | E197: 焼津市 | F197: 相川村 | G197: 1 | H197: 1 | I197: 都市的地域 | J197: 水田型
A198: 197 | B198: 吉永村（焼津市） | C198: 都市的地域 | D198: 水田型 | E198: 焼津市 | F198: 吉永村 | G198: 1 | H198: 1 | I198: 都市的地域 | J198: 水田型
A199: 198 | B199: 掛川市 | C199: 中間農業地域 | D199: 田畑型 | E199: 掛川市 | G199: 3 | H199: 2 | I199: 中間農業地域 | J199: 田畑型
A200: 199 | B200: 掛川町 | C200: 都市的地域 | D200: 田畑型 | E200: 掛川市 | F200: 掛川町 | G200: 1 | H200: 2 | I200: 都市的地域 | J200: 田畑型
A201: 200 | B201: 粟本村 | C201: 都市的地域 | D201: 田畑型 | E201: 掛川市 | F201: 粟本村 | G201: 1 | H201: 2 | I201: 都市的地域 | J201: 田畑型
... 300 more rows

Sheet 元データ (hidden)
A1: 注意事項 | C1: ･･･ | D1: 空欄追記:『調査外(湖､無人島等)』 | Z1: 別紙 2 | AB1: 市区町村名 | AC1: 旧市区町村 | AD1: 農業集落
C2: ･･･ | D2: 全角変換:『2-1』⇒『2-1』 | K2: =IF(AB2=0,"",AB2) ->  | S2: =IF(AC2=0,"",AC2) ->  | AA2: 神奈川県 | AB2: =kadft!F5 -> 0 | AC2: =kadft!J5 ->  | AD2: =#REF! -> 
K3: 市町村 | Q3: 旧市区町村 | V3: 農業集落
A4: 農業集落 | B4: 県 | C4: 市区町村 | D4: 旧市区町村 | E4: 農業集落 | F4: 県名 | G4: 市町村名 | H4: 旧市町村名 | I4: 農業集落名 | K4: 判定１ | O4: 抽出１ | Q4: 判定2 | S4: 抽出2 | V4: 抽出3 | Z4: 通し | AA4: 都県名 | AB4: 市区町村名 | AC4: 旧区市町村名 | AD4: 農業集落名
A5: ｺｰﾄﾞ | B5: 番号 | C5: 番号 | D5: 番号 | E5: 番号 | K5: 判定 | L5: 市区町村名 | M5: 連番 | N5: 補記 | O5: 抽出 | P5: 名 | Q5: 判定 | R5: 名 | S5: 抽出 | T5: 旧区市町村名 | U5: 連番 | V5: 抽出 | W5: 農業集落名 | X5: 連番 | Z5: №
Z6: 0
A7: 2200000000 | B7: 22 | C7: 000 | D7: 00 | E7: 000 | F7: 静岡県 | K7: =IF(AND($C7>0,$H7=""),"ﾘｽﾄ１","") ->  | L7: =IF(K7="ﾘｽﾄ１",G7,"") ->  | M7: =IF(K7="","",COUNTIF($K7:K$7,"ﾘｽﾄ１")) ->  | N7: =IF(AND(D7=0,E7>0),"同一区","") ->  | O7: =IF(AND(EXACT($K$2,G7),H7>0),"該当１","") ->  | P7: =IF(O7="該当１",G7,"") ->  | Q7: =IF(O7="該当１","ﾘｽﾄ2","") ->  | R7: =IF(Q7="ﾘｽﾄ2",H7,"") ->  | S7: =IF(AND(Q7="ﾘｽﾄ2",OR(I7=0,AND(N7="同一区",E7=1))),"該当２","") ->  | T7: =IF(S7="該当２",H7,"") ->  | U7: =IF(S7="","",COUNTIF($S$7:S7,"該当２")) ->  | V7: =IF(AND($S$2=H7,E7>0,E7<998),"該当３","") ->  | W7: =IF(V7="該当３",I7,"") ->  | X7: =IF(V7="","",COUNTIF($V7:V$7,"該当３")) ->  | Z7: 1 | AA7: =AA2 -> 神奈川県 | AB7: =IF($Z7>MAX($M$7:$M$5500),"",INDEX($L$7:$L$5500,MATCH($Z7,$M$7:$M$5500,0),MATCH($AB$4,$L$5:$M$5,0))) -> 静岡市 | AC7: =IF($Z7>MAX($U$7:$U$5500),"",INDEX($T$7:$T$5500,MATCH($Z7,$U$7:$U$5500,0),MATCH($AC$4,$T$5:$U$5,0))) ->  | AD7: =IF($Z7>MAX($X$7:$X$3715),"",INDEX($W$7:$W$3715,MATCH($Z7,$X$7:$X$3715,0),MATCH($AD$4,$W$5:$X$5,0))) -> 
A8: 2210000000 | B8: 22 | C8: 100 | D8: 00 | E8: 000 | F8: 静岡県 | G8: 静岡市 | K8: ﾘｽﾄ１ | L8: 静岡市 | M8: =IF(K8="","",COUNTIF($K$7:K8,"ﾘｽﾄ１")) -> 1 | O8: =IF(AND(EXACT($K$2,G8),H8>0),"該当１","") ->  | U8: =IF(S8="","",COUNTIF($S$7:S8,"該当２")) ->  | X8: =IF(V8="","",COUNTIF($V$7:V8,"該当３")) ->  | Z8: 2 | AB8: 葵区(静岡市) | AD8: =IF($Z8>MAX($X$7:$X$3715),"",INDEX($W$7:$W$3715,MATCH($Z8,$X$7:$X$3715,0),MATCH($AD$4,$W$5:$X$5,0))) -> 
A9: 2210100000 | B9: 22 | C9: 101 | D9: 00 | E9: 000 | F9: 静岡県 | G9: 葵区(静岡市) | K9: ﾘｽﾄ１ | L9: 葵区(静岡市) | M9: =IF(K9="","",COUNTIF($K$7:K9,"ﾘｽﾄ１")) -> 2 | O9: =IF(AND(EXACT($K$2,G9),H9>0),"該当１","") ->  | U9: =IF(S9="","",COUNTIF($S$7:S9,"該当２")) ->  | X9: =IF(V9="","",COUNTIF($V$7:V9,"該当３")) ->  | Z9: 3 | AB9: 駿河区(静岡市)
A10: 2210101000 | B10: 22 | C10: 101 | D10: 01 | E10: 000 | F10: 静岡県 | G10: 葵区(静岡市) | H10: 静岡市２－１ | M10: =IF(K10="","",COUNTIF($K$7:K10,"ﾘｽﾄ１")) ->  | U10: =IF(S10="","",COUNTIF($S$7:S10,"該当２")) ->  | X10: =IF(V10="","",COUNTIF($V$7:V10,"該当３")) ->  | Z10: 4 | AB10: =IF($Z10>MAX($M$7:$M$5500),"",INDEX($L$7:$L$5500,MATCH($Z10,$M$7:$M$5500,0),MATCH($AB$4,$L$5:$M$5,0))) -> 清水区(静岡市)
A11: 2210101001 | B11: 22 | C11: 101 | D11: 01 | E11: 001 | F11: 静岡県 | G11: 葵区(静岡市) | H11: 静岡市２－１ | I11: 田中 | M11: =IF(K11="","",COUNTIF($K$7:K11,"ﾘｽﾄ１")) ->  | U11: =IF(S11="","",COUNTIF($S$7:S11,"該当２")) ->  | X11: =IF(V11="","",COUNTIF($V$7:V11,"該当３")) ->  | Z11: 5 | AB11: 浜松市
A12: 2210101002 | B12: 22 | C12: 101 | D12: 01 | E12: 002 | F12: 静岡県 | G12: 葵区(静岡市) | H12: 静岡市２－１ | I12: 柳新田 | M12: =IF(K12="","",COUNTIF($K$7:K12,"ﾘｽﾄ１")) ->  | U12: =IF(S12="","",COUNTIF($S$7:S12,"該当２")) ->  | X12: =IF(V12="","",COUNTIF($V$7:V12,"該当３")) ->  | Z12: 6 | AB12: 中区(浜松市)
A13: 2210101003 | B13: 22 | C13: 101 | D13: 01 | E13: 003 | F13: 静岡県 | G13: 葵区(静岡市) | H13: 静岡市２－１ | I13: 大岩下 | M13: =IF(K13="","",COUNTIF($K$7:K13,"ﾘｽﾄ１")) ->  | U13: =IF(S13="","",COUNTIF($S$7:S13,"該当２")) ->  | X13: =IF(V13="","",COUNTIF($V$7:V13,"該当３")) ->  | Z13: 7 | AB13: 東区(浜松市)
A14: 2210101004 | B14: 22 | C14: 101 | D14: 01 | E14: 004 | F14: 静岡県 | G14: 葵区(静岡市) | H14: 静岡市２－１ | I14: 本通・田町・安西・柳町 | M14: =IF(K14="","",COUNTIF($K$7:K14,"ﾘｽﾄ１")) ->  | U14: =IF(S14="","",COUNTIF($S$7:S14,"該当２")) ->  | X14: =IF(V14="","",COUNTIF($V$7:V14,"該当３")) ->  | Z14: 8 | AB14: 西区(浜松市)
A15: 2210101005 | B15: 22 | C15: 101 | D15: 01 | E15: 005 | F15: 静岡県 | G15: 葵区(静岡市) | H15: 静岡市２－１ | I15: 水道・井宮 | M15: =IF(K15="","",COUNTIF($K$7:K15,"ﾘｽﾄ１")) ->  | U15: =IF(S15="","",COUNTIF($S$7:S15,"該当２")) ->  | X15: =IF(V15="","",COUNTIF($V$7:V15,"該当３")) ->  | Z15: 9 | AB15: 南区(浜松市)
A16: 2210101006 | B16: 22 | C16: 101 | D16: 01 | E16: 006 | F16: 静岡県 | G16: 葵区(静岡市) | H16: 静岡市２－１ | I16: 安東の東 | M16: =IF(K16="","",COUNTIF($K$7:K16,"ﾘｽﾄ１")) ->  | U16: =IF(S16="","",COUNTIF($S$7:S16,"該当２")) ->  | X16: =IF(V16="","",COUNTIF($V$7:V16,"該当３")) ->  | Z16: 10 | AB16: 北区(浜松市)
A17: 2210101007 | B17: 22 | C17: 101 | D17: 01 | E17: 007 | F17: 静岡県 | G17: 葵区(静岡市) | H17: 静岡市２－１ | I17: 安東の西 | M17: =IF(K17="","",COUNTIF($K$7:K17,"ﾘｽﾄ１")) ->  | U17: =IF(S17="","",COUNTIF($S$7:S17,"該当２")) ->  | X17: =IF(V17="","",COUNTIF($V$7:V17,"該当３")) ->  | Z17: 11 | AB17: 浜北区(浜松市)
A18: 2210101008 | B18: 22 | C18: 101 | D18: 01 | E18: 008 | F18: 静岡県 | G18: 葵区(静岡市) | H18: 静岡市２－１ | I18: 大岩上 | M18: =IF(K18="","",COUNTIF($K$7:K18,"ﾘｽﾄ１")) ->  | U18: =IF(S18="","",COUNTIF($S$7:S18,"該当２")) ->  | X18: =IF(V18="","",COUNTIF($V$7:V18,"該当３")) ->  | Z18: 12 | AB18: 天竜区(浜松市)
A19: 2210101009 | B19: 22 | C19: 101 | D19: 01 | E19: 009 | F19: 静岡県 | G19: 葵区(静岡市) | H19: 静岡市２－１ | I19: 長沼南 | M19: =IF(K19="","",COUNTIF($K$7:K19,"ﾘｽﾄ１")) ->  | U19: =IF(S19="","",COUNTIF($S$7:S19,"該当２")) ->  | X19: =IF(V19="","",COUNTIF($V$7:V19,"該当３")) ->  | Z19: 13 | AB19: 沼津市
A20: 2210101010 | B20: 22 | C20: 101 | D20: 01 | E20: 010 | F20: 静岡県 | G20: 葵区(静岡市) | H20: 静岡市２－１ | I20: 長沼北 | M20: =IF(K20="","",COUNTIF($K$7:K20,"ﾘｽﾄ１")) ->  | U20: =IF(S20="","",COUNTIF($S$7:S20,"該当２")) ->  | X20: =IF(V20="","",COUNTIF($V$7:V20,"該当３")) ->  | Z20: 14 | AB20: 熱海市
A21: 2210101011 | B21: 22 | C21: 101 | D21: 01 | E21: 011 | F21: 静岡県 | G21: 葵区(静岡市) | H21: 静岡市２－１ | I21: 古庄 | M21: =IF(K21="","",COUNTIF($K$7:K21,"ﾘｽﾄ１")) ->  | U21: =IF(S21="","",COUNTIF($S$7:S21,"該当２")) ->  | X21: =IF(V21="","",COUNTIF($V$7:V21,"該当３")) ->  | Z21: 15 | AB21: 三島市 | AC21: =IF($Z21>MAX($U$7:$U$5500),"",INDEX($T$7:$T$5500,MATCH($Z21,$U$7:$U$5500,0),MATCH($AC$4,$T$5:$U$5,0))) -> 
A22: 2210101012 | B22: 22 | C22: 101 | D22: 01 | E22: 012 | F22: 静岡県 | G22: 葵区(静岡市) | H22: 静岡市２－１ | I22: 柚木 | M22: =IF(K22="","",COUNTIF($K$7:K22,"ﾘｽﾄ１")) ->  | U22: =IF(S22="","",COUNTIF($S$7:S22,"該当２")) ->  | X22: =IF(V22="","",COUNTIF($V$7:V22,"該当３")) ->  | Z22: 16 | AB22: 富士宮市
A23: 2210101013 | B23: 22 | C23: 101 | D23: 01 | E23: 013 | F23: 静岡県 | G23: 葵区(静岡市) | H23: 静岡市２－１ | I23: 瓦場 | M23: =IF(K23="","",COUNTIF($K$7:K23,"ﾘｽﾄ１")) ->  | U23: =IF(S23="","",COUNTIF($S$7:S23,"該当２")) ->  | X23: =IF(V23="","",COUNTIF($V$7:V23,"該当３")) ->  | Z23: 17 | AB23: 伊東市
A24: 2210101014 | B24: 22 | C24: 101 | D24: 01 | E24: 014 | F24: 静岡県 | G24: 葵区(静岡市) | H24: 静岡市２－１ | I24: 川辺２－１ | M24: =IF(K24="","",COUNTIF($K$7:K24,"ﾘｽﾄ１")) ->  | U24: =IF(S24="","",COUNTIF($S$7:S24,"該当２")) ->  | X24: =IF(V24="","",COUNTIF($V$7:V24,"該当３")) ->  | Z24: 18 | AB24: 島田市
A25: 2210101015 | B25: 22 | C25: 101 | D25: 01 | E25: 015 | F25: 静岡県 | G25: 葵区(静岡市) | H25: 静岡市２－１ | I25: 南安倍２－１ | M25: =IF(K25="","",COUNTIF($K$7:K25,"ﾘｽﾄ１")) ->  | U25: =IF(S25="","",COUNTIF($S$7:S25,"該当２")) ->  | X25: =IF(V25="","",COUNTIF($V$7:V25,"該当３")) ->  | Z25: 19 | AB25: =IF($Z25>MAX($M$7:$M$5500),"",INDEX($L$7:$L$5500,MATCH($Z25,$M$7:$M$5500,0),MATCH($AB$4,$L$5:$M$5,0))) -> 富士市
A26: 2210101016 | B26: 22 | C26: 101 | D26: 01 | E26: 016 | F26: 静岡県 | G26: 葵区(静岡市) | H26: 静岡市２－１ | I26: 籠上 | M26: =IF(K26="","",COUNTIF($K$7:K26,"ﾘｽﾄ１")) ->  | U26: =IF(S26="","",COUNTIF($S$7:S26,"該当２")) ->  | X26: =IF(V26="","",COUNTIF($V$7:V26,"該当３")) ->  | Z26: 20 | AB26: =IF($Z26>MAX($M$7:$M$5500),"",INDEX($L$7:$L$5500,MATCH($Z26,$M$7:$M$5500,0),MATCH($AB$4,$L$5:$M$5,0))) -> 磐田市
A27: 2210101017 | B27: 22 | C27: 101 | D27: 01 | E27: 017 | F27: 静岡県 | G27: 葵区(静岡市) | H27: 静岡市２－１ | I27: 松富下 | M27: =IF(K27="","",COUNTIF($K$7:K27,"ﾘｽﾄ１")) ->  | U27: =IF(S27="","",COUNTIF($S$7:S27,"該当２")) ->  | X27: =IF(V27="","",COUNTIF($V$7:V27,"該当３")) ->  | Z27: 21 | AB27: 焼津市
A28: 2210101018 | B28: 22 | C28: 101 | D28: 01 | E28: 018 | F28: 静岡県 | G28: 葵区(静岡市) | H28: 静岡市２－１ | I28: 松富上１区 | M28: =IF(K28="","",COUNTIF($K$7:K28,"ﾘｽﾄ１")) ->  | U28: =IF(S28="","",COUNTIF($S$7:S28,"該当２")) ->  | X28: =IF(V28="","",COUNTIF($V$7:V28,"該当３")) ->  | Z28: 22 | AB28: 掛川市
A29: 2210101019 | B29: 22 | C29: 101 | D29: 01 | E29: 019 | F29: 静岡県 | G29: 葵区(静岡市) | H29: 静岡市２－１ | I29: 松富上 | M29: =IF(K29="","",COUNTIF($K$7:K29,"ﾘｽﾄ１")) ->  | U29: =IF(S29="","",COUNTIF($S$7:S29,"該当２")) ->  | X29: =IF(V29="","",COUNTIF($V$7:V29,"該当３")) ->  | Z29: 23 | AB29: 藤枝市
A30: 2210101020 | B30: 22 | C30: 101 | D30: 01 | E30: 020 | F30: 静岡県 | G30: 葵区(静岡市) | H30: 静岡市２－１ | I30: 下伝馬町新田 | M30: =IF(K30="","",COUNTIF($K$7:K30,"ﾘｽﾄ１")) ->  | U30: =IF(S30="","",COUNTIF($S$7:S30,"該当２")) ->  | X30: =IF(V30="","",COUNTIF($V$7:V30,"該当３")) ->  | Z30: 24 | AB30: 御殿場市
A31: 2210101021 | B31: 22 | C31: 101 | D31: 01 | E31: 021 | F31: 静岡県 | G31: 葵区(静岡市) | H31: 静岡市２－１ | I31: 上伝馬町新田 | M31: =IF(K31="","",COUNTIF($K$7:K31,"ﾘｽﾄ１")) ->  | U31: =IF(S31="","",COUNTIF($S$7:S31,"該当２")) ->  | X31: =IF(V31="","",COUNTIF($V$7:V31,"該当３")) ->  | Z31: 25 | AB31: 袋井市
A32: 2210101022 | B32: 22 | C32: 101 | D32: 01 | E32: 022 | F32: 静岡県 | G32: 葵区(静岡市) | H32: 静岡市２－１ | I32: 与一右衛門新田 | M32: =IF(K32="","",COUNTIF($K$7:K32,"ﾘｽﾄ１")) ->  | U32: =IF(S32="","",COUNTIF($S$7:S32,"該当２")) ->  | X32: =IF(V32="","",COUNTIF($V$7:V32,"該当３")) ->  | Z32: 26 | AB32: 下田市
A33: 2210101023 | B33: 22 | C33: 101 | D33: 01 | E33: 023 | F33: 静岡県 | G33: 葵区(静岡市) | H33: 静岡市２－１ | I33: 福田ヶ谷 | M33: =IF(K33="","",COUNTIF($K$7:K33,"ﾘｽﾄ１")) ->  | U33: =IF(S33="","",COUNTIF($S$7:S33,"該当２")) ->  | X33: =IF(V33="","",COUNTIF($V$7:V33,"該当３")) ->  | Z33: 27 | AB33: 裾野市
A34: 2210101024 | B34: 22 | C34: 101 | D34: 01 | E34: 024 | F34: 静岡県 | G34: 葵区(静岡市) | H34: 静岡市２－１ | I34: 下 | M34: =IF(K34="","",COUNTIF($K$7:K34,"ﾘｽﾄ１")) ->  | U34: =IF(S34="","",COUNTIF($S$7:S34,"該当２")) ->  | X34: =IF(V34="","",COUNTIF($V$7:V34,"該当３")) ->  | Z34: 28 | AB34: 湖西市
A35: 2210101025 | B35: 22 | C35: 101 | D35: 01 | E35: 025 | F35: 静岡県 | G35: 葵区(静岡市) | H35: 静岡市２－１ | I35: 門屋 | M35: =IF(K35="","",COUNTIF($K$7:K35,"ﾘｽﾄ１")) ->  | U35: =IF(S35="","",COUNTIF($S$7:S35,"該当２")) ->  | X35: =IF(V35="","",COUNTIF($V$7:V35,"該当３")) ->  | Z35: 29 | AB35: 伊豆市
A36: 2210101026 | B36: 22 | C36: 101 | D36: 01 | E36: 026 | F36: 静岡県 | G36: 葵区(静岡市) | H36: 静岡市２－１ | I36: 牛妻 | M36: =IF(K36="","",COUNTIF($K$7:K36,"ﾘｽﾄ１")) ->  | U36: =IF(S36="","",COUNTIF($S$7:S36,"該当２")) ->  | X36: =IF(V36="","",COUNTIF($V$7:V36,"該当３")) ->  | Z36: 30 | AB36: 御前崎市
A37: 2210101027 | B37: 22 | C37: 101 | D37: 01 | E37: 027 | F37: 静岡県 | G37: 葵区(静岡市) | H37: 静岡市２－１ | I37: 郷島 | M37: =IF(K37="","",COUNTIF($K$7:K37,"ﾘｽﾄ１")) ->  | U37: =IF(S37="","",COUNTIF($S$7:S37,"該当２")) ->  | X37: =IF(V37="","",COUNTIF($V$7:V37,"該当３")) ->  | Z37: 31 | AB37: 菊川市
A38: 2210101028 | B38: 22 | C38: 101 | D38: 01 | E38: 028 | F38: 静岡県 | G38: 葵区(静岡市) | H38: 静岡市２－１ | I38: 野田平 | M38: =IF(K38="","",COUNTIF($K$7:K38,"ﾘｽﾄ１")) ->  | U38: =IF(S38="","",COUNTIF($S$7:S38,"該当２")) ->  | X38: =IF(V38="","",COUNTIF($V$7:V38,"該当３")) ->  | Z38: 32 | AB38: 伊豆の国市
A39: 2210101029 | B39: 22 | C39: 101 | D39: 01 | E39: 029 | F39: 静岡県 | G39: 葵区(静岡市) | H39: 静岡市２－１ | I39: 俵沢 | M39: =IF(K39="","",COUNTIF($K$7:K39,"ﾘｽﾄ１")) ->  | U39: =IF(S39="","",COUNTIF($S$7:S39,"該当２")) ->  | X39: =IF(V39="","",COUNTIF($V$7:V39,"該当３")) ->  | Z39: 33 | AB39: 牧之原市
A40: 2210101030 | B40: 22 | C40: 101 | D40: 01 | E40: 030 | F40: 静岡県 | G40: 葵区(静岡市) | H40: 静岡市２－１ | I40: 俵峰 | M40: =IF(K40="","",COUNTIF($K$7:K40,"ﾘｽﾄ１")) ->  | U40: =IF(S40="","",COUNTIF($S$7:S40,"該当２")) ->  | X40: =IF(V40="","",COUNTIF($V$7:V40,"該当３")) ->  | Z40: 34 | AB40: 東伊豆町
A41: 2210101031 | B41: 22 | C41: 101 | D41: 01 | E41: 031 | F41: 静岡県 | G41: 葵区(静岡市) | H41: 静岡市２－１ | I41: 油島 | M41: =IF(K41="","",COUNTIF($K$7:K41,"ﾘｽﾄ１")) ->  | U41: =IF(S41="","",COUNTIF($S$7:S41,"該当２")) ->  | X41: =IF(V41="","",COUNTIF($V$7:V41,"該当３")) ->  | Z41: 35 | AB41: 河津町
A42: 2210101032 | B42: 22 | C42: 101 | D42: 01 | E42: 032 | F42: 静岡県 | G42: 葵区(静岡市) | H42: 静岡市２－１ | I42: 上足洗 | M42: =IF(K42="","",COUNTIF($K$7:K42,"ﾘｽﾄ１")) ->  | U42: =IF(S42="","",COUNTIF($S$7:S42,"該当２")) ->  | X42: =IF(V42="","",COUNTIF($V$7:V42,"該当３")) ->  | Z42: 36 | AB42: 南伊豆町
A43: 2210101033 | B43: 22 | C43: 101 | D43: 01 | E43: 033 | F43: 静岡県 | G43: 葵区(静岡市) | H43: 静岡市２－１ | I43: 沓谷 | M43: =IF(K43="","",COUNTIF($K$7:K43,"ﾘｽﾄ１")) ->  | U43: =IF(S43="","",COUNTIF($S$7:S43,"該当２")) ->  | X43: =IF(V43="","",COUNTIF($V$7:V43,"該当３")) ->  | Z43: 37 | AB43: 松崎町
A44: 2210101034 | B44: 22 | C44: 101 | D44: 01 | E44: 034 | F44: 静岡県 | G44: 葵区(静岡市) | H44: 静岡市２－１ | I44: 千代田 | M44: =IF(K44="","",COUNTIF($K$7:K44,"ﾘｽﾄ１")) ->  | U44: =IF(S44="","",COUNTIF($S$7:S44,"該当２")) ->  | X44: =IF(V44="","",COUNTIF($V$7:V44,"該当３")) ->  | Z44: 38 | AB44: 西伊豆町
A45: 2210101035 | B45: 22 | C45: 101 | D45: 01 | E45: 035 | F45: 静岡県 | G45: 葵区(静岡市) | H45: 静岡市２－１ | I45: 上土 | M45: =IF(K45="","",COUNTIF($K$7:K45,"ﾘｽﾄ１")) ->  | U45: =IF(S45="","",COUNTIF($S$7:S45,"該当２")) ->  | X45: =IF(V45="","",COUNTIF($V$7:V45,"該当３")) ->  | Z45: 39 | AB45: 函南町
A46: 2210101036 | B46: 22 | C46: 101 | D46: 01 | E46: 036 | F46: 静岡県 | G46: 葵区(静岡市) | H46: 静岡市２－１ | I46: 川合本田 | M46: =IF(K46="","",COUNTIF($K$7:K46,"ﾘｽﾄ１")) ->  | U46: =IF(S46="","",COUNTIF($S$7:S46,"該当２")) ->  | X46: =IF(V46="","",COUNTIF($V$7:V46,"該当３")) ->  | Z46: 40 | AB46: =IF($Z46>MAX($M$7:$M$5500),"",INDEX($L$7:$L$5500,MATCH($Z46,$M$7:$M$5500,0),MATCH($AB$4,$L$5:$M$5,0))) -> 清水町
A47: 2210101037 | B47: 22 | C47: 101 | D47: 01 | E47: 037 | F47: 静岡県 | G47: 葵区(静岡市) | H47: 静岡市２－１ | I47: 川合本村 | M47: =IF(K47="","",COUNTIF($K$7:K47,"ﾘｽﾄ１")) ->  | U47: =IF(S47="","",COUNTIF($S$7:S47,"該当２")) ->  | X47: =IF(V47="","",COUNTIF($V$7:V47,"該当３")) ->  | Z47: 41 | AB47: 長泉町
A48: 2210101038 | B48: 22 | C48: 101 | D48: 01 | E48: 038 | F48: 静岡県 | G48: 葵区(静岡市) | H48: 静岡市２－１ | I48: 南沼上 | M48: =IF(K48="","",COUNTIF($K$7:K48,"ﾘｽﾄ１")) ->  | U48: =IF(S48="","",COUNTIF($S$7:S48,"該当２")) ->  | X48: =IF(V48="","",COUNTIF($V$7:V48,"該当３")) ->  | Z48: 42 | AB48: 小山町
A49: 2210101039 | B49: 22 | C49: 101 | D49: 01 | E49: 039 | F49: 静岡県 | G49: 葵区(静岡市) | H49: 静岡市２－１ | I49: 北沼上 | M49: =IF(K49="","",COUNTIF($K$7:K49,"ﾘｽﾄ１")) ->  | U49: =IF(S49="","",COUNTIF($S$7:S49,"該当２")) ->  | X49: =IF(V49="","",COUNTIF($V$7:V49,"該当３")) ->  | Z49: 43 | AB49: 吉田町
A50: 2210101040 | B50: 22 | C50: 101 | D50: 01 | E50: 040 | F50: 静岡県 | G50: 葵区(静岡市) | H50: 静岡市２－１ | I50: 則沢 | M50: =IF(K50="","",COUNTIF($K$7:K50,"ﾘｽﾄ１")) ->  | U50: =IF(S50="","",COUNTIF($S$7:S50,"該当２")) ->  | X50: =IF(V50="","",COUNTIF($V$7:V50,"該当３")) ->  | Z50: 44 | AB50: 川根本町
A51: 2210101041 | B51: 22 | C51: 101 | D51: 01 | E51: 041 | F51: 静岡県 | G51: 葵区(静岡市) | H51: 静岡市２－１ | I51: 銭座 | M51: =IF(K51="","",COUNTIF($K$7:K51,"ﾘｽﾄ１")) ->  | U51: =IF(S51="","",COUNTIF($S$7:S51,"該当２")) ->  | X51: =IF(V51="","",COUNTIF($V$7:V51,"該当３")) ->  | Z51: 45 | AB51: 森町
A52: 2210101042 | B52: 22 | C52: 101 | D52: 01 | E52: 042 | F52: 静岡県 | G52: 葵区(静岡市) | H52: 静岡市２－１ | I52: 池ヶ谷 | M52: =IF(K52="","",COUNTIF($K$7:K52,"ﾘｽﾄ１")) ->  | U52: =IF(S52="","",COUNTIF($S$7:S52,"該当２")) ->  | X52: =IF(V52="","",COUNTIF($V$7:V52,"該当３")) ->  | Z52: 46
A53: 2210101043 | B53: 22 | C53: 101 | D53: 01 | E53: 043 | F53: 静岡県 | G53: 葵区(静岡市) | H53: 静岡市２－１ | I53: 南口 | M53: =IF(K53="","",COUNTIF($K$7:K53,"ﾘｽﾄ１")) ->  | U53: =IF(S53="","",COUNTIF($S$7:S53,"該当２")) ->  | X53: =IF(V53="","",COUNTIF($V$7:V53,"該当３")) ->  | Z53: 47
A54: 2210101044 | B54: 22 | C54: 101 | D54: 01 | E54: 044 | F54: 静岡県 | G54: 葵区(静岡市) | H54: 静岡市２－１ | I54: 南中 | M54: =IF(K54="","",COUNTIF($K$7:K54,"ﾘｽﾄ１")) ->  | U54: =IF(S54="","",COUNTIF($S$7:S54,"該当２")) ->  | X54: =IF(V54="","",COUNTIF($V$7:V54,"該当３")) ->  | Z54: 48
A55: 2210101045 | B55: 22 | C55: 101 | D55: 01 | E55: 045 | F55: 静岡県 | G55: 葵区(静岡市) | H55: 静岡市２－１ | I55: 南奥 | M55: =IF(K55="","",COUNTIF($K$7:K55,"ﾘｽﾄ１")) ->  | U55: =IF(S55="","",COUNTIF($S$7:S55,"該当２")) ->  | X55: =IF(V55="","",COUNTIF($V$7:V55,"該当３")) ->  | Z55: 49 | AB55: =IF($Z55>MAX($M$7:$M$2080),"",INDEX($L$7:$L$2080,MATCH($Z55,$M$7:$M$2080,0),MATCH($AB$4,$L$5:$M$5,0))) -> 
A56: 2210101046 | B56: 22 | C56: 101 | D56: 01 | E56: 046 | F56: 静岡県 | G56: 葵区(静岡市) | H56: 静岡市２－１ | I56: 有永 | M56: =IF(K56="","",COUNTIF($K$7:K56,"ﾘｽﾄ１")) ->  | U56: =IF(S56="","",COUNTIF($S$7:S56,"該当２")) ->  | X56: =IF(V56="","",COUNTIF($V$7:V56,"該当３")) ->  | Z56: 50
A57: 2210101047 | B57: 22 | C57: 101 | D57: 01 | E57: 047 | F57: 静岡県 | G57: 葵区(静岡市) | H57: 静岡市２－１ | I57: 羽高 | M57: =IF(K57="","",COUNTIF($K$7:K57,"ﾘｽﾄ１")) ->  | U57: =IF(S57="","",COUNTIF($S$7:S57,"該当２")) ->  | X57: =IF(V57="","",COUNTIF($V$7:V57,"該当３")) ->  | Z57: 51
A58: 2210101048 | B58: 22 | C58: 101 | D58: 01 | E58: 048 | F58: 静岡県 | G58: 葵区(静岡市) | H58: 静岡市２－１ | I58: 北一 | M58: =IF(K58="","",COUNTIF($K$7:K58,"ﾘｽﾄ１")) ->  | U58: =IF(S58="","",COUNTIF($S$7:S58,"該当２")) ->  | X58: =IF(V58="","",COUNTIF($V$7:V58,"該当３")) ->  | Z58: 52
A59: 2210101049 | B59: 22 | C59: 101 | D59: 01 | E59: 049 | F59: 静岡県 | G59: 葵区(静岡市) | H59: 静岡市２－１ | I59: 北二 | M59: =IF(K59="","",COUNTIF($K$7:K59,"ﾘｽﾄ１")) ->  | U59: =IF(S59="","",COUNTIF($S$7:S59,"該当２")) ->  | X59: =IF(V59="","",COUNTIF($V$7:V59,"該当３")) ->  | Z59: 53
A60: 2210101050 | B60: 22 | C60: 101 | D60: 01 | E60: 050 | F60: 静岡県 | G60: 葵区(静岡市) | H60: 静岡市２－１ | I60: 東 | M60: =IF(K60="","",COUNTIF($K$7:K60,"ﾘｽﾄ１")) ->  | U60: =IF(S60="","",COUNTIF($S$7:S60,"該当２")) ->  | X60: =IF(V60="","",COUNTIF($V$7:V60,"該当３")) ->  | Z60: 54
A61: 2210101051 | B61: 22 | C61: 101 | D61: 01 | E61: 051 | F61: 静岡県 | G61: 葵区(静岡市) | H61: 静岡市２－１ | I61: 瀬名川 | M61: =IF(K61="","",COUNTIF($K$7:K61,"ﾘｽﾄ１")) ->  | U61: =IF(S61="","",COUNTIF($S$7:S61,"該当２")) ->  | X61: =IF(V61="","",COUNTIF($V$7:V61,"該当３")) ->  | Z61: 55
A62: 2210101052 | B62: 22 | C62: 101 | D62: 01 | E62: 052 | F62: 静岡県 | G62: 葵区(静岡市) | H62: 静岡市２－１ | I62: 瀬名 | M62: =IF(K62="","",COUNTIF($K$7:K62,"ﾘｽﾄ１")) ->  | U62: =IF(S62="","",COUNTIF($S$7:S62,"該当２")) ->  | X62: =IF(V62="","",COUNTIF($V$7:V62,"該当３")) ->  | Z62: 56
A63: 2210101053 | B63: 22 | C63: 101 | D63: 01 | E63: 053 | F63: 静岡県 | G63: 葵区(静岡市) | H63: 静岡市２－１ | I63: 長尾 | M63: =IF(K63="","",COUNTIF($K$7:K63,"ﾘｽﾄ１")) ->  | U63: =IF(S63="","",COUNTIF($S$7:S63,"該当２")) ->  | X63: =IF(V63="","",COUNTIF($V$7:V63,"該当３")) ->  | Z63: 57
A64: 2210101054 | B64: 22 | C64: 101 | D64: 01 | E64: 054 | F64: 静岡県 | G64: 葵区(静岡市) | H64: 静岡市２－１ | I64: 平山 | M64: =IF(K64="","",COUNTIF($K$7:K64,"ﾘｽﾄ１")) ->  | U64: =IF(S64="","",COUNTIF($S$7:S64,"該当２")) ->  | X64: =IF(V64="","",COUNTIF($V$7:V64,"該当３")) ->  | Z64: 58
A65: 2210101055 | B65: 22 | C65: 101 | D65: 01 | E65: 055 | F65: 静岡県 | G65: 葵区(静岡市) | H65: 静岡市２－１ | I65: 安倍川河川敷２－１ | M65: =IF(K65="","",COUNTIF($K$7:K65,"ﾘｽﾄ１")) ->  | U65: =IF(S65="","",COUNTIF($S$7:S65,"該当２")) ->  | X65: =IF(V65="","",COUNTIF($V$7:V65,"該当３")) ->  | Z65: 59
A66: 2210102000 | B66: 22 | C66: 101 | D66: 02 | E66: 000 | F66: 静岡県 | G66: 葵区(静岡市) | H66: 美和村 | M66: =IF(K66="","",COUNTIF($K$7:K66,"ﾘｽﾄ１")) ->  | U66: =IF(S66="","",COUNTIF($S$7:S66,"該当２")) ->  | X66: =IF(V66="","",COUNTIF($V$7:V66,"該当３")) ->  | Z66: 60 | AC66: =IF($Z66>MAX($U$7:$U$5500),"",INDEX($T$7:$T$5500,MATCH($Z66,$U$7:$U$5500,0),MATCH($AC$4,$T$5:$U$5,0))) -> 
A67: 2210102001 | B67: 22 | C67: 101 | D67: 02 | E67: 001 | F67: 静岡県 | G67: 葵区(静岡市) | H67: 美和村 | I67: 西ヶ谷 | M67: =IF(K67="","",COUNTIF($K$7:K67,"ﾘｽﾄ１")) ->  | U67: =IF(S67="","",COUNTIF($S$7:S67,"該当２")) ->  | X67: =IF(V67="","",COUNTIF($V$7:V67,"該当３")) ->  | Z67: 61 | AC67: =IF($Z67>MAX($U$7:$U$5500),"",INDEX($T$7:$T$5500,MATCH($Z67,$U$7:$U$5500,0),MATCH($AC$4,$T$5:$U$5,0))) -> 
A68: 2210102002 | B68: 22 | C68: 101 | D68: 02 | E68: 002 | F68: 静岡県 | G68: 葵区(静岡市) | H68: 美和村 | I68: 内牧下 | M68: =IF(K68="","",COUNTIF($K$7:K68,"ﾘｽﾄ１")) ->  | U68: =IF(S68="","",COUNTIF($S$7:S68,"該当２")) ->  | X68: =IF(V68="","",COUNTIF($V$7:V68,"該当３")) ->  | Z68: 62
A69: 2210102003 | B69: 22 | C69: 101 | D69: 02 | E69: 003 | F69: 静岡県 | G69: 葵区(静岡市) | H69: 美和村 | I69: 内牧東 | M69: =IF(K69="","",COUNTIF($K$7:K69,"ﾘｽﾄ１")) ->  | U69: =IF(S69="","",COUNTIF($S$7:S69,"該当２")) ->  | X69: =IF(V69="","",COUNTIF($V$7:V69,"該当３")) ->  | Z69: 63
A70: 2210102004 | B70: 22 | C70: 101 | D70: 02 | E70: 004 | F70: 静岡県 | G70: 葵区(静岡市) | H70: 美和村 | I70: 内牧清地 | M70: =IF(K70="","",COUNTIF($K$7:K70,"ﾘｽﾄ１")) ->  | U70: =IF(S70="","",COUNTIF($S$7:S70,"該当２")) ->  | X70: =IF(V70="","",COUNTIF($V$7:V70,"該当３")) ->  | Z70: 64
A71: 2210102005 | B71: 22 | C71: 101 | D71: 02 | E71: 005 | F71: 静岡県 | G71: 葵区(静岡市) | H71: 美和村 | I71: 内牧中 | M71: =IF(K71="","",COUNTIF($K$7:K71,"ﾘｽﾄ１")) ->  | U71: =IF(S71="","",COUNTIF($S$7:S71,"該当２")) ->  | X71: =IF(V71="","",COUNTIF($V$7:V71,"該当３")) ->  | Z71: 65
A72: 2210102006 | B72: 22 | C72: 101 | D72: 02 | E72: 006 | F72: 静岡県 | G72: 葵区(静岡市) | H72: 美和村 | I72: 内牧上 | M72: =IF(K72="","",COUNTIF($K$7:K72,"ﾘｽﾄ１")) ->  | P72: =IF(O72="該当１",G72,"") ->  | Q72: =IF(O72="該当１","ﾘｽﾄ2","") ->  | R72: =IF(Q72="ﾘｽﾄ2",H72,"") ->  | T72: =IF(S72="該当２",H72,"") ->  | U72: =IF(S72="","",COUNTIF($S$7:S72,"該当２")) ->  | V72: =IF(AND($S$2=H72,E72>0,E72<998),"該当３","") ->  | W72: =IF(V72="該当３",I72,"") ->  | X72: =IF(V72="","",COUNTIF($V$7:V72,"該当３")) ->  | Z72: 66 | AD72: =IF($Z72>MAX($X$7:$X$3715),"",INDEX($W$7:$W$3715,MATCH($Z72,$X$7:$X$3715,0),MATCH($AD$4,$W$5:$X$5,0))) -> 
A73: 2210102007 | B73: 22 | C73: 101 | D73: 02 | E73: 007 | F73: 静岡県 | G73: 葵区(静岡市) | H73: 美和村 | I73: 下与左衛門新田 | K73: =IF(AND($C73>0,$H73=""),"ﾘｽﾄ１","") ->  | L73: =IF(K73="ﾘｽﾄ１",G73,"") ->  | M73: =IF(K73="","",COUNTIF($K$7:K73,"ﾘｽﾄ１")) ->  | N73: =IF(AND(D73=0,E73>0),"同一区","") ->  | O73: =IF(AND(EXACT($K$2,G73),H73>0),"該当１","") ->  | S73: =IF(AND(Q73="ﾘｽﾄ2",OR(I73=0,AND(N73="同一区",E73=1))),"該当２","") ->  | U73: =IF(S73="","",COUNTIF($S$7:S73,"該当２")) ->  | X73: =IF(V73="","",COUNTIF($V$7:V73,"該当３")) ->  | Z73: 67
A74: 2210102008 | B74: 22 | C74: 101 | D74: 02 | E74: 008 | F74: 静岡県 | G74: 葵区(静岡市) | H74: 美和村 | I74: 安倍口新田 | M74: =IF(K74="","",COUNTIF($K$7:K74,"ﾘｽﾄ１")) ->  | U74: =IF(S74="","",COUNTIF($S$7:S74,"該当２")) ->  | X74: =IF(V74="","",COUNTIF($V$7:V74,"該当３")) ->  | Z74: 68
A75: 2210102009 | B75: 22 | C75: 101 | D75: 02 | E75: 009 | F75: 静岡県 | G75: 葵区(静岡市) | H75: 美和村 | I75: 中ノ郷 | M75: =IF(K75="","",COUNTIF($K$7:K75,"ﾘｽﾄ１")) ->  | U75: =IF(S75="","",COUNTIF($S$7:S75,"該当２")) ->  | X75: =IF(V75="","",COUNTIF($V$7:V75,"該当３")) ->  | Z75: 69
A76: 2210102010 | B76: 22 | C76: 101 | D76: 02 | E76: 010 | F76: 静岡県 | G76: 葵区(静岡市) | H76: 美和村 | I76: 上与左衛門新田 | M76: =IF(K76="","",COUNTIF($K$7:K76,"ﾘｽﾄ１")) ->  | U76: =IF(S76="","",COUNTIF($S$7:S76,"該当２")) ->  | X76: =IF(V76="","",COUNTIF($V$7:V76,"該当３")) ->  | Z76: 70
A77: 2210102011 | B77: 22 | C77: 101 | D77: 02 | E77: 011 | F77: 静岡県 | G77: 葵区(静岡市) | H77: 美和村 | I77: 小塚ヶ谷 | M77: =IF(K77="","",COUNTIF($K$7:K77,"ﾘｽﾄ１")) ->  | U77: =IF(S77="","",COUNTIF($S$7:S77,"該当２")) ->  | X77: =IF(V77="","",COUNTIF($V$7:V77,"該当３")) ->  | Z77: 71
A78: 2210102012 | B78: 22 | C78: 101 | D78: 02 | E78: 012 | F78: 静岡県 | G78: 葵区(静岡市) | H78: 美和村 | I78: 遠藤新田 | M78: =IF(K78="","",COUNTIF($K$7:K78,"ﾘｽﾄ１")) ->  | U78: =IF(S78="","",COUNTIF($S$7:S78,"該当２")) ->  | X78: =IF(V78="","",COUNTIF($V$7:V78,"該当３")) ->  | Z78: 72
A79: 2210102013 | B79: 22 | C79: 101 | D79: 02 | E79: 013 | F79: 静岡県 | G79: 葵区(静岡市) | H79: 美和村 | I79: 原田・諸川 | M79: =IF(K79="","",COUNTIF($K$7:K79,"ﾘｽﾄ１")) ->  | U79: =IF(S79="","",COUNTIF($S$7:S79,"該当２")) ->  | X79: =IF(V79="","",COUNTIF($V$7:V79,"該当３")) ->  | Z79: 73
A80: 2210102014 | B80: 22 | C80: 101 | D80: 02 | E80: 014 | F80: 静岡県 | G80: 葵区(静岡市) | H80: 美和村 | I80: 八十岡 | M80: =IF(K80="","",COUNTIF($K$7:K80,"ﾘｽﾄ１")) ->  | U80: =IF(S80="","",COUNTIF($S$7:S80,"該当２")) ->  | X80: =IF(V80="","",COUNTIF($V$7:V80,"該当３")) ->  | Z80: 74
A81: 2210102015 | B81: 22 | C81: 101 | D81: 02 | E81: 015 | F81: 静岡県 | G81: 葵区(静岡市) | H81: 美和村 | I81: 神明原 | M81: =IF(K81="","",COUNTIF($K$7:K81,"ﾘｽﾄ１")) ->  | U81: =IF(S81="","",COUNTIF($S$7:S81,"該当２")) ->  | X81: =IF(V81="","",COUNTIF($V$7:V81,"該当３")) ->  | Z81: 75
A82: 2210102016 | B82: 22 | C82: 101 | D82: 02 | E82: 016 | F82: 静岡県 | G82: 葵区(静岡市) | H82: 美和村 | I82: 舟沢 | M82: =IF(K82="","",COUNTIF($K$7:K82,"ﾘｽﾄ１")) ->  | U82: =IF(S82="","",COUNTIF($S$7:S82,"該当２")) ->  | X82: =IF(V82="","",COUNTIF($V$7:V82,"該当３")) ->  | Z82: 76
A83: 2210102017 | B83: 22 | C83: 101 | D83: 02 | E83: 017 | F83: 静岡県 | G83: 葵区(静岡市) | H83: 美和村 | I83: 敷地 | M83: =IF(K83="","",COUNTIF($K$7:K83,"ﾘｽﾄ１")) ->  | U83: =IF(S83="","",COUNTIF($S$7:S83,"該当２")) ->  | X83: =IF(V83="","",COUNTIF($V$7:V83,"該当３")) ->  | Z83: 77
A84: 2210102018 | B84: 22 | C84: 101 | D84: 02 | E84: 018 | F84: 静岡県 | G84: 葵区(静岡市) | H84: 美和村 | I84: 栗島 | M84: =IF(K84="","",COUNTIF($K$7:K84,"ﾘｽﾄ１")) ->  | U84: =IF(S84="","",COUNTIF($S$7:S84,"該当２")) ->  | X84: =IF(V84="","",COUNTIF($V$7:V84,"該当３")) ->  | Z84: 78
A85: 2210102019 | B85: 22 | C85: 101 | D85: 02 | E85: 019 | F85: 静岡県 | G85: 葵区(静岡市) | H85: 美和村 | I85: 相沢 | M85: =IF(K85="","",COUNTIF($K$7:K85,"ﾘｽﾄ１")) ->  | U85: =IF(S85="","",COUNTIF($S$7:S85,"該当２")) ->  | X85: =IF(V85="","",COUNTIF($V$7:V85,"該当３")) ->  | Z85: 79
A86: 2210102020 | B86: 22 | C86: 101 | D86: 02 | E86: 020 | F86: 静岡県 | G86: 葵区(静岡市) | H86: 美和村 | I86: 谷沢 | M86: =IF(K86="","",COUNTIF($K$7:K86,"ﾘｽﾄ１")) ->  | U86: =IF(S86="","",COUNTIF($S$7:S86,"該当２")) ->  | X86: =IF(V86="","",COUNTIF($V$7:V86,"該当３")) ->  | Z86: 80
A87: 2210102021 | B87: 22 | C87: 101 | D87: 02 | E87: 021 | F87: 静岡県 | G87: 葵区(静岡市) | H87: 美和村 | I87: 口長島 | M87: =IF(K87="","",COUNTIF($K$7:K87,"ﾘｽﾄ１")) ->  | U87: =IF(S87="","",COUNTIF($S$7:S87,"該当２")) ->  | X87: =IF(V87="","",COUNTIF($V$7:V87,"該当３")) ->  | Z87: 81
A88: 2210102022 | B88: 22 | C88: 101 | D88: 02 | E88: 022 | F88: 静岡県 | G88: 葵区(静岡市) | H88: 美和村 | I88: 奥長島 | M88: =IF(K88="","",COUNTIF($K$7:K88,"ﾘｽﾄ１")) ->  | U88: =IF(S88="","",COUNTIF($S$7:S88,"該当２")) ->  | X88: =IF(V88="","",COUNTIF($V$7:V88,"該当３")) -> 
A89: 2210102023 | B89: 22 | C89: 101 | D89: 02 | E89: 023 | F89: 静岡県 | G89: 葵区(静岡市) | H89: 美和村 | I89: 油山下 | M89: =IF(K89="","",COUNTIF($K$7:K89,"ﾘｽﾄ１")) ->  | U89: =IF(S89="","",COUNTIF($S$7:S89,"該当２")) ->  | X89: =IF(V89="","",COUNTIF($V$7:V89,"該当３")) -> 
A90: 2210102024 | B90: 22 | C90: 101 | D90: 02 | E90: 024 | F90: 静岡県 | G90: 葵区(静岡市) | H90: 美和村 | I90: 油山橋本 | M90: =IF(K90="","",COUNTIF($K$7:K90,"ﾘｽﾄ１")) ->  | U90: =IF(S90="","",COUNTIF($S$7:S90,"該当２")) ->  | X90: =IF(V90="","",COUNTIF($V$7:V90,"該当３")) -> 
A91: 2210102025 | B91: 22 | C91: 101 | D91: 02 | E91: 025 | F91: 静岡県 | G91: 葵区(静岡市) | H91: 美和村 | I91: 油山上 | M91: =IF(K91="","",COUNTIF($K$7:K91,"ﾘｽﾄ１")) ->  | U91: =IF(S91="","",COUNTIF($S$7:S91,"該当２")) ->  | X91: =IF(V91="","",COUNTIF($V$7:V91,"該当３")) -> 
A92: 2210102026 | B92: 22 | C92: 101 | D92: 02 | E92: 026 | F92: 静岡県 | G92: 葵区(静岡市) | H92: 美和村 | I92: 松野第一 | M92: =IF(K92="","",COUNTIF($K$7:K92,"ﾘｽﾄ１")) ->  | U92: =IF(S92="","",COUNTIF($S$7:S92,"該当２")) ->  | X92: =IF(V92="","",COUNTIF($V$7:V92,"該当３")) -> 
A93: 2210102027 | B93: 22 | C93: 101 | D93: 02 | E93: 027 | F93: 静岡県 | G93: 葵区(静岡市) | H93: 美和村 | I93: 松野第二 | M93: =IF(K93="","",COUNTIF($K$7:K93,"ﾘｽﾄ１")) ->  | U93: =IF(S93="","",COUNTIF($S$7:S93,"該当２")) ->  | X93: =IF(V93="","",COUNTIF($V$7:V93,"該当３")) -> 
A94: 2210102028 | B94: 22 | C94: 101 | D94: 02 | E94: 028 | F94: 静岡県 | G94: 葵区(静岡市) | H94: 美和村 | I94: 松野第三 | M94: =IF(K94="","",COUNTIF($K$7:K94,"ﾘｽﾄ１")) ->  | U94: =IF(S94="","",COUNTIF($S$7:S94,"該当２")) ->  | X94: =IF(V94="","",COUNTIF($V$7:V94,"該当３")) -> 
A95: 2210102029 | B95: 22 | C95: 101 | D95: 02 | E95: 029 | F95: 静岡県 | G95: 葵区(静岡市) | H95: 美和村 | I95: 津渡野 | M95: =IF(K95="","",COUNTIF($K$7:K95,"ﾘｽﾄ１")) ->  | U95: =IF(S95="","",COUNTIF($S$7:S95,"該当２")) ->  | X95: =IF(V95="","",COUNTIF($V$7:V95,"該当３")) -> 
A96: 2210103000 | B96: 22 | C96: 101 | D96: 03 | E96: 000 | F96: 静岡県 | G96: 葵区(静岡市) | H96: 服織村 | M96: =IF(K96="","",COUNTIF($K$7:K96,"ﾘｽﾄ１")) ->  | U96: =IF(S96="","",COUNTIF($S$7:S96,"該当２")) ->  | X96: =IF(V96="","",COUNTIF($V$7:V96,"該当３")) -> 
A97: 2210103001 | B97: 22 | C97: 101 | D97: 03 | E97: 001 | F97: 静岡県 | G97: 葵区(静岡市) | H97: 服織村 | I97: 山崎新田 | M97: =IF(K97="","",COUNTIF($K$7:K97,"ﾘｽﾄ１")) ->  | U97: =IF(S97="","",COUNTIF($S$7:S97,"該当２")) ->  | X97: =IF(V97="","",COUNTIF($V$7:V97,"該当３")) -> 
A98: 2210103002 | B98: 22 | C98: 101 | D98: 03 | E98: 002 | F98: 静岡県 | G98: 葵区(静岡市) | H98: 服織村 | I98: 千代 | M98: =IF(K98="","",COUNTIF($K$7:K98,"ﾘｽﾄ１")) ->  | U98: =IF(S98="","",COUNTIF($S$7:S98,"該当２")) ->  | X98: =IF(V98="","",COUNTIF($V$7:V98,"該当３")) -> 
A99: 2210103003 | B99: 22 | C99: 101 | D99: 03 | E99: 003 | F99: 静岡県 | G99: 葵区(静岡市) | H99: 服織村 | I99: 慈悲尾 | M99: =IF(K99="","",COUNTIF($K$7:K99,"ﾘｽﾄ１")) ->  | U99: =IF(S99="","",COUNTIF($S$7:S99,"該当２")) ->  | X99: =IF(V99="","",COUNTIF($V$7:V99,"該当３")) -> 
A100: 2210103004 | B100: 22 | C100: 101 | D100: 03 | E100: 004 | F100: 静岡県 | G100: 葵区(静岡市) | H100: 服織村 | I100: 建穂 | M100: =IF(K100="","",COUNTIF($K$7:K100,"ﾘｽﾄ１")) ->  | U100: =IF(S100="","",COUNTIF($S$7:S100,"該当２")) ->  | X100: =IF(V100="","",COUNTIF($V$7:V100,"該当３")) -> 
A101: 2210103005 | B101: 22 | C101: 101 | D101: 03 | E101: 005 | F101: 静岡県 | G101: 葵区(静岡市) | H101: 服織村 | I101: 羽鳥第一 | M101: =IF(K101="","",COUNTIF($K$7:K101,"ﾘｽﾄ１")) ->  | U101: =IF(S101="","",COUNTIF($S$7:S101,"該当２")) ->  | X101: =IF(V101="","",COUNTIF($V$7:V101,"該当３")) -> 
A102: 2210103006 | B102: 22 | C102: 101 | D102: 03 | E102: 006 | F102: 静岡県 | G102: 葵区(静岡市) | H102: 服織村 | I102: 羽鳥第二 | M102: =IF(K102="","",COUNTIF($K$7:K102,"ﾘｽﾄ１")) ->  | U102: =IF(S102="","",COUNTIF($S$7:S102,"該当２")) ->  | X102: =IF(V102="","",COUNTIF($V$7:V102,"該当３")) -> 
A103: 2210103007 | B103: 22 | C103: 101 | D103: 03 | E103: 007 | F103: 静岡県 | G103: 葵区(静岡市) | H103: 服織村 | I103: 羽鳥第三 | M103: =IF(K103="","",COUNTIF($K$7:K103,"ﾘｽﾄ１")) ->  | U103: =IF(S103="","",COUNTIF($S$7:S103,"該当２")) ->  | X103: =IF(V103="","",COUNTIF($V$7:V103,"該当３")) -> 
A104: 2210103008 | B104: 22 | C104: 101 | D104: 03 | E104: 008 | F104: 静岡県 | G104: 葵区(静岡市) | H104: 服織村 | I104: 羽鳥第四下 | M104: =IF(K104="","",COUNTIF($K$7:K104,"ﾘｽﾄ１")) ->  | U104: =IF(S104="","",COUNTIF($S$7:S104,"該当２")) ->  | X104: =IF(V104="","",COUNTIF($V$7:V104,"該当３")) -> 
A105: 2210103009 | B105: 22 | C105: 101 | D105: 03 | E105: 009 | F105: 静岡県 | G105: 葵区(静岡市) | H105: 服織村 | I105: 羽鳥第四上 | M105: =IF(K105="","",COUNTIF($K$7:K105,"ﾘｽﾄ１")) ->  | U105: =IF(S105="","",COUNTIF($S$7:S105,"該当２")) ->  | X105: =IF(V105="","",COUNTIF($V$7:V105,"該当３")) -> 
A106: 2210103010 | B106: 22 | C106: 101 | D106: 03 | E106: 010 | F106: 静岡県 | G106: 葵区(静岡市) | H106: 服織村 | I106: 羽鳥第五下 | M106: =IF(K106="","",COUNTIF($K$7:K106,"ﾘｽﾄ１")) ->  | U106: =IF(S106="","",COUNTIF($S$7:S106,"該当２")) ->  | X106: =IF(V106="","",COUNTIF($V$7:V106,"該当３")) -> 
A107: 2210103011 | B107: 22 | C107: 101 | D107: 03 | E107: 011 | F107: 静岡県 | G107: 葵区(静岡市) | H107: 服織村 | I107: 羽鳥第五上 | M107: =IF(K107="","",COUNTIF($K$7:K107,"ﾘｽﾄ１")) ->  | U107: =IF(S107="","",COUNTIF($S$7:S107,"該当２")) ->  | X107: =IF(V107="","",COUNTIF($V$7:V107,"該当３")) -> 
A108: 2210103012 | B108: 22 | C108: 101 | D108: 03 | E108: 012 | F108: 静岡県 | G108: 葵区(静岡市) | H108: 服織村 | I108: 羽鳥第六 | M108: =IF(K108="","",COUNTIF($K$7:K108,"ﾘｽﾄ１")) ->  | U108: =IF(S108="","",COUNTIF($S$7:S108,"該当２")) ->  | X108: =IF(V108="","",COUNTIF($V$7:V108,"該当３")) -> 
A109: 2210103013 | B109: 22 | C109: 101 | D109: 03 | E109: 013 | F109: 静岡県 | G109: 葵区(静岡市) | H109: 服織村 | I109: 羽鳥第七 | M109: =IF(K109="","",COUNTIF($K$7:K109,"ﾘｽﾄ１")) ->  | U109: =IF(S109="","",COUNTIF($S$7:S109,"該当２")) ->  | X109: =IF(V109="","",COUNTIF($V$7:V109,"該当３")) -> 
A110: 2210103014 | B110: 22 | C110: 101 | D110: 03 | E110: 014 | F110: 静岡県 | G110: 葵区(静岡市) | H110: 服織村 | I110: 新間１ | M110: =IF(K110="","",COUNTIF($K$7:K110,"ﾘｽﾄ１")) ->  | U110: =IF(S110="","",COUNTIF($S$7:S110,"該当２")) ->  | X110: =IF(V110="","",COUNTIF($V$7:V110,"該当３")) -> 
A111: 2210103015 | B111: 22 | C111: 101 | D111: 03 | E111: 015 | F111: 静岡県 | G111: 葵区(静岡市) | H111: 服織村 | I111: 新間２ | M111: =IF(K111="","",COUNTIF($K$7:K111,"ﾘｽﾄ１")) ->  | U111: =IF(S111="","",COUNTIF($S$7:S111,"該当２")) ->  | X111: =IF(V111="","",COUNTIF($V$7:V111,"該当３")) -> 
A112: 2210103016 | B112: 22 | C112: 101 | D112: 03 | E112: 016 | F112: 静岡県 | G112: 葵区(静岡市) | H112: 服織村 | I112: 新間３ | M112: =IF(K112="","",COUNTIF($K$7:K112,"ﾘｽﾄ１")) ->  | U112: =IF(S112="","",COUNTIF($S$7:S112,"該当２")) ->  | X112: =IF(V112="","",COUNTIF($V$7:V112,"該当３")) -> 
A113: 2210103017 | B113: 22 | C113: 101 | D113: 03 | E113: 017 | F113: 静岡県 | G113: 葵区(静岡市) | H113: 服織村 | I113: 新間４ | M113: =IF(K113="","",COUNTIF($K$7:K113,"ﾘｽﾄ１")) ->  | U113: =IF(S113="","",COUNTIF($S$7:S113,"該当２")) ->  | X113: =IF(V113="","",COUNTIF($V$7:V113,"該当３")) -> 
A114: 2210103018 | B114: 22 | C114: 101 | D114: 03 | E114: 018 | F114: 静岡県 | G114: 葵区(静岡市) | H114: 服織村 | I114: 谷津 | M114: =IF(K114="","",COUNTIF($K$7:K114,"ﾘｽﾄ１")) ->  | U114: =IF(S114="","",COUNTIF($S$7:S114,"該当２")) ->  | X114: =IF(V114="","",COUNTIF($V$7:V114,"該当３")) -> 
A115: 2210104000 | B115: 22 | C115: 101 | D115: 04 | E115: 000 | F115: 静岡県 | G115: 葵区(静岡市) | H115: 中藁科村 | M115: =IF(K115="","",COUNTIF($K$7:K115,"ﾘｽﾄ１")) ->  | U115: =IF(S115="","",COUNTIF($S$7:S115,"該当２")) ->  | X115: =IF(V115="","",COUNTIF($V$7:V115,"該当３")) -> 
A116: 2210104001 | B116: 22 | C116: 101 | D116: 04 | E116: 001 | F116: 静岡県 | G116: 葵区(静岡市) | H116: 中藁科村 | I116: 大原 | M116: =IF(K116="","",COUNTIF($K$7:K116,"ﾘｽﾄ１")) ->  | U116: =IF(S116="","",COUNTIF($S$7:S116,"該当２")) ->  | X116: =IF(V116="","",COUNTIF($V$7:V116,"該当３")) -> 
A117: 2210104002 | B117: 22 | C117: 101 | D117: 04 | E117: 002 | F117: 静岡県 | G117: 葵区(静岡市) | H117: 中藁科村 | I117: 水見色 | M117: =IF(K117="","",COUNTIF($K$7:K117,"ﾘｽﾄ１")) ->  | U117: =IF(S117="","",COUNTIF($S$7:S117,"該当２")) ->  | X117: =IF(V117="","",COUNTIF($V$7:V117,"該当３")) -> 
A118: 2210104003 | B118: 22 | C118: 101 | D118: 04 | E118: 003 | F118: 静岡県 | G118: 葵区(静岡市) | H118: 中藁科村 | I118: 富厚里 | M118: =IF(K118="","",COUNTIF($K$7:K118,"ﾘｽﾄ１")) ->  | U118: =IF(S118="","",COUNTIF($S$7:S118,"該当２")) ->  | X118: =IF(V118="","",COUNTIF($V$7:V118,"該当３")) -> 
A119: 2210104004 | B119: 22 | C119: 101 | D119: 04 | E119: 004 | F119: 静岡県 | G119: 葵区(静岡市) | H119: 中藁科村 | I119: 奈良間 | M119: =IF(K119="","",COUNTIF($K$7:K119,"ﾘｽﾄ１")) ->  | U119: =IF(S119="","",COUNTIF($S$7:S119,"該当２")) ->  | X119: =IF(V119="","",COUNTIF($V$7:V119,"該当３")) -> 
A120: 2210104005 | B120: 22 | C120: 101 | D120: 04 | E120: 005 | F120: 静岡県 | G120: 葵区(静岡市) | H120: 中藁科村 | I120: 富沢 | M120: =IF(K120="","",COUNTIF($K$7:K120,"ﾘｽﾄ１")) ->  | U120: =IF(S120="","",COUNTIF($S$7:S120,"該当２")) ->  | X120: =IF(V120="","",COUNTIF($V$7:V120,"該当３")) -> 
A121: 2210104006 | B121: 22 | C121: 101 | D121: 04 | E121: 006 | F121: 静岡県 | G121: 葵区(静岡市) | H121: 中藁科村 | I121: 小布杉 | M121: =IF(K121="","",COUNTIF($K$7:K121,"ﾘｽﾄ１")) ->  | U121: =IF(S121="","",COUNTIF($S$7:S121,"該当２")) ->  | X121: =IF(V121="","",COUNTIF($V$7:V121,"該当３")) -> 
A122: 2210105000 | B122: 22 | C122: 101 | D122: 05 | E122: 000 | F122: 静岡県 | G122: 葵区(静岡市) | H122: 南藁科村 | M122: =IF(K122="","",COUNTIF($K$7:K122,"ﾘｽﾄ１")) ->  | U122: =IF(S122="","",COUNTIF($S$7:S122,"該当２")) ->  | X122: =IF(V122="","",COUNTIF($V$7:V122,"該当３")) -> 
A123: 2210105001 | B123: 22 | C123: 101 | D123: 05 | E123: 001 | F123: 静岡県 | G123: 葵区(静岡市) | H123: 南藁科村 | I123: 牧ヶ谷 | M123: =IF(K123="","",COUNTIF($K$7:K123,"ﾘｽﾄ１")) ->  | U123: =IF(S123="","",COUNTIF($S$7:S123,"該当２")) ->  | X123: =IF(V123="","",COUNTIF($V$7:V123,"該当３")) -> 
A124: 2210105002 | B124: 22 | C124: 101 | D124: 05 | E124: 002 | F124: 静岡県 | G124: 葵区(静岡市) | H124: 南藁科村 | I124: 産女 | M124: =IF(K124="","",COUNTIF($K$7:K124,"ﾘｽﾄ１")) ->  | U124: =IF(S124="","",COUNTIF($S$7:S124,"該当２")) ->  | X124: =IF(V124="","",COUNTIF($V$7:V124,"該当３")) -> 
A125: 2210105003 | B125: 22 | C125: 101 | D125: 05 | E125: 003 | F125: 静岡県 | G125: 葵区(静岡市) | H125: 南藁科村 | I125: 吉津 | M125: =IF(K125="","",COUNTIF($K$7:K125,"ﾘｽﾄ１")) ->  | U125: =IF(S125="","",COUNTIF($S$7:S125,"該当２")) ->  | X125: =IF(V125="","",COUNTIF($V$7:V125,"該当３")) -> 
A126: 2210105004 | B126: 22 | C126: 101 | D126: 05 | E126: 004 | F126: 静岡県 | G126: 葵区(静岡市) | H126: 南藁科村 | I126: 飯間 | M126: =IF(K126="","",COUNTIF($K$7:K126,"ﾘｽﾄ１")) ->  | U126: =IF(S126="","",COUNTIF($S$7:S126,"該当２")) ->  | X126: =IF(V126="","",COUNTIF($V$7:V126,"該当３")) -> 
A127: 2210105005 | B127: 22 | C127: 101 | D127: 05 | E127: 005 | F127: 静岡県 | G127: 葵区(静岡市) | H127: 南藁科村 | I127: 小瀬戸 | M127: =IF(K127="","",COUNTIF($K$7:K127,"ﾘｽﾄ１")) ->  | U127: =IF(S127="","",COUNTIF($S$7:S127,"該当２")) ->  | X127: =IF(V127="","",COUNTIF($V$7:V127,"該当３")) -> 
A128: 2210105006 | B128: 22 | C128: 101 | D128: 05 | E128: 006 | F128: 静岡県 | G128: 葵区(静岡市) | H128: 南藁科村 | I128: 西又 | M128: =IF(K128="","",COUNTIF($K$7:K128,"ﾘｽﾄ１")) ->  | U128: =IF(S128="","",COUNTIF($S$7:S128,"該当２")) ->  | X128: =IF(V128="","",COUNTIF($V$7:V128,"該当３")) -> 
A129: 2210106000 | B129: 22 | C129: 101 | D129: 06 | E129: 000 | F129: 静岡県 | G129: 葵区(静岡市) | H129: 大河内村 | M129: =IF(K129="","",COUNTIF($K$7:K129,"ﾘｽﾄ１")) ->  | U129: =IF(S129="","",COUNTIF($S$7:S129,"該当２")) ->  | X129: =IF(V129="","",COUNTIF($V$7:V129,"該当３")) -> 
A130: 2210106001 | B130: 22 | C130: 101 | D130: 06 | E130: 001 | F130: 静岡県 | G130: 葵区(静岡市) | H130: 大河内村 | I130: 有東木 | M130: =IF(K130="","",COUNTIF($K$7:K130,"ﾘｽﾄ１")) ->  | U130: =IF(S130="","",COUNTIF($S$7:S130,"該当２")) ->  | X130: =IF(V130="","",COUNTIF($V$7:V130,"該当３")) -> 
A131: 2210106002 | B131: 22 | C131: 101 | D131: 06 | E131: 002 | F131: 静岡県 | G131: 葵区(静岡市) | H131: 大河内村 | I131: 渡 | M131: =IF(K131="","",COUNTIF($K$7:K131,"ﾘｽﾄ１")) ->  | U131: =IF(S131="","",COUNTIF($S$7:S131,"該当２")) ->  | X131: =IF(V131="","",COUNTIF($V$7:V131,"該当３")) -> 
A132: 2210106003 | B132: 22 | C132: 101 | D132: 06 | E132: 003 | F132: 静岡県 | G132: 葵区(静岡市) | H132: 大河内村 | I132: 中平 | M132: =IF(K132="","",COUNTIF($K$7:K132,"ﾘｽﾄ１")) ->  | U132: =IF(S132="","",COUNTIF($S$7:S132,"該当２")) ->  | X132: =IF(V132="","",COUNTIF($V$7:V132,"該当３")) -> 
A133: 2210106004 | B133: 22 | C133: 101 | D133: 06 | E133: 004 | F133: 静岡県 | G133: 葵区(静岡市) | H133: 大河内村 | I133: 平野 | M133: =IF(K133="","",COUNTIF($K$7:K133,"ﾘｽﾄ１")) ->  | U133: =IF(S133="","",COUNTIF($S$7:S133,"該当２")) ->  | X133: =IF(V133="","",COUNTIF($V$7:V133,"該当３")) -> 
A134: 2210106005 | B134: 22 | C134: 101 | D134: 06 | E134: 005 | F134: 静岡県 | G134: 葵区(静岡市) | H134: 大河内村 | I134: 横山 | M134: =IF(K134="","",COUNTIF($K$7:K134,"ﾘｽﾄ１")) ->  | U134: =IF(S134="","",COUNTIF($S$7:S134,"該当２")) ->  | X134: =IF(V134="","",COUNTIF($V$7:V134,"該当３")) -> 
A135: 2210106006 | B135: 22 | C135: 101 | D135: 06 | E135: 006 | F135: 静岡県 | G135: 葵区(静岡市) | H135: 大河内村 | I135: 蕨野 | M135: =IF(K135="","",COUNTIF($K$7:K135,"ﾘｽﾄ１")) ->  | U135: =IF(S135="","",COUNTIF($S$7:S135,"該当２")) ->  | X135: =IF(V135="","",COUNTIF($V$7:V135,"該当３")) -> 
A136: 2210106007 | B136: 22 | C136: 101 | D136: 06 | E136: 007 | F136: 静岡県 | G136: 葵区(静岡市) | H136: 大河内村 | I136: 相渕 | M136: =IF(K136="","",COUNTIF($K$7:K136,"ﾘｽﾄ１")) ->  | P136: =IF(O136="該当１",G136,"") ->  | Q136: =IF(O136="該当１","ﾘｽﾄ2","") ->  | R136: =IF(Q136="ﾘｽﾄ2",H136,"") ->  | T136: =IF(S136="該当２",H136,"") ->  | U136: =IF(S136="","",COUNTIF($S$7:S136,"該当２")) ->  | V136: =IF(AND($S$2=H136,E136>0,E136<998),"該当３","") ->  | W136: =IF(V136="該当３",I136,"") ->  | X136: =IF(V136="","",COUNTIF($V$7:V136,"該当３")) -> 
A137: 2210107000 | B137: 22 | C137: 101 | D137: 07 | E137: 000 | F137: 静岡県 | G137: 葵区(静岡市) | H137: 梅ヶ島村 | K137: =IF(AND($C137>0,$H137=""),"ﾘｽﾄ１","") ->  | L137: =IF(K137="ﾘｽﾄ１",G137,"") ->  | M137: =IF(K137="","",COUNTIF($K$7:K137,"ﾘｽﾄ１")) ->  | N137: =IF(AND(D137=0,E137>0),"同一区","") ->  | O137: =IF(AND(EXACT($K$2,G137),H137>0),"該当１","") ->  | S137: =IF(AND(Q137="ﾘｽﾄ2",OR(I137=0,AND(N137="同一区",E137=1))),"該当２","") ->  | U137: =IF(S137="","",COUNTIF($S$7:S137,"該当２")) ->  | X137: =IF(V137="","",COUNTIF($V$7:V137,"該当３")) -> 
A138: 2210107001 | B138: 22 | C138: 101 | D138: 07 | E138: 001 | F138: 静岡県 | G138: 葵区(静岡市) | H138: 梅ヶ島村 | I138: 藤代 | M138: =IF(K138="","",COUNTIF($K$7:K138,"ﾘｽﾄ１")) ->  | U138: =IF(S138="","",COUNTIF($S$7:S138,"該当２")) ->  | X138: =IF(V138="","",COUNTIF($V$7:V138,"該当３")) -> 
A139: 2210107002 | B139: 22 | C139: 101 | D139: 07 | E139: 002 | F139: 静岡県 | G139: 葵区(静岡市) | H139: 梅ヶ島村 | I139: 入島 | M139: =IF(K139="","",COUNTIF($K$7:K139,"ﾘｽﾄ１")) ->  | U139: =IF(S139="","",COUNTIF($S$7:S139,"該当２")) ->  | X139: =IF(V139="","",COUNTIF($V$7:V139,"該当３")) -> 
A140: 2210107003 | B140: 22 | C140: 101 | D140: 07 | E140: 003 | F140: 静岡県 | G140: 葵区(静岡市) | H140: 梅ヶ島村 | I140: 関の沢 | M140: =IF(K140="","",COUNTIF($K$7:K140,"ﾘｽﾄ１")) ->  | U140: =IF(S140="","",COUNTIF($S$7:S140,"該当２")) ->  | X140: =IF(V140="","",COUNTIF($V$7:V140,"該当３")) -> 
A141: 2210107004 | B141: 22 | C141: 101 | D141: 07 | E141: 004 | F141: 静岡県 | G141: 葵区(静岡市) | H141: 梅ヶ島村 | I141: 本村 | M141: =IF(K141="","",COUNTIF($K$7:K141,"ﾘｽﾄ１")) ->  | U141: =IF(S141="","",COUNTIF($S$7:S141,"該当２")) ->  | X141: =IF(V141="","",COUNTIF($V$7:V141,"該当３")) -> 
A142: 2210107005 | B142: 22 | C142: 101 | D142: 07 | E142: 005 | F142: 静岡県 | G142: 葵区(静岡市) | H142: 梅ヶ島村 | I142: 戸持 | M142: =IF(K142="","",COUNTIF($K$7:K142,"ﾘｽﾄ１")) ->  | U142: =IF(S142="","",COUNTIF($S$7:S142,"該当２")) ->  | X142: =IF(V142="","",COUNTIF($V$7:V142,"該当３")) -> 
A143: 2210107006 | B143: 22 | C143: 101 | D143: 07 | E143: 006 | F143: 静岡県 | G143: 葵区(静岡市) | H143: 梅ヶ島村 | I143: 大代 | M143: =IF(K143="","",COUNTIF($K$7:K143,"ﾘｽﾄ１")) ->  | U143: =IF(S143="","",COUNTIF($S$7:S143,"該当２")) ->  | X143: =IF(V143="","",COUNTIF($V$7:V143,"該当３")) -> 
A144: 2210107007 | B144: 22 | C144: 101 | D144: 07 | E144: 007 | F144: 静岡県 | G144: 葵区(静岡市) | H144: 梅ヶ島村 | I144: 赤水・温泉・新田 | M144: =IF(K144="","",COUNTIF($K$7:K144,"ﾘｽﾄ１")) ->  | U144: =IF(S144="","",COUNTIF($S$7:S144,"該当２")) ->  | X144: =IF(V144="","",COUNTIF($V$7:V144,"該当３")) -> 
A145: 2210108000 | B145: 22 | C145: 101 | D145: 08 | E145: 000 | F145: 静岡県 | G145: 葵区(静岡市) | H145: 玉川村 | M145: =IF(K145="","",COUNTIF($K$7:K145,"ﾘｽﾄ１")) ->  | U145: =IF(S145="","",COUNTIF($S$7:S145,"該当２")) ->  | X145: =IF(V145="","",COUNTIF($V$7:V145,"該当３")) -> 
A146: 2210108001 | B146: 22 | C146: 101 | D146: 08 | E146: 001 | F146: 静岡県 | G146: 葵区(静岡市) | H146: 玉川村 | I146: 中沢 | M146: =IF(K146="","",COUNTIF($K$7:K146,"ﾘｽﾄ１")) ->  | U146: =IF(S146="","",COUNTIF($S$7:S146,"該当２")) ->  | X146: =IF(V146="","",COUNTIF($V$7:V146,"該当３")) -> 
A147: 2210108002 | B147: 22 | C147: 101 | D147: 08 | E147: 002 | F147: 静岡県 | G147: 葵区(静岡市) | H147: 玉川村 | I147: 桂山 | M147: =IF(K147="","",COUNTIF($K$7:K147,"ﾘｽﾄ１")) ->  | U147: =IF(S147="","",COUNTIF($S$7:S147,"該当２")) ->  | X147: =IF(V147="","",COUNTIF($V$7:V147,"該当３")) -> 
A148: 2210108003 | B148: 22 | C148: 101 | D148: 08 | E148: 003 | F148: 静岡県 | G148: 葵区(静岡市) | H148: 玉川村 | I148: 唯間 | M148: =IF(K148="","",COUNTIF($K$7:K148,"ﾘｽﾄ１")) ->  | U148: =IF(S148="","",COUNTIF($S$7:S148,"該当２")) ->  | X148: =IF(V148="","",COUNTIF($V$7:V148,"該当３")) -> 
A149: 2210108004 | B149: 22 | C149: 101 | D149: 08 | E149: 004 | F149: 静岡県 | G149: 葵区(静岡市) | H149: 玉川村 | I149: 上助 | M149: =IF(K149="","",COUNTIF($K$7:K149,"ﾘｽﾄ１")) ->  | U149: =IF(S149="","",COUNTIF($S$7:S149,"該当２")) ->  | X149: =IF(V149="","",COUNTIF($V$7:V149,"該当３")) -> 
A150: 2210108005 | B150: 22 | C150: 101 | D150: 08 | E150: 005 | F150: 静岡県 | G150: 葵区(静岡市) | H150: 玉川村 | I150: 奥の原 | M150: =IF(K150="","",COUNTIF($K$7:K150,"ﾘｽﾄ１")) ->  | U150: =IF(S150="","",COUNTIF($S$7:S150,"該当２")) ->  | X150: =IF(V150="","",COUNTIF($V$7:V150,"該当３")) -> 
A151: 2210108006 | B151: 22 | C151: 101 | D151: 08 | E151: 006 | F151: 静岡県 | G151: 葵区(静岡市) | H151: 玉川村 | I151: 森腰 | M151: =IF(K151="","",COUNTIF($K$7:K151,"ﾘｽﾄ１")) ->  | U151: =IF(S151="","",COUNTIF($S$7:S151,"該当２")) ->  | X151: =IF(V151="","",COUNTIF($V$7:V151,"該当３")) -> 
A152: 2210108007 | B152: 22 | C152: 101 | D152: 08 | E152: 007 | F152: 静岡県 | G152: 葵区(静岡市) | H152: 玉川村 | I152: 長熊 | M152: =IF(K152="","",COUNTIF($K$7:K152,"ﾘｽﾄ１")) ->  | U152: =IF(S152="","",COUNTIF($S$7:S152,"該当２")) ->  | X152: =IF(V152="","",COUNTIF($V$7:V152,"該当３")) -> 
A153: 2210108008 | B153: 22 | C153: 101 | D153: 08 | E153: 008 | F153: 静岡県 | G153: 葵区(静岡市) | H153: 玉川村 | I153: 柿島 | M153: =IF(K153="","",COUNTIF($K$7:K153,"ﾘｽﾄ１")) ->  | U153: =IF(S153="","",COUNTIF($S$7:S153,"該当２")) ->  | X153: =IF(V153="","",COUNTIF($V$7:V153,"該当３")) -> 
A154: 2210108009 | B154: 22 | C154: 101 | D154: 08 | E154: 009 | F154: 静岡県 | G154: 葵区(静岡市) | H154: 玉川村 | I154: 長妻田 | M154: =IF(K154="","",COUNTIF($K$7:K154,"ﾘｽﾄ１")) ->  | U154: =IF(S154="","",COUNTIF($S$7:S154,"該当２")) ->  | X154: =IF(V154="","",COUNTIF($V$7:V154,"該当３")) -> 
A155: 2210108010 | B155: 22 | C155: 101 | D155: 08 | E155: 010 | F155: 静岡県 | G155: 葵区(静岡市) | H155: 玉川村 | I155: 油野 | M155: =IF(K155="","",COUNTIF($K$7:K155,"ﾘｽﾄ１")) ->  | U155: =IF(S155="","",COUNTIF($S$7:S155,"該当２")) ->  | X155: =IF(V155="","",COUNTIF($V$7:V155,"該当３")) -> 
A156: 2210108011 | B156: 22 | C156: 101 | D156: 08 | E156: 011 | F156: 静岡県 | G156: 葵区(静岡市) | H156: 玉川村 | I156: 上落合 | M156: =IF(K156="","",COUNTIF($K$7:K156,"ﾘｽﾄ１")) ->  | U156: =IF(S156="","",COUNTIF($S$7:S156,"該当２")) ->  | X156: =IF(V156="","",COUNTIF($V$7:V156,"該当３")) -> 
A157: 2210108012 | B157: 22 | C157: 101 | D157: 08 | E157: 012 | F157: 静岡県 | G157: 葵区(静岡市) | H157: 玉川村 | I157: 口仙俣 | M157: =IF(K157="","",COUNTIF($K$7:K157,"ﾘｽﾄ１")) ->  | U157: =IF(S157="","",COUNTIF($S$7:S157,"該当２")) ->  | X157: =IF(V157="","",COUNTIF($V$7:V157,"該当３")) -> 
A158: 2210108013 | B158: 22 | C158: 101 | D158: 08 | E158: 013 | F158: 静岡県 | G158: 葵区(静岡市) | H158: 玉川村 | I158: 奥仙俣 | M158: =IF(K158="","",COUNTIF($K$7:K158,"ﾘｽﾄ１")) ->  | U158: =IF(S158="","",COUNTIF($S$7:S158,"該当２")) ->  | X158: =IF(V158="","",COUNTIF($V$7:V158,"該当３")) -> 
A159: 2210108014 | B159: 22 | C159: 101 | D159: 08 | E159: 014 | F159: 静岡県 | G159: 葵区(静岡市) | H159: 玉川村 | I159: 平瀬 | M159: =IF(K159="","",COUNTIF($K$7:K159,"ﾘｽﾄ１")) ->  | U159: =IF(S159="","",COUNTIF($S$7:S159,"該当２")) ->  | X159: =IF(V159="","",COUNTIF($V$7:V159,"該当３")) -> 
A160: 2210108015 | B160: 22 | C160: 101 | D160: 08 | E160: 015 | F160: 静岡県 | G160: 葵区(静岡市) | H160: 玉川村 | I160: 川島 | M160: =IF(K160="","",COUNTIF($K$7:K160,"ﾘｽﾄ１")) ->  | U160: =IF(S160="","",COUNTIF($S$7:S160,"該当２")) ->  | X160: =IF(V160="","",COUNTIF($V$7:V160,"該当３")) -> 
A161: 2210108016 | B161: 22 | C161: 101 | D161: 08 | E161: 016 | F161: 静岡県 | G161: 葵区(静岡市) | H161: 玉川村 | I161: 大和 | M161: =IF(K161="","",COUNTIF($K$7:K161,"ﾘｽﾄ１")) ->  | U161: =IF(S161="","",COUNTIF($S$7:S161,"該当２")) ->  | X161: =IF(V161="","",COUNTIF($V$7:V161,"該当３")) -> 
A162: 2210108017 | B162: 22 | C162: 101 | D162: 08 | E162: 017 | F162: 静岡県 | G162: 葵区(静岡市) | H162: 玉川村 | I162: 内匠 | M162: =IF(K162="","",COUNTIF($K$7:K162,"ﾘｽﾄ１")) ->  | U162: =IF(S162="","",COUNTIF($S$7:S162,"該当２")) ->  | X162: =IF(V162="","",COUNTIF($V$7:V162,"該当３")) -> 
A163: 2210108018 | B163: 22 | C163: 101 | D163: 08 | E163: 018 | F163: 静岡県 | G163: 葵区(静岡市) | H163: 玉川村 | I163: 腰越 | M163: =IF(K163="","",COUNTIF($K$7:K163,"ﾘｽﾄ１")) ->  | U163: =IF(S163="","",COUNTIF($S$7:S163,"該当２")) ->  | X163: =IF(V163="","",COUNTIF($V$7:V163,"該当３")) -> 
A164: 2210108019 | B164: 22 | C164: 101 | D164: 08 | E164: 019 | F164: 静岡県 | G164: 葵区(静岡市) | H164: 玉川村 | I164: 大沢 | M164: =IF(K164="","",COUNTIF($K$7:K164,"ﾘｽﾄ１")) ->  | U164: =IF(S164="","",COUNTIF($S$7:S164,"該当２")) ->  | X164: =IF(V164="","",COUNTIF($V$7:V164,"該当３")) -> 
A165: 2210108020 | B165: 22 | C165: 101 | D165: 08 | E165: 020 | F165: 静岡県 | G165: 葵区(静岡市) | H165: 玉川村 | I165: 横沢 | M165: =IF(K165="","",COUNTIF($K$7:K165,"ﾘｽﾄ１")) ->  | U165: =IF(S165="","",COUNTIF($S$7:S165,"該当２")) ->  | X165: =IF(V165="","",COUNTIF($V$7:V165,"該当３")) -> 
A166: 2210109000 | B166: 22 | C166: 101 | D166: 09 | E166: 000 | F166: 静岡県 | G166: 葵区(静岡市) | H166: 井川村 | M166: =IF(K166="","",COUNTIF($K$7:K166,"ﾘｽﾄ１")) ->  | U166: =IF(S166="","",COUNTIF($S$7:S166,"該当２")) ->  | X166: =IF(V166="","",COUNTIF($V$7:V166,"該当３")) -> 
A167: 2210109001 | B167: 22 | C167: 101 | D167: 09 | E167: 001 | F167: 静岡県 | G167: 葵区(静岡市) | H167: 井川村 | I167: 西 | M167: =IF(K167="","",COUNTIF($K$7:K167,"ﾘｽﾄ１")) ->  | U167: =IF(S167="","",COUNTIF($S$7:S167,"該当２")) ->  | X167: =IF(V167="","",COUNTIF($V$7:V167,"該当３")) -> 
A168: 2210109002 | B168: 22 | C168: 101 | D168: 09 | E168: 002 | F168: 静岡県 | G168: 葵区(静岡市) | H168: 井川村 | I168: 門間 | M168: =IF(K168="","",COUNTIF($K$7:K168,"ﾘｽﾄ１")) ->  | U168: =IF(S168="","",COUNTIF($S$7:S168,"該当２")) ->  | X168: =IF(V168="","",COUNTIF($V$7:V168,"該当３")) -> 
A169: 2210109003 | B169: 22 | C169: 101 | D169: 09 | E169: 003 | F169: 静岡県 | G169: 葵区(静岡市) | H169: 井川村 | I169: 薬沢上 | M169: =IF(K169="","",COUNTIF($K$7:K169,"ﾘｽﾄ１")) ->  | U169: =IF(S169="","",COUNTIF($S$7:S169,"該当２")) ->  | X169: =IF(V169="","",COUNTIF($V$7:V169,"該当３")) -> 
A170: 2210109004 | B170: 22 | C170: 101 | D170: 09 | E170: 004 | F170: 静岡県 | G170: 葵区(静岡市) | H170: 井川村 | I170: 薬沢下 | M170: =IF(K170="","",COUNTIF($K$7:K170,"ﾘｽﾄ１")) ->  | U170: =IF(S170="","",COUNTIF($S$7:S170,"該当２")) ->  | X170: =IF(V170="","",COUNTIF($V$7:V170,"該当３")) -> 
A171: 2210109005 | B171: 22 | C171: 101 | D171: 09 | E171: 005 | F171: 静岡県 | G171: 葵区(静岡市) | H171: 井川村 | I171: 中野上 | M171: =IF(K171="","",COUNTIF($K$7:K171,"ﾘｽﾄ１")) ->  | U171: =IF(S171="","",COUNTIF($S$7:S171,"該当２")) ->  | X171: =IF(V171="","",COUNTIF($V$7:V171,"該当３")) -> 
A172: 2210109006 | B172: 22 | C172: 101 | D172: 09 | E172: 006 | F172: 静岡県 | G172: 葵区(静岡市) | H172: 井川村 | I172: 中野下 | M172: =IF(K172="","",COUNTIF($K$7:K172,"ﾘｽﾄ１")) ->  | U172: =IF(S172="","",COUNTIF($S$7:S172,"該当２")) ->  | X172: =IF(V172="","",COUNTIF($V$7:V172,"該当３")) -> 
A173: 2210109007 | B173: 22 | C173: 101 | D173: 09 | E173: 007 | F173: 静岡県 | G173: 葵区(静岡市) | H173: 井川村 | I173: 閑蔵 | M173: =IF(K173="","",COUNTIF($K$7:K173,"ﾘｽﾄ１")) ->  | U173: =IF(S173="","",COUNTIF($S$7:S173,"該当２")) ->  | X173: =IF(V173="","",COUNTIF($V$7:V173,"該当３")) -> 
A174: 2210109008 | B174: 22 | C174: 101 | D174: 09 | E174: 008 | F174: 静岡県 | G174: 葵区(静岡市) | H174: 井川村 | I174: 田代 | M174: =IF(K174="","",COUNTIF($K$7:K174,"ﾘｽﾄ１")) ->  | U174: =IF(S174="","",COUNTIF($S$7:S174,"該当２")) ->  | X174: =IF(V174="","",COUNTIF($V$7:V174,"該当３")) -> 
A175: 2210109009 | B175: 22 | C175: 101 | D175: 09 | E175: 009 | F175: 静岡県 | G175: 葵区(静岡市) | H175: 井川村 | I175: 小河内 | M175: =IF(K175="","",COUNTIF($K$7:K175,"ﾘｽﾄ１")) ->  | U175: =IF(S175="","",COUNTIF($S$7:S175,"該当２")) ->  | X175: =IF(V175="","",COUNTIF($V$7:V175,"該当３")) -> 
A176: 2210109010 | B176: 22 | C176: 101 | D176: 09 | E176: 010 | F176: 静岡県 | G176: 葵区(静岡市) | H176: 井川村 | I176: 大島 | M176: =IF(K176="","",COUNTIF($K$7:K176,"ﾘｽﾄ１")) ->  | U176: =IF(S176="","",COUNTIF($S$7:S176,"該当２")) ->  | X176: =IF(V176="","",COUNTIF($V$7:V176,"該当３")) -> 
A177: 2210109011 | B177: 22 | C177: 101 | D177: 09 | E177: 011 | F177: 静岡県 | G177: 葵区(静岡市) | H177: 井川村 | I177: 中山 | M177: =IF(K177="","",COUNTIF($K$7:K177,"ﾘｽﾄ１")) ->  | U177: =IF(S177="","",COUNTIF($S$7:S177,"該当２")) ->  | X177: =IF(V177="","",COUNTIF($V$7:V177,"該当３")) -> 
A178: 2210109012 | B178: 22 | C178: 101 | D178: 09 | E178: 012 | F178: 静岡県 | G178: 葵区(静岡市) | H178: 井川村 | I178: 上岩 | M178: =IF(K178="","",COUNTIF($K$7:K178,"ﾘｽﾄ１")) ->  | U178: =IF(S178="","",COUNTIF($S$7:S178,"該当２")) ->  | X178: =IF(V178="","",COUNTIF($V$7:V178,"該当３")) -> 
A179: 2210109013 | B179: 22 | C179: 101 | D179: 09 | E179: 013 | F179: 静岡県 | G179: 葵区(静岡市) | H179: 井川村 | I179: 口坂本 | M179: =IF(K179="","",COUNTIF($K$7:K179,"ﾘｽﾄ１")) ->  | U179: =IF(S179="","",COUNTIF($S$7:S179,"該当２")) ->  | X179: =IF(V179="","",COUNTIF($V$7:V179,"該当３")) -> 
A180: 2210109014 | B180: 22 | C180: 101 | D180: 09 | E180: 014 | F180: 静岡県 | G180: 葵区(静岡市) | H180: 井川村 | I180: 開拓 | M180: =IF(K180="","",COUNTIF($K$7:K180,"ﾘｽﾄ１")) ->  | U180: =IF(S180="","",COUNTIF($S$7:S180,"該当２")) ->  | X180: =IF(V180="","",COUNTIF($V$7:V180,"該当３")) -> 
A181: 2210109015 | B181: 22 | C181: 101 | D181: 09 | E181: 015 | F181: 静岡県 | G181: 葵区(静岡市) | H181: 井川村 | I181: 曙 | M181: =IF(K181="","",COUNTIF($K$7:K181,"ﾘｽﾄ１")) ->  | U181: =IF(S181="","",COUNTIF($S$7:S181,"該当２")) ->  | X181: =IF(V181="","",COUNTIF($V$7:V181,"該当３")) -> 
A182: 2210109016 | B182: 22 | C182: 101 | D182: 09 | E182: 016 | F182: 静岡県 | G182: 葵区(静岡市) | H182: 井川村 | I182: 西山平 | M182: =IF(K182="","",COUNTIF($K$7:K182,"ﾘｽﾄ１")) ->  | U182: =IF(S182="","",COUNTIF($S$7:S182,"該当２")) ->  | X182: =IF(V182="","",COUNTIF($V$7:V182,"該当３")) -> 
A183: 2210110000 | B183: 22 | C183: 101 | D183: 10 | E183: 000 | F183: 静岡県 | G183: 葵区(静岡市) | H183: 清沢村 | M183: =IF(K183="","",COUNTIF($K$7:K183,"ﾘｽﾄ１")) ->  | U183: =IF(S183="","",COUNTIF($S$7:S183,"該当２")) ->  | X183: =IF(V183="","",COUNTIF($V$7:V183,"該当３")) -> 
A184: 2210110001 | B184: 22 | C184: 101 | D184: 10 | E184: 001 | F184: 静岡県 | G184: 葵区(静岡市) | H184: 清沢村 | I184: 小島 | M184: =IF(K184="","",COUNTIF($K$7:K184,"ﾘｽﾄ１")) ->  | U184: =IF(S184="","",COUNTIF($S$7:S184,"該当２")) ->  | X184: =IF(V184="","",COUNTIF($V$7:V184,"該当３")) -> 
A185: 2210110002 | B185: 22 | C185: 101 | D185: 10 | E185: 002 | F185: 静岡県 | G185: 葵区(静岡市) | H185: 清沢村 | I185: 鍵穴 | M185: =IF(K185="","",COUNTIF($K$7:K185,"ﾘｽﾄ１")) ->  | U185: =IF(S185="","",COUNTIF($S$7:S185,"該当２")) ->  | X185: =IF(V185="","",COUNTIF($V$7:V185,"該当３")) -> 
A186: 2210110003 | B186: 22 | C186: 101 | D186: 10 | E186: 003 | F186: 静岡県 | G186: 葵区(静岡市) | H186: 清沢村 | I186: 寺島 | M186: =IF(K186="","",COUNTIF($K$7:K186,"ﾘｽﾄ１")) ->  | U186: =IF(S186="","",COUNTIF($S$7:S186,"該当２")) ->  | X186: =IF(V186="","",COUNTIF($V$7:V186,"該当３")) -> 
A187: 2210110004 | B187: 22 | C187: 101 | D187: 10 | E187: 004 | F187: 静岡県 | G187: 葵区(静岡市) | H187: 清沢村 | I187: 坂本 | M187: =IF(K187="","",COUNTIF($K$7:K187,"ﾘｽﾄ１")) ->  | U187: =IF(S187="","",COUNTIF($S$7:S187,"該当２")) ->  | X187: =IF(V187="","",COUNTIF($V$7:V187,"該当３")) -> 
A188: 2210110005 | B188: 22 | C188: 101 | D188: 10 | E188: 005 | F188: 静岡県 | G188: 葵区(静岡市) | H188: 清沢村 | I188: 赤沢 | M188: =IF(K188="","",COUNTIF($K$7:K188,"ﾘｽﾄ１")) ->  | U188: =IF(S188="","",COUNTIF($S$7:S188,"該当２")) ->  | X188: =IF(V188="","",COUNTIF($V$7:V188,"該当３")) -> 
A189: 2210110006 | B189: 22 | C189: 101 | D189: 10 | E189: 006 | F189: 静岡県 | G189: 葵区(静岡市) | H189: 清沢村 | I189: 昼居渡 | M189: =IF(K189="","",COUNTIF($K$7:K189,"ﾘｽﾄ１")) ->  | U189: =IF(S189="","",COUNTIF($S$7:S189,"該当２")) ->  | X189: =IF(V189="","",COUNTIF($V$7:V189,"該当３")) -> 
A190: 2210110007 | B190: 22 | C190: 101 | D190: 10 | E190: 007 | F190: 静岡県 | G190: 葵区(静岡市) | H190: 清沢村 | I190: 下相俣 | M190: =IF(K190="","",COUNTIF($K$7:K190,"ﾘｽﾄ１")) ->  | U190: =IF(S190="","",COUNTIF($S$7:S190,"該当２")) ->  | X190: =IF(V190="","",COUNTIF($V$7:V190,"該当３")) -> 
A191: 2210110008 | B191: 22 | C191: 101 | D191: 10 | E191: 008 | F191: 静岡県 | G191: 葵区(静岡市) | H191: 清沢村 | I191: 上相俣 | M191: =IF(K191="","",COUNTIF($K$7:K191,"ﾘｽﾄ１")) ->  | U191: =IF(S191="","",COUNTIF($S$7:S191,"該当２")) ->  | X191: =IF(V191="","",COUNTIF($V$7:V191,"該当３")) -> 
A192: 2210110009 | B192: 22 | C192: 101 | D192: 10 | E192: 009 | F192: 静岡県 | G192: 葵区(静岡市) | H192: 清沢村 | I192: 久能尾 | M192: =IF(K192="","",COUNTIF($K$7:K192,"ﾘｽﾄ１")) ->  | U192: =IF(S192="","",COUNTIF($S$7:S192,"該当２")) ->  | X192: =IF(V192="","",COUNTIF($V$7:V192,"該当３")) -> 
A193: 2210110010 | B193: 22 | C193: 101 | D193: 10 | E193: 010 | F193: 静岡県 | G193: 葵区(静岡市) | H193: 清沢村 | I193: 黒俣（中村） | M193: =IF(K193="","",COUNTIF($K$7:K193,"ﾘｽﾄ１")) ->  | U193: =IF(S193="","",COUNTIF($S$7:S193,"該当２")) ->  | X193: =IF(V193="","",COUNTIF($V$7:V193,"該当３")) -> 
A194: 2210110011 | B194: 22 | C194: 101 | D194: 10 | E194: 011 | F194: 静岡県 | G194: 葵区(静岡市) | H194: 清沢村 | I194: 三ッ野 | M194: =IF(K194="","",COUNTIF($K$7:K194,"ﾘｽﾄ１")) ->  | U194: =IF(S194="","",COUNTIF($S$7:S194,"該当２")) ->  | X194: =IF(V194="","",COUNTIF($V$7:V194,"該当３")) -> 
A195: 2210110012 | B195: 22 | C195: 101 | D195: 10 | E195: 012 | F195: 静岡県 | G195: 葵区(静岡市) | H195: 清沢村 | I195: 峰山 | M195: =IF(K195="","",COUNTIF($K$7:K195,"ﾘｽﾄ１")) ->  | U195: =IF(S195="","",COUNTIF($S$7:S195,"該当２")) ->  | X195: =IF(V195="","",COUNTIF($V$7:V195,"該当３")) -> 
A196: 2210110013 | B196: 22 | C196: 101 | D196: 10 | E196: 013 | F196: 静岡県 | G196: 葵区(静岡市) | H196: 清沢村 | I196: 中塚 | M196: =IF(K196="","",COUNTIF($K$7:K196,"ﾘｽﾄ１")) ->  | U196: =IF(S196="","",COUNTIF($S$7:S196,"該当２")) ->  | X196: =IF(V196="","",COUNTIF($V$7:V196,"該当３")) -> 
A197: 2210110014 | B197: 22 | C197: 101 | D197: 10 | E197: 014 | F197: 静岡県 | G197: 葵区(静岡市) | H197: 清沢村 | I197: 蛇塚 | M197: =IF(K197="","",COUNTIF($K$7:K197,"ﾘｽﾄ１")) ->  | U197: =IF(S197="","",COUNTIF($S$7:S197,"該当２")) ->  | X197: =IF(V197="","",COUNTIF($V$7:V197,"該当３")) -> 
A198: 2210110015 | B198: 22 | C198: 101 | D198: 10 | E198: 015 | F198: 静岡県 | G198: 葵区(静岡市) | H198: 清沢村 | I198: 杉尾 | M198: =IF(K198="","",COUNTIF($K$7:K198,"ﾘｽﾄ１")) ->  | U198: =IF(S198="","",COUNTIF($S$7:S198,"該当２")) ->  | X198: =IF(V198="","",COUNTIF($V$7:V198,"該当３")) -> 
A199: 2210111000 | B199: 22 | C199: 101 | D199: 11 | E199: 000 | F199: 静岡県 | G199: 葵区(静岡市) | H199: 大川村 | M199: =IF(K199="","",COUNTIF($K$7:K199,"ﾘｽﾄ１")) ->  | U199: =IF(S199="","",COUNTIF($S$7:S199,"該当２")) ->  | X199: =IF(V199="","",COUNTIF($V$7:V199,"該当３")) -> 
A200: 2210111001 | B200: 22 | C200: 101 | D200: 11 | E200: 001 | F200: 静岡県 | G200: 葵区(静岡市) | H200: 大川村 | I200: 坂ノ上 | M200: =IF(K200="","",COUNTIF($K$7:K200,"ﾘｽﾄ１")) ->  | P200: =IF(O200="該当１",G200,"") ->  | Q200: =IF(O200="該当１","ﾘｽﾄ2","") ->  | R200: =IF(Q200="ﾘｽﾄ2",H200,"") ->  | T200: =IF(S200="該当２",H200,"") ->  | U200: =IF(S200="","",COUNTIF($S$7:S200,"該当２")) ->  | V200: =IF(AND($S$2=H200,E200>0,E200<998),"該当３","") ->  | W200: =IF(V200="該当３",I200,"") ->  | X200: =IF(V200="","",COUNTIF($V$7:V200,"該当３")) -> 
... 4300 more rows
